Workbook

Sheet Accueil
E3: BF Manufacturiers TC4 / HIVER
E4: Actualisation au 04/04/2024
B26: Profil Plus France - 19b Avenue Léon Gambetta - 92120 MONTROUGE
B27: Version : 1.0 - YB - Février 2024

Sheet Tutoriel
D3: Tutoriel
C7: Vous trouverez ici comment utiliser le fichier de synthèse des BF
C8: et toutes les astuces disponibles
C10: Entrer les remises
C12: Nous vous invitons à entrer les remises en premier,
C13: ainsi les tarifs affichés correspondront au prix qui vous sera facturé.
C15: Sur l'onglet "Accueil", cliquer sur
C16: Par manufacturier, vous pourrez alors entrer les remises négociées.
C18: Vous avez ensuite intérêt à enregistrer le fichier.
C19: Cela vous évitera d'entrer à nouveau les remises lors de la prochaine utilisation.
C21: Si vous souhaitez ré-initialiser les remises, il vous suffit de cliquer sur le bouton :
C22: Toutes les remises seront alors remises à 0.
C24: Retour à l'accueil
C26: Sur chaque onglet figure le bouton suivant :
C27: En cliquant dessus, vous retournez à l'accueil.
C29: Trouver les pneumatiques disponibles dans la dimension voulue
C31: Depuis l'accueil, cliquer sur
C33: Entrer les caractéristiques du pneumatique dans le tableau suivant :
C36: Toutes les informations ne sont pas indispensables.
C37: Vous pouvez par exemple n'entrer que le diamètre.
C39: Cliquez ensuite sur
C40: L'ensemble des pneumatiques correspondants aux caractéristiques saisies s'affichent en dessous.
C42: Pour supprimer le filtre, et afficher tous les pneumatiques, cliquer sur
C44: Consulter le barème d'un manufacturier
C46: Depuis l'accueil cliquer sur
C47: Pour accéder au barème de l'un des manufacturiers, cliquer sur son logo
C48: Depuis l'onglet présentant le barème d'un manufacturier, vous pouvez :
C49: Consulter les tarifs,
C50: Revenir à l'accueil en cliquant sur le bouton
C51: Consulter le barème d'un autre manufacturier
C52: en cliquant sur le bouton
C54: Modifier la remise en cliquant sur le bouton

Sheet Index
D3: Index TC4
D7: ABREVIATION | F7: DEFINITION
D9: CAI | F9: Code Article International
D10: EAN | F10: European Article Number (code Barre)
D11: BF | F11: Barème de Facturation
D12: TD | F12: Tarif de distribution
D13: IC | F13: Indice de Charge
D14: IV | F14: Indice de Vitesse
D15: Bruit. | F15: Classe de Bruit
D16: Conso. | F16: Efficacité Energetique
D17: PL | F17: Poids Lourd
D18: TT/TL | F18: Tube Type / TubeLess
D19: 3PMSF | F19: 3 Pics Moutain Snow Flakes
F20: Label garantissant de hautes performances
F21: hivernales (adhérence & sécurité)
D22: AdM | F22: Adhérence sur sol Mouillé
D23: M+S | F23: Mud & Snow
D24: RFT | F24: Run Flat Technology (Bridgestone)
D25: ROF | F25: Run On Falt (Runflat Goodyear/Dunlop)
D26: SRS | F26: Support Ring-tyre System (Runflat Bridgestone)
D27: TC4 | F27: Tourisme - Camionnette - 4x4
D28: XSE | F28: X : Technologie radiale
F29: S : Sécurité
F30: E : Economie
D31: ZP | F31: Zero Pressure (Run Flat Michelin)

Sheet Remises
B2: TC4 HIVER - Remises
B6: TOURISME - CAMIONNETTE - 4x4 / NEUF
E8: 0.42 | J8: 0.285 | O8: 0.25 | T8: 0.345
E10: 0.32 | J10: 0.345 | O10: 0.23 | T10: 0.22
E12: 0.18 | J12: 0.305 | O12: 0.3

Sheet Manufacturiers
B2: BF Manufacturiers TC4 / HIVER
B3: Actualisation au 04/04/2024
B6: TOURISME - CAMIONNETTE - 4x4 / NEUF

Sheet Pneus par dim.
F2: BF Manufacturiers TC4 / HIVER
F3: Actualisation au 04/04/2024
B4: Largeur | C4: Hauteur | D4: Diamètre | E4: Charge | F4: Vitesse
A7: REFERENCES PNEUMATIQUES
A8: Manufacturier | B8: Largeur | C8: Hauteur | D8: Diam. | E8: IC | F8: IV | G8: Désignation | H8: Profil | I8: Prix BF ou TD | J8: Prix remisé | K8: CAI | L8: EAN/Gencode | M8: Famille | N8: Catégorie
A9: BRIDGESTONE | B9: 255 | C9: 55 | D9: 18 | E9: 109 | F9: T | G9: PN BRI 255/55R18 XL 109T BLZ DM-V3 | H9: BS BLIZZAK DM-V3 | I9: 342 | J9: =I9*(1-VLOOKUP(A9,Datas_Remises,4,0)) -> 198.36 | K9: 18903 | L9: 3286341890310 | M9: Neuf | N9: 4x4 HIVER
A10: BRIDGESTONE | B10: 255 | C10: 55 | D10: 19 | E10: 111 | F10: T | G10: PN BRI 255/55R19 XL 111T BLZ DM-V3 | H10: BS BLIZZAK DM-V3 | I10: 410.5 | J10: 238.09 | K10: 18934 | L10: 3286341893410 | M10: Neuf | N10: 4x4 HIVER
A11: BRIDGESTONE | B11: 255 | C11: 45 | D11: 20 | E11: 101 | F11: T | G11: PN BRI 255/45R20 101T BLIZZAK LM005 | H11: BS BLIZZAK LM005 | I11: 389.5 | J11: 225.91 | K11: 28557 | L11: 3286342855714 | M11: Neuf | N11: TOURISME HIVER
A12: BRIDGESTONE | B12: 235 | C12: 70 | D12: 16 | E12: 106 | F12: S | G12: PN BRI 235/70R16 106S BLZ DM-V3 | H12: BS BLIZZAK DM-V3 | I12: 233 | J12: 135.14 | K12: 18935 | L12: 3286341893519 | M12: Neuf | N12: 4x4 HIVER
A13: BRIDGESTONE | B13: 265 | C13: 60 | D13: 18 | E13: 110 | F13: R | G13: PN BRI 265/60R18 110R BLZ DM-V3 | H13: BS BLIZZAK DM-V3 | I13: 341 | J13: 197.78 | K13: 18901 | L13: 3286341890112 | M13: Neuf | N13: 4x4 HIVER
A14: BRIDGESTONE | B14: 265 | C14: 70 | D14: 16 | E14: 112 | F14: R | G14: PN BRI 265/70R16 112R BLZ DM-V3 | H14: BS BLIZZAK DM-V3 | I14: 264 | J14: 153.12 | K14: 18899 | L14: 3286341889918 | M14: Neuf | N14: 4x4 HIVER
A15: BRIDGESTONE | B15: 275 | C15: 40 | D15: 20 | E15: 106 | F15: T | G15: PN BRI 275/40R20 XL 106T BLZ DM-V3 | H15: BS BLIZZAK DM-V3 | I15: 462.5 | J15: 268.25 | K15: 18932 | L15: 3286341893212 | M15: Neuf | N15: 4x4 HIVER
A16: BRIDGESTONE | B16: 285 | C16: 65 | D16: 17 | E16: 116 | F16: R | G16: PN BRI 285/65R17 116R BLZ DM-V3 | H16: BS BLIZZAK DM-V3 | I16: 392 | J16: 227.36 | K16: 18929 | L16: 3286341892918 | M16: Neuf | N16: 4x4 HIVER
A17: BRIDGESTONE | B17: 275 | C17: 55 | D17: 20 | E17: 117 | F17: T | G17: PN BRI 275/55R20 XL 117T BLZ DM-V3 | H17: BS BLIZZAK DM-V3 | I17: 438.5 | J17: 254.33 | K17: 18937 | L17: 3286341893717 | M17: Neuf | N17: 4x4 HIVER
A18: BRIDGESTONE | B18: 225 | C18: 40 | D18: 19 | E18: 93 | F18: W | G18: PN BRI 225/40R19 XL 93W BLIZZAK LM005 | H18: BS BLIZZAK LM005 | I18: 308 | J18: 178.64 | K18: 15348 | L18: 3286341534818 | M18: Neuf | N18: TOURISME HIVER
A19: BRIDGESTONE | B19: 235 | C19: 50 | D19: 20 | E19: 100 | F19: T | G19: PN BRI 235/50R20 100T BLIZZAK LM005 | H19: BS BLIZZAK LM005 | I19: 372 | J19: 215.76 | K19: 28555 | L19: 3286342855516 | M19: Neuf | N19: TOURISME HIVER
A20: BRIDGESTONE | B20: 205 | C20: 80 | D20: 16 | E20: 104 | F20: R | G20: PN BRI 205/80R16 XL 104R BLZ DM-V3 | H20: BS BLIZZAK DM-V3 | I20: 219 | J20: 127.02 | K20: 18943 | L20: 3286341894318 | M20: Neuf | N20: 4x4 HIVER
A21: BRIDGESTONE | B21: 255 | C21: 40 | D21: 20 | E21: 101 | F21: V | G21: PN BRI 255/40R20 XL 101V LM001 NB S-CL | H21: BS LM001 | I21: 456.5 | J21: 264.77 | K21: 12846 | L21: 3286341284614 | M21: Neuf | N21: 4x4 HIVER
A22: BRIDGESTONE | B22: 225 | C22: 65 | D22: 16 | E22: 112/110 | F22: R | G22: PN BRI 225/65R16C 112/110R BZK W810 | H22: BS W810 | I22: 247 | J22: 143.26 | K22: 28223 | L22: 3286342822310 | M22: Neuf | N22: CAMIONNETTE HIVER
A23: BRIDGESTONE | B23: 265 | C23: 45 | D23: 21 | E23: 104 | F23: T | G23: PN BRI 265/45R21 104T BLZ DM-V3 | H23: BS BLIZZAK DM-V3 | I23: 482 | J23: 279.56 | K23: 18939 | L23: 3286341893915 | M23: Neuf | N23: 4x4 HIVER
A24: BRIDGESTONE | B24: 185 | C24: 55 | D24: 16 | E24: 87 | F24: T | G24: PN BRI 185/55R16 XL 87 T LM25 | H24: BS LM-25 | I24: 176.5 | J24: 102.37 | K24: 7528 | L24: 3286340752817 | M24: Neuf | N24: TOURISME HIVER
A25: BRIDGESTONE | B25: 275 | C25: 50 | D25: 20 | E25: 113 | F25: T | G25: PN BRI 275/50R20 XL 113T BLZ DM-V3 | H25: BS BLIZZAK DM-V3 | I25: 451 | J25: 261.58 | K25: 18941 | L25: 3286341894110 | M25: Neuf | N25: 4x4 HIVER
A26: BRIDGESTONE | B26: 215 | C26: 45 | D26: 16 | E26: 90 | F26: V | G26: PN BRI 215/45R16 XL 90V LM32 | H26: BS LM32 | I26: 266 | J26: 154.28 | K26: 9600 | L26: 3286340960014 | M26: Neuf | N26: TOURISME HIVER
A27: BRIDGESTONE | B27: 215 | C27: 45 | D27: 20 | E27: 95 | F27: V | G27: PN BRI 215/45R20 XL 95V BLK LM32 * | H27: BS LM32 | I27: 557.5 | J27: 323.35 | K27: 6670 | L27: 3286340667012 | M27: Neuf | N27: TOURISME HIVER
A28: BRIDGESTONE | B28: 205 | C28: 65 | D28: 16 | E28: 107/105 | F28: T | G28: PN BRI 205/65R16C 107/105T BZK W810 | H28: BS W810 | I28: 225.5 | J28: 130.79 | K28: 25862 | L28: 3286342586212 | M28: Neuf | N28: CAMIONNETTE HIVER
A29: BRIDGESTONE | B29: 185 | C29: 75 | D29: 16 | E29: 104/102 | F29: R | G29: PN BRI 185/75R16C 104/102R BZK W810 | H29: BS W810 | I29: 206.5 | J29: 119.77 | K29: 25861 | L29: 3286342586113 | M29: Neuf | N29: CAMIONNETTE HIVER
A30: BRIDGESTONE | B30: 235 | C30: 40 | D30: 19 | E30: 96 | F30: V | G30: PN BRI 235/40R19 XL 96V BLIZZAK LM005 | H30: BS BLIZZAK LM005 | I30: 342 | J30: 198.36 | K30: 26592 | L30: 3286342659213 | M30: Neuf | N30: TOURISME HIVER
A31: BRIDGESTONE | B31: 255 | C31: 40 | D31: 19 | E31: 100 | F31: V | G31: PN BRI 255/40R19 XL 100V BLIZZAK LM005 | H31: BS BLIZZAK LM005 | I31: 331 | J31: 191.98 | K31: 26594 | L31: 3286342659411 | M31: Neuf | N31: TOURISME HIVER
A32: BRIDGESTONE | B32: 245 | C32: 45 | D32: 19 | E32: 102 | F32: V | G32: PN BRI 245/45R19 XL 102V BLIZZAK LM005 | H32: BS BLIZZAK LM005 | I32: 347.5 | J32: 201.55 | K32: 26593 | L32: 3286342659312 | M32: Neuf | N32: TOURISME HIVER
A33: BRIDGESTONE | B33: 205 | C33: 65 | D33: 15 | E33: 102/100 | F33: T | G33: PN BRI 205/65R15C 102/100T LM32C | H33: BS BLK LM32C | I33: 217.5 | J33: 126.15 | K33: 25859 | L33: 3286342585918 | M33: Neuf | N33: CAMIONNETTE HIVER
A34: BRIDGESTONE | B34: 285 | C34: 60 | D34: 18 | E34: 116 | F34: R | G34: PN BRI 285/60R18 116R BLZ DM-V3 | H34: BS BLIZZAK DM-V3 | I34: 372.5 | J34: 216.05 | K34: 18967 | L34: 3286341896718 | M34: Neuf | N34: 4x4 HIVER
A35: BRIDGESTONE | B35: 225 | C35: 40 | D35: 18 | E35: 92 | F35: V | G35: PN BRI 225/40R18 XL 92V BZK LM005 AUD A | H35: BS BLIZZAK LM005 | I35: 220 | J35: 127.6 | K35: 18140 | L35: 3286341814019 | M35: Neuf | N35: TOURISME HIVER
A36: BRIDGESTONE | B36: 225 | C36: 60 | D36: 18 | E36: 100 | F36: S | G36: PN BRI 225/60R18 100S BLZ DM-V3 | H36: BS BLIZZAK DM-V3 | I36: 258 | J36: 149.64 | K36: 18912 | L36: 3286341891218 | M36: Neuf | N36: 4x4 HIVER
A37: BRIDGESTONE | B37: 185 | C37: 60 | D37: 16 | E37: 90 | F37: H | G37: PN BRI 185/60R16 XL 90H BLK LM001 POL | H37: BS LM001 | I37: 170.5 | J37: 98.89 | K37: 25741 | L37: 3286342574110 | M37: Neuf | N37: TOURISME HIVER
A38: BRIDGESTONE | B38: 215 | C38: 45 | D38: 20 | E38: 95 | F38: V | G38: PN BRI 215/45R20 XL 95V BLIZZAK LM005 | H38: BS BLIZZAK LM005 | I38: 526 | J38: 305.08 | K38: 23852 | L38: 3286342385211 | M38: Neuf | N38: TOURISME HIVER
A39: BRIDGESTONE | B39: 205 | C39: 55 | D39: 16 | E39: 91 | F39: H | G39: PN BRI 205/55R16 91 H RFT LM001 1SE | H39: BS LM001 | I39: 188.5 | J39: 109.33 | K39: 9212 | L39: 3286340921213 | M39: Neuf | N39: TOURISME HIVER
A40: BRIDGESTONE | B40: 195 | C40: 55 | D40: 16 | E40: 87 | F40: H | G40: PN BRI 195/55R16 87 H RFT LM001 1SE | H40: BS LM001 | I40: 218 | J40: 126.44 | K40: 9214 | L40: 3286340921411 | M40: Neuf | N40: TOURISME HIVER
A41: BRIDGESTONE | B41: 205 | C41: 65 | D41: 16 | E41: 95 | F41: H | G41: PN BRI 205/65R16 95H BZK LM005 | H41: BS BLIZZAK LM005 | I41: 200 | J41: 116 | K41: 21745 | L41: 3286342174518 | M41: Neuf | N41: TOURISME HIVER
A42: BRIDGESTONE | B42: 225 | C42: 55 | D42: 17 | E42: 97 | F42: H | G42: PN BRI 225/55R17 97 H RFT LM001 5SER | H42: BS LM001 | I42: 270 | J42: 156.6 | K42: 8687 | L42: 3286340868716 | M42: Neuf | N42: TOURISME HIVER
A43: BRIDGESTONE | B43: 205 | C43: 55 | D43: 16 | E43: 91 | F43: H | G43: PN BRI 205/55R16 91 H LM001 1SE | H43: BS LM001 | I43: 159.5 | J43: 92.51 | K43: 9213 | L43: 3286340921312 | M43: Neuf | N43: TOURISME HIVER
A44: BRIDGESTONE | B44: 295 | C44: 35 | D44: 20 | E44: 101 | F44: W | G44: PN BRI 295/35R20 101 W LM001 DB11 | H44: BS LM001 | I44: 516.5 | J44: 299.57 | K44: 6701 | L44: 3286340670111 | M44: Neuf | N44: TOURISME HIVER
A45: BRIDGESTONE | B45: 205 | C45: 65 | D45: 16 | E45: 95 | F45: H | G45: PN BRI 205/65R16 95 H LM001 MINI | H45: BS LM001 | I45: 209.5 | J45: 121.51 | K45: 8408 | L45: 3286340840811 | M45: Neuf | N45: TOURISME HIVER
A46: BRIDGESTONE | B46: 245 | C46: 45 | D46: 20 | E46: 103 | F46: V | G46: PN BRI 245/45R20 XL 103V BLIZZAK LM005 | H46: BS BLIZZAK LM005 | I46: 411.5 | J46: 238.67 | K46: 26595 | L46: 3286342659510 | M46: Neuf | N46: 4x4 HIVER
A47: BRIDGESTONE | B47: 215 | C47: 55 | D47: 17 | E47: 94 | F47: V | G47: PN BRI 215/55R17 94 V LM001 Q2 | H47: BS LM001 | I47: 244 | J47: 141.52 | K47: 8411 | L47: 3286340841115 | M47: Neuf | N47: TOURISME HIVER
A48: BRIDGESTONE | B48: 255 | C48: 40 | D48: 20 | E48: 97 | F48: W | G48: PN BRI 255/40R20 97 W LM001 DB11 | H48: BS LM001 | I48: 440 | J48: 255.2 | K48: 6700 | L48: 3286340670012 | M48: Neuf | N48: TOURISME HIVER
A49: BRIDGESTONE | B49: 225 | C49: 55 | D49: 17 | E49: 97 | F49: H | G49: PN BRI 225/55R17 97 H LM001 MINI | H49: BS LM001 | I49: 228.5 | J49: 132.53 | K49: 8409 | L49: 3286340840910 | M49: Neuf | N49: TOURISME HIVER
A50: BRIDGESTONE | B50: 275 | C50: 65 | D50: 17 | E50: 115 | F50: R | G50: PN BRI 275/65R17 115R BLZ DM-V3 | H50: BS BLIZZAK DM-V3 | I50: 336 | J50: 194.88 | K50: 18920 | L50: 3286341892017 | M50: Neuf | N50: 4x4 HIVER
A51: BRIDGESTONE | B51: 255 | C51: 50 | D51: 20 | E51: 109 | F51: H | G51: PN BRI 255/50R20 XL 109H BZK LM001 E-TR | H51: BS LM001 | I51: 401.5 | J51: 232.87 | K51: 13576 | L51: 3286341357615 | M51: Neuf | N51: 4x4 HIVER
A52: BRIDGESTONE | B52: 215 | C52: 70 | D52: 16 | E52: 100 | F52: T | G52: PN BRI 215/70R16 100T BLIZZAK LM005 | H52: BS BLIZZAK LM005 | I52: 214.5 | J52: 124.41 | K52: 25515 | L52: 3286342551517 | M52: Neuf | N52: 4x4 HIVER
A53: BRIDGESTONE | B53: 215 | C53: 70 | D53: 16 | E53: 100 | F53: S | G53: PN BRI 215/70R16 100S BLZ DM-V3 | H53: BS BLIZZAK DM-V3 | I53: 197.5 | J53: 114.55 | K53: 18915 | L53: 3286341891515 | M53: Neuf | N53: 4x4 HIVER
A54: BRIDGESTONE | B54: 265 | C54: 70 | D54: 17 | E54: 115 | F54: R | G54: PN BRI 265/70R17 115R BLZ DM-V3 | H54: BS BLIZZAK DM-V3 | I54: 295.5 | J54: 171.39 | K54: 18922 | L54: 3286341892215 | M54: Neuf | N54: 4x4 HIVER
A55: BRIDGESTONE | B55: 275 | C55: 35 | D55: 19 | E55: 100 | F55: V | G55: PN BRI 275/35R19 XL 100V BZK LM005 | H55: BS BLIZZAK LM005 | I55: 502 | J55: 291.16 | K55: 23288 | L55: 3286342328812 | M55: Neuf | N55: TOURISME HIVER
A56: BRIDGESTONE | B56: 205 | C56: 60 | D56: 17 | E56: 93 | F56: H | G56: PN BRI 205/60R17 93 H BLIZZAK LM001 TL | H56: BS LM001 | I56: 242.5 | J56: 140.65 | K56: 7672 | L56: 3286340767217 | M56: Neuf | N56: TOURISME HIVER
A57: BRIDGESTONE | B57: 255 | C57: 50 | D57: 20 | E57: 109 | F57: H | G57: PN BRI 255/50R20 XL 109 H LM80EVO AO | H57: BS LM80EVO | I57: 401.5 | J57: 232.87 | K57: 6698 | L57: 3286340669818 | M57: Neuf | N57: 4x4 HIVER
A58: BRIDGESTONE | B58: 225 | C58: 50 | D58: 18 | E58: 95 | F58: H | G58: PN BRI 225/50R18 95 H RFT BLIZZACLM001 | H58: BS LM001 | I58: 332 | J58: 192.56 | K58: 7671 | L58: 3286340767118 | M58: Neuf | N58: TOURISME HIVER
A59: BRIDGESTONE | B59: 225 | C59: 45 | D59: 18 | E59: 95 | F59: H | G59: PN BRI 225/45R18 XL 95 H BLIZZAC LM-32 | H59: BS LM32 | I59: 263.5 | J59: 152.83 | K59: 6892 | L59: 3286340689212 | M59: Neuf | N59: TOURISME HIVER
A60: BRIDGESTONE | B60: 275 | C60: 35 | D60: 21 | E60: 103 | F60: V | G60: PN BRI 275/35R21 XL 103V BLZ LM005 | H60: BS BLIZZAK LM005 | I60: 543 | J60: 314.94 | K60: 21750 | L60: 3286342175010 | M60: Neuf | N60: TOURISME HIVER
A61: BRIDGESTONE | B61: 235 | C61: 55 | D61: 18 | E61: 100 | F61: T | G61: PN BRI 235/55R18 100T BLZ DM-V3 | H61: BS BLIZZAK DM-V3 | I61: 320.5 | J61: 185.89 | K61: 18909 | L61: 3286341890914 | M61: Neuf | N61: 4x4 HIVER
A62: BRIDGESTONE | B62: 245 | C62: 40 | D62: 20 | E62: 95 | F62: W | G62: PN BRI 245/40ZR20 95 W LM32 AMR | H62: BS LM32 | I62: 452 | J62: 262.16 | K62: 5208 | L62: 3286340520812 | M62: Neuf | N62: TOURISME HIVER
A63: BRIDGESTONE | B63: 195 | C63: 60 | D63: 16 | E63: 99/97 | F63: T | G63: PN BRI 195/60R16C 99 T LM32C | H63: BS BLK LM32C | I63: 209.5 | J63: 121.51 | K63: 5013 | L63: 3286340501316 | M63: Neuf | N63: CAMIONNETTE HIVER
A64: BRIDGESTONE | B64: 235 | C64: 65 | D64: 17 | E64: 108 | F64: S | G64: PN BRI 235/65R17 XL 108S BLZ DM-V3 | H64: BS BLIZZAK DM-V3 | I64: 306 | J64: 177.48 | K64: 18907 | L64: 3286341890716 | M64: Neuf | N64: 4x4 HIVER
A65: BRIDGESTONE | B65: 225 | C65: 60 | D65: 17 | E65: 103 | F65: V | G65: PN BRI 225/60R17 XL 103V RFT LM005 DG | H65: BS BLIZZAK LM005 D | I65: 302 | J65: 175.16 | K65: 16719 | L65: 3286341671919 | M65: Neuf | N65: 4x4 HIVER
A66: BRIDGESTONE | B66: 195 | C66: 55 | D66: 16 | E66: 87 | F66: H | G66: PN BRI 195/55R16 87 H LM32 LAML 1SE | H66: BS LM32 | I66: 188.5 | J66: 109.33 | K66: 4384 | L66: 3286340438414 | M66: Neuf | N66: TOURISME HIVER
A67: BRIDGESTONE | B67: 215 | C67: 65 | D67: 16 | E67: 98 | F67: H | G67: PN BRI 215/65R16 98 H LM80 AO | H67: BS LM80 | I67: 199 | J67: 115.42 | K67: 5492 | L67: 3286340549219 | M67: Neuf | N67: 4x4 HIVER
A68: BRIDGESTONE | B68: 275 | C68: 40 | D68: 18 | E68: 103 | F68: V | G68: PN BRI 275/40R18 XL 103V BZK LM005 | H68: BS BLIZZAK LM005 | I68: 391 | J68: 226.78 | K68: 23289 | L68: 3286342328911 | M68: Neuf | N68: TOURISME HIVER
A69: BRIDGESTONE | B69: 275 | C69: 55 | D69: 19 | E69: 111 | F69: T | G69: PN BRI 275/55R19 111T BLZ DM-V3 | H69: BS BLIZZAK DM-V3 | I69: 424 | J69: 245.92 | K69: 18958 | L69: 3286341895810 | M69: Neuf | N69: 4x4 HIVER
A70: BRIDGESTONE | B70: 235 | C70: 60 | D70: 18 | E70: 107 | F70: S | G70: PN BRI 235/60R18 XL 107S BLZ DM-V3 | H70: BS BLIZZAK DM-V3 | I70: 315.5 | J70: 182.99 | K70: 18908 | L70: 3286341890815 | M70: Neuf | N70: 4x4 HIVER
A71: BRIDGESTONE | B71: 215 | C71: 65 | D71: 17 | E71: 99 | F71: H | G71: PN BRI 215/65R17 99H BLZ LM001 VW | H71: BS LM001 | I71: 256 | J71: 148.48 | K71: 19601 | L71: 3286341960112 | M71: Neuf | N71: TOURISME HIVER
A72: BRIDGESTONE | B72: 255 | C72: 45 | D72: 20 | E72: 105 | F72: V | G72: PN BRI 255/45R20 XL 105V BZK LM005 | H72: BS BLIZZAK LM005 | I72: 398 | J72: 230.84 | K72: 23416 | L72: 3286342341613 | M72: Neuf | N72: 4x4 HIVER
A73: BRIDGESTONE | B73: 225 | C73: 70 | D73: 15 | E73: 112/110 | F73: R | G73: PN BRI 225/70R15C 112/110R BZK W810 | H73: BS W810 | I73: 218.5 | J73: =I73*(1-VLOOKUP(A73,Datas_Remises,4,0)) -> 126.73 | K73: 28215 | L73: 3286342821511 | M73: Neuf | N73: CAMIONNETTE HIVER
A74: BRIDGESTONE | B74: 215 | C74: 70 | D74: 15 | E74: 109/107 | F74: R | G74: PN BRI 215/70R15C 109/107R BZK W810 | H74: BS W810 | I74: 214.5 | J74: 124.41 | K74: 28214 | L74: 3286342821412 | M74: Neuf | N74: CAMIONNETTE HIVER
A75: BRIDGESTONE | B75: 205 | C75: 75 | D75: 16 | E75: 110 | F75: R | G75: PN BRI 205/75R16C 110R BZK W810 | H75: BS W810 | I75: 203.5 | J75: 118.03 | K75: 28218 | L75: 3286342821818 | M75: Neuf | N75: CAMIONNETTE HIVER
A76: BRIDGESTONE | B76: 215 | C76: 75 | D76: 16 | E76: 116 | F76: R | G76: PN BRI 215/75R16C 116R BZK W810 | H76: BS W810 | I76: 287.5 | J76: 166.75 | K76: 28221 | L76: 3286342822112 | M76: Neuf | N76: CAMIONNETTE HIVER
A77: BRIDGESTONE | B77: 215 | C77: 65 | D77: 16 | E77: 109/107 | F77: T | G77: PN BRI 215/65R16C 109/107T BZK W810 | H77: BS W810 | I77: 232 | J77: 134.56 | K77: 28219 | L77: 3286342821917 | M77: Neuf | N77: CAMIONNETTE HIVER
A78: BRIDGESTONE | B78: 235 | C78: 65 | D78: 16 | E78: 115/113 | F78: R | G78: PN BRI 235/65R16C 115/113R BLI W995 MU | H78: BS BLI W995 MU | I78: 258 | J78: 149.64 | K78: 25889 | L78: 3286342588919 | M78: Neuf | N78: CAMIONNETTE HIVER
A79: BRIDGESTONE | B79: 225 | C79: 70 | D79: 15 | E79: 112/110 | F79: R | G79: PN BRI 225/70R15C 112/110R BLI W995 MU | H79: BS BLI W995 MU | I79: 195.5 | J79: 113.39 | K79: 25882 | L79: 3286342588216 | M79: Neuf | N79: CAMIONNETTE HIVER
A80: BRIDGESTONE | B80: 285 | C80: 45 | D80: 22 | E80: 110 | F80: T | G80: PN BRI P285/45R22 110T BLZ DM-V3 | H80: BS BLIZZAK DM-V3 | I80: 519 | J80: 301.02 | K80: 18928 | L80: 3286341892819 | M80: Neuf | N80: 4x4 HIVER
A81: BRIDGESTONE | B81: 195 | C81: 75 | D81: 16 | E81: 107/105 | F81: R | G81: PN BRI 195/75R16C 107/105R BLI W995 MU | H81: BS BLI W995 MU | I81: 176 | J81: 102.08 | K81: 25883 | L81: 3286342588315 | M81: Neuf | N81: CAMIONNETTE HIVER
A82: BRIDGESTONE | B82: 215 | C82: 75 | D82: 16 | E82: 113/111 | F82: R | G82: PN BRI 215/75R16C 113/111R BLI W995 MU | H82: BS BLI W995 MU | I82: 227 | J82: 131.66 | K82: 25887 | L82: 3286342588711 | M82: Neuf | N82: CAMIONNETTE HIVER
A83: BRIDGESTONE | B83: 205 | C83: 65 | D83: 16 | E83: 107/105 | F83: R | G83: PN BRI 205/65R16C 107/105R BLI W995 MU | H83: BS BLI W995 MU | I83: 198.5 | J83: 115.13 | K83: 25884 | L83: 3286342588414 | M83: Neuf | N83: CAMIONNETTE HIVER
A84: BRIDGESTONE | B84: 235 | C84: 65 | D84: 16 | E84: 115 | F84: R | G84: PN BRI 235/65R16C 115R BZK W810 | H84: BS W810 | I84: 276 | J84: 160.08 | K84: 28224 | L84: 3286342822419 | M84: Neuf | N84: CAMIONNETTE HIVER
A85: BRIDGESTONE | B85: 315 | C85: 35 | D85: 21 | E85: 111 | F85: V | G85: PN BRI 315/35R21 XL 111V BLZ LM005 | H85: BS BLIZZAK LM005 | I85: 490.5 | J85: 284.49 | K85: 21747 | L85: 3286342174716 | M85: Neuf | N85: 4x4 HIVER
A86: BRIDGESTONE | B86: 205 | C86: 40 | D86: 17 | E86: 84 | F86: V | G86: PN BRI 205/40R17 XL 84V BZK LM005005 | H86: BS BLIZZAK LM005 | I86: 238 | J86: 138.04 | K86: 21746 | L86: 3286342174617 | M86: Neuf | N86: TOURISME HIVER
A87: BRIDGESTONE | B87: 295 | C87: 35 | D87: 19 | E87: 104 | F87: V | G87: PN BRI 295/35R19 XL 104V BLZ LM005 | H87: BS BLIZZAK LM005 | I87: 461 | J87: 267.38 | K87: 21748 | L87: 3286342174815 | M87: Neuf | N87: TOURISME HIVER
A88: BRIDGESTONE | B88: 235 | C88: 55 | D88: 19 | E88: 105 | F88: T | G88: PN BRI 235/55R19 XL 105T BLZ DM-V3 | H88: BS BLIZZAK DM-V3 | I88: 379.5 | J88: 220.11 | K88: 18951 | L88: 3286341895117 | M88: Neuf | N88: 4x4 HIVER
A89: BRIDGESTONE | B89: 265 | C89: 40 | D89: 20 | E89: 104 | F89: V | G89: PN BRI 265/40R20 XL 104V BLZ LM005 | H89: BS BLIZZAK LM005 | I89: 427 | J89: 247.66 | K89: 21749 | L89: 3286342174914 | M89: Neuf | N89: TOURISME HIVER
A90: BRIDGESTONE | B90: 235 | C90: 35 | D90: 20 | E90: 92 | F90: W | G90: PN BRI 235/35R20 XL 92W BLIZZAK LM005 | H90: BS BLIZZAK LM005 | I90: 515.5 | J90: 298.99 | K90: 26106 | L90: 3286342610610 | M90: Neuf | N90: TOURISME HIVER
A91: BRIDGESTONE | B91: 225 | C91: 55 | D91: 19 | E91: 103 | F91: V | G91: PN BRI 225/55R19 XL 103V BLIZZAK LM005 | H91: BS BLIZZAK LM005 | I91: 339 | J91: 196.62 | K91: 28621 | L91: 3286342862118 | M91: Neuf | N91: 4x4 HIVER
A92: BRIDGESTONE | B92: 215 | C92: 55 | D92: 18 | E92: 95 | F92: T | G92: PN BRI 215/55R18 95T BLK LM001 | H92: BS LM001 | I92: 272 | J92: 157.76 | K92: 28559 | L92: 3286342855912 | M92: Neuf | N92: TOURISME HIVER
A93: BRIDGESTONE | B93: 265 | C93: 50 | D93: 19 | E93: 110 | F93: T | G93: PN BRI 265/50R19 XL 110T BLZ DM-V3 | H93: BS BLIZZAK DM-V3 | I93: 391 | J93: 226.78 | K93: 18925 | L93: 3286341892512 | M93: Neuf | N93: 4x4 HIVER
A94: BRIDGESTONE | B94: 245 | C94: 40 | D94: 21 | E94: 100 | F94: V | G94: PN BRI 245/40R21 XL 100V BLIZZAK LM005 | H94: BS BLIZZAK LM005 | I94: 472.5 | J94: 274.05 | K94: 26109 | L94: 3286342610917 | M94: Neuf | N94: TOURISME HIVER
A95: BRIDGESTONE | B95: 175 | C95: 65 | D95: 14 | E95: 90/88 | F95: T | G95: PN BRI 175/65R14C 90/88T LM32C | H95: BS BLK LM32C | I95: 183 | J95: 106.14 | K95: 26596 | L95: 3286342659619 | M95: Neuf | N95: CAMIONNETTE HIVER
A96: BRIDGESTONE | B96: 225 | C96: 50 | D96: 17 | E96: 98 | F96: H | G96: PN BRI 225/50R17 XL 98H BLZ LM005 CC | H96: BS BLIZZAK LM005 | I96: 227.5 | J96: 131.95 | K96: 17986 | L96: 3286341798616 | M96: Neuf | N96: TOURISME HIVER
A97: BRIDGESTONE | B97: 265 | C97: 70 | D97: 15 | E97: 112 | F97: R | G97: PN BRI 265/70R15 112R BLZ DM-V3 | H97: BS BLIZZAK DM-V3 | I97: 269.5 | J97: 156.31 | K97: 18957 | L97: 3286341895711 | M97: Neuf | N97: 4x4 HIVER
A98: BRIDGESTONE | B98: 255 | C98: 55 | D98: 20 | E98: 110 | F98: T | G98: PN BRI 255/55R20 XL 110T BLZ DM-V3 | H98: BS BLIZZAK DM-V3 | I98: 425 | J98: 246.5 | K98: 18961 | L98: 3286341896114 | M98: Neuf | N98: 4x4 HIVER
A99: BRIDGESTONE | B99: 285 | C99: 50 | D99: 20 | E99: 116 | F99: T | G99: PN BRI 285/50R20 XL 116T BLZ DM-V3 | H99: BS BLIZZAK DM-V3 | I99: 459.5 | J99: 266.51 | K99: 18956 | L99: 3286341895612 | M99: Neuf | N99: 4x4 HIVER
A100: BRIDGESTONE | B100: 315 | C100: 40 | D100: 21 | E100: 115 | F100: V | G100: PN BRI 315/40R21 115V BLIZZAK LM005 | H100: BS BLIZZAK LM005 | I100: 550.5 | J100: 319.29 | K100: 26104 | L100: 3286342610412 | M100: Neuf | N100: 4x4 HIVER
A101: BRIDGESTONE | B101: 215 | C101: 50 | D101: 17 | E101: 95 | F101: V | G101: PN BRI 215/50R17 XL 95V RFT LM005 DG | H101: BS BLIZZAK LM005 D | I101: 247.5 | J101: 143.55 | K101: 16723 | L101: 3286341672312 | M101: Neuf | N101: TOURISME HIVER
A102: BRIDGESTONE | B102: 215 | C102: 65 | D102: 16 | E102: 109/107 | F102: R | G102: PN BRI 215/65R16C 109/107R BLI W995 MU | H102: BS BLI W995 MU | I102: 211 | J102: 122.38 | K102: 25886 | L102: 3286342588612 | M102: Neuf | N102: CAMIONNETTE HIVER
A103: BRIDGESTONE | B103: 195 | C103: 65 | D103: 16 | E103: 104/102 | F103: T | G103: PN BRI 195/65R16C 104/102T BZK W810 | H103: BS W810 | I103: 211.5 | J103: 122.67 | K103: 28217 | L103: 3286342821719 | M103: Neuf | N103: CAMIONNETTE HIVER
A104: BRIDGESTONE | B104: 195 | C104: 75 | D104: 16 | E104: 107/105 | F104: R | G104: PN BRI 195/75R16C 107/105R BZK W810 | H104: BS W810 | I104: 186.5 | J104: 108.17 | K104: 28216 | L104: 3286342821610 | M104: Neuf | N104: CAMIONNETTE HIVER
A105: BRIDGESTONE | B105: 215 | C105: 75 | D105: 16 | E105: 113/111 | F105: R | G105: PN BRI 215/75R16C 113/111R BZK W810 | H105: BS W810 | I105: 271.5 | J105: 157.47 | K105: 28220 | L105: 3286342822013 | M105: Neuf | N105: CAMIONNETTE HIVER
A106: BRIDGESTONE | B106: 225 | C106: 65 | D106: 16 | E106: 112/110 | F106: R | G106: PN BRI 225/65R16C 112/110R BLI W995 MU | H106: BS BLI W995 MU | I106: 226 | J106: 131.08 | K106: 25888 | L106: 3286342588810 | M106: Neuf | N106: CAMIONNETTE HIVER
A107: BRIDGESTONE | B107: 225 | C107: 75 | D107: 16 | E107: 121/120 | F107: R | G107: PN BRI 225/75R16C 121/120R BZK W810 | H107: BS W810 | I107: 306 | J107: 177.48 | K107: 28222 | L107: 3286342822211 | M107: Neuf | N107: CAMIONNETTE HIVER
A108: BRIDGESTONE | B108: 225 | C108: 45 | D108: 18 | E108: 95 | F108: V | G108: PN BRI 225/45R18 XL 95V RFT LM005 DG | H108: BS BLIZZAK LM005 D | I108: 269.5 | J108: 156.31 | K108: 16717 | L108: 3286341671711 | M108: Neuf | N108: TOURISME HIVER
A109: BRIDGESTONE | B109: 235 | C109: 45 | D109: 18 | E109: 98 | F109: V | G109: PN BRI 235/45R18 XL 98V RFT LM005 DG | H109: BS BLIZZAK LM005 D | I109: 303.5 | J109: 176.03 | K109: 16718 | L109: 3286341671810 | M109: Neuf | N109: TOURISME HIVER
A110: BRIDGESTONE | B110: 245 | C110: 45 | D110: 18 | E110: 100 | F110: V | G110: PN BRI 245/45R18 XL 100V RFT LM005 DG | H110: BS BLIZZAK LM005 D | I110: 302 | J110: 175.16 | K110: 16716 | L110: 3286341671612 | M110: Neuf | N110: TOURISME HIVER
A111: BRIDGESTONE | B111: 205 | C111: 80 | D111: 16 | E111: 104 | F111: T | G111: PN BRI 205/80R16 XL 104 T LM80EVO | H111: BS LM80EVO | I111: 222 | J111: 128.76 | K111: 6688 | L111: 3286340668811 | M111: Neuf | N111: 4x4 HIVER
A112: BRIDGESTONE | B112: 235 | C112: 60 | D112: 16 | E112: 100 | F112: H | G112: PN BRI 235/60R16 100 H LM80EVO | H112: BS LM80EVO | I112: 250 | J112: 145 | K112: 6600 | L112: 3286340660013 | M112: Neuf | N112: 4x4 HIVER
A113: BRIDGESTONE | B113: 265 | C113: 40 | D113: 19 | E113: 102 | F113: V | G113: PN BRI 265/40R19 XL 102V BLIZZAK LM005 | H113: BS BLIZZAK LM005 | I113: 394 | J113: 228.52 | K113: 26108 | L113: 3286342610818 | M113: Neuf | N113: TOURISME HIVER
A114: BRIDGESTONE | B114: 225 | C114: 55 | D114: 16 | E114: 99 | F114: V | G114: PN BRI 225/55R16 XL 99V RFT LM005 DG | H114: BS BLIZZAK LM005 D | I114: 228.5 | J114: 132.53 | K114: 16721 | L114: 3286341672114 | M114: Neuf | N114: TOURISME HIVER
A115: BRIDGESTONE | B115: 235 | C115: 55 | D115: 17 | E115: 103 | F115: V | G115: PN BRI 235/55R17 XL 103V RFT LM005 DG | H115: BS BLIZZAK LM005 D | I115: 291.5 | J115: 169.07 | K115: 16722 | L115: 3286341672213 | M115: Neuf | N115: TOURISME HIVER
A116: BRIDGESTONE | B116: 235 | C116: 55 | D116: 19 | E116: 101 | F116: T | G116: PN BRI 235/55R19 101T BLIZZAK LM005 AO | H116: BS BLIZZAK LM005 | I116: 312.5 | J116: 181.25 | K116: 28551 | L116: 3286342855110 | M116: Neuf | N116: TOURISME HIVER
A117: BRIDGESTONE | B117: 205 | C117: 50 | D117: 17 | E117: 93 | F117: V | G117: PN BRI 205/50R17 XL 93V RFT LM005 DG | H117: BS BLIZZAK LM005 D | I117: 232 | J117: 134.56 | K117: 16720 | L117: 3286341672015 | M117: Neuf | N117: TOURISME HIVER
A118: BRIDGESTONE | B118: 255 | C118: 50 | D118: 19 | E118: 103 | F118: T | G118: PN BRI 255/50R19 103T BLIZZAK LM005 AO | H118: BS BLIZZAK LM005 | I118: 297 | J118: 172.26 | K118: 28553 | L118: 3286342855318 | M118: Neuf | N118: TOURISME HIVER
A119: BRIDGESTONE | B119: 195 | C119: 70 | D119: 15 | E119: 104/102 | F119: R | G119: PN BRI 195/70R15C 104/102R BZK W810 | H119: BS W810 | I119: 173 | J119: 100.34 | K119: 28212 | L119: 3286342821214 | M119: Neuf | N119: CAMIONNETTE HIVER
A120: BRIDGESTONE | B120: 255 | C120: 40 | D120: 18 | E120: 99 | F120: V | G120: PN BRI 255/40R18 XL 99V BLZ LM005 | H120: BS BLIZZAK LM005 | I120: 284 | J120: 164.72 | K120: 15336 | L120: 3286341533613 | M120: Neuf | N120: TOURISME HIVER
A121: BRIDGESTONE | B121: 215 | C121: 65 | D121: 16 | E121: 106/104 | F121: T | G121: PN BRI 215/65R16C 106/104 T LM18C TRAN | H121: BS BLK LM18C | I121: 215.5 | J121: 124.99 | K121: 6709 | L121: 3286340670913 | M121: Neuf | N121: CAMIONNETTE HIVER
A122: BRIDGESTONE | B122: 265 | C122: 65 | D122: 17 | E122: 112 | F122: R | G122: PN BRI 265/65R17 112R BLZ DM-V3 | H122: BS BLIZZAK DM-V3 | I122: 326.5 | J122: 189.37 | K122: 18900 | L122: 3286341890013 | M122: Neuf | N122: 4x4 HIVER
A123: BRIDGESTONE | B123: 215 | C123: 60 | D123: 17 | E123: 100 | F123: S | G123: PN BRI 215/60R17 XL 100S BLZ DM-V3 | H123: BS BLIZZAK DM-V3 | I123: 262 | J123: 151.96 | K123: 18918 | L123: 3286341891812 | M123: Neuf | N123: 4x4 HIVER
A124: BRIDGESTONE | B124: 235 | C124: 65 | D124: 18 | E124: 106 | F124: S | G124: PN BRI 235/65R18 106S BLZ DM-V3 | H124: BS BLIZZAK DM-V3 | I124: 313 | J124: 181.54 | K124: 18906 | L124: 3286341890617 | M124: Neuf | N124: 4x4 HIVER
A125: BRIDGESTONE | B125: 235 | C125: 55 | D125: 19 | E125: 105 | F125: V | G125: PN BRI 235/55R19 XL 105V BZK LM005 | H125: BS BLIZZAK LM005 | I125: 315 | J125: 182.7 | K125: 15085 | L125: 3286341508512 | M125: Neuf | N125: 4x4 HIVER
A126: BRIDGESTONE | B126: 255 | C126: 35 | D126: 21 | E126: 98 | F126: W | G126: PN BRI 255/35R21 XL 98W BLZ LM005 | H126: BS BLIZZAK LM005 | I126: 529.5 | J126: 307.11 | K126: 19191 | L126: 3286341919110 | M126: Neuf | N126: TOURISME HIVER
A127: BRIDGESTONE | B127: 285 | C127: 40 | D127: 21 | E127: 109 | F127: V | G127: PN BRI 285/40R21 XL 109V BLZ LM005 | H127: BS BLIZZAK LM005 | I127: 461.5 | J127: 267.67 | K127: 19189 | L127: 3286341918915 | M127: Neuf | N127: 4x4 HIVER
A128: BRIDGESTONE | B128: 275 | C128: 30 | D128: 20 | E128: 97 | F128: W | G128: PN BRI 275/30R20 XL 97W BLZ LM005 | H128: BS BLIZZAK LM005 | I128: 504.5 | J128: 292.61 | K128: 19192 | L128: 3286341919219 | M128: Neuf | N128: TOURISME HIVER
A129: BRIDGESTONE | B129: 225 | C129: 60 | D129: 18 | E129: 104 | F129: V | G129: PN BRI 225/60R18 XL 104V BLZ LM005 | H129: BS BLIZZAK LM005 | I129: 303 | J129: 175.74 | K129: 15062 | L129: 3286341506211 | M129: Neuf | N129: 4x4 HIVER
A130: BRIDGESTONE | B130: 215 | C130: 50 | D130: 19 | E130: 93 | F130: T | G130: PN BRI 215/50R19 93T BZK LM005 | H130: BS BLIZZAK LM005 | I130: 288 | J130: 167.04 | K130: 19743 | L130: 3286341974317 | M130: Neuf | N130: TOURISME HIVER
A131: BRIDGESTONE | B131: 275 | C131: 65 | D131: 18 | E131: 114 | F131: R | G131: PN BRI P275/65R18 114R BLZ DM-V3 | H131: BS BLIZZAK DM-V3 | I131: 356.5 | J131: 206.77 | K131: 18965 | L131: 3286341896510 | M131: Neuf | N131: 4x4 HIVER
A132: BRIDGESTONE | B132: 235 | C132: 40 | D132: 20 | E132: 96 | F132: H | G132: PN BRI 235/40R20 XL 96H BZK LM005005 | H132: BS BLIZZAK LM005 | I132: 367 | J132: 212.86 | K132: 21744 | L132: 3286342174419 | M132: Neuf | N132: TOURISME HIVER
A133: BRIDGESTONE | B133: 255 | C133: 50 | D133: 19 | E133: 107 | F133: T | G133: PN BRI 255/50R19 XL 107T BLZ DM-V3 | H133: BS BLIZZAK DM-V3 | I133: 405 | J133: 234.9 | K133: 18962 | L133: 3286341896213 | M133: Neuf | N133: 4x4 HIVER
A134: BRIDGESTONE | B134: 205 | C134: 70 | D134: 15 | E134: 106/104 | F134: R | G134: PN BRI 205/70R15C 106/104R BZK W810 | H134: BS W810 | I134: 202.5 | J134: 117.45 | K134: 28213 | L134: 3286342821313 | M134: Neuf | N134: CAMIONNETTE HIVER
A135: BRIDGESTONE | B135: 175 | C135: 75 | D135: 14 | E135: 99/98 | F135: R | G135: PN BRI 175/75R14C 99/98R BZK W810 | H135: BS W810 | I135: 167.5 | J135: 97.15 | K135: 28211 | L135: 3286342821115 | M135: Neuf | N135: CAMIONNETTE HIVER
A136: BRIDGESTONE | B136: 245 | C136: 55 | D136: 19 | E136: 103 | F136: T | G136: PN BRI P245/55R19 103T BLZ DM-V3 | H136: BS BLIZZAK DM-V3 | I136: 383.5 | J136: 222.43 | K136: 18966 | L136: 3286341896619 | M136: Neuf | N136: 4x4 HIVER
A137: BRIDGESTONE | B137: 235 | C137: 55 | D137: 20 | E137: 105 | F137: V | G137: PN BRI 235/55R20 XL 105V BLZ LM005 | H137: BS BLIZZAK LM005 | I137: 423.5 | J137: =I137*(1-VLOOKUP(A137,Datas_Remises,4,0)) -> 245.63 | K137: 19190 | L137: 3286341919011 | M137: Neuf | N137: 4x4 HIVER
A138: BRIDGESTONE | B138: 165 | C138: 60 | D138: 15 | E138: 81 | F138: T | G138: PN BRI 165/60R15 XL 81T BLZ LM005 | H138: BS BLIZZAK LM005 | I138: 162 | J138: 93.96 | K138: 19188 | L138: 3286341918816 | M138: Neuf | N138: TOURISME HIVER
A139: BRIDGESTONE | B139: 245 | C139: 70 | D139: 16 | E139: 107 | F139: S | G139: PN BRI 245/70R16 107S BLZ DM-V3 | H139: BS BLIZZAK DM-V3 | I139: 241.5 | J139: 140.07 | K139: 18905 | L139: 3286341890518 | M139: Neuf | N139: 4x4 HIVER
A140: BRIDGESTONE | B140: 215 | C140: 55 | D140: 18 | E140: 95 | F140: T | G140: PN BRI 215/55R18 95T BZK LM001 SLT VW NE | H140: BS LM001 | I140: 321.5 | J140: 186.47 | K140: 19605 | L140: 3286341960518 | M140: Neuf | N140: TOURISME HIVER
A141: BRIDGESTONE | B141: 245 | C141: 60 | D141: 18 | E141: 105 | F141: S | G141: PN BRI 245/60R18 105S BLZ DM-V3 | H141: BS BLIZZAK DM-V3 | I141: 329.5 | J141: 191.11 | K141: 18926 | L141: 3286341892611 | M141: Neuf | N141: 4x4 HIVER
A142: BRIDGESTONE | B142: 245 | C142: 40 | D142: 18 | E142: 97 | F142: V | G142: PN BRI 245/40R18 XL 97V RFT LM005 DG | H142: BS BLIZZAK LM005 D | I142: 273 | J142: 158.34 | K142: 16715 | L142: 3286341671513 | M142: Neuf | N142: TOURISME HIVER
A143: BRIDGESTONE | B143: 295 | C143: 40 | D143: 21 | E143: 111 | F143: V | G143: PN BRI 295/40R21 XL 111V BLZ LM005 | H143: BS BLIZZAK LM005 | I143: 478 | J143: 277.24 | K143: 15133 | L143: 3286341513318 | M143: Neuf | N143: 4x4 HIVER
A144: BRIDGESTONE | B144: 265 | C144: 45 | D144: 21 | E144: 108 | F144: V | G144: PN BRI 265/45R21 XL 108V BLZ LM005 | H144: BS BLIZZAK LM005 | I144: 449.5 | J144: 260.71 | K144: 15134 | L144: 3286341513417 | M144: Neuf | N144: 4x4 HIVER
A145: BRIDGESTONE | B145: 275 | C145: 40 | D145: 21 | E145: 107 | F145: V | G145: PN BRI 275/40R21 XL 107V BLZ LM005 | H145: BS BLIZZAK LM005 | I145: 458.5 | J145: 265.93 | K145: 15131 | L145: 3286341513110 | M145: Neuf | N145: 4x4 HIVER
A146: BRIDGESTONE | B146: 255 | C146: 40 | D146: 21 | E146: 102 | F146: V | G146: PN BRI 255/40R21 XL 102V BLZ LM005 | H146: BS BLIZZAK LM005 | I146: 397 | J146: 230.26 | K146: 15127 | L146: 3286341512717 | M146: Neuf | N146: 4x4 HIVER
A147: BRIDGESTONE | B147: 265 | C147: 40 | D147: 21 | E147: 105 | F147: V | G147: PN BRI 265/40R21 XL 105V BLZ LM005 | H147: BS BLIZZAK LM005 | I147: 449.5 | J147: 260.71 | K147: 15129 | L147: 3286341512915 | M147: Neuf | N147: 4x4 HIVER
A148: BRIDGESTONE | B148: 275 | C148: 40 | D148: 22 | E148: 107 | F148: V | G148: PN BRI 275/40R22 XL 107V BLZ LM005 | H148: BS BLIZZAK LM005 | I148: 497.5 | J148: 288.55 | K148: 15136 | L148: 3286341513615 | M148: Neuf | N148: 4x4 HIVER
A149: BRIDGESTONE | B149: 245 | C149: 40 | D149: 17 | E149: 95 | F149: V | G149: PN BRI 245/40R17 XL 95V BLZ LM005 | H149: BS BLIZZAK LM005 | I149: 304 | J149: 176.32 | K149: 15313 | L149: 3286341531312 | M149: Neuf | N149: TOURISME HIVER
A150: BRIDGESTONE | B150: 235 | C150: 50 | D150: 17 | E150: 100 | F150: V | G150: PN BRI 235/50R17 XL 100V BLZ LM005 | H150: BS BLIZZAK LM005 | I150: 310 | J150: 179.8 | K150: 15323 | L150: 3286341532319 | M150: Neuf | N150: TOURISME HIVER
A151: BRIDGESTONE | B151: 225 | C151: 55 | D151: 16 | E151: 99 | F151: H | G151: PN BRI 225/55R16 XL 99H BLZ LM005 | H151: BS BLIZZAK LM005 | I151: 213 | J151: 123.54 | K151: 15307 | L151: 3286341530711 | M151: Neuf | N151: TOURISME HIVER
A152: BRIDGESTONE | B152: 195 | C152: 50 | D152: 15 | E152: 86 | F152: H | G152: PN BRI 195/50R15 XL 86H BLZ LM005 | H152: BS BLIZZAK LM005 | I152: 149.5 | J152: 86.71 | K152: 15294 | L152: 3286341529418 | M152: Neuf | N152: TOURISME HIVER
A153: BRIDGESTONE | B153: 205 | C153: 45 | D153: 16 | E153: 87 | F153: H | G153: PN BRI 205/45R16 XL 87H BLZ LM005 | H153: BS BLIZZAK LM005 | I153: 220 | J153: 127.6 | K153: 15299 | L153: 3286341529913 | M153: Neuf | N153: TOURISME HIVER
A154: BRIDGESTONE | B154: 275 | C154: 55 | D154: 17 | E154: 109 | F154: H | G154: PN BRI 275/55R17 109H BLZ LM005 | H154: BS BLIZZAK LM005 | I154: 347 | J154: 201.26 | K154: 15017 | L154: 3286341501711 | M154: Neuf | N154: 4x4 HIVER
A155: BRIDGESTONE | B155: 225 | C155: 55 | D155: 18 | E155: 102 | F155: V | G155: PN BRI 225/55R18 XL 102V BLZ LM005 | H155: BS BLIZZAK LM005 | I155: 273 | J155: 158.34 | K155: 15054 | L155: 3286341505412 | M155: Neuf | N155: 4x4 HIVER
A156: BRIDGESTONE | B156: 255 | C156: 60 | D156: 18 | E156: 112 | F156: S | G156: PN BRI 255/60R18 XL 112S BLZ DM-V3 | H156: BS BLIZZAK DM-V3 | I156: 357.5 | J156: 207.35 | K156: 18950 | L156: 3286341895018 | M156: Neuf | N156: 4x4 HIVER
A157: BRIDGESTONE | B157: 275 | C157: 45 | D157: 20 | E157: 110 | F157: T | G157: PN BRI 275/45R20 XL 110T BLZ DM-V3 | H157: BS BLIZZAK DM-V3 | I157: 431.5 | J157: 250.27 | K157: 18946 | L157: 3286341894615 | M157: Neuf | N157: 4x4 HIVER
A158: BRIDGESTONE | B158: 275 | C158: 70 | D158: 16 | E158: 114 | F158: R | G158: PN BRI 275/70R16 114R BLZ DM-V3 | H158: BS BLIZZAK DM-V3 | I158: 274 | J158: 158.92 | K158: 18948 | L158: 3286341894813 | M158: Neuf | N158: 4x4 HIVER
A159: BRIDGESTONE | B159: 285 | C159: 45 | D159: 19 | E159: 111 | F159: W | G159: PN BRI 285/45R19 XL 111W BLZ LM005 | H159: BS BLIZZAK LM005 | I159: 422.5 | J159: 245.05 | K159: 15077 | L159: 3286341507713 | M159: Neuf | N159: 4x4 HIVER
A160: BRIDGESTONE | B160: 285 | C160: 45 | D160: 20 | E160: 112 | F160: V | G160: PN BRI 285/45R20 XL 112V BLZ LM005 | H160: BS BLIZZAK LM005 | I160: 451.5 | J160: 261.87 | K160: 15107 | L160: 3286341510713 | M160: Neuf | N160: 4x4 HIVER
A161: BRIDGESTONE | B161: 265 | C161: 50 | D161: 20 | E161: 111 | F161: V | G161: PN BRI 265/50R20 XL 111V BLZ LM005 | H161: BS BLIZZAK LM005 | I161: 450.5 | J161: 261.29 | K161: 15112 | L161: 3286341511215 | M161: Neuf | N161: 4x4 HIVER
A162: BRIDGESTONE | B162: 275 | C162: 45 | D162: 20 | E162: 110 | F162: V | G162: PN BRI 275/45R20 XL 110V BLZ LM005 | H162: BS BLIZZAK LM005 | I162: 452 | J162: 262.16 | K162: 15106 | L162: 3286341510614 | M162: Neuf | N162: 4x4 HIVER
A163: BRIDGESTONE | B163: 255 | C163: 55 | D163: 19 | E163: 111 | F163: V | G163: PN BRI 255/55R19 XL 111V BZK LM005 | H163: BS BLIZZAK LM005 | I163: 369.5 | J163: 214.31 | K163: 15087 | L163: 3286341508710 | M163: Neuf | N163: 4x4 HIVER
A164: BRIDGESTONE | B164: 295 | C164: 40 | D164: 20 | E164: 110 | F164: V | G164: PN BRI 295/40R20 XL 110V BLZ LM005 | H164: BS BLIZZAK LM005 | I164: 448.5 | J164: 260.13 | K164: 15093 | L164: 3286341509311 | M164: Neuf | N164: 4x4 HIVER
A165: BRIDGESTONE | B165: 255 | C165: 35 | D165: 18 | E165: 94 | F165: V | G165: PN BRI 255/35R18 XL 94V BLZ LM005 | H165: BS BLIZZAK LM005 | I165: 314 | J165: 182.12 | K165: 15331 | L165: 3286341533118 | M165: Neuf | N165: TOURISME HIVER
A166: BRIDGESTONE | B166: 205 | C166: 50 | D166: 19 | E166: 94 | F166: V | G166: PN BRI 205/50R19 XL 94V BLIZZAK LM005 | H166: BS BLIZZAK LM005 | I166: 298.5 | J166: 173.13 | K166: 26093 | L166: 3286342609317 | M166: Neuf | N166: 4x4 HIVER
A167: BRIDGESTONE | B167: 245 | C167: 50 | D167: 19 | E167: 105 | F167: V | G167: PN BRI 245/50R19 XL 105V BLIZZAK LM005 | H167: BS BLIZZAK LM005 | I167: 275.5 | J167: 159.79 | K167: 26095 | L167: 3286342609515 | M167: Neuf | N167: 4x4 HIVER
A168: BRIDGESTONE | B168: 195 | C168: 70 | D168: 15 | E168: 104/102 | F168: R | G168: PN BRI 195/70R15C 104/102R BLI W995 MU | H168: BS BLI W995 MU | I168: 165 | J168: 95.7 | K168: 25890 | L168: 3286342589015 | M168: Neuf | N168: CAMIONNETTE HIVER
A169: BRIDGESTONE | B169: 245 | C169: 65 | D169: 17 | E169: 107 | F169: S | G169: PN BRI 245/65R17 107S BLZ DM-V3 | H169: BS BLIZZAK DM-V3 | I169: 308 | J169: 178.64 | K169: 18952 | L169: 3286341895216 | M169: Neuf | N169: 4x4 HIVER
A170: BRIDGESTONE | B170: 225 | C170: 70 | D170: 16 | E170: 103 | F170: S | G170: PN BRI 225/70R16 103S BLZ DM-V3 | H170: BS BLIZZAK DM-V3 | I170: 204.5 | J170: 118.61 | K170: 18953 | L170: 3286341895315 | M170: Neuf | N170: 4x4 HIVER
A171: BRIDGESTONE | B171: 285 | C171: 40 | D171: 20 | E171: 108 | F171: V | G171: PN BRI 285/40R20 XL 108V BLIZZAK LM005 | H171: BS BLIZZAK LM005 | I171: 443.5 | J171: 257.23 | K171: 26097 | L171: 3286342609713 | M171: Neuf | N171: 4x4 HIVER
A172: BRIDGESTONE | B172: 235 | C172: 45 | D172: 17 | E172: 97 | F172: V | G172: PN BRI 235/45R17 XL 97V RFT LM005 DG | H172: BS BLIZZAK LM005 D | I172: 316 | J172: 183.28 | K172: 16714 | L172: 3286341671414 | M172: Neuf | N172: TOURISME HIVER
A173: BRIDGESTONE | B173: 215 | C173: 40 | D173: 18 | E173: 89 | F173: V | G173: PN BRI 215/40R18 XL 89 V LM32 LAML | H173: BS LM32 | I173: 239 | J173: 138.62 | K173: 6886 | L173: 3286340688611 | M173: Neuf | N173: TOURISME HIVER
A174: BRIDGESTONE | B174: 275 | C174: 35 | D174: 20 | E174: 102 | F174: W | G174: PN BRI 275/35R20 XL 102W BLIZZAK LM005 | H174: BS BLIZZAK LM005 | I174: 478.5 | J174: 277.53 | K174: 26107 | L174: 3286342610719 | M174: Neuf | N174: TOURISME HIVER
A175: BRIDGESTONE | B175: 285 | C175: 45 | D175: 21 | E175: 113 | F175: W | G175: PN BRI 285/45R21 XL 113W BLIZZAK LM005 | H175: BS BLIZZAK LM005 | I175: 505 | J175: 292.9 | K175: 26103 | L175: 3286342610313 | M175: Neuf | N175: 4x4 HIVER
A176: BRIDGESTONE | B176: 285 | C176: 40 | D176: 22 | E176: 110 | F176: W | G176: PN BRI 285/40R22 XL 110W BLIZZAK LM005 | H176: BS BLIZZAK LM005 | I176: 526 | J176: 305.08 | K176: 26105 | L176: 3286342610511 | M176: Neuf | N176: 4x4 HIVER
A177: BRIDGESTONE | B177: 245 | C177: 35 | D177: 19 | E177: 93 | F177: W | G177: PN BRI 245/35R19 XL 93W BLZ LM005 | H177: BS BLIZZAK LM005 | I177: 396 | J177: 229.68 | K177: 15346 | L177: 3286341534610 | M177: Neuf | N177: TOURISME HIVER
A178: BRIDGESTONE | B178: 255 | C178: 35 | D178: 19 | E178: 96 | F178: V | G178: PN BRI 255/35R19 XL 96V BLZ LM005 | H178: BS BLIZZAK LM005 | I178: 345 | J178: 200.1 | K178: 15347 | L178: 3286341534719 | M178: Neuf | N178: TOURISME HIVER
A179: BRIDGESTONE | B179: 235 | C179: 35 | D179: 19 | E179: 91 | F179: W | G179: PN BRI 235/35R19 XL 91W BLZ LM005 | H179: BS BLIZZAK LM005 | I179: 361 | J179: 209.38 | K179: 15345 | L179: 3286341534511 | M179: Neuf | N179: TOURISME HIVER
A180: BRIDGESTONE | B180: 265 | C180: 35 | D180: 18 | E180: 97 | F180: V | G180: PN BRI 265/35R18 XL 97V BLZ LM005 | H180: BS BLIZZAK LM005 | I180: 335.5 | J180: 194.59 | K180: 15332 | L180: 3286341533217 | M180: Neuf | N180: TOURISME HIVER
A181: BRIDGESTONE | B181: 255 | C181: 45 | D181: 18 | E181: 103 | F181: V | G181: PN BRI 255/45R18 XL 103V BLZ LM005 | H181: BS BLIZZAK LM005 | I181: 333.5 | J181: 193.43 | K181: 15341 | L181: 3286341534115 | M181: Neuf | N181: TOURISME HIVER
A182: BRIDGESTONE | B182: 245 | C182: 40 | D182: 19 | E182: 98 | F182: V | G182: PN BRI 245/40R19 XL 98V BLZ LM005 | H182: BS BLIZZAK LM005 | I182: 366.5 | J182: 212.57 | K182: 15350 | L182: 3286341535013 | M182: Neuf | N182: TOURISME HIVER
A183: BRIDGESTONE | B183: 255 | C183: 40 | D183: 20 | E183: 101 | F183: V | G183: PN BRI 255/40R20 XL 101V BLZ LM005 | H183: BS BLIZZAK LM005 | I183: 403.5 | J183: 234.03 | K183: 15359 | L183: 3286341535914 | M183: Neuf | N183: TOURISME HIVER
A184: BRIDGESTONE | B184: 205 | C184: 45 | D184: 17 | E184: 88 | F184: V | G184: PN BRI 205/45R17 XL 88V RFT LM005 DG | H184: BS BLIZZAK LM005 D | I184: 269.5 | J184: 156.31 | K184: 16713 | L184: 3286341671315 | M184: Neuf | N184: TOURISME HIVER
A185: BRIDGESTONE | B185: 255 | C185: 45 | D185: 19 | E185: 104 | F185: V | G185: PN BRI 255/45R19 XL 104V BLZ LM005 | H185: BS BLIZZAK LM005 | I185: 354 | J185: 205.32 | K185: 15356 | L185: 3286341535617 | M185: Neuf | N185: TOURISME HIVER
A186: BRIDGESTONE | B186: 225 | C186: 45 | D186: 19 | E186: 96 | F186: V | G186: PN BRI 225/45R19 XL 96V BLZ LM005 | H186: BS BLIZZAK LM005 | I186: 360 | J186: 208.8 | K186: 15353 | L186: 3286341535310 | M186: Neuf | N186: TOURISME HIVER
A187: BRIDGESTONE | B187: 235 | C187: 45 | D187: 19 | E187: 99 | F187: V | G187: PN BRI 235/45R19 XL 99V BLZ LM005 | H187: BS BLIZZAK LM005 | I187: 320 | J187: 185.6 | K187: 15354 | L187: 3286341535419 | M187: Neuf | N187: TOURISME HIVER
A188: BRIDGESTONE | B188: 205 | C188: 55 | D188: 17 | E188: 91 | F188: H | G188: PN BRI 205/55R17 91H BZK LM001 A/B18 WRE | H188: BS LM001 | I188: 242 | J188: 140.36 | K188: 9364 | L188: 3286340936415 | M188: Neuf | N188: TOURISME HIVER
A189: BRIDGESTONE | B189: 225 | C189: 45 | D189: 18 | E189: 91 | F189: H | G189: PN BRI 225/45R18 91H BZK LM001 A/B18 WRE | H189: BS LM001 | I189: 248 | J189: 143.84 | K189: 9361 | L189: 3286340936118 | M189: Neuf | N189: TOURISME HIVER
A190: BRIDGESTONE | B190: 205 | C190: 55 | D190: 16 | E190: 94 | F190: H | G190: PN BRI 205/55R16 XL 94H BLIZZAK LM005 | H190: BS BLIZZAK LM005 | I190: 174.5 | J190: 101.21 | K190: 15304 | L190: 3286341530414 | M190: Neuf | N190: TOURISME HIVER
A191: BRIDGESTONE | B191: 225 | C191: 45 | D191: 18 | E191: 91 | F191: H | G191: PN BRI 225/45R18 91H EXT LM001 A/B18 WRE | H191: BS LM001 | I191: 262.5 | J191: 152.25 | K191: 9366 | L191: 3286340936613 | M191: Neuf | N191: TOURISME HIVER
A192: BRIDGESTONE | B192: 225 | C192: 50 | D192: 17 | E192: 98 | F192: H | G192: PN BRI 225/50R17 98H XL LM001 A4 WR | H192: BS LM001 | I192: 227.5 | J192: 131.95 | K192: 8782 | L192: 3286340878210 | M192: Neuf | N192: TOURISME HIVER
A193: BRIDGESTONE | B193: 195 | C193: 55 | D193: 16 | E193: 91 | F193: H | G193: PN BRI 195/55R16 XL 91H BLIZZAK LM005 | H193: BS BLIZZAK LM005 | I193: 188 | J193: 109.04 | K193: 15302 | L193: 3286341530216 | M193: Neuf | N193: TOURISME HIVER
A194: BRIDGESTONE | B194: 245 | C194: 40 | D194: 18 | E194: 93 | F194: V | G194: PN BRI 245/40R18 93V BLZ LM001 AO | H194: BS LM001 | I194: 257.5 | J194: 149.35 | K194: 9216 | L194: 3286340921619 | M194: Neuf | N194: TOURISME HIVER
A195: BRIDGESTONE | B195: 235 | C195: 75 | D195: 15 | E195: 109 | F195: R | G195: PN BRI 235/75R15 XL 109R BLZ DM-V2 | H195: BS DM-V2 | I195: 179 | J195: 103.82 | K195: 9110 | L195: 3286340911016 | M195: Neuf | N195: 4x4 HIVER
A196: BRIDGESTONE | B196: 215 | C196: 60 | D196: 16 | E196: 99 | F196: H | G196: PN BRI 215/60R16 XL 99H BLIZZAK LM005 | H196: BS BLIZZAK LM005 | I196: 200.5 | J196: 116.29 | K196: 15311 | L196: 3286341531114 | M196: Neuf | N196: TOURISME HIVER
A197: BRIDGESTONE | B197: 205 | C197: 60 | D197: 16 | E197: 96 | F197: H | G197: PN BRI 205/60R16 XL 96H BLIZZAK LM005 | H197: BS BLIZZAK LM005 | I197: 164 | J197: 95.12 | K197: 15310 | L197: 3286341531015 | M197: Neuf | N197: TOURISME HIVER
A198: BRIDGESTONE | B198: 205 | C198: 45 | D198: 17 | E198: 88 | F198: V | G198: PN BRI 205/45R17 XL 88V BLIZZAK LM005 | H198: BS BLIZZAK LM005 | I198: 239.5 | J198: 138.91 | K198: 15314 | L198: 3286341531411 | M198: Neuf | N198: TOURISME HIVER
A199: BRIDGESTONE | B199: 215 | C199: 40 | D199: 17 | E199: 87 | F199: V | G199: PN BRI 215/40R17 XL 87V BLIZZAK LM005 | H199: BS BLIZZAK LM005 | I199: 251 | J199: 145.58 | K199: 15312 | L199: 3286341531213 | M199: Neuf | N199: TOURISME HIVER
A200: BRIDGESTONE | B200: 215 | C200: 55 | D200: 16 | E200: 93 | F200: H | G200: PN BRI 215/55R16 93H BLIZZAK LM005 | H200: BS BLIZZAK LM005 | I200: 215.5 | J200: 124.99 | K200: 15306 | L200: 3286341530612 | M200: Neuf | N200: TOURISME HIVER
A201: BRIDGESTONE | B201: 215 | C201: 55 | D201: 16 | E201: 97 | F201: H | G201: PN BRI 215/55R16 XL 97H BLIZZAK LM005 | H201: BS BLIZZAK LM005 | I201: 219 | J201: =I201*(1-VLOOKUP(A201,Datas_Remises,4,0)) -> 127.02 | K201: 15305 | L201: 3286341530513 | M201: Neuf | N201: TOURISME HIVER
A202: BRIDGESTONE | B202: 205 | C202: 60 | D202: 16 | E202: 92 | F202: H | G202: PN BRI 205/60R16 92H BLIZZAK LM005 | H202: BS BLIZZAK LM005 | I202: 160 | J202: 92.8 | K202: 15309 | L202: 3286341530919 | M202: Neuf | N202: TOURISME HIVER
A203: BRIDGESTONE | B203: 195 | C203: 60 | D203: 16 | E203: 89 | F203: H | G203: PN BRI 195/60R16 89H BLIZZAK LM005 | H203: BS BLIZZAK LM005 | I203: 166.5 | J203: 96.57 | K203: 15308 | L203: 3286341530810 | M203: Neuf | N203: TOURISME HIVER
... 3866 more rows

Sheet BRI
D2: Remise
D3: =Remises!E8 -> 0.42
A5: Actualisation au 04/04/2024
A7: REFERENCES PNEUMATIQUES | Q7: TARIFS
A8: CAI | B8: EAN | C8: Désignation | D8: Appellation | E8: Catégorie | F8: Profil | G8: Largeur | H8: Hauteur | I8: Structure | J8: Diamètre | K8: IC | L8: IV | M8: Conso. | N8: Frein. | O8: Bruit. | P8: Décibels. | Q8: Prix BF | R8: Prix Remisé
A9: 10000 | B9: 3286341000016 | C9: PN BRI 225/50R17 XL 98H RFT BLK LM001 * | D9: N2255017HLM001*98RU | E9: TOURISME HIVER | F9: BS LM001 | G9: 225 | H9: 50 | I9: R | J9: 17 | K9: 98 | L9: H | M9: C | N9: B | O9: B | P9: 72 | Q9: 259.5 | R9: =Q9*(1-$D$3) -> 150.51
A10: 10027 | B10: 3286341002713 | C10: PN BRI 225/45R18 XL 95H RFT BLK LM001 * | D10: N2254518HBLKLM0*95RU | E10: TOURISME HIVER | F10: BS LM001 | G10: 225 | H10: 45 | I10: R | J10: 18 | K10: 95 | L10: H | M10: C | N10: B | O10: B | P10: 72 | Q10: 282 | R10: =Q10*(1-$D$3) -> 163.56
A11: 10030 | B11: 3286341003017 | C11: PN BRI 225/40R18 XL 92V RFT BLZ LM001 * | D11: N2254018VLM001*92RU | E11: TOURISME HIVER | F11: BS LM001 | G11: 225 | H11: 40 | I11: R | J11: 18 | K11: 92 | L11: V | M11: C | N11: B | O11: B | P11: 72 | Q11: 269.5 | R11: 156.31
A12: 10032 | B12: 3286341003215 | C12: PN BRI 245/45R19 XL 102V RFT LM001 7SE | D12: N2454519VLM001*SE1RU | E12: TOURISME HIVER | F12: BS LM001 | G12: 245 | H12: 45 | I12: R | J12: 19 | K12: 102 | L12: V | M12: C | N12: B | O12: B | P12: 72 | Q12: 390.5 | R12: 226.49
A13: 10033 | B13: 3286341003314 | C13: PN BRI 245/50R18 100H RFT BLZ LM001 7SE | D13: N2455018HLM001*SE1RU | E13: TOURISME HIVER | F13: BS LM001 | G13: 245 | H13: 50 | I13: R | J13: 18 | K13: 100 | L13: H | M13: C | N13: B | O13: B | P13: 72 | Q13: 335.5 | R13: 194.59
A14: 10422 | B14: 3286341042214 | C14: PN BRI 215/65R17 99H BLK LM001 Q3 | D14: N2156517HBLKLM00AO99 | E14: 4x4 HIVER | F14: BS LM001 | G14: 215 | H14: 65 | I14: R | J14: 17 | K14: 99 | L14: H | M14: C | N14: B | O14: B | P14: 72 | Q14: 245 | R14: 142.1
A15: 10973 | B15: 3286341097313 | C15: PN BRI 255/55R19 XL 111H BLK LM001 AO | D15: N2555519HBLKLM0AO111 | E15: 4x4 HIVER | F15: BS LM001 | G15: 255 | H15: 55 | I15: R | J15: 19 | K15: 111 | L15: H | M15: C | N15: A | O15: B | P15: 73 | Q15: 380 | R15: 220.4
A16: 11983 | B16: 3286341198317 | C16: PN BRI 245/70R17 110S BLZ DM-V2 | D16: N2457017SDMV2110 | E16: 4x4 HIVER | F16: BS DM-V2 | G16: 245 | H16: 70 | I16: R | J16: 17 | K16: 110 | L16: S | M16: E | N16: E | O16: B | P16: 72 | Q16: 285 | R16: 165.3
A17: 12050 | B17: 3286341205015 | C17: PN BRI 275/50R22 111T BLZ DM-V2 | D17: N2755022TDMV2111 | E17: 4x4 HIVER | F17: BS DM-V2 | G17: 275 | H17: 50 | I17: R | J17: 22 | K17: 111 | L17: T | M17: E | N17: E | O17: B | P17: 73 | Q17: 485.5 | R17: 281.59
A18: 12846 | B18: 3286341284614 | C18: PN BRI 255/40R20 XL 101V LM001 NB S-CL | D18: N2554020VLM001MO101 | E18: 4x4 HIVER | F18: BS LM001 | G18: 255 | H18: 40 | I18: R | J18: 20 | K18: 101 | L18: V | M18: C | N18: B | O18: A | P18: 70 | Q18: 456.5 | R18: 264.77
A19: 13563 | B19: 3286341356311 | C19: PN BRI 195/55R16 XL 91V BLK LM001 AUD | D19: N1955516VLM001AO91 | E19: TOURISME HIVER | F19: BS LM001 | G19: 195 | H19: 55 | I19: R | J19: 16 | K19: 91 | L19: V | M19: D | N19: B | O19: B | P19: 71 | Q19: 214.5 | R19: 124.41
A20: 13566 | B20: 3286341356618 | C20: PN BRI 205/55R19 XL 97H BLIZZAK LM001 | D20: N2055519HLM00197 | E20: TOURISME HIVER | F20: BS LM001 | G20: 205 | H20: 55 | I20: R | J20: 19 | K20: 97 | L20: H | M20: C | N20: C | O20: B | P20: 71 | Q20: 222.5 | R20: 129.05
A21: 13572 | B21: 3286341357219 | C21: PN BRI 235/55R18 100H BLK LM001 AUD | D21: N2355518HBLKLM0AO100 | E21: TOURISME HIVER | F21: BS LM001 | G21: 235 | H21: 55 | I21: R | J21: 18 | K21: 100 | L21: H | M21: C | N21: B | O21: B | P21: 72 | Q21: 286.5 | R21: 166.17
A22: 13575 | B22: 3286341357516 | C22: PN BRI 245/45R20 XL 103W BLK LM001 AUD | D22: N2454520WLM001103 | E22: TOURISME HIVER | F22: BS LM001 | G22: 245 | H22: 45 | I22: R | J22: 20 | K22: 103 | L22: W | M22: C | N22: C | O22: B | P22: 72 | Q22: 423 | R22: 245.34
A23: 13576 | B23: 3286341357615 | C23: PN BRI 255/50R20 XL 109H BZK LM001 E-TR | D23: N2555020HBLKLM0AO109 | E23: 4x4 HIVER | F23: BS LM001 | G23: 255 | H23: 50 | I23: R | J23: 20 | K23: 109 | L23: H | M23: C | N23: B | O23: B | P23: 73 | Q23: 401.5 | R23: 232.87
A24: 13614 | B24: 3286341361414 | C24: PN BRI 255/45R19 XL 104S BLIZZAK ICE | D24: N2554519SBLZICE104 | E24: TOURISME HIVER | F24: BS BLIZZAK ICE | G24: 255 | H24: 45 | I24: R | J24: 19 | K24: 104 | L24: S | M24: E | N24: E | O24: B | P24: 73 | Q24: 361 | R24: 209.38
A25: 13615 | B25: 3286341361513 | C25: PN BRI 235/45R18 94S BLIZZAK ICE | D25: N2354518SBLZICE94 | E25: TOURISME HIVER | F25: BS BLIZZAK ICE | G25: 235 | H25: 45 | I25: R | J25: 18 | K25: 94 | L25: S | M25: E | N25: E | O25: B | P25: 72 | Q25: 296.5 | R25: 171.97
A26: 13619 | B26: 3286341361919 | C26: PN BRI 225/45R19 92S BLIZZAK ICE | D26: N2254519SBLZICE92 | E26: TOURISME HIVER | F26: BS BLIZZAK ICE | G26: 225 | H26: 45 | I26: R | J26: 19 | K26: 92 | L26: S | M26: E | N26: E | O26: B | P26: 72 | Q26: 311.5 | R26: 180.67
A27: 13975 | B27: 3286341397512 | C27: PN BRI 205/55R16 91H BLIZZAK LM005 | D27: N2055516HLM00591 | E27: TOURISME HIVER | F27: BS BLIZZAK LM005 | G27: 205 | H27: 55 | I27: R | J27: 16 | K27: 91 | L27: H | M27: C | N27: A | O27: B | P27: 71 | Q27: 152.5 | R27: 88.45
A28: 13976 | B28: 3286341397611 | C28: PN BRI 215/65R16 98H BLIZZAK LM005 | D28: N2156516HLM00598 | E28: 4x4 HIVER | F28: BS BLIZZAK LM005 | G28: 215 | H28: 65 | I28: R | J28: 16 | K28: 98 | L28: H | M28: C | N28: A | O28: B | P28: 71 | Q28: 189.5 | R28: 109.91
A29: 13977 | B29: 3286341397710 | C29: PN BRI 225/45R17 91H BLIZZAK LM005 | D29: N2254517HLM00591 | E29: TOURISME HIVER | F29: BS BLIZZAK LM005 | G29: 225 | H29: 45 | I29: R | J29: 17 | K29: 91 | L29: H | M29: C | N29: A | O29: B | P29: 71 | Q29: 203.5 | R29: 118.03
A30: 13978 | B30: 3286341397819 | C30: PN BRI 215/65R16 98H RFT BLZ LM005 DG | D30: N2156516HLM005DG98RU | E30: 4x4 HIVER | F30: BS BLIZZAK LM005 D | G30: 215 | H30: 65 | I30: R | J30: 16 | K30: 98 | L30: H | M30: D | N30: A | O30: B | P30: 71 | Q30: 211 | R30: 122.38
A31: 13992 | B31: 3286341399219 | C31: PN BRI 175/65R14 82T BLIZZAK LM005 | D31: N1756514TLM00582 | E31: TOURISME HIVER | F31: BS BLIZZAK LM005 | G31: 175 | H31: 65 | I31: R | J31: 14 | K31: 82 | L31: T | M31: C | N31: A | O31: B | P31: 71 | Q31: 109.5 | R31: 63.51
A32: 14005 | B32: 3286341400519 | C32: PN BRI 215/80R15 102R BLZ DM-V2 | D32: N2158015RDMV2102BS | E32: 4x4 HIVER | F32: BS DM-V2 | G32: 215 | H32: 80 | I32: R | J32: 15 | K32: 102 | L32: R | M32: E | N32: E | O32: B | P32: 72 | Q32: 190 | R32: 110.2
A33: 14031 | B33: 3286341403114 | C33: PN BRI 255/50R18 XL 106V BLK LM001 MO | D33: N2555018VLM001106MO | E33: 4x4 HIVER | F33: BS LM001 | G33: 255 | H33: 50 | I33: R | J33: 18 | K33: 106 | L33: V | M33: C | N33: B | O33: A | P33: 70 | Q33: 353.5 | R33: 205.03
A34: 15006 | B34: 3286341500615 | C34: PN BRI 205/70R15 96T BLIZZAK LM005 | D34: N2057015TLM00596 | E34: 4x4 HIVER | F34: BS BLIZZAK LM005 | G34: 205 | H34: 70 | I34: R | J34: 15 | K34: 96 | L34: T | M34: C | N34: A | O34: B | P34: 71 | Q34: 200.5 | R34: 116.29
A35: 15010 | B35: 3286341501018 | C35: PN BRI 215/65R16 XL 102H BLIZZAK LM005 | D35: N2156516HLM005102 | E35: 4x4 HIVER | F35: BS BLIZZAK LM005 | G35: 215 | H35: 65 | I35: R | J35: 16 | K35: 102 | L35: H | M35: B | N35: A | O35: B | P35: 71 | Q35: 201.5 | R35: 116.87
A36: 15015 | B36: 3286341501513 | C36: PN BRI 245/70R16 XL 111T BLIZZAK LM005 | D36: N2457016TLM005111 | E36: 4x4 HIVER | F36: BS BLIZZAK LM005 | G36: 245 | H36: 70 | I36: R | J36: 16 | K36: 111 | L36: T | M36: B | N36: A | O36: B | P36: 72 | Q36: 255 | R36: 147.9
A37: 15017 | B37: 3286341501711 | C37: PN BRI 275/55R17 109H BLZ LM005 | D37: N2755517HBLIZZAKL109 | E37: 4x4 HIVER | F37: BS BLIZZAK LM005 | G37: 275 | H37: 55 | I37: R | J37: 17 | K37: 109 | L37: H | M37: C | N37: A | O37: B | P37: 73 | Q37: 347 | R37: 201.26
A38: 15027 | B38: 3286341502718 | C38: PN BRI 215/60R17 XL 100H BLIZZAK LM005 | D38: N2156017HLM005100 | E38: 4x4 HIVER | F38: BS BLIZZAK LM005 | G38: 215 | H38: 60 | I38: R | J38: 17 | K38: 100 | L38: H | M38: B | N38: A | O38: B | P38: 71 | Q38: 227.5 | R38: 131.95
A39: 15028 | B39: 3286341502817 | C39: PN BRI 215/60R17 96H BLIZZAK LM005 | D39: N2156017HLM00596 | E39: 4x4 HIVER | F39: BS BLIZZAK LM005 | G39: 215 | H39: 60 | I39: R | J39: 17 | K39: 96 | L39: H | M39: C | N39: A | O39: B | P39: 71 | Q39: 208.5 | R39: 120.93
A40: 15029 | B40: 3286341502916 | C40: PN BRI 225/60R17 99H BLIZZAK LM005 | D40: N2256017HLM00599 | E40: 4x4 HIVER | F40: BS BLIZZAK LM005 | G40: 225 | H40: 60 | I40: R | J40: 17 | K40: 99 | L40: H | M40: C | N40: A | O40: B | P40: 71 | Q40: 277.5 | R40: 160.95
A41: 15030 | B41: 3286341503012 | C41: PN BRI 235/60R17 XL 106H BLIZZAK LM005 | D41: N2356017HLM005106 | E41: 4x4 HIVER | F41: BS BLIZZAK LM005 | G41: 235 | H41: 60 | I41: R | J41: 17 | K41: 106 | L41: H | M41: C | N41: A | O41: B | P41: 72 | Q41: 287 | R41: 166.46
A42: 15031 | B42: 3286341503111 | C42: PN BRI 255/60R17 XL 110H BLIZZAK LM005 | D42: N2556017HLM005110 | E42: 4x4 HIVER | F42: BS BLIZZAK LM005 | G42: 255 | H42: 60 | I42: R | J42: 17 | K42: 110 | L42: H | M42: C | N42: A | O42: B | P42: 73 | Q42: 271 | R42: 157.18
A43: 15032 | B43: 3286341503210 | C43: PN BRI 215/65R17 XL 103H BLIZZAK LM005 | D43: N2156517HLM005103 | E43: 4x4 HIVER | F43: BS BLIZZAK LM005 | G43: 215 | H43: 65 | I43: R | J43: 17 | K43: 103 | L43: H | M43: B | N43: A | O43: B | P43: 71 | Q43: 225.5 | R43: 130.79
A44: 15035 | B44: 3286341503517 | C44: PN BRI 225/65R17 102H BLIZZAK LM005 | D44: N2256517HLM005102 | E44: 4x4 HIVER | F44: BS BLIZZAK LM005 | G44: 225 | H44: 65 | I44: R | J44: 17 | K44: 102 | L44: H | M44: C | N44: A | O44: B | P44: 71 | Q44: 262 | R44: 151.96
A45: 15036 | B45: 3286341503616 | C45: PN BRI 225/65R17 XL 106H BLIZZAK LM005 | D45: N2256517HLM005106 | E45: 4x4 HIVER | F45: BS BLIZZAK LM005 | G45: 225 | H45: 65 | I45: R | J45: 17 | K45: 106 | L45: H | M45: C | N45: A | O45: B | P45: 71 | Q45: 286 | R45: 165.88
A46: 15037 | B46: 3286341503715 | C46: PN BRI 235/65R17 XL 108H BLIZZAK LM005 | D46: N2356517HLM005108 | E46: 4x4 HIVER | F46: BS BLIZZAK LM005 | G46: 235 | H46: 65 | I46: R | J46: 17 | K46: 108 | L46: H | M46: B | N46: A | O46: B | P46: 72 | Q46: 250.5 | R46: 145.29
A47: 15038 | B47: 3286341503814 | C47: PN BRI 235/65R17 XL 108V BLIZZAK LM005 | D47: N2356517VLM005108 | E47: 4x4 HIVER | F47: BS BLIZZAK LM005 | G47: 235 | H47: 65 | I47: R | J47: 17 | K47: 108 | L47: V | M47: B | N47: A | O47: B | P47: 72 | Q47: 277 | R47: 160.66
A48: 15039 | B48: 3286341503913 | C48: PN BRI 245/65R17 XL 111H BLIZZAK LM005 | D48: N2456517HLM005111 | E48: 4x4 HIVER | F48: BS BLIZZAK LM005 | G48: 245 | H48: 65 | I48: R | J48: 17 | K48: 111 | L48: H | M48: B | N48: A | O48: B | P48: 72 | Q48: 286.5 | R48: 166.17
A49: 15040 | B49: 3286341504019 | C49: PN BRI 255/65R17 XL 114H BLIZZAK LM005 | D49: N2556517HLM005114 | E49: 4x4 HIVER | F49: BS BLIZZAK LM005 | G49: 255 | H49: 65 | I49: R | J49: 17 | K49: 114 | L49: H | M49: B | N49: A | O49: B | P49: 73 | Q49: 284 | R49: 164.72
A50: 15042 | B50: 3286341504217 | C50: PN BRI 265/65R17 XL 116H BLIZZAK LM005 | D50: N2656517HLM005116 | E50: 4x4 HIVER | F50: BS BLIZZAK LM005 | G50: 265 | H50: 65 | I50: R | J50: 17 | K50: 116 | L50: H | M50: B | N50: A | O50: B | P50: 73 | Q50: 289 | R50: 167.62
A51: 15043 | B51: 3286341504316 | C51: PN BRI 235/50R18 XL 101V BLIZZAK LM005 | D51: N2355018VLM005101 | E51: TOURISME HIVER | F51: BS BLIZZAK LM005 | G51: 235 | H51: 50 | I51: R | J51: 18 | K51: 101 | L51: V | M51: C | N51: A | O51: B | P51: 72 | Q51: 299 | R51: 173.42
A52: 15054 | B52: 3286341505412 | C52: PN BRI 225/55R18 XL 102V BLZ LM005 | D52: N2255518VBLIZZAKL102 | E52: 4x4 HIVER | F52: BS BLIZZAK LM005 | G52: 225 | H52: 55 | I52: R | J52: 18 | K52: 102 | L52: V | M52: B | N52: A | O52: B | P52: 71 | Q52: 273 | R52: 158.34
A53: 15058 | B53: 3286341505818 | C53: PN BRI 235/55R18 XL 104H BLIZZAK LM005 | D53: N2355518HLM005104 | E53: 4x4 HIVER | F53: BS BLIZZAK LM005 | G53: 235 | H53: 55 | I53: R | J53: 18 | K53: 104 | L53: H | M53: B | N53: A | O53: B | P53: 72 | Q53: 285.5 | R53: 165.59
A54: 15060 | B54: 3286341506013 | C54: PN BRI 255/55R18 XL 109V BLIZZAK LM005 | D54: N2555518VLM005109 | E54: 4x4 HIVER | F54: BS BLIZZAK LM005 | G54: 255 | H54: 55 | I54: R | J54: 18 | K54: 109 | L54: V | M54: B | N54: A | O54: B | P54: 73 | Q54: 238.5 | R54: 138.33
A55: 15062 | B55: 3286341506211 | C55: PN BRI 225/60R18 XL 104V BLZ LM005 | D55: N2256018VLM005104 | E55: 4x4 HIVER | F55: BS BLIZZAK LM005 | G55: 225 | H55: 60 | I55: R | J55: 18 | K55: 104 | L55: V | M55: B | N55: A | O55: B | P55: 71 | Q55: 303 | R55: 175.74
A56: 15064 | B56: 3286341506419 | C56: PN BRI 235/60R18 XL 107H BLIZZAK LM005 | D56: N2356018HLM005107 | E56: 4x4 HIVER | F56: BS BLIZZAK LM005 | G56: 235 | H56: 60 | I56: R | J56: 18 | K56: 107 | L56: H | M56: C | N56: A | O56: B | P56: 72 | Q56: 235.5 | R56: 136.59
A57: 15069 | B57: 3286341506914 | C57: PN BRI 255/60R18 XL 112V BLIZZAK LM005 | D57: N2556018VLM005112 | E57: 4x4 HIVER | F57: BS BLIZZAK LM005 | G57: 255 | H57: 60 | I57: R | J57: 18 | K57: 112 | L57: V | M57: B | N57: A | O57: B | P57: 73 | Q57: 287 | R57: 166.46
A58: 15071 | B58: 3286341507119 | C58: PN BRI 265/60R18 XL 114H BLIZZAK LM005 | D58: N2656018HLM005114 | E58: 4x4 HIVER | F58: BS BLIZZAK LM005 | G58: 265 | H58: 60 | I58: R | J58: 18 | K58: 114 | L58: H | M58: B | N58: A | O58: B | P58: 73 | Q58: 300.5 | R58: 174.29
A59: 15073 | B59: 3286341507317 | C59: PN BRI 235/65R18 XL 110H BLIZZAK LM005 | D59: N2356518HLM005110 | E59: 4x4 HIVER | F59: BS BLIZZAK LM005 | G59: 235 | H59: 65 | I59: R | J59: 18 | K59: 110 | L59: H | M59: C | N59: A | O59: B | P59: 72 | Q59: 278 | R59: 161.24
A60: 15075 | B60: 3286341507515 | C60: PN BRI 275/45R19 XL 108V BLIZZAK LM005 | D60: N2754519VLM005108 | E60: 4x4 HIVER | F60: BS BLIZZAK LM005 | G60: 275 | H60: 45 | I60: R | J60: 19 | K60: 108 | L60: V | M60: C | N60: A | O60: B | P60: 73 | Q60: 401.5 | R60: 232.87
A61: 15077 | B61: 3286341507713 | C61: PN BRI 285/45R19 XL 111W BLZ LM005 | D61: N2854519WBLIZZAKL111 | E61: 4x4 HIVER | F61: BS BLIZZAK LM005 | G61: 285 | H61: 45 | I61: R | J61: 19 | K61: 111 | L61: W | M61: C | N61: A | O61: B | P61: 73 | Q61: 422.5 | R61: 245.05
A62: 15079 | B62: 3286341507911 | C62: PN BRI 235/50R19 XL 103V BLIZZAK LM005 | D62: N2355019VLM005103 | E62: 4x4 HIVER | F62: BS BLIZZAK LM005 | G62: 235 | H62: 50 | I62: R | J62: 19 | K62: 103 | L62: V | M62: C | N62: A | O62: B | P62: 72 | Q62: 345.5 | R62: 200.39
A63: 15081 | B63: 3286341508116 | C63: PN BRI 255/50R19 XL 107V BLIZZAK LM005 | D63: N2555019VLM005107 | E63: 4x4 HIVER | F63: BS BLIZZAK LM005 | G63: 255 | H63: 50 | I63: R | J63: 19 | K63: 107 | L63: V | M63: B | N63: A | O63: B | P63: 73 | Q63: 302.5 | R63: 175.45
A64: 15083 | B64: 3286341508314 | C64: PN BRI 265/50R19 XL 110V BLIZZAK LM005 | D64: N2655019VLM005110 | E64: 4x4 HIVER | F64: BS BLIZZAK LM005 | G64: 265 | H64: 50 | I64: R | J64: 19 | K64: 110 | L64: V | M64: B | N64: A | O64: B | P64: 73 | Q64: 332.5 | R64: 192.85
A65: 15085 | B65: 3286341508512 | C65: PN BRI 235/55R19 XL 105V BZK LM005 | D65: N2355519VLM005105 | E65: 4x4 HIVER | F65: BS BLIZZAK LM005 | G65: 235 | H65: 55 | I65: R | J65: 19 | K65: 105 | L65: V | M65: C | N65: A | O65: B | P65: 72 | Q65: 315 | R65: 182.7
A66: 15087 | B66: 3286341508710 | C66: PN BRI 255/55R19 XL 111V BZK LM005 | D66: N2555519VBLIZZAKL111 | E66: 4x4 HIVER | F66: BS BLIZZAK LM005 | G66: 255 | H66: 55 | I66: R | J66: 19 | K66: 111 | L66: V | M66: B | N66: A | O66: B | P66: 73 | Q66: 369.5 | R66: 214.31
A67: 15089 | B67: 3286341508918 | C67: PN BRI 265/55R19 109V BLIZZAK LM005 | D67: N2655519VLM005109 | E67: 4x4 HIVER | F67: BS BLIZZAK LM005 | G67: 265 | H67: 55 | I67: R | J67: 19 | K67: 109 | L67: V | M67: B | N67: A | O67: B | P67: 73 | Q67: 380.5 | R67: 220.69
A68: 15090 | B68: 3286341509014 | C68: PN BRI 315/35R20 XL 110V BLIZZAK LM005 | D68: N3153520VLM005110 | E68: 4x4 HIVER | F68: BS BLIZZAK LM005 | G68: 315 | H68: 35 | I68: R | J68: 20 | K68: 110 | L68: V | M68: C | N68: A | O68: B | P68: 73 | Q68: 538.5 | R68: 312.33
A69: 15091 | B69: 3286341509113 | C69: PN BRI 275/40R20 XL 106V BLIZZAK LM005 | D69: N2754020VLM005106 | E69: 4x4 HIVER | F69: BS BLIZZAK LM005 | G69: 275 | H69: 40 | I69: R | J69: 20 | K69: 106 | L69: V | M69: C | N69: A | O69: B | P69: 73 | Q69: 413 | R69: 239.54
A70: 15093 | B70: 3286341509311 | C70: PN BRI 295/40R20 XL 110V BLZ LM005 | D70: N2954020VBLIZZAKL110 | E70: 4x4 HIVER | F70: BS BLIZZAK LM005 | G70: 295 | H70: 40 | I70: R | J70: 20 | K70: 110 | L70: V | M70: C | N70: A | O70: B | P70: 73 | Q70: 448.5 | R70: 260.13
A71: 15105 | B71: 3286341510515 | C71: PN BRI 265/45R20 XL 108V BLIZZAK LM005 | D71: N2654520VLM005108 | E71: 4x4 HIVER | F71: BS BLIZZAK LM005 | G71: 265 | H71: 45 | I71: R | J71: 20 | K71: 108 | L71: V | M71: C | N71: A | O71: B | P71: 73 | Q71: 445 | R71: 258.1
A72: 15106 | B72: 3286341510614 | C72: PN BRI 275/45R20 XL 110V BLZ LM005 | D72: N2754520VBLIZZAKL110 | E72: 4x4 HIVER | F72: BS BLIZZAK LM005 | G72: 275 | H72: 45 | I72: R | J72: 20 | K72: 110 | L72: V | M72: B | N72: A | O72: B | P72: 73 | Q72: 452 | R72: 262.16
A73: 15107 | B73: 3286341510713 | C73: PN BRI 285/45R20 XL 112V BLZ LM005 | D73: N2854520VBLIZZAKL112 | E73: 4x4 HIVER | F73: BS BLIZZAK LM005 | G73: 285 | H73: 45 | I73: R | J73: 20 | K73: 112 | L73: V | M73: B | N73: A | O73: B | P73: 73 | Q73: 451.5 | R73: 261.87
A74: 15110 | B74: 3286341511017 | C74: PN BRI 255/50R20 XL 109V BLIZZAK LM005 | D74: N2555020VLM005109 | E74: 4x4 HIVER | F74: BS BLIZZAK LM005 | G74: 255 | H74: 50 | I74: R | J74: 20 | K74: 109 | L74: V | M74: B | N74: A | O74: B | P74: 73 | Q74: 406.5 | R74: =Q74*(1-$D$3) -> 235.77
A75: 15112 | B75: 3286341511215 | C75: PN BRI 265/50R20 XL 111V BLZ LM005 | D75: N2655020VBLIZZAKL111 | E75: 4x4 HIVER | F75: BS BLIZZAK LM005 | G75: 265 | H75: 50 | I75: R | J75: 20 | K75: 111 | L75: V | M75: B | N75: A | O75: B | P75: 73 | Q75: 450.5 | R75: 261.29
A76: 15114 | B76: 3286341511413 | C76: PN BRI 275/50R20 XL 113V BLIZZAK LM005 | D76: N2755020VLM005113 | E76: 4x4 HIVER | F76: BS BLIZZAK LM005 | G76: 275 | H76: 50 | I76: R | J76: 20 | K76: 113 | L76: V | M76: B | N76: A | O76: B | P76: 73 | Q76: 383.5 | R76: 222.43
A77: 15123 | B77: 3286341512311 | C77: PN BRI 255/55R20 XL 110V BLIZZAK LM005 | D77: N2555520VLM005110 | E77: 4x4 HIVER | F77: BS BLIZZAK LM005 | G77: 255 | H77: 55 | I77: R | J77: 20 | K77: 110 | L77: V | M77: B | N77: A | O77: B | P77: 73 | Q77: 418 | R77: 242.44
A78: 15124 | B78: 3286341512410 | C78: PN BRI 295/35R21 XL 107V BLIZZAK LM005 | D78: N2953521VLM005107 | E78: 4x4 HIVER | F78: BS BLIZZAK LM005 | G78: 295 | H78: 35 | I78: R | J78: 21 | K78: 107 | L78: V | M78: C | N78: A | O78: B | P78: 73 | Q78: 480 | R78: 278.4
A79: 15127 | B79: 3286341512717 | C79: PN BRI 255/40R21 XL 102V BLZ LM005 | D79: N2554021VBLIZZAKL102 | E79: 4x4 HIVER | F79: BS BLIZZAK LM005 | G79: 255 | H79: 40 | I79: R | J79: 21 | K79: 102 | L79: V | M79: C | N79: A | O79: B | P79: 73 | Q79: 397 | R79: 230.26
A80: 15129 | B80: 3286341512915 | C80: PN BRI 265/40R21 XL 105V BLZ LM005 | D80: N2654021VBLIZZAKL105 | E80: 4x4 HIVER | F80: BS BLIZZAK LM005 | G80: 265 | H80: 40 | I80: R | J80: 21 | K80: 105 | L80: V | M80: C | N80: A | O80: B | P80: 73 | Q80: 449.5 | R80: 260.71
A81: 15131 | B81: 3286341513110 | C81: PN BRI 275/40R21 XL 107V BLZ LM005 | D81: N2754021VBLIZZAKL107 | E81: 4x4 HIVER | F81: BS BLIZZAK LM005 | G81: 275 | H81: 40 | I81: R | J81: 21 | K81: 107 | L81: V | M81: C | N81: A | O81: B | P81: 73 | Q81: 458.5 | R81: 265.93
A82: 15133 | B82: 3286341513318 | C82: PN BRI 295/40R21 XL 111V BLZ LM005 | D82: N2954021VBLIZZAKL111 | E82: 4x4 HIVER | F82: BS BLIZZAK LM005 | G82: 295 | H82: 40 | I82: R | J82: 21 | K82: 111 | L82: V | M82: C | N82: A | O82: B | P82: 73 | Q82: 478 | R82: 277.24
A83: 15134 | B83: 3286341513417 | C83: PN BRI 265/45R21 XL 108V BLZ LM005 | D83: N2654521VBLIZZAKL108 | E83: 4x4 HIVER | F83: BS BLIZZAK LM005 | G83: 265 | H83: 45 | I83: R | J83: 21 | K83: 108 | L83: V | M83: C | N83: A | O83: B | P83: 73 | Q83: 449.5 | R83: 260.71
A84: 15135 | B84: 3286341513516 | C84: PN BRI 275/45R21 XL 110V BLIZZAK LM005 | D84: N2754521VLM005110 | E84: 4x4 HIVER | F84: BS BLIZZAK LM005 | G84: 275 | H84: 45 | I84: R | J84: 21 | K84: 110 | L84: V | M84: B | N84: A | O84: B | P84: 73 | Q84: 470.5 | R84: 272.89
A85: 15136 | B85: 3286341513615 | C85: PN BRI 275/40R22 XL 107V BLZ LM005 | D85: N2754022VBLIZZAKL107 | E85: 4x4 HIVER | F85: BS BLIZZAK LM005 | G85: 275 | H85: 40 | I85: R | J85: 22 | K85: 107 | L85: V | M85: C | N85: A | O85: B | P85: 73 | Q85: 497.5 | R85: 288.55
A86: 15137 | B86: 3286341513714 | C86: PN BRI 185/60R14 82T BLIZZAK LM005 | D86: N1856014TLM00582 | E86: TOURISME HIVER | F86: BS BLIZZAK LM005 | G86: 185 | H86: 60 | I86: R | J86: 14 | K86: 82 | L86: T | M86: C | N86: A | O86: B | P86: 70 | Q86: 129.5 | R86: 75.11
A87: 15138 | B87: 3286341513813 | C87: PN BRI 155/65R14 XL 79T BLIZZAK LM005 | D87: N1556514TLM00579 | E87: TOURISME HIVER | F87: BS BLIZZAK LM005 | G87: 155 | H87: 65 | I87: R | J87: 14 | K87: 79 | L87: T | M87: C | N87: A | O87: B | P87: 70 | Q87: 116 | R87: 67.28
A88: 15139 | B88: 3286341513912 | C88: PN BRI 165/65R14 79T BLIZZAK LM005 | D88: N1656514TLM00579 | E88: TOURISME HIVER | F88: BS BLIZZAK LM005 | G88: 165 | H88: 65 | I88: R | J88: 14 | K88: 79 | L88: T | M88: C | N88: A | O88: B | P88: 70 | Q88: 126 | R88: 73.08
A89: 15163 | B89: 3286341516319 | C89: PN BRI 185/65R14 86T BLIZZAK LM005 | D89: N1856514TLM00586 | E89: TOURISME HIVER | F89: BS BLIZZAK LM005 | G89: 185 | H89: 65 | I89: R | J89: 14 | K89: 86 | L89: T | M89: C | N89: A | O89: B | P89: 70 | Q89: 134 | R89: 77.72
A90: 15164 | B90: 3286341516418 | C90: PN BRI 165/70R14 XL 85T BLIZZAK LM005 | D90: N1657014TLM00585 | E90: TOURISME HIVER | F90: BS BLIZZAK LM005 | G90: 165 | H90: 70 | I90: R | J90: 14 | K90: 85 | L90: T | M90: C | N90: A | O90: B | P90: 70 | Q90: 128 | R90: 74.24
A91: 15165 | B91: 3286341516517 | C91: PN BRI 175/70R14 XL 88T BLIZZAK LM005 | D91: N1757014TLM00588 | E91: TOURISME HIVER | F91: BS BLIZZAK LM005 | G91: 175 | H91: 70 | I91: R | J91: 14 | K91: 88 | L91: T | M91: C | N91: A | O91: B | P91: 70 | Q91: 144.5 | R91: 83.81
A92: 15166 | B92: 3286341516616 | C92: PN BRI 175/70R14 84T BLIZZAK LM005 | D92: N1757014TLM00584 | E92: TOURISME HIVER | F92: BS BLIZZAK LM005 | G92: 175 | H92: 70 | I92: R | J92: 14 | K92: 84 | L92: T | M92: C | N92: A | O92: B | P92: 70 | Q92: 139 | R92: 80.62
A93: 15167 | B93: 3286341516715 | C93: PN BRI 185/55R15 82T BLIZZAK LM005 | D93: N1855515TLM00582 | E93: TOURISME HIVER | F93: BS BLIZZAK LM005 | G93: 185 | H93: 55 | I93: R | J93: 15 | K93: 82 | L93: T | M93: C | N93: A | O93: B | P93: 70 | Q93: 163 | R93: 94.54
A94: 15168 | B94: 3286341516814 | C94: PN BRI 185/60R15 84T BLIZZAK LM005 | D94: N1856015TLM00584 | E94: TOURISME HIVER | F94: BS BLIZZAK LM005 | G94: 185 | H94: 60 | I94: R | J94: 15 | K94: 84 | L94: T | M94: C | N94: A | O94: B | P94: 70 | Q94: 120.5 | R94: 69.89
A95: 15169 | B95: 3286341516913 | C95: PN BRI 185/60R15 XL 88T BLIZZAK LM005 | D95: N1856015TLM00588 | E95: TOURISME HIVER | F95: BS BLIZZAK LM005 | G95: 185 | H95: 60 | I95: R | J95: 15 | K95: 88 | L95: T | M95: C | N95: A | O95: B | P95: 70 | Q95: 124.5 | R95: 72.21
A96: 15171 | B96: 3286341517118 | C96: PN BRI 165/65R15 81T BLIZZAK LM005 | D96: N1656515TLM00581 | E96: TOURISME HIVER | F96: BS BLIZZAK LM005 | G96: 165 | H96: 65 | I96: R | J96: 15 | K96: 81 | L96: T | M96: C | N96: A | O96: B | P96: 70 | Q96: 130 | R96: 75.4
A97: 15172 | B97: 3286341517217 | C97: PN BRI 175/65R15 XL 88T BLIZZAK LM005 | D97: N1756515TLM00588 | E97: TOURISME HIVER | F97: BS BLIZZAK LM005 | G97: 175 | H97: 65 | I97: R | J97: 15 | K97: 88 | L97: T | M97: C | N97: A | O97: B | P97: 70 | Q97: 119.5 | R97: 69.31
A98: 15173 | B98: 3286341517316 | C98: PN BRI 185/65R15 88T BLIZZAK LM005 | D98: N1856515TLM00588 | E98: TOURISME HIVER | F98: BS BLIZZAK LM005 | G98: 185 | H98: 65 | I98: R | J98: 15 | K98: 88 | L98: T | M98: C | N98: A | O98: B | P98: 71 | Q98: 112 | R98: 64.96
A99: 15174 | B99: 3286341517415 | C99: PN BRI 185/65R15 XL 92T BLIZZAK LM005 | D99: N1856515TLM00592 | E99: TOURISME HIVER | F99: BS BLIZZAK LM005 | G99: 185 | H99: 65 | I99: R | J99: 15 | K99: 92 | L99: T | M99: C | N99: A | O99: B | P99: 70 | Q99: 128 | R99: 74.24
A100: 15290 | B100: 3286341529012 | C100: PN BRI 195/65R15 XL 95T BLIZZAK LM005 | D100: N1956515TLM00595 | E100: TOURISME HIVER | F100: BS BLIZZAK LM005 | G100: 195 | H100: 65 | I100: R | J100: 15 | K100: 95 | L100: T | M100: C | N100: A | O100: B | P100: 71 | Q100: 126.5 | R100: 73.37
A101: 15291 | B101: 3286341529111 | C101: PN BRI 195/65R15 91T BLIZZAK LM005 | D101: N1956515TLM00591 | E101: TOURISME HIVER | F101: BS BLIZZAK LM005 | G101: 195 | H101: 65 | I101: R | J101: 15 | K101: 91 | L101: T | M101: C | N101: A | O101: B | P101: 71 | Q101: 105.5 | R101: 61.19
A102: 15293 | B102: 3286341529319 | C102: PN BRI 205/55R16 91T BLIZZAK LM005 | D102: N2055516TLM00591 | E102: TOURISME HIVER | F102: BS BLIZZAK LM005 | G102: 205 | H102: 55 | I102: R | J102: 16 | K102: 91 | L102: T | M102: C | N102: A | O102: B | P102: 71 | Q102: 154 | R102: 89.32
A103: 15294 | B103: 3286341529418 | C103: PN BRI 195/50R15 XL 86H BLZ LM005 | D103: N1955015HBLIZZAKLM86 | E103: TOURISME HIVER | F103: BS BLIZZAK LM005 | G103: 195 | H103: 50 | I103: R | J103: 15 | K103: 86 | L103: H | M103: C | N103: A | O103: B | P103: 71 | Q103: 149.5 | R103: 86.71
A104: 15295 | B104: 3286341529517 | C104: PN BRI 195/55R15 85H BLIZZAK LM005 | D104: N1955515HLM00585 | E104: TOURISME HIVER | F104: BS BLIZZAK LM005 | G104: 195 | H104: 55 | I104: R | J104: 15 | K104: 85 | L104: H | M104: C | N104: A | O104: B | P104: 71 | Q104: 182 | R104: 105.56
A105: 15296 | B105: 3286341529616 | C105: PN BRI 195/65R15 91H BZK LM005 | D105: N1956515HLM00591 | E105: TOURISME HIVER | F105: BS BLIZZAK LM005 | G105: 195 | H105: 65 | I105: R | J105: 15 | K105: 91 | L105: H | M105: C | N105: A | O105: B | P105: 71 | Q105: 133 | R105: 77.14
A106: 15297 | B106: 3286341529715 | C106: PN BRI 205/65R15 94H BLIZZAK LM005 | D106: N2056515HLM00594 | E106: TOURISME HIVER | F106: BS BLIZZAK LM005 | G106: 205 | H106: 65 | I106: R | J106: 15 | K106: 94 | L106: H | M106: C | N106: A | O106: B | P106: 71 | Q106: 203 | R106: 117.74
A107: 15298 | B107: 3286341529814 | C107: PN BRI 195/45R16 XL 84H BLIZZAK LM005 | D107: N1954516HLM00584 | E107: TOURISME HIVER | F107: BS BLIZZAK LM005 | G107: 195 | H107: 45 | I107: R | J107: 16 | K107: 84 | L107: H | M107: C | N107: A | O107: B | P107: 71 | Q107: 182 | R107: 105.56
A108: 15299 | B108: 3286341529913 | C108: PN BRI 205/45R16 XL 87H BLZ LM005 | D108: N2054516HBLIZZAKLM87 | E108: TOURISME HIVER | F108: BS BLIZZAK LM005 | G108: 205 | H108: 45 | I108: R | J108: 16 | K108: 87 | L108: H | M108: C | N108: A | O108: B | P108: 71 | Q108: 220 | R108: 127.6
A109: 15300 | B109: 3286341530018 | C109: PN BRI 195/50R16 XL 88H BLIZZAK LM005 | D109: N1955016HLM00588 | E109: TOURISME HIVER | F109: BS BLIZZAK LM005 | G109: 195 | H109: 50 | I109: R | J109: 16 | K109: 88 | L109: H | M109: C | N109: A | O109: B | P109: 71 | Q109: 221 | R109: 128.18
A110: 15301 | B110: 3286341530117 | C110: PN BRI 195/55R16 87H BLIZZAK LM005 | D110: N1955516HLM00587 | E110: TOURISME HIVER | F110: BS BLIZZAK LM005 | G110: 195 | H110: 55 | I110: R | J110: 16 | K110: 87 | L110: H | M110: C | N110: A | O110: B | P110: 71 | Q110: 178.5 | R110: 103.53
A111: 15302 | B111: 3286341530216 | C111: PN BRI 195/55R16 XL 91H BLIZZAK LM005 | D111: N1955516HLM00591 | E111: TOURISME HIVER | F111: BS BLIZZAK LM005 | G111: 195 | H111: 55 | I111: R | J111: 16 | K111: 91 | L111: H | M111: C | N111: A | O111: B | P111: 71 | Q111: 188 | R111: 109.04
A112: 15304 | B112: 3286341530414 | C112: PN BRI 205/55R16 XL 94H BLIZZAK LM005 | D112: N2055516HLM00594 | E112: TOURISME HIVER | F112: BS BLIZZAK LM005 | G112: 205 | H112: 55 | I112: R | J112: 16 | K112: 94 | L112: H | M112: C | N112: A | O112: B | P112: 71 | Q112: 174.5 | R112: 101.21
A113: 15305 | B113: 3286341530513 | C113: PN BRI 215/55R16 XL 97H BLIZZAK LM005 | D113: N2155516HLM00597 | E113: TOURISME HIVER | F113: BS BLIZZAK LM005 | G113: 215 | H113: 55 | I113: R | J113: 16 | K113: 97 | L113: H | M113: C | N113: A | O113: B | P113: 71 | Q113: 219 | R113: 127.02
A114: 15306 | B114: 3286341530612 | C114: PN BRI 215/55R16 93H BLIZZAK LM005 | D114: N2155516HLM00593 | E114: TOURISME HIVER | F114: BS BLIZZAK LM005 | G114: 215 | H114: 55 | I114: R | J114: 16 | K114: 93 | L114: H | M114: C | N114: A | O114: B | P114: 71 | Q114: 215.5 | R114: 124.99
A115: 15307 | B115: 3286341530711 | C115: PN BRI 225/55R16 XL 99H BLZ LM005 | D115: N2255516HBLIZZAKLM99 | E115: TOURISME HIVER | F115: BS BLIZZAK LM005 | G115: 225 | H115: 55 | I115: R | J115: 16 | K115: 99 | L115: H | M115: B | N115: A | O115: B | P115: 71 | Q115: 213 | R115: 123.54
A116: 15308 | B116: 3286341530810 | C116: PN BRI 195/60R16 89H BLIZZAK LM005 | D116: N1956016HLM00589 | E116: TOURISME HIVER | F116: BS BLIZZAK LM005 | G116: 195 | H116: 60 | I116: R | J116: 16 | K116: 89 | L116: H | M116: C | N116: A | O116: B | P116: 71 | Q116: 166.5 | R116: 96.57
A117: 15309 | B117: 3286341530919 | C117: PN BRI 205/60R16 92H BLIZZAK LM005 | D117: N2056016HLM00592 | E117: TOURISME HIVER | F117: BS BLIZZAK LM005 | G117: 205 | H117: 60 | I117: R | J117: 16 | K117: 92 | L117: H | M117: C | N117: A | O117: B | P117: 71 | Q117: 160 | R117: 92.8
A118: 15310 | B118: 3286341531015 | C118: PN BRI 205/60R16 XL 96H BLIZZAK LM005 | D118: N2056016HLM00596 | E118: TOURISME HIVER | F118: BS BLIZZAK LM005 | G118: 205 | H118: 60 | I118: R | J118: 16 | K118: 96 | L118: H | M118: C | N118: A | O118: B | P118: 71 | Q118: 164 | R118: 95.12
A119: 15311 | B119: 3286341531114 | C119: PN BRI 215/60R16 XL 99H BLIZZAK LM005 | D119: N2156016HLM00599 | E119: TOURISME HIVER | F119: BS BLIZZAK LM005 | G119: 215 | H119: 60 | I119: R | J119: 16 | K119: 99 | L119: H | M119: C | N119: A | O119: B | P119: 71 | Q119: 200.5 | R119: 116.29
A120: 15312 | B120: 3286341531213 | C120: PN BRI 215/40R17 XL 87V BLIZZAK LM005 | D120: N2154017VLM00587 | E120: TOURISME HIVER | F120: BS BLIZZAK LM005 | G120: 215 | H120: 40 | I120: R | J120: 17 | K120: 87 | L120: V | M120: C | N120: A | O120: B | P120: 71 | Q120: 251 | R120: 145.58
A121: 15313 | B121: 3286341531312 | C121: PN BRI 245/40R17 XL 95V BLZ LM005 | D121: N2454017VBLIZZAKLM95 | E121: TOURISME HIVER | F121: BS BLIZZAK LM005 | G121: 245 | H121: 40 | I121: R | J121: 17 | K121: 95 | L121: V | M121: C | N121: A | O121: B | P121: 72 | Q121: 304 | R121: 176.32
A122: 15314 | B122: 3286341531411 | C122: PN BRI 205/45R17 XL 88V BLIZZAK LM005 | D122: N2054517VLM00588 | E122: TOURISME HIVER | F122: BS BLIZZAK LM005 | G122: 205 | H122: 45 | I122: R | J122: 17 | K122: 88 | L122: V | M122: C | N122: A | O122: B | P122: 71 | Q122: 239.5 | R122: 138.91
A123: 15315 | B123: 3286341531510 | C123: PN BRI 215/45R17 XL 91V BLIZZAK LM005 | D123: N2154517VLM00591 | E123: TOURISME HIVER | F123: BS BLIZZAK LM005 | G123: 215 | H123: 45 | I123: R | J123: 17 | K123: 91 | L123: V | M123: C | N123: A | O123: B | P123: 71 | Q123: 250 | R123: 145
A124: 15316 | B124: 3286341531619 | C124: PN BRI 225/45R17 XL 94V BLIZZAK LM005 | D124: N2254517VLM00594 | E124: TOURISME HIVER | F124: BS BLIZZAK LM005 | G124: 225 | H124: 45 | I124: R | J124: 17 | K124: 94 | L124: V | M124: C | N124: A | O124: B | P124: 71 | Q124: 210 | R124: 121.8
A125: 15317 | B125: 3286341531718 | C125: PN BRI 235/45R17 XL 97V BLIZZAK LM005 | D125: N2354517VLM00597 | E125: TOURISME HIVER | F125: BS BLIZZAK LM005 | G125: 235 | H125: 45 | I125: R | J125: 17 | K125: 97 | L125: V | M125: C | N125: A | O125: B | P125: 72 | Q125: 282 | R125: 163.56
A126: 15318 | B126: 3286341531817 | C126: PN BRI 245/45R17 XL 99V BLIZZAK LM005 | D126: N2454517VLM00599 | E126: TOURISME HIVER | F126: BS BLIZZAK LM005 | G126: 245 | H126: 45 | I126: R | J126: 17 | K126: 99 | L126: V | M126: C | N126: A | O126: B | P126: 72 | Q126: 290 | R126: 168.2
A127: 15319 | B127: 3286341531916 | C127: PN BRI 205/50R17 XL 93V BLIZZAK LM005 | D127: N2055017VLM00593 | E127: TOURISME HIVER | F127: BS BLIZZAK LM005 | G127: 205 | H127: 50 | I127: R | J127: 17 | K127: 93 | L127: V | M127: C | N127: A | O127: B | P127: 71 | Q127: 207 | R127: 120.06
A128: 15320 | B128: 3286341532012 | C128: PN BRI 215/50R17 XL 95V BLIZZAK LM005 | D128: N2155017VLM00595 | E128: TOURISME HIVER | F128: BS BLIZZAK LM005 | G128: 215 | H128: 50 | I128: R | J128: 17 | K128: 95 | L128: V | M128: C | N128: A | O128: B | P128: 71 | Q128: 222 | R128: 128.76
A129: 15321 | B129: 3286341532111 | C129: PN BRI 225/50R17 XL 98H BLIZZAK LM005 | D129: N2255017HLM00598 | E129: TOURISME HIVER | F129: BS BLIZZAK LM005 | G129: 225 | H129: 50 | I129: R | J129: 17 | K129: 98 | L129: H | M129: C | N129: A | O129: B | P129: 71 | Q129: 217.5 | R129: 126.15
A130: 15322 | B130: 3286341532210 | C130: PN BRI 225/50R17 XL 98V BLIZZAK LM005 | D130: N2255017VLM00598 | E130: TOURISME HIVER | F130: BS BLIZZAK LM005 | G130: 225 | H130: 50 | I130: R | J130: 17 | K130: 98 | L130: V | M130: C | N130: A | O130: B | P130: 71 | Q130: 225.5 | R130: 130.79
A131: 15323 | B131: 3286341532319 | C131: PN BRI 235/50R17 XL 100V BLZ LM005 | D131: N2355017VBLIZZAKL100 | E131: TOURISME HIVER | F131: BS BLIZZAK LM005 | G131: 235 | H131: 50 | I131: R | J131: 17 | K131: 100 | L131: V | M131: C | N131: A | O131: B | P131: 72 | Q131: 310 | R131: 179.8
A132: 15324 | B132: 3286341532418 | C132: PN BRI 205/55R17 XL 95V BLIZZAK LM005 | D132: N2055517VLM00595 | E132: TOURISME HIVER | F132: BS BLIZZAK LM005 | G132: 205 | H132: 55 | I132: R | J132: 17 | K132: 95 | L132: V | M132: C | N132: A | O132: B | P132: 71 | Q132: 239 | R132: 138.62
A133: 15325 | B133: 3286341532517 | C133: PN BRI 215/55R17 XL 98V BLIZZAK LM005 | D133: N2155517VLM00598 | E133: TOURISME HIVER | F133: BS BLIZZAK LM005 | G133: 215 | H133: 55 | I133: R | J133: 17 | K133: 98 | L133: V | M133: C | N133: A | O133: B | P133: 71 | Q133: 234.5 | R133: 136.01
A134: 15326 | B134: 3286341532616 | C134: PN BRI 225/55R17 97H BLIZZAK LM005 | D134: N2255517HLM00597 | E134: TOURISME HIVER | F134: BS BLIZZAK LM005 | G134: 225 | H134: 55 | I134: R | J134: 17 | K134: 97 | L134: H | M134: C | N134: A | O134: B | P134: 71 | Q134: 217.5 | R134: 126.15
A135: 15327 | B135: 3286341532715 | C135: PN BRI 225/55R17 XL 101V BLIZZAK LM005 | D135: N2255517VLM005101 | E135: TOURISME HIVER | F135: BS BLIZZAK LM005 | G135: 225 | H135: 55 | I135: R | J135: 17 | K135: 101 | L135: V | M135: B | N135: A | O135: B | P135: 71 | Q135: 224 | R135: 129.92
A136: 15328 | B136: 3286341532814 | C136: PN BRI 235/55R17 99H BLIZZAK LM005 | D136: N2355517HLM00599 | E136: TOURISME HIVER | F136: BS BLIZZAK LM005 | G136: 235 | H136: 55 | I136: R | J136: 17 | K136: 99 | L136: H | M136: C | N136: A | O136: B | P136: 72 | Q136: 256.5 | R136: 148.77
A137: 15329 | B137: 3286341532913 | C137: PN BRI 235/55R17 XL 103V BLIZZAK LM005 | D137: N2355517VLM005103 | E137: TOURISME HIVER | F137: BS BLIZZAK LM005 | G137: 235 | H137: 55 | I137: R | J137: 17 | K137: 103 | L137: V | M137: B | N137: A | O137: B | P137: 72 | Q137: 261 | R137: 151.38
A138: 15330 | B138: 3286341533019 | C138: PN BRI 205/60R17 93H BLIZZAK LM005 | D138: N2056017HLM00593 | E138: TOURISME HIVER | F138: BS BLIZZAK LM005 | G138: 205 | H138: 60 | I138: R | J138: 17 | K138: 93 | L138: H | M138: C | N138: A | O138: B | P138: 71 | Q138: 230 | R138: =Q138*(1-$D$3) -> 133.4
A139: 15331 | B139: 3286341533118 | C139: PN BRI 255/35R18 XL 94V BLZ LM005 | D139: N2553518VBLIZZAKLM94 | E139: TOURISME HIVER | F139: BS BLIZZAK LM005 | G139: 255 | H139: 35 | I139: R | J139: 18 | K139: 94 | L139: V | M139: C | N139: A | O139: B | P139: 73 | Q139: 314 | R139: 182.12
A140: 15332 | B140: 3286341533217 | C140: PN BRI 265/35R18 XL 97V BLZ LM005 | D140: N2653518VBLIZZAKLM97 | E140: TOURISME HIVER | F140: BS BLIZZAK LM005 | G140: 265 | H140: 35 | I140: R | J140: 18 | K140: 97 | L140: V | M140: C | N140: A | O140: B | P140: 73 | Q140: 335.5 | R140: 194.59
A141: 15333 | B141: 3286341533316 | C141: PN BRI 225/40R18 XL 92V BLIZZAK LM005 | D141: N2254018VLM00592 | E141: TOURISME HIVER | F141: BS BLIZZAK LM005 | G141: 225 | H141: 40 | I141: R | J141: 18 | K141: 92 | L141: V | M141: C | N141: A | O141: B | P141: 72 | Q141: 209.5 | R141: 121.51
A142: 15334 | B142: 3286341533415 | C142: PN BRI 235/40R18 XL 95V BLIZZAK LM005 | D142: N2354018VLM00595 | E142: TOURISME HIVER | F142: BS BLIZZAK LM005 | G142: 235 | H142: 40 | I142: R | J142: 18 | K142: 95 | L142: V | M142: C | N142: A | O142: B | P142: 72 | Q142: 273 | R142: 158.34
A143: 15335 | B143: 3286341533514 | C143: PN BRI 245/40R18 XL 97V BLIZZAK LM005 | D143: N2454018VLM00597 | E143: TOURISME HIVER | F143: BS BLIZZAK LM005 | G143: 245 | H143: 40 | I143: R | J143: 18 | K143: 97 | L143: V | M143: C | N143: A | O143: B | P143: 72 | Q143: 244.5 | R143: 141.81
A144: 15336 | B144: 3286341533613 | C144: PN BRI 255/40R18 XL 99V BLZ LM005 | D144: N2554018VLM00599 | E144: TOURISME HIVER | F144: BS BLIZZAK LM005 | G144: 255 | H144: 40 | I144: R | J144: 18 | K144: 99 | L144: V | M144: C | N144: A | O144: B | P144: 73 | Q144: 284 | R144: 164.72
A145: 15337 | B145: 3286341533712 | C145: PN BRI 215/45R18 XL 93V BLIZZAK LM005 | D145: N2154518VLM00593 | E145: TOURISME HIVER | F145: BS BLIZZAK LM005 | G145: 215 | H145: 45 | I145: R | J145: 18 | K145: 93 | L145: V | M145: C | N145: A | O145: B | P145: 71 | Q145: 262.5 | R145: 152.25
A146: 15338 | B146: 3286341533811 | C146: PN BRI 225/45R18 XL 95V BLIZZAK LM005 | D146: N2254518VLM00595 | E146: TOURISME HIVER | F146: BS BLIZZAK LM005 | G146: 225 | H146: 45 | I146: R | J146: 18 | K146: 95 | L146: V | M146: C | N146: A | O146: B | P146: 72 | Q146: 247.5 | R146: 143.55
A147: 15339 | B147: 3286341533910 | C147: PN BRI 235/45R18 XL 98V BLIZZAK LM005 | D147: N2354518VLM00598 | E147: TOURISME HIVER | F147: BS BLIZZAK LM005 | G147: 235 | H147: 45 | I147: R | J147: 18 | K147: 98 | L147: V | M147: C | N147: A | O147: B | P147: 72 | Q147: 270 | R147: 156.6
A148: 15340 | B148: 3286341534016 | C148: PN BRI 245/45R18 XL 100V BLIZZAK LM005 | D148: N2454518VLM005100 | E148: TOURISME HIVER | F148: BS BLIZZAK LM005 | G148: 245 | H148: 45 | I148: R | J148: 18 | K148: 100 | L148: V | M148: C | N148: A | O148: B | P148: 72 | Q148: 269 | R148: 156.02
A149: 15341 | B149: 3286341534115 | C149: PN BRI 255/45R18 XL 103V BLZ LM005 | D149: N2554518VBLIZZAKL103 | E149: TOURISME HIVER | F149: BS BLIZZAK LM005 | G149: 255 | H149: 45 | I149: R | J149: 18 | K149: 103 | L149: V | M149: C | N149: A | O149: B | P149: 73 | Q149: 333.5 | R149: 193.43
A150: 15342 | B150: 3286341534214 | C150: PN BRI 225/50R18 XL 99V BLIZZAK LM005 | D150: N2255018VLM00599 | E150: TOURISME HIVER | F150: BS BLIZZAK LM005 | G150: 225 | H150: 50 | I150: R | J150: 18 | K150: 99 | L150: V | M150: B | N150: A | O150: B | P150: 72 | Q150: 304 | R150: 176.32
A151: 15343 | B151: 3286341534313 | C151: PN BRI 245/50R18 XL 104V BLIZZAK LM005 | D151: N2455018VBLIZZAKL104 | E151: TOURISME HIVER | F151: BS BLIZZAK LM005 | G151: 245 | H151: 50 | I151: R | J151: 18 | K151: 104 | L151: V | M151: B | N151: A | O151: B | P151: 72 | Q151: 295.5 | R151: 171.39
A152: 15344 | B152: 3286341534412 | C152: PN BRI 215/55R18 XL 99V BLIZZAK LM005 | D152: N2155518VLM00599 | E152: TOURISME HIVER | F152: BS BLIZZAK LM005 | G152: 215 | H152: 55 | I152: R | J152: 18 | K152: 99 | L152: V | M152: C | N152: A | O152: B | P152: 71 | Q152: 272 | R152: 157.76
A153: 15345 | B153: 3286341534511 | C153: PN BRI 235/35R19 XL 91W BLZ LM005 | D153: N2353519WBLIZZAKLM91 | E153: TOURISME HIVER | F153: BS BLIZZAK LM005 | G153: 235 | H153: 35 | I153: R | J153: 19 | K153: 91 | L153: W | M153: C | N153: A | O153: B | P153: 72 | Q153: 361 | R153: 209.38
A154: 15346 | B154: 3286341534610 | C154: PN BRI 245/35R19 XL 93W BLZ LM005 | D154: N2453519WBLIZZAKLM93 | E154: TOURISME HIVER | F154: BS BLIZZAK LM005 | G154: 245 | H154: 35 | I154: R | J154: 19 | K154: 93 | L154: W | M154: C | N154: A | O154: B | P154: 72 | Q154: 396 | R154: 229.68
A155: 15347 | B155: 3286341534719 | C155: PN BRI 255/35R19 XL 96V BLZ LM005 | D155: N2553519VBLIZZAKLM96 | E155: TOURISME HIVER | F155: BS BLIZZAK LM005 | G155: 255 | H155: 35 | I155: R | J155: 19 | K155: 96 | L155: V | M155: C | N155: A | O155: B | P155: 73 | Q155: 345 | R155: 200.1
A156: 15348 | B156: 3286341534818 | C156: PN BRI 225/40R19 XL 93W BLIZZAK LM005 | D156: N2254019WBLIZZAKLM93 | E156: TOURISME HIVER | F156: BS BLIZZAK LM005 | G156: 225 | H156: 40 | I156: R | J156: 19 | K156: 93 | L156: W | M156: C | N156: A | O156: B | P156: 72 | Q156: 308 | R156: 178.64
A157: 15350 | B157: 3286341535013 | C157: PN BRI 245/40R19 XL 98V BLZ LM005 | D157: N2454019VBLIZZAKLM98 | E157: TOURISME HIVER | F157: BS BLIZZAK LM005 | G157: 245 | H157: 40 | I157: R | J157: 19 | K157: 98 | L157: V | M157: C | N157: A | O157: B | P157: 72 | Q157: 366.5 | R157: 212.57
A158: 15352 | B158: 3286341535211 | C158: PN BRI 275/40R19 XL 105W BLIZZAK LM005 | D158: N2754019WLM005105 | E158: TOURISME HIVER | F158: BS BLIZZAK LM005 | G158: 275 | H158: 40 | I158: R | J158: 19 | K158: 105 | L158: W | M158: C | N158: A | O158: B | P158: 73 | Q158: 501.5 | R158: 290.87
A159: 15353 | B159: 3286341535310 | C159: PN BRI 225/45R19 XL 96V BLZ LM005 | D159: N2254519VBLIZZAKLM96 | E159: TOURISME HIVER | F159: BS BLIZZAK LM005 | G159: 225 | H159: 45 | I159: R | J159: 19 | K159: 96 | L159: V | M159: C | N159: A | O159: B | P159: 72 | Q159: 360 | R159: 208.8
A160: 15354 | B160: 3286341535419 | C160: PN BRI 235/45R19 XL 99V BLZ LM005 | D160: N2354519VBLIZZAKLM99 | E160: TOURISME HIVER | F160: BS BLIZZAK LM005 | G160: 235 | H160: 45 | I160: R | J160: 19 | K160: 99 | L160: V | M160: C | N160: A | O160: B | P160: 72 | Q160: 320 | R160: 185.6
A161: 15356 | B161: 3286341535617 | C161: PN BRI 255/45R19 XL 104V BLZ LM005 | D161: N2554519VBLIZZAKL104 | E161: TOURISME HIVER | F161: BS BLIZZAK LM005 | G161: 255 | H161: 45 | I161: R | J161: 19 | K161: 104 | L161: V | M161: C | N161: A | O161: B | P161: 73 | Q161: 354 | R161: 205.32
A162: 15357 | B162: 3286341535716 | C162: PN BRI 245/35R20 XL 95W BLIZZAK LM005 | D162: N2453520WLM00595 | E162: TOURISME HIVER | F162: BS BLIZZAK LM005 | G162: 245 | H162: 35 | I162: R | J162: 20 | K162: 95 | L162: W | M162: C | N162: A | O162: B | P162: 72 | Q162: 517 | R162: 299.86
A163: 15358 | B163: 3286341535815 | C163: PN BRI 255/35R20 XL 97W BLIZZAK LM005 | D163: N2553520WLM00597 | E163: TOURISME HIVER | F163: BS BLIZZAK LM005 | G163: 255 | H163: 35 | I163: R | J163: 20 | K163: 97 | L163: W | M163: C | N163: A | O163: B | P163: 73 | Q163: 426.5 | R163: 247.37
A164: 15359 | B164: 3286341535914 | C164: PN BRI 255/40R20 XL 101V BLZ LM005 | D164: N2554020VBLIZZAKL101 | E164: TOURISME HIVER | F164: BS BLIZZAK LM005 | G164: 255 | H164: 40 | I164: R | J164: 20 | K164: 101 | L164: V | M164: C | N164: A | O164: B | P164: 73 | Q164: 403.5 | R164: 234.03
A165: 15360 | B165: 3286341536010 | C165: PN BRI 195/55R20 XL 95H BLIZZAK LM005 | D165: N1955520HLM00595 | E165: TOURISME HIVER | F165: BS BLIZZAK LM005 | G165: 195 | H165: 55 | I165: R | J165: 20 | K165: 95 | L165: H | M165: C | N165: A | O165: B | P165: 71 | Q165: 225 | R165: 130.5
A166: 16598 | B166: 3286341659818 | C166: PN BRI 195/65R15 XL 95T BLIZZAK ICE | D166: N1956515TBLZICE95 | E166: TOURISME HIVER | F166: BS BLIZZAK ICE | G166: 195 | H166: 65 | I166: R | J166: 15 | K166: 95 | L166: T | M166: E | N166: E | O166: B | P166: 72 | Q166: 140.5 | R166: 81.49
A167: 16700 | B167: 3286341670011 | C167: PN BRI 195/55R16 XL 91H RFT BLZ LM005 DG | D167: N1955516HLM005DG91RU | E167: TOURISME HIVER | F167: BS BLIZZAK LM005 D | G167: 195 | H167: 55 | I167: R | J167: 16 | K167: 91 | L167: H | M167: D | N167: A | O167: B | P167: 71 | Q167: 208 | R167: 120.64
A168: 16701 | B168: 3286341670110 | C168: PN BRI 215/55R16 XL 97H RFT BLZ LM005 DG | D168: N2155516HLM005DG97RU | E168: TOURISME HIVER | F168: BS BLIZZAK LM005 D | G168: 215 | H168: 55 | I168: R | J168: 16 | K168: 97 | L168: H | M168: C | N168: A | O168: B | P168: 71 | Q168: 236 | R168: 136.88
A169: 16702 | B169: 3286341670219 | C169: PN BRI 205/55R17 XL 95V RFT BLZ LM005 DG | D169: N2055517VLM005DG95RU | E169: TOURISME HIVER | F169: BS BLIZZAK LM005 D | G169: 205 | H169: 55 | I169: R | J169: 17 | K169: 95 | L169: V | M169: D | N169: A | O169: B | P169: 71 | Q169: 267.5 | R169: 155.15
A170: 16703 | B170: 3286341670318 | C170: PN BRI 225/50R17 XL 98V RFT BLZ LM005 DG | D170: N2255017VLM005DG98RU | E170: TOURISME HIVER | F170: BS BLIZZAK LM005 D | G170: 225 | H170: 50 | I170: R | J170: 17 | K170: 98 | L170: V | M170: C | N170: A | O170: B | P170: 71 | Q170: 264 | R170: 153.12
A171: 16704 | B171: 3286341670417 | C171: PN BRI 225/55R17 XL 101V RFT BLZ LM005 D | D171: N2255517VLM005D101RU | E171: TOURISME HIVER | F171: BS BLIZZAK LM005 D | G171: 225 | H171: 55 | I171: R | J171: 17 | K171: 101 | L171: V | M171: C | N171: A | O171: B | P171: 71 | Q171: 253.5 | R171: 147.03
A172: 16705 | B172: 3286341670516 | C172: PN BRI 215/55R17 XL 98V RFT BLZ LM005 DG | D172: N2155517VLM005DG98RU | E172: TOURISME HIVER | F172: BS BLIZZAK LM005 D | G172: 215 | H172: 55 | I172: R | J172: 17 | K172: 98 | L172: V | M172: C | N172: A | O172: B | P172: 71 | Q172: 263 | R172: 152.54
A173: 16706 | B173: 3286341670615 | C173: PN BRI 215/60R17 XL 100V RFT BLZ LM005DG | D173: N2156017VLM005D100RU | E173: 4x4 HIVER | F173: BS BLIZZAK LM005 D | G173: 215 | H173: 60 | I173: R | J173: 17 | K173: 100 | L173: V | M173: D | N173: A | O173: B | P173: 71 | Q173: 281.5 | R173: 163.27
A174: 16707 | B174: 3286341670714 | C174: PN BRI 225/40R18 XL 92V RFT BLZ LM005 DG | D174: N2254018VLM005DG92RU | E174: TOURISME HIVER | F174: BS BLIZZAK LM005 D | G174: 225 | H174: 40 | I174: R | J174: 18 | K174: 92 | L174: V | M174: D | N174: A | O174: B | P174: 72 | Q174: 250 | R174: 145
A175: 16709 | B175: 3286341670912 | C175: PN BRI 225/45R17 XL 94V RFT BLZ LM005 DG | D175: N2254517VLM005DG94RU | E175: TOURISME HIVER | F175: BS BLIZZAK LM005 D | G175: 225 | H175: 45 | I175: R | J175: 17 | K175: 94 | L175: V | M175: C | N175: A | O175: B | P175: 71 | Q175: 225.5 | R175: 130.79
A176: 16710 | B176: 3286341671018 | C176: PN BRI 215/60R16 XL 99H RFT BLZ LM005 DG | D176: N2156016HLM005DG99RU | E176: TOURISME HIVER | F176: BS BLIZZAK LM005 D | G176: 215 | H176: 60 | I176: R | J176: 16 | K176: 99 | L176: H | M176: D | N176: A | O176: B | P176: 71 | Q176: 225.5 | R176: 130.79
A177: 16711 | B177: 3286341671117 | C177: PN BRI 205/60R16 XL 96H RFT BLZ LM005 DG | D177: N2056016HLM005DG96RU | E177: TOURISME HIVER | F177: BS BLIZZAK LM005 D | G177: 205 | H177: 60 | I177: R | J177: 16 | K177: 96 | L177: H | M177: D | N177: A | O177: B | P177: 71 | Q177: 183.5 | R177: 106.43
A178: 16712 | B178: 3286341671216 | C178: PN BRI 205/55R16 XL 94V RFT BLZ LM005 DG | D178: N2055516VLM005DG94RU | E178: TOURISME HIVER | F178: BS BLIZZAK LM005 D | G178: 205 | H178: 55 | I178: R | J178: 16 | K178: 94 | L178: V | M178: C | N178: A | O178: B | P178: 71 | Q178: 179.5 | R178: 104.11
A179: 16713 | B179: 3286341671315 | C179: PN BRI 205/45R17 XL 88V RFT LM005 DG | D179: N2054517VBLIZZAK88RU | E179: TOURISME HIVER | F179: BS BLIZZAK LM005 D | G179: 205 | H179: 45 | I179: R | J179: 17 | K179: 88 | L179: V | M179: D | N179: A | O179: B | P179: 71 | Q179: 269.5 | R179: 156.31
A180: 16714 | B180: 3286341671414 | C180: PN BRI 235/45R17 XL 97V RFT LM005 DG | D180: N2354517VBLIZZAK97RU | E180: TOURISME HIVER | F180: BS BLIZZAK LM005 D | G180: 235 | H180: 45 | I180: R | J180: 17 | K180: 97 | L180: V | M180: C | N180: A | O180: B | P180: 72 | Q180: 316 | R180: 183.28
A181: 16715 | B181: 3286341671513 | C181: PN BRI 245/40R18 XL 97V RFT LM005 DG | D181: N2454018VBLIZZAK97RU | E181: TOURISME HIVER | F181: BS BLIZZAK LM005 D | G181: 245 | H181: 40 | I181: R | J181: 18 | K181: 97 | L181: V | M181: C | N181: A | O181: B | P181: 72 | Q181: 273 | R181: 158.34
A182: 16716 | B182: 3286341671612 | C182: PN BRI 245/45R18 XL 100V RFT LM005 DG | D182: N2454518VBLIZZA100RU | E182: TOURISME HIVER | F182: BS BLIZZAK LM005 D | G182: 245 | H182: 45 | I182: R | J182: 18 | K182: 100 | L182: V | M182: D | N182: A | O182: B | P182: 72 | Q182: 302 | R182: 175.16
A183: 16717 | B183: 3286341671711 | C183: PN BRI 225/45R18 XL 95V RFT LM005 DG | D183: N2254518VBLIZZAK95RU | E183: TOURISME HIVER | F183: BS BLIZZAK LM005 D | G183: 225 | H183: 45 | I183: R | J183: 18 | K183: 95 | L183: V | M183: C | N183: A | O183: B | P183: 72 | Q183: 269.5 | R183: 156.31
A184: 16718 | B184: 3286341671810 | C184: PN BRI 235/45R18 XL 98V RFT LM005 DG | D184: N2354518VBLIZZAK98RU | E184: TOURISME HIVER | F184: BS BLIZZAK LM005 D | G184: 235 | H184: 45 | I184: R | J184: 18 | K184: 98 | L184: V | M184: C | N184: A | O184: B | P184: 72 | Q184: 303.5 | R184: 176.03
A185: 16719 | B185: 3286341671919 | C185: PN BRI 225/60R17 XL 103V RFT LM005 DG | D185: N2256017VBLIZZA103RU | E185: 4x4 HIVER | F185: BS BLIZZAK LM005 D | G185: 225 | H185: 60 | I185: R | J185: 17 | K185: 103 | L185: V | M185: D | N185: A | O185: B | P185: 71 | Q185: 302 | R185: 175.16
A186: 16720 | B186: 3286341672015 | C186: PN BRI 205/50R17 XL 93V RFT LM005 DG | D186: N2055017VBLIZZAK93RU | E186: TOURISME HIVER | F186: BS BLIZZAK LM005 D | G186: 205 | H186: 50 | I186: R | J186: 17 | K186: 93 | L186: V | M186: C | N186: A | O186: B | P186: 71 | Q186: 232 | R186: 134.56
A187: 16721 | B187: 3286341672114 | C187: PN BRI 225/55R16 XL 99V RFT LM005 DG | D187: N2255516VBLIZZAK99RU | E187: TOURISME HIVER | F187: BS BLIZZAK LM005 D | G187: 225 | H187: 55 | I187: R | J187: 16 | K187: 99 | L187: V | M187: C | N187: A | O187: B | P187: 71 | Q187: 228.5 | R187: 132.53
A188: 16722 | B188: 3286341672213 | C188: PN BRI 235/55R17 XL 103V RFT LM005 DG | D188: N2355517VBLIZZA103RU | E188: TOURISME HIVER | F188: BS BLIZZAK LM005 D | G188: 235 | H188: 55 | I188: R | J188: 17 | K188: 103 | L188: V | M188: D | N188: A | O188: B | P188: 72 | Q188: 291.5 | R188: 169.07
A189: 16723 | B189: 3286341672312 | C189: PN BRI 215/50R17 XL 95V RFT LM005 DG | D189: N2155017VBLIZZAK95RU | E189: TOURISME HIVER | F189: BS BLIZZAK LM005 D | G189: 215 | H189: 50 | I189: R | J189: 17 | K189: 95 | L189: V | M189: C | N189: A | O189: B | P189: 71 | Q189: 247.5 | R189: 143.55
A190: 17053 | B190: 3286341705317 | C190: PN BRI 205/60R16 XL 96H BLZ LM001 3SE | D190: N2056016HLM001*96SE | E190: TOURISME HIVER | F190: BS LM001 | G190: 205 | H190: 60 | I190: R | J190: 16 | K190: 96 | L190: H | M190: C | N190: B | O190: B | P190: 72 | Q190: 172.5 | R190: 100.05
A191: 1720 | B191: 3286340172011 | C191: PN BRI 235/60R17 102 H LM25-4 GLK | D191: N2356017HLM254GLK102 | E191: 4x4 HIVER | F191: BS LM-25 | G191: 235 | H191: 60 | I191: R | J191: 17 | K191: 102 | L191: H | M191: E | N191: D | O191: B | P191: 72 | Q191: 275.5 | R191: 159.79
A192: 17703 | B192: 3286341770315 | C192: PN BRI 225/50R18 XL 99H BLIZZAK LM005 | D192: N2255018HLM00599 | E192: TOURISME HIVER | F192: BS BLIZZAK LM005 | G192: 225 | H192: 50 | I192: R | J192: 18 | K192: 99 | L192: H | M192: B | N192: A | O192: B | P192: 72 | Q192: 284 | R192: 164.72
A193: 17705 | B193: 3286341770513 | C193: PN BRI 185/55R15 XL 86H BLIZZAK LM005 | D193: N1855515HLM00586 | E193: TOURISME HIVER | F193: BS BLIZZAK LM005 | G193: 185 | H193: 55 | I193: R | J193: 15 | K193: 86 | L193: H | M193: C | N193: A | O193: B | P193: 70 | Q193: 178.5 | R193: 103.53
A194: 17706 | B194: 3286341770612 | C194: PN BRI 225/60R17 XL 103V BLIZZAK LM005 | D194: N2256017VLM005103 | E194: 4x4 HIVER | F194: BS BLIZZAK LM005 | G194: 225 | H194: 60 | I194: R | J194: 17 | K194: 103 | L194: V | M194: C | N194: A | O194: B | P194: 71 | Q194: 294.5 | R194: 170.81
A195: 17707 | B195: 3286341770711 | C195: PN BRI 225/45R17 XL 94H BLIZZAK LM005 | D195: N2254517HLM00594 | E195: TOURISME HIVER | F195: BS BLIZZAK LM005 | G195: 225 | H195: 45 | I195: R | J195: 17 | K195: 94 | L195: H | M195: C | N195: A | O195: B | P195: 71 | Q195: 207 | R195: 120.06
A196: 17708 | B196: 3286341770810 | C196: PN BRI 195/60R15 88H BLIZZAK LM005 | D196: N1956015HLM00588 | E196: TOURISME HIVER | F196: BS BLIZZAK LM005 | G196: 195 | H196: 60 | I196: R | J196: 15 | K196: 88 | L196: H | M196: C | N196: A | O196: B | P196: 71 | Q196: 154.5 | R196: 89.61
A197: 17709 | B197: 3286341770919 | C197: PN BRI 235/60R18 XL 107V BLIZZAK LM005 | D197: N2356018VLM005107 | E197: 4x4 HIVER | F197: BS BLIZZAK LM005 | G197: 235 | H197: 60 | I197: R | J197: 18 | K197: 107 | L197: V | M197: C | N197: A | O197: B | P197: 72 | Q197: 258 | R197: 149.64
A198: 17710 | B198: 3286341771015 | C198: PN BRI 215/55R17 XL 98H BLIZZAK LM005 | D198: N2155517HLM00598 | E198: TOURISME HIVER | F198: BS BLIZZAK LM005 | G198: 215 | H198: 55 | I198: R | J198: 17 | K198: 98 | L198: H | M198: C | N198: A | O198: B | P198: 71 | Q198: 234 | R198: 135.72
A199: 17711 | B199: 3286341771114 | C199: PN BRI 245/40R18 XL 97W BLIZZAK LM005 | D199: N2454018WLM00597 | E199: TOURISME HIVER | F199: BS BLIZZAK LM005 | G199: 245 | H199: 40 | I199: R | J199: 18 | K199: 97 | L199: W | M199: C | N199: A | O199: B | P199: 72 | Q199: 261.5 | R199: 151.67
A200: 17712 | B200: 3286341771213 | C200: PN BRI 215/60R17 XL 100V BLIZZAK LM005 | D200: N2156017VLM005100 | E200: 4x4 HIVER | F200: BS BLIZZAK LM005 | G200: 215 | H200: 60 | I200: R | J200: 17 | K200: 100 | L200: V | M200: B | N200: A | O200: B | P200: 71 | Q200: 254.5 | R200: 147.61
A201: 17986 | B201: 3286341798616 | C201: PN BRI 225/50R17 XL 98H BLZ LM005 CC | D201: N2255017HBLIZZAKMO98 | E201: TOURISME HIVER | F201: BS BLIZZAK LM005 | G201: 225 | H201: 50 | I201: R | J201: 17 | K201: 98 | L201: H | M201: B | N201: A | O201: B | P201: 70 | Q201: 227.5 | R201: 131.95
A202: 18140 | B202: 3286341814019 | C202: PN BRI 225/40R18 XL 92V BZK LM005 AUD A | D202: N2254018VBLIZZAKAO92 | E202: TOURISME HIVER | F202: BS BLIZZAK LM005 | G202: 225 | H202: 40 | I202: R | J202: 18 | K202: 92 | L202: V | M202: D | N202: A | O202: B | P202: 72 | Q202: 220 | R202: =Q202*(1-$D$3) -> 127.6
A203: 18162 | B203: 3286341816211 | C203: PN BRI 195/80R15 96R BLZ DM-V2 | D203: N1958015RDMV296BS | E203: 4x4 HIVER | F203: BS DM-V2 | G203: 195 | H203: 80 | I203: R | J203: 15 | K203: 96 | L203: R | M203: E | N203: E | O203: B | P203: 72 | Q203: 177 | R203: 102.66
... 166 more rows

Sheet BFG
D2: Remise
D3: =Remises!J8 -> 0.285
A5: Actualisation au 04/04/2024
A7: REFERENCES PNEUMATIQUES | Q7: TARIFS
A8: CAI | B8: EAN | C8: Désignation | D8: Appellation | E8: Catégorie | F8: Profil | G8: Largeur | H8: Hauteur | I8: Structure | J8: Diamètre | K8: IC | L8: IV | M8: Conso. | N8: Frein. | O8: Bruit. | P8: Décibels. | Q8: Prix BF | R8: Prix Remisé
A9: 002137 | B9: 3528700021370 | C9: PN BFG 205/55R17 91H G-FORCE WINTER2 | D9: N2055517HGFORCEWIN91 | E9: TOURISME HIVER | F9: BF G-FORCE WINTER2 | G9: 205 | H9: 55 | I9: R | J9: 17 | K9: 91 | L9: H | M9: D | N9: B | O9: A | P9: 69 | Q9: 139.7 | R9: =Q9*(1-$D$3) -> 99.8855
A10: 006883 | B10: 3528700068832 | C10: PN BFG 215/45R18 XL 93V G-FORCE WINTER2 | D10: N2154518VGFORCEWIN93 | E10: TOURISME HIVER | F10: BF G-FORCE WINTER2 | G10: 215 | H10: 45 | I10: R | J10: 18 | K10: 93 | L10: V | M10: D | N10: B | O10: A | P10: 69 | Q10: 161.3 | R10: =Q10*(1-$D$3) -> 115.3295
A11: 010288 | B11: 3528700102888 | C11: PN BFG 205/60R16 92 H G-FORCE WINT 2 | D11: N2056016HGFORC92 | E11: TOURISME HIVER | F11: BF G-FORCE WINTER2 | G11: 205 | H11: 60 | I11: R | J11: 16 | K11: 92 | L11: H | M11: D | N11: B | O11: A | P11: 69 | Q11: 109.4 | R11: 78.221
A12: 012974 | B12: 3528700129748 | C12: PN BFG 205/45R17 XL 88V G-FORCE WINT 2 | D12: N2054517VGFOW288 | E12: TOURISME HIVER | F12: BF G-FORCE WINTER2 | G12: 205 | H12: 45 | I12: R | J12: 17 | K12: 88 | L12: V | M12: D | N12: B | O12: A | P12: 69 | Q12: 133 | R12: 95.095
A13: 018568 | B13: 3528700185683 | C13: PN BFG 215/60R17 96H G-FORCE WINTER2 | D13: N2156017HGFORCEWIN96 | E13: TOURISME HIVER | F13: BF G-FORCE WINTER2 | G13: 215 | H13: 60 | I13: R | J13: 17 | K13: 96 | L13: H | M13: C | N13: B | O13: A | P13: 69 | Q13: 139.7 | R13: 99.8855
A14: 037377 | B14: 3528700373776 | C14: PN BFG 215/60R16 95H G-FORCE WINTER2 | D14: N2156016HGFORCEWIN95 | E14: TOURISME HIVER | F14: BF G-FORCE WINTER2 | G14: 215 | H14: 60 | I14: R | J14: 16 | K14: 95 | L14: H | M14: C | N14: B | O14: A | P14: 69 | Q14: 125.3 | R14: 89.5895
A15: 045219 | B15: 3528700452198 | C15: PN BFG 215/70R16 100H G-FORCE WINTER2 | D15: N2157016HGFORCEWI100 | E15: 4x4 HIVER | F15: BF G-FORCE WINTER2 | G15: 215 | H15: 70 | I15: R | J15: 16 | K15: 100 | L15: H | M15: C | N15: B | O15: A | P15: 69 | Q15: 133.4 | R15: 95.381
A16: 046206 | B16: 3528700462067 | C16: PN BFG 225/55R18 98H G-FORCE WINTER2 | D16: N2255518HGFORCEWIN98 | E16: 4x4 HIVER | F16: BF G-FORCE WINTER2 | G16: 225 | H16: 55 | I16: R | J16: 18 | K16: 98 | L16: H | M16: C | N16: B | O16: A | P16: 69 | Q16: 153.1 | R16: 109.4665
A17: 056766 | B17: 3528700567663 | C17: PN BFG 225/40R18 XL 92V G-FORCE WINT 2 | D17: N2254018VGFOW292 | E17: TOURISME HIVER | F17: BF G-FORCE WINTER2 | G17: 225 | H17: 40 | I17: R | J17: 18 | K17: 92 | L17: V | M17: D | N17: B | O17: A | P17: 69 | Q17: 134.9 | R17: 96.4535
A18: 071339 | B18: 3528700713398 | C18: PN BFG 225/55R17 97H G-FORCE WINTER2 | D18: N2255517HGFORCEWIN97 | E18: TOURISME HIVER | F18: BF G-FORCE WINTER2 | G18: 225 | H18: 55 | I18: R | J18: 17 | K18: 97 | L18: H | M18: C | N18: B | O18: A | P18: 69 | Q18: 139.7 | R18: 99.8855
A19: 084053 | B19: 3528700840537 | C19: PN BFG 215/70R16 100T G-FORCE WINTER2 | D19: N2157016TGFORCEWI100 | E19: 4x4 HIVER | F19: BF G-FORCE WINTER2 | G19: 215 | H19: 70 | I19: R | J19: 16 | K19: 100 | L19: T | M19: C | N19: B | O19: A | P19: 69 | Q19: 133.4 | R19: 95.381
A20: 089223 | B20: 3528700892239 | C20: PN BFG 275/45R20 XL 110V G-FORCE WINTER2 | D20: N2754520VGFORCEWI110 | E20: 4x4 HIVER | F20: BF G-FORCE WINTER2 | G20: 275 | H20: 45 | I20: R | J20: 20 | K20: 110 | L20: V | P20: 0 | Q20: 232.8 | R20: 166.452
A21: 097258 | B21: 3528700972580 | C21: PN BFG 225/55R18 XL 102V G-FORCE WINTER2 | D21: N2255518VGFORCEWI102 | E21: 4x4 HIVER | F21: BF G-FORCE WINTER2 | G21: 225 | H21: 55 | I21: R | J21: 18 | K21: 102 | L21: V | M21: C | N21: B | O21: A | P21: 69 | Q21: 169.9 | R21: 121.4785
A22: 099401 | B22: 3528700994018 | C22: PN BFG 245/45R18 XL 100 V GFW2 | D22: N2454518VGFW2100XL | E22: TOURISME HIVER | F22: BF G-FORCE WINTER2 | G22: 245 | H22: 45 | I22: R | J22: 18 | K22: 100 | L22: V | M22: D | N22: B | O22: A | P22: 69 | Q22: 164.6 | R22: 117.689
A23: 102478 | B23: 3528701024783 | C23: PN BFG 185/70R14 88T G-FORCE WINTER 2 | D23: N1857014TGFORW288 | E23: TOURISME HIVER | F23: BF G-FORCE WINTER2 | G23: 185 | H23: 70 | I23: R | J23: 14 | K23: 88 | L23: T | M23: D | N23: C | O23: B | P23: 69 | Q23: 96.5 | R23: 68.9975
A24: 102798 | B24: 3528701027982 | C24: PN BFG 215/55R16 XL 97 H G-FORCE WINT | D24: N2155516HGFORC97XLBF | E24: TOURISME HIVER | F24: BF G-FORCE WINTER2 | G24: 215 | H24: 55 | I24: R | J24: 16 | K24: 97 | L24: H | M24: C | N24: B | O24: A | P24: 69 | Q24: 132.5 | R24: 94.7375
A25: 103149 | B25: 3528701031491 | C25: PN BFG 185/65R15 XL 92 T G-FORCE WINT | D25: N1856515TGFORC92XL | E25: TOURISME HIVER | F25: BF G-FORCE WINTER2 | G25: 185 | H25: 65 | I25: R | J25: 15 | K25: 92 | L25: T | M25: C | N25: B | O25: B | P25: 69 | Q25: 87.8 | R25: 62.777
A26: 120722 | B26: 3528701207223 | C26: PN BFG 215/50R17 XL 95 H GFW2 | D26: N2155017HGFW295XL | E26: TOURISME HIVER | F26: BF G-FORCE WINTER2 | G26: 215 | H26: 50 | I26: R | J26: 17 | K26: 95 | L26: H | M26: C | N26: B | O26: A | P26: 69 | Q26: 141.1 | R26: 100.8865
A27: 120948 | B27: 3528701209487 | C27: PN BFG 225/50R18 XL 99H G-FORCE WINTER2 | D27: N2255018HGFORCEWIN99 | E27: TOURISME HIVER | F27: BF G-FORCE WINTER2 | G27: 225 | H27: 50 | I27: R | J27: 18 | K27: 99 | L27: H | M27: C | N27: B | O27: A | P27: 69 | Q27: 179.5 | R27: 128.3425
A28: 124231 | B28: 3528701242316 | C28: PN BFG 205/60R15 XL 95H G-FORCE WINTER2 | D28: N2056015HGFORCEWIN95 | E28: TOURISME HIVER | F28: BF G-FORCE WINTER2 | G28: 205 | H28: 60 | I28: R | J28: 15 | K28: 95 | L28: H | M28: C | N28: B | O28: A | P28: 69 | Q28: 109.9 | R28: 78.5785
A29: 135029 | B29: 3528701350295 | C29: PN BFG 195/65R15 91 T GFW2 | D29: N1956515TGFW291 | E29: TOURISME HIVER | F29: BF G-FORCE WINTER2 | G29: 195 | H29: 65 | I29: R | J29: 15 | K29: 91 | L29: T | M29: D | N29: B | O29: A | P29: 69 | Q29: 82.6 | R29: 59.059
A30: 140326 | B30: 3528701403267 | C30: PN BFG 195/55R15 85 H G-FORCE WINT 2 | D30: N1955515HGFORC85BF | E30: TOURISME HIVER | F30: BF G-FORCE WINTER2 | G30: 195 | H30: 55 | I30: R | J30: 15 | K30: 85 | L30: H | M30: D | N30: B | O30: A | P30: 69 | Q30: 108.5 | R30: 77.5775
A31: 140968 | B31: 3528701409689 | C31: PN BFG 215/60R17 XL 100V G-FORCE WINTER2 | D31: N2156017VGFORCEWI100 | E31: 4x4 HIVER | F31: BF G-FORCE WINTER2 | G31: 215 | H31: 60 | I31: R | J31: 17 | K31: 100 | L31: V | M31: C | N31: B | O31: A | P31: 69 | Q31: 147.8 | R31: 105.677
A32: 152633 | B32: 3528701526331 | C32: PN BFG 205/55R16 91 T GFW2 | D32: N2055516TGFW291 | E32: TOURISME HIVER | F32: BF G-FORCE WINTER2 | G32: 205 | H32: 55 | I32: R | J32: 16 | K32: 91 | L32: T | M32: D | N32: B | O32: A | P32: 69 | Q32: 101.3 | R32: 72.4295
A33: 165470 | B33: 3528701654706 | C33: PN BFG 205/55R16 XL 94 V GFW2 | D33: N2055516VGFW294XL | E33: TOURISME HIVER | F33: BF G-FORCE WINTER2 | G33: 205 | H33: 55 | I33: R | J33: 16 | K33: 94 | L33: V | M33: D | N33: B | O33: A | P33: 68 | Q33: 113.3 | R33: 81.0095
A34: 185034 | B34: 3528701850344 | C34: PN BFG 225/50R18 XL 99V G-FORCE WINTER2 | D34: N2255018VGFORCEWIN99 | E34: TOURISME HIVER | F34: BF G-FORCE WINTER2 | G34: 225 | H34: 50 | I34: R | J34: 18 | K34: 99 | L34: V | M34: C | N34: B | O34: A | P34: 69 | Q34: 190.6 | R34: 136.279
A35: 189719 | B35: 3528701897196 | C35: PN BFG 225/60R18 100H G-FORCE WINTER2 | D35: N2256018HGFORCEWI100 | E35: 4x4 HIVER | F35: BF G-FORCE WINTER2 | G35: 225 | H35: 60 | I35: R | J35: 18 | K35: 100 | L35: H | M35: C | N35: B | P35: 69 | Q35: 157.4 | R35: 112.541
A36: 207905 | B36: 3528702079058 | C36: PN BFG 235/60R17 102H G-FORCE WINTER2 | D36: 2356017HGFORCEWI2102 | E36: 4x4 HIVER | F36: BF G-FORCE WINTER2 | G36: 235 | H36: 60 | I36: R | J36: 17 | K36: 102 | L36: H | M36: C | N36: B | O36: A | P36: 69 | Q36: 163.7 | R36: 117.0455
A37: 216292 | B37: 3528702162927 | C37: PN BFG 285/45R20 XL 112V G-FORCE WINTER2 | D37: N2854520VGFORCEWI112 | E37: 4x4 HIVER | F37: BF G-FORCE WINTER2 | G37: 285 | H37: 45 | I37: R | J37: 20 | K37: 112 | L37: V | P37: 0 | Q37: 249.1 | R37: 178.1065
A38: 218089 | B38: 3528702180891 | C38: PN BFG 225/55R16 XL 99 H GFW2 | D38: N2255516HGFW299XL | E38: TOURISME HIVER | F38: BF G-FORCE WINTER2 | G38: 225 | H38: 55 | I38: R | J38: 16 | K38: 99 | L38: H | M38: C | N38: B | O38: A | P38: 69 | Q38: 141.6 | R38: 101.244
A39: 225331 | B39: 3528702253311 | C39: PN BFG 235/65R17 XL 108H G-FORCE WINTER2 | D39: N2356517HGFORCEWI108 | E39: 4x4 HIVER | F39: BF G-FORCE WINTER2 | G39: 235 | H39: 65 | I39: R | J39: 17 | K39: 108 | L39: H | P39: 0 | Q39: 142.6 | R39: 101.959
A40: 234076 | B40: 3528702340769 | C40: PN BFG 245/40R19 XL 98V G-FORCE WINTER2 | D40: N2454019VGFORCEWIN98 | E40: TOURISME HIVER | F40: BF G-FORCE WINTER2 | G40: 245 | H40: 40 | I40: R | J40: 19 | K40: 98 | L40: V | M40: C | N40: B | O40: B | P40: 70 | Q40: 209.8 | R40: 150.007
A41: 236636 | B41: 3528702366363 | C41: PN BFG 225/50R17 XL 98 H GFW2 | D41: N2255017HGFW298XL | E41: TOURISME HIVER | F41: BF G-FORCE WINTER2 | G41: 225 | H41: 50 | I41: R | J41: 17 | K41: 98 | L41: H | M41: C | N41: B | O41: A | P41: 69 | Q41: 137.8 | R41: 98.527
A42: 238631 | B42: 3528702386316 | C42: PN BFG 175/65R14 82T G-FORCE WINTER2 | D42: N1756514TGFORCEWIN82 | E42: TOURISME HIVER | F42: BF G-FORCE WINTER2 | G42: 175 | H42: 65 | I42: R | J42: 14 | K42: 82 | L42: T | M42: D | N42: C | O42: B | P42: 69 | Q42: 76.8 | R42: 54.912
A43: 240138 | B43: 3528702401385 | C43: PN BFG 225/45R17 XL 94 V G-FORCE WINT | D43: N2254517VGFORC94XLB2 | E43: TOURISME HIVER | F43: BF G-FORCE WINTER2 | G43: 225 | H43: 45 | I43: R | J43: 17 | K43: 94 | L43: V | M43: C | N43: B | O43: A | P43: 69 | Q43: 124.8 | R43: 89.232
A44: 247196 | B44: 3528702471968 | C44: PN BFG 225/65R17 102H G-FORCE WINTER2 | D44: N2256517HGFORCEWI102 | E44: 4x4 HIVER | F44: BF G-FORCE WINTER2 | G44: 225 | H44: 65 | I44: R | J44: 17 | K44: 102 | L44: H | M44: C | N44: B | O44: A | P44: 69 | Q44: 154.1 | R44: 110.1815
A45: 249682 | B45: 3528702496824 | C45: PN BFG 235/55R17 XL 103V G-FORCE WINTER2 | D45: N2355517VGFORCEWI103 | E45: TOURISME HIVER | F45: BF G-FORCE WINTER2 | G45: 235 | H45: 55 | I45: R | J45: 17 | K45: 103 | L45: V | M45: C | N45: B | O45: A | P45: 69 | Q45: 167 | R45: 119.405
A46: 252032 | B46: 3528702520321 | C46: PN BFG 215/55R18 XL 99V G-FORCE WI 2 SUV | D46: N2155518VGFOW2S99 | E46: 4x4 HIVER | F46: BF G-FORCE WINTER2 | G46: 215 | H46: 55 | I46: R | J46: 18 | K46: 99 | L46: V | M46: C | N46: B | O46: A | P46: 69 | Q46: 168 | R46: 120.12
A47: 252378 | B47: 3528702523780 | C47: PN BFG 225/60R17 XL 103H G-FORCE WINTER2 | D47: N2256017HGFORCEWI103 | E47: 4x4 HIVER | F47: BF G-FORCE WINTER2 | G47: 225 | H47: 60 | I47: R | J47: 17 | K47: 103 | L47: H | M47: C | N47: B | O47: A | P47: 69 | Q47: 160.3 | R47: 114.6145
A48: 256318 | B48: 3528702563182 | C48: PN BFG 165/70R14 81T G-FORCE WINT2 | D48: N1657014TGFORW281 | E48: TOURISME HIVER | F48: BF G-FORCE WINTER2 | G48: 165 | H48: 70 | I48: R | J48: 14 | K48: 81 | L48: T | M48: D | N48: C | O48: B | P48: 69 | Q48: 78.2 | R48: 55.913
A49: 256475 | B49: 3528702564752 | C49: PN BFG 205/40R17 XL 84 V GFW2 | D49: N2054017VGFW284XL | E49: TOURISME HIVER | F49: BF G-FORCE WINTER2 | G49: 205 | H49: 40 | I49: R | J49: 17 | K49: 84 | L49: V | M49: D | N49: B | O49: A | P49: 69 | Q49: 127.7 | R49: 91.3055
A50: 256522 | B50: 3528702565223 | C50: PN BFG 215/60R16 XL 99 H GFW2 | D50: N2156016HGFW299XL | E50: TOURISME HIVER | F50: BF G-FORCE WINTER2 | G50: 215 | H50: 60 | I50: R | J50: 16 | K50: 99 | L50: H | M50: B | N50: B | O50: A | P50: 69 | Q50: 129.6 | R50: 92.664
A51: 257176 | B51: 3528702571767 | C51: PN BFG 215/65R16 XL 102H G-FORCE WINTER2 | D51: N2156516HGFORCEWI102 | E51: TOURISME HIVER | F51: BF G-FORCE WINTER2 | G51: 215 | H51: 65 | I51: R | J51: 16 | K51: 102 | L51: H | M51: C | N51: B | O51: B | P51: 71 | Q51: 121.4 | R51: 86.801
A52: 264030 | B52: 3528702640302 | C52: PN BFG 215/50R18 92V G-FORCE WINTER2 | D52: N2155018VGFORCEW92 | E52: 4x4 HIVER | F52: BF G-FORCE WINTER2 | G52: 215 | H52: 50 | I52: R | J52: 18 | K52: 92 | L52: V | M52: D | N52: B | O52: A | P52: 69 | Q52: 175.2 | R52: 125.268
A53: 267104 | B53: 3528702671047 | C53: PN BFG 195/60R15 88 T G-FORCE WINT 2 | D53: N1956015TGFORC88BF | E53: TOURISME HIVER | F53: BF G-FORCE WINTER2 | G53: 195 | H53: 60 | I53: R | J53: 15 | K53: 88 | L53: T | M53: D | N53: B | O53: A | P53: 69 | Q53: 91.7 | R53: 65.5655
A54: 274888 | B54: 3528702748886 | C54: PN BFG 235/60R18 XL 107H G-FORCE WINTER2 | D54: N2356018HGFORCEWI107 | E54: 4x4 HIVER | F54: BF G-FORCE WINTER2 | G54: 235 | H54: 60 | I54: R | J54: 18 | K54: 107 | L54: H | P54: 0 | Q54: 148.3 | R54: 106.0345
A55: 279255 | B55: 3528702792551 | C55: PN BFG 165/65R15 81T G-FORCE WINT2 | D55: N1656515TGFORW281 | E55: TOURISME HIVER | F55: BF G-FORCE WINTER2 | G55: 165 | H55: 65 | I55: R | J55: 15 | K55: 81 | L55: T | M55: D | N55: B | O55: B | P55: 69 | Q55: 83.5 | R55: 59.7025
A56: 290877 | B56: 3528702908778 | C56: PN BFG 225/55R18 98V G-FORCE WINTER2 | D56: N2255518VGFORCEWIN98 | E56: 4x4 HIVER | F56: BF G-FORCE WINTER2 | G56: 225 | H56: 55 | I56: R | J56: 18 | K56: 98 | L56: V | M56: C | N56: B | O56: A | P56: 69 | Q56: 160.3 | R56: 114.6145
A57: 297389 | B57: 3528702973899 | C57: PN BFG 245/45R19 XL 102V G-FORCE WINTER2 | D57: N2454519VGFORCEWI102 | E57: TOURISME HIVER | F57: BF G-FORCE WINTER2 | G57: 245 | H57: 45 | I57: R | J57: 19 | K57: 102 | L57: V | M57: B | N57: B | O57: B | P57: 70 | Q57: 210.7 | R57: 150.6505
A58: 298715 | B58: 3528702987155 | C58: PN BFG 195/55R20 XL 95H G-FORCE WINTER2 | D58: N1955520HGFORCEWIN95 | E58: TOURISME HIVER | F58: BF G-FORCE WINTER2 | G58: 195 | H58: 55 | I58: R | J58: 20 | K58: 95 | L58: H | M58: C | N58: B | O58: A | P58: 69 | Q58: 141.1 | R58: 100.8865
A59: 301067 | B59: 3528703010678 | C59: PN BFG 235/40R18 XL 95V G-FORCE WINT 2 | D59: N2354018VGFOW295 | E59: TOURISME HIVER | F59: BF G-FORCE WINTER2 | G59: 235 | H59: 40 | I59: R | J59: 18 | K59: 95 | L59: V | M59: D | N59: B | O59: A | P59: 69 | Q59: 161.3 | R59: 115.3295
A60: 310225 | B60: 3528703102250 | C60: PN BFG 205/55R16 91 H GFW2 | D60: N2055516HGFW291 | E60: TOURISME HIVER | F60: BF G-FORCE WINTER2 | G60: 205 | H60: 55 | I60: R | J60: 16 | K60: 91 | L60: H | M60: D | N60: B | O60: A | P60: 69 | Q60: 101.3 | R60: 72.4295
A61: 326688 | B61: 3528703266884 | C61: PN BFG 225/45R19 XL 96V G-FORCE WINTER2 | D61: N2254519VGFORCEWIN96 | E61: TOURISME HIVER | F61: BF G-FORCE WINTER2 | G61: 225 | H61: 45 | I61: R | J61: 19 | K61: 96 | L61: V | M61: C | N61: B | O61: A | P61: 69 | Q61: 202.1 | R61: 144.5015
A62: 329260 | B62: 3528703292609 | C62: PN BFG 235/55R17 99H G-FORCE WINTER2 | D62: N2355517HGFORCEW99 | E62: TOURISME HIVER | F62: BF G-FORCE WINTER2 | G62: 235 | H62: 55 | I62: R | J62: 17 | K62: 99 | L62: H | M62: C | N62: B | O62: A | P62: 69 | Q62: 159.4 | R62: 113.971
A63: 340634 | B63: 3528703406341 | C63: PN BFG 195/65R15 91 H GFW2 | D63: N1956515HGFW291 | E63: TOURISME HIVER | F63: BF G-FORCE WINTER2 | G63: 195 | H63: 65 | I63: R | J63: 15 | K63: 91 | L63: H | M63: D | N63: B | O63: A | P63: 69 | Q63: 82.6 | R63: 59.059
A64: 352407 | B64: 3528703524076 | C64: PN BFG 215/45R17 XL 91H G-FORCE WINT 2 | D64: N2154517HGFOW291 | E64: TOURISME HIVER | F64: BF G-FORCE WINTER2 | G64: 215 | H64: 45 | I64: R | J64: 17 | K64: 91 | L64: H | M64: D | N64: B | O64: A | P64: 69 | Q64: 132 | R64: 94.38
A65: 353710 | B65: 3528703537106 | C65: PN BFG 225/60R16 XL 102 H GFW2 | D65: N2256016HGFW2102XL | E65: TOURISME HIVER | F65: BF G-FORCE WINTER2 | G65: 225 | H65: 60 | I65: R | J65: 16 | K65: 102 | L65: H | M65: B | N65: B | O65: A | P65: 69 | Q65: 151.7 | R65: 108.4655
A66: 365457 | B66: 3528703654575 | C66: PN BFG 205/50R17 XL 93V G-FORCE WINT 2 | D66: N2055017VGFOW293 | E66: TOURISME HIVER | F66: BF G-FORCE WINTER2 | G66: 205 | H66: 50 | I66: R | J66: 17 | K66: 93 | L66: V | M66: D | N66: B | O66: A | P66: 69 | Q66: 138.7 | R66: 99.1705
A67: 375744 | B67: 3528703757443 | C67: PN BFG 215/55R17 94H G-FORCE WINTER2 | D67: N2155517HGFORCEWIN94 | E67: TOURISME HIVER | F67: BF G-FORCE WINTER2 | G67: 215 | H67: 55 | I67: R | J67: 17 | K67: 94 | L67: H | M67: C | N67: B | O67: A | P67: 69 | Q67: 138.7 | R67: 99.1705
A68: 378900 | B68: 3528703789000 | C68: PN BFG 185/60R15 84 T G-FORCE WINT 2 | D68: N1856015TGFORC84BF | E68: TOURISME HIVER | F68: BF G-FORCE WINTER2 | G68: 185 | H68: 60 | I68: R | J68: 15 | K68: 84 | L68: T | M68: D | N68: B | O68: A | P68: 68 | Q68: 82.6 | R68: 59.059
A69: 382235 | B69: 3528703822356 | C69: PN BFG 175/65R15 84T G-FORCE WINTER2 | D69: N1756515TGFW284 | E69: TOURISME HIVER | F69: BF G-FORCE WINTER2 | G69: 175 | H69: 65 | I69: R | J69: 15 | K69: 84 | L69: T | M69: D | N69: B | O69: A | P69: 68 | Q69: 85.4 | R69: 61.061
A70: 393227 | B70: 3528703932277 | C70: PN BFG 235/55R17 99H G-FORCE WINTER2 | D70: N2355517HGFORCEWIN99 | E70: 4x4 HIVER | F70: BF G-FORCE WINTER2 | G70: 235 | H70: 55 | I70: R | J70: 17 | K70: 99 | L70: H | M70: C | N70: B | O70: A | P70: 69 | Q70: 159.4 | R70: 113.971
A71: 394989 | B71: 3528703949893 | C71: PN BFG 215/55R18 95H G-FORCE WINTER2 | D71: N2155518HGFORCEW95 | E71: 4x4 HIVER | F71: BF G-FORCE WINTER2 | G71: 215 | H71: 55 | I71: R | J71: 18 | K71: 95 | L71: H | M71: C | N71: B | O71: A | P71: 69 | Q71: 151.7 | R71: 108.4655
A72: 395345 | B72: 3528703953456 | C72: PN BFG 185/65R14 86T G-FORCE WINTER2 | D72: N1856514TGFORCEWIN86 | E72: TOURISME HIVER | F72: BF G-FORCE WINTER2 | G72: 185 | H72: 65 | I72: R | J72: 14 | K72: 86 | L72: T | M72: D | N72: C | O72: B | P72: 69 | Q72: 86.9 | R72: 62.1335
A73: 399330 | B73: 3528703993308 | C73: PN BFG 165/65R14 79T G-FORCE WINT2 | D73: N1656514TGFORW279 | E73: TOURISME HIVER | F73: BF G-FORCE WINTER2 | G73: 165 | H73: 65 | I73: R | J73: 14 | K73: 79 | L73: T | M73: D | N73: C | O73: B | P73: 69 | Q73: 79.2 | R73: 56.628
A74: 411588 | B74: 3528704115884 | C74: PN BFG 225/55R18 XL 102H G-FORCE WINTER2 | D74: N2255518HGFORCEWI102 | E74: 4x4 HIVER | F74: BF G-FORCE WINTER2 | G74: 225 | H74: 55 | I74: R | J74: 18 | K74: 102 | L74: H | M74: C | N74: B | O74: A | P74: 69 | Q74: 162.2 | R74: =Q74*(1-$D$3) -> 115.973
A75: 418434 | B75: 3528704184347 | C75: PN BFG 195/55R16 87H G-FORCE WINTER2 | D75: N1955516HGFORCEWIN87 | E75: TOURISME HIVER | F75: BF G-FORCE WINTER2 | G75: 195 | H75: 55 | I75: R | J75: 16 | K75: 87 | L75: H | M75: D | N75: B | O75: A | P75: 69 | Q75: 112.3 | R75: 80.2945
A76: 436014 | B76: 3528704360147 | C76: PN BFG 225/55R17 XL 101V G-FORCE WINT 2 | D76: N2255517VGFOW2101 | E76: TOURISME HIVER | F76: BF G-FORCE WINTER2 | G76: 225 | H76: 55 | I76: R | J76: 17 | K76: 101 | L76: V | M76: C | N76: B | O76: A | P76: 69 | Q76: 148.8 | R76: 106.392
A77: 439872 | B77: 3528704398720 | C77: PN BFG 205/55R17 XL 95H G-FORCE WINTER2 | D77: N2055517HGFORCEWIN95 | E77: TOURISME HIVER | F77: BF G-FORCE WINTER2 | G77: 205 | H77: 55 | I77: R | J77: 17 | K77: 95 | L77: H | M77: C | N77: B | O77: A | P77: 69 | Q77: 148.8 | R77: 106.392
A78: 442126 | B78: 3528704421268 | C78: PN BFG 235/55R18 XL 104H G-FORCE WINTER2 | D78: N2355518HGFORCEWI104 | E78: 4x4 HIVER | F78: BF G-FORCE WINTER2 | G78: 235 | H78: 55 | I78: R | J78: 18 | K78: 104 | L78: H | M78: C | N78: B | O78: B | P78: 71 | Q78: 177.1 | R78: 126.6265
A79: 451754 | B79: 3528704517541 | C79: PN BFG 215/65R17 99H G-FORCE WINTER2 | D79: N2156517HGFORCEW99 | E79: TOURISME HIVER | F79: BF G-FORCE WINTER2 | G79: 215 | H79: 65 | I79: R | J79: 17 | K79: 99 | L79: H | M79: C | N79: B | O79: A | P79: 69 | Q79: 151.7 | R79: 108.4655
A80: 453254 | B80: 3528704532544 | C80: PN BFG 185/65R15 88T G-FORCE WINTER2 DT1 | D80: N1856515TGFORCEWDT88 | E80: TOURISME HIVER | F80: BF G-FORCE WINTER2 | G80: 185 | H80: 65 | I80: R | J80: 15 | K80: 88 | L80: T | M80: D | N80: B | O80: B | P80: 69 | Q80: 80.6 | R80: 57.629
A81: 460598 | B81: 3528704605989 | C81: PN BFG 255/55R18 XL 109V G-FORCE WINTER2 | D81: N2555518VGFORCEWI109 | E81: 4x4 HIVER | F81: BF G-FORCE WINTER2 | G81: 255 | H81: 55 | I81: R | J81: 18 | K81: 109 | L81: V | P81: 0 | Q81: 157.4 | R81: 112.541
A82: 469021 | B82: 3528704690213 | C82: PN BFG 225/45R17 XL 94 H G-FORCE WINT | D82: N2254517HGFORC94XLBF | E82: TOURISME HIVER | F82: BF G-FORCE WINTER2 | G82: 225 | H82: 45 | I82: R | J82: 17 | K82: 94 | L82: H | M82: C | N82: B | O82: A | P82: 69 | Q82: 123.4 | R82: 88.231
A83: 473259 | B83: 3528704732593 | C83: PN BFG 235/55R17 XL 103V G-FORCE WINTER2 | D83: N2355517VGFORCEW103 | E83: 4x4 HIVER | F83: BF G-FORCE WINTER2 | G83: 235 | H83: 55 | I83: R | J83: 17 | K83: 103 | L83: V | M83: C | N83: B | O83: B | P83: 71 | Q83: 164.2 | R83: 117.403
A84: 481622 | B84: 3528704816224 | C84: PN BFG 195/45R16 XL 84H G-FORCE WINT 2 | D84: N1954516HGFOW284 | E84: TOURISME HIVER | F84: BF G-FORCE WINTER2 | G84: 195 | H84: 45 | I84: R | J84: 16 | K84: 84 | L84: H | M84: D | N84: B | O84: A | P84: 69 | Q84: 112.8 | R84: 80.652
A85: 482200 | B85: 3528704822003 | C85: PN BFG 225/50R17 94H G-FORCE WINTER2 | D85: N2255017HGFORCEWIN94 | E85: TOURISME HIVER | F85: BF G-FORCE WINTER2 | G85: 225 | H85: 50 | I85: R | J85: 17 | K85: 94 | L85: H | M85: C | N85: B | P85: 69 | Q85: 132.5 | R85: 94.7375
A86: 482618 | B86: 3528704826186 | C86: PN BFG 195/60R16 89 H GFW2 | D86: N1956016HGFW289 | E86: TOURISME HIVER | F86: BF G-FORCE WINTER2 | G86: 195 | H86: 60 | I86: R | J86: 16 | K86: 89 | L86: H | M86: D | N86: B | O86: A | P86: 69 | Q86: 116.2 | R86: 83.083
A87: 485207 | B87: 3528704852079 | C87: PN BFG 235/45R17 XL 97V G-FORCE WINTER2 | D87: N2354517VGFORCEWIN97 | E87: TOURISME HIVER | F87: BF G-FORCE WINTER2 | G87: 235 | H87: 45 | I87: R | J87: 17 | K87: 97 | L87: V | P87: 0 | Q87: 145 | R87: 103.675
A88: 501501 | B88: 3528705015015 | C88: PN BFG 235/50R19 XL 103V G-FORCE WINTER2 | D88: N2355019VGFORCEWI103 | E88: 4x4 HIVER | F88: BF G-FORCE WINTER2 | G88: 235 | H88: 50 | I88: R | J88: 19 | K88: 103 | L88: V | M88: B | N88: B | O88: B | P88: 71 | Q88: 190.1 | R88: 135.9215
A89: 507146 | B89: 3528705071462 | C89: PN BFG 175/70R14 84T G-FORCE WINTER2 | D89: N1757014TGFORCEWIN84 | E89: TOURISME HIVER | F89: BF G-FORCE WINTER2 | G89: 175 | H89: 70 | I89: R | J89: 14 | K89: 84 | L89: T | M89: D | N89: C | O89: B | P89: 69 | Q89: 87.4 | R89: 62.491
A90: 517136 | B90: 3528705171360 | C90: PN BFG 235/55R18 100H G-FORCE WINTER2 | D90: N2355518HGFORCEWI100 | E90: TOURISME HIVER | F90: BF G-FORCE WINTER2 | G90: 235 | H90: 55 | I90: R | J90: 18 | K90: 100 | L90: H | M90: C | N90: B | O90: A | P90: 69 | Q90: 170.4 | R90: 121.836
A91: 518152 | B91: 3528705181529 | C91: PN BFG 205/50R17 XL 93H G-FORCE WINT 2 | D91: N2055017HGFOW293 | E91: TOURISME HIVER | F91: BF G-FORCE WINTER2 | G91: 205 | H91: 50 | I91: R | J91: 17 | K91: 93 | L91: H | M91: D | N91: B | O91: A | P91: 69 | Q91: 136.3 | R91: 97.4545
A92: 522170 | B92: 3528705221706 | C92: PN BFG 205/60R16 XL 96 H G-FORCE WINT | D92: N2056016HGFORC96XLBF | E92: TOURISME HIVER | F92: BF G-FORCE WINTER2 | G92: 205 | H92: 60 | I92: R | J92: 16 | K92: 96 | L92: H | M92: C | N92: B | O92: A | P92: 69 | Q92: 112.3 | R92: 80.2945
A93: 526477 | B93: 3528705264772 | C93: PN BFG 215/65R16 XL 102 H SUV GF WIN2 | D93: N2156516HSUVGF102XL | E93: 4x4 HIVER | F93: BF G-FORCE WINTER2 | G93: 215 | H93: 65 | I93: R | J93: 16 | K93: 102 | L93: H | M93: C | N93: B | O93: A | P93: 69 | Q93: 121.4 | R93: 86.801
A94: 532318 | B94: 3528705323189 | C94: PN BFG 155/65R14 75T G-FORCE WINTER2 | D94: N1556514TGFORCEWIN75 | E94: TOURISME HIVER | F94: BF G-FORCE WINTER2 | G94: 155 | H94: 65 | I94: R | J94: 14 | K94: 75 | L94: T | M94: D | N94: C | O94: B | P94: 69 | Q94: 74.9 | R94: 53.5535
A95: 534307 | B95: 3528705343071 | C95: PN BFG 195/55R16 87T G-FORCE WINTER2 | D95: N1955516TGFORCEWIN87 | E95: TOURISME HIVER | F95: BF G-FORCE WINTER2 | G95: 195 | H95: 55 | I95: R | J95: 16 | K95: 87 | L95: T | M95: D | N95: B | O95: A | P95: 69 | Q95: 112.3 | R95: 80.2945
A96: 547860 | B96: 3528705478605 | C96: PN BFG 215/65R16 98H G-FORCE WINTER2 | D96: N2156516HGFORCEWIN98 | E96: TOURISME HIVER | F96: BF G-FORCE WINTER2 | G96: 215 | H96: 65 | I96: R | J96: 16 | K96: 98 | L96: H | M96: C | N96: B | O96: A | P96: 69 | Q96: 116.6 | R96: 83.369
A97: 565561 | B97: 3528705655617 | C97: PN BFG 205/45R16 XL 87H G-FORCE WINT 2 | D97: N2054516HGFOW287 | E97: TOURISME HIVER | F97: BF G-FORCE WINTER2 | G97: 205 | H97: 45 | I97: R | J97: 16 | K97: 87 | L97: H | M97: D | N97: B | O97: A | P97: 69 | Q97: 130.6 | R97: 93.379
A98: 572487 | B98: 3528705724870 | C98: PN BFG 215/65R17 99T G-FORCE WINTER2 | D98: N2156517TGFORCEWIN99 | E98: TOURISME HIVER | F98: BF G-FORCE WINTER2 | G98: 215 | H98: 65 | I98: R | J98: 17 | K98: 99 | L98: T | M98: C | N98: B | O98: A | P98: 69 | Q98: 152.2 | R98: 108.823
A99: 576696 | B99: 3528705766962 | C99: PN BFG 195/55R16 XL 91 H GFW2 | D99: N1955516HGFW291XL | E99: TOURISME HIVER | F99: BF G-FORCE WINTER2 | G99: 195 | H99: 55 | I99: R | J99: 16 | K99: 91 | L99: H | M99: D | N99: B | O99: A | P99: 69 | Q99: 118.1 | R99: 84.4415
A100: 577227 | B100: 3528705772277 | C100: PN BFG 225/50R17 XL 98 V GFW2 | D100: N2255017VGFW298XL | E100: TOURISME HIVER | F100: BF G-FORCE WINTER2 | G100: 225 | H100: 50 | I100: R | J100: 17 | K100: 98 | L100: V | M100: C | N100: B | O100: A | P100: 69 | Q100: 141.6 | R100: 101.244
A101: 577483 | B101: 3528705774837 | C101: PN BFG 215/55R16 93 H G-FORCE WINT 2 | D101: N2155516HGFORC93BF | E101: TOURISME HIVER | F101: BF G-FORCE WINTER2 | G101: 215 | H101: 55 | I101: R | J101: 16 | K101: 93 | L101: H | M101: C | N101: B | O101: A | P101: 69 | Q101: 126.7 | R101: 90.5905
A102: 593297 | B102: 3528705932978 | C102: PN BFG 235/40R19 XL 96V G-FORCE WINTER2 | D102: N2354019VGFORCEWIN96 | E102: TOURISME HIVER | F102: BF G-FORCE WINTER2 | G102: 235 | H102: 40 | I102: R | J102: 19 | K102: 96 | L102: V | M102: C | N102: B | O102: B | P102: 70 | Q102: 199.2 | R102: 142.428
A103: 605967 | B103: 3528706059674 | C103: PN BFG 215/55R17 XL 98V G-FORCE WINT 2 | D103: N2155517VGFOW298 | E103: TOURISME HIVER | F103: BF G-FORCE WINTER2 | G103: 215 | H103: 55 | I103: R | J103: 17 | K103: 98 | L103: V | M103: C | N103: B | O103: A | P103: 69 | Q103: 148.8 | R103: 106.392
A104: 606145 | B104: 3528706061455 | C104: PN BFG 225/40R19 XL 93V G-FORCE WINTER2 | D104: N2254019VGFORCEWIN93 | E104: TOURISME HIVER | F104: BF G-FORCE WINTER2 | G104: 225 | H104: 40 | I104: R | J104: 19 | K104: 93 | L104: V | M104: C | N104: B | O104: A | P104: 69 | Q104: 188.6 | R104: 134.849
A105: 608881 | B105: 3528706088810 | C105: PN BFG 235/45R18 XL 98V G-FORCE WINT 2 | D105: N2354518VGFOW298 | E105: TOURISME HIVER | F105: BF G-FORCE WINTER2 | G105: 235 | H105: 45 | I105: R | J105: 18 | K105: 98 | L105: V | M105: C | N105: B | O105: A | P105: 69 | Q105: 160.8 | R105: 114.972
A106: 612278 | B106: 3528706122781 | C106: PN BFG 205/65R15 94 T GFW2 | D106: N2056515TGFW294 | E106: TOURISME HIVER | F106: BF G-FORCE WINTER2 | G106: 205 | H106: 65 | I106: R | J106: 15 | K106: 94 | L106: T | M106: D | N106: B | O106: A | P106: 69 | Q106: 112.8 | R106: 80.652
A107: 613397 | B107: 3528706133978 | C107: PN BFG 225/60R17 99H G-FORCE WINTER2 | D107: N2256017HGFORCEWIN99 | E107: 4x4 HIVER | F107: BF G-FORCE WINTER2 | G107: 225 | H107: 60 | I107: R | J107: 17 | K107: 99 | L107: H | M107: C | N107: B | O107: A | P107: 69 | Q107: 156.5 | R107: 111.8975
A108: 646997 | B108: 3528706469978 | C108: PN BFG 255/45R20 101V G-FORCE WINTER2 | D108: N2554520VGFORCEWI101 | E108: 4x4 HIVER | F108: BF G-FORCE WINTER2 | G108: 255 | H108: 45 | I108: R | J108: 20 | K108: 101 | L108: V | M108: C | N108: B | O108: A | P108: 69 | Q108: 206.9 | R108: 147.9335
A109: 648562 | B109: 3528706485626 | C109: PN BFG 235/50R19 99V G-FORCE WINTER2 | D109: N2355019VGFORCEWIN99 | E109: 4x4 HIVER | F109: BF G-FORCE WINTER2 | G109: 235 | H109: 50 | I109: R | J109: 19 | K109: 99 | L109: V | M109: C | N109: B | O109: A | P109: 69 | Q109: 176.2 | R109: 125.983
A110: 661125 | B110: 3528706611254 | C110: PN BFG 235/55R17 XL 103H G-FORCE WINTER2 | D110: N2355517HGFORCEWI103 | E110: 4x4 HIVER | F110: BF G-FORCE WINTER2 | G110: 235 | H110: 55 | I110: R | J110: 17 | K110: 103 | L110: H | M110: C | N110: B | O110: B | P110: 71 | Q110: 163.7 | R110: 117.0455
A111: 663641 | B111: 3528706636417 | C111: PN BFG 225/55R16 95 H GFW2 | D111: N2255516HGFW295 | E111: TOURISME HIVER | F111: BF G-FORCE WINTER2 | G111: 225 | H111: 55 | I111: R | J111: 16 | K111: 95 | L111: H | M111: C | N111: B | O111: A | P111: 69 | Q111: 138.2 | R111: 98.813
A112: 666857 | B112: 3528706668579 | C112: PN BFG 215/65R17 99H G-FORCE WINTER2 | D112: N2156517HGFORCEWIN99 | E112: 4x4 HIVER | F112: BF G-FORCE WINTER2 | G112: 215 | H112: 65 | I112: R | J112: 17 | K112: 99 | L112: H | M112: C | N112: B | O112: A | P112: 69 | Q112: 151.7 | R112: 108.4655
A113: 675665 | B113: 3528706756658 | C113: PN BFG 265/50R20 XL 111V G-FORCE WINTER2 | D113: N2655020VGFORCEWI111 | E113: 4x4 HIVER | F113: BF G-FORCE WINTER2 | G113: 265 | H113: 50 | I113: R | J113: 20 | K113: 111 | L113: V | P113: 0 | Q113: 247.7 | R113: 177.1055
A114: 675936 | B114: 3528706759369 | C114: PN BFG 225/55R17 XL 101H G-FORCE WINT 2 | D114: N2255517HGFOW2101 | E114: TOURISME HIVER | F114: BF G-FORCE WINTER2 | G114: 225 | H114: 55 | I114: R | J114: 17 | K114: 101 | L114: H | M114: C | N114: B | O114: A | P114: 69 | Q114: 146.9 | R114: 105.0335
A115: 693704 | B115: 3528706937040 | C115: PN BFG 185/60R15 XL 88 T G-FORCE WINT | D115: N1856015TGFORC88XLBF | E115: TOURISME HIVER | F115: BF G-FORCE WINTER2 | G115: 185 | H115: 60 | I115: R | J115: 15 | K115: 88 | L115: T | M115: D | N115: B | O115: A | P115: 68 | Q115: 86.4 | R115: 61.776
A116: 706036 | B116: 3528707060365 | C116: PN BFG 205/55R16 XL 94 H GFW2 | D116: N2055516HGFW294XL | E116: TOURISME HIVER | F116: BF G-FORCE WINTER2 | G116: 205 | H116: 55 | I116: R | J116: 16 | K116: 94 | L116: H | M116: D | N116: B | O116: A | P116: 69 | Q116: 108 | R116: 77.22
A117: 711760 | B117: 3528707117601 | C117: PN BFG 215/50R17 XL 95 V GFW2 | D117: N2155017VGFW295XL | E117: TOURISME HIVER | F117: BF G-FORCE WINTER2 | G117: 215 | H117: 50 | I117: R | J117: 17 | K117: 95 | L117: V | M117: C | N117: B | O117: A | P117: 69 | Q117: 143 | R117: 102.245
A118: 719326 | B118: 3528707193261 | C118: PN BFG 165/60R15 XL 81T G-FORCE WINTER2 | D118: N1656015TGFORCEWIN81 | E118: TOURISME HIVER | F118: BF G-FORCE WINTER2 | G118: 165 | H118: 60 | I118: R | J118: 15 | K118: 81 | L118: T | M118: D | N118: B | O118: A | P118: 68 | Q118: 97.9 | R118: 69.9985
A119: 720727 | B119: 3528707207272 | C119: PN BFG 235/50R18 XL 101V G-FORCE WINTER2 | D119: N2355018VGFORCEWI101 | E119: 4x4 HIVER | F119: BF G-FORCE WINTER2 | G119: 235 | H119: 50 | I119: R | J119: 18 | K119: 101 | L119: V | M119: C | N119: B | O119: B | P119: 71 | Q119: 182.9 | R119: 130.7735
A120: 733694 | B120: 3528707336941 | C120: PN BFG 245/40R18 XL 97 V GFW2 | D120: N2454018VGFW297XL | E120: TOURISME HIVER | F120: BF G-FORCE WINTER2 | G120: 245 | H120: 40 | I120: R | J120: 18 | K120: 97 | L120: V | M120: C | N120: B | O120: A | P120: 69 | Q120: 156.5 | R120: 111.8975
A121: 734147 | B121: 3528707341471 | C121: PN BFG 195/65R15 XL 95 T GFW2 | D121: N1956515TGFW295XL | E121: TOURISME HIVER | F121: BF G-FORCE WINTER2 | G121: 195 | H121: 65 | I121: R | J121: 15 | K121: 95 | L121: T | M121: C | N121: B | O121: A | P121: 69 | Q121: 86.9 | R121: 62.1335
A122: 742274 | B122: 3528707422743 | C122: PN BFG 225/45R17 91H G-FORCE WINTER2 | D122: N2254517HGFORCEWIN91 | E122: TOURISME HIVER | F122: BF G-FORCE WINTER2 | G122: 225 | H122: 45 | I122: R | J122: 17 | K122: 91 | L122: H | M122: D | N122: B | O122: A | P122: 69 | Q122: 118.1 | R122: 84.4415
A123: 742628 | B123: 3528707426284 | C123: PN BFG 255/40R19 XL 100V G-FORCE WINTER2 | D123: N2554019VGFORCEWI100 | E123: TOURISME HIVER | F123: BF G-FORCE WINTER2 | G123: 255 | H123: 40 | I123: R | J123: 19 | K123: 100 | L123: V | M123: C | N123: B | O123: B | P123: 71 | Q123: 209.3 | R123: 149.6495
A124: 752638 | B124: 3528707526380 | C124: PN BFG 235/35R19 XL 91W G-FORCE WINTER2 | D124: N2353519WGFORCEWIN91 | E124: TOURISME HIVER | F124: BF G-FORCE WINTER2 | G124: 235 | H124: 35 | I124: R | J124: 19 | K124: 91 | L124: W | M124: D | N124: B | O124: B | P124: 70 | Q124: 190.1 | R124: 135.9215
A125: 754952 | B125: 3528707549525 | C125: PN BFG 215/45R17 XL 91V G-FORCE WINTER2 | D125: N2154517VGFORCEWIN91 | E125: TOURISME HIVER | F125: BF G-FORCE WINTER2 | G125: 215 | H125: 45 | I125: R | J125: 17 | K125: 91 | L125: V | P125: 0 | Q125: 137.8 | R125: 98.527
A126: 769067 | B126: 3528707690678 | C126: PN BFG 225/40R18 XL 92W G-FORCE WINTER2 | D126: N2254018WGFORCEWIN92 | E126: TOURISME HIVER | F126: BF G-FORCE WINTER2 | G126: 225 | H126: 40 | I126: R | J126: 18 | K126: 92 | L126: W | M126: D | N126: B | O126: A | P126: 69 | Q126: 142.1 | R126: 101.6015
A127: 778508 | B127: 3528707785084 | C127: PN BFG 245/45R17 XL 99V G-FORCE WINT 2 | D127: N2454517VGFOW299 | E127: TOURISME HIVER | F127: BF G-FORCE WINTER2 | G127: 245 | H127: 45 | I127: R | J127: 17 | K127: 99 | L127: V | M127: D | N127: B | O127: A | P127: 69 | Q127: 167 | R127: 119.405
A128: 791145 | B128: 3528707911452 | C128: PN BFG 235/50R18 XL 101V G-FORCE WINT 2 | D128: N2355018VGFOW2101 | E128: TOURISME HIVER | F128: BF G-FORCE WINTER2 | G128: 235 | H128: 50 | I128: R | J128: 18 | K128: 101 | L128: V | M128: C | N128: B | O128: A | P128: 69 | Q128: 181.9 | R128: 130.0585
A129: 813862 | B129: 3528708138629 | C129: PN BFG 205/55R17 XL 95 V GFW2 | D129: N2055517VGFW295XL | E129: TOURISME HIVER | F129: BF G-FORCE WINTER2 | G129: 205 | H129: 55 | I129: R | J129: 17 | K129: 95 | L129: V | M129: C | N129: B | O129: A | P129: 69 | Q129: 146.4 | R129: 104.676
A130: 817807 | B130: 3528708178076 | C130: PN BFG 205/60R16 92T G-FORCE WINTER2 | D130: N2056016TGFORCEWIN92 | E130: TOURISME HIVER | F130: BF G-FORCE WINTER2 | G130: 205 | H130: 60 | I130: R | J130: 16 | K130: 92 | L130: T | M130: D | N130: B | O130: A | P130: 69 | Q130: 109.4 | R130: 78.221
A131: 840730 | B131: 3528708407305 | C131: PN BFG 205/55R19 XL 97H G-FORCE WINTER2 | D131: N2055519HGFORCEWIN97 | E131: TOURISME HIVER | F131: BF G-FORCE WINTER2 | G131: 205 | H131: 55 | I131: R | J131: 19 | K131: 97 | L131: H | M131: C | N131: B | O131: A | P131: 69 | Q131: 144.5 | R131: 103.3175
A132: 842711 | B132: 3528708427112 | C132: PN BFG 215/55R18 95H G-FORCE WINTER2 | D132: N2155518HGFORCEWIN95 | E132: TOURISME HIVER | F132: BF G-FORCE WINTER2 | G132: 215 | H132: 55 | I132: R | J132: 18 | K132: 95 | L132: H | M132: C | N132: B | O132: A | P132: 69 | Q132: 151.7 | R132: 108.4655
A133: 856592 | B133: 3528708565920 | C133: PN BFG 215/55R17 XL 98H G-FORCE WINT 2 | D133: N2155517HGFOW298 | E133: TOURISME HIVER | F133: BF G-FORCE WINTER2 | G133: 215 | H133: 55 | I133: R | J133: 17 | K133: 98 | L133: H | M133: C | N133: B | O133: A | P133: 69 | Q133: 147.8 | R133: 105.677
A134: 862538 | B134: 3528708625389 | C134: PN BFG 225/60R17 XL 103V G-FORCE WINTER2 | D134: N2256017VGFORCEWI103 | E134: 4x4 HIVER | F134: BF G-FORCE WINTER2 | G134: 225 | H134: 60 | I134: R | J134: 17 | K134: 103 | L134: V | M134: C | N134: B | O134: A | P134: 69 | Q134: 163.7 | R134: 117.0455
A135: 875396 | B135: 3528708753969 | C135: PN BFG 185/55R15 82 T GFW2 | D135: N1855515TGFW282 | E135: TOURISME HIVER | F135: BF G-FORCE WINTER2 | G135: 185 | H135: 55 | I135: R | J135: 15 | K135: 82 | L135: T | M135: D | N135: B | O135: A | P135: 68 | Q135: 105.6 | R135: 75.504
A136: 876445 | B136: 3528708764453 | C136: PN BFG 225/65R17 102T G-FORCE WINTER2 | D136: N2256517TGFORCEWI102 | E136: 4x4 HIVER | F136: BF G-FORCE WINTER2 | G136: 225 | H136: 65 | I136: R | J136: 17 | K136: 102 | L136: T | M136: C | N136: B | O136: A | P136: 69 | Q136: 153.1 | R136: 109.4665
A137: 881991 | B137: 3528708819917 | C137: PN BFG 235/55R18 100H G-FORCE WINTER2 | D137: N2355518HGFORCEW100 | E137: 4x4 HIVER | F137: BF G-FORCE WINTER2 | G137: 235 | H137: 55 | I137: R | J137: 18 | K137: 100 | L137: H | M137: C | N137: B | O137: A | P137: 69 | Q137: 168.5 | R137: 120.4775
A138: 884616 | B138: 3528708846166 | C138: PN BFG 195/50R15 82 H GFW2 | D138: N1955015HGFW282 | E138: TOURISME HIVER | F138: BF G-FORCE WINTER2 | G138: 195 | H138: 50 | I138: R | J138: 15 | K138: 82 | L138: H | M138: D | N138: B | O138: A | P138: 69 | Q138: 89.8 | R138: =Q138*(1-$D$3) -> 64.207
A139: 888238 | B139: 3528708882386 | C139: PN BFG 255/50R19 XL 107V G-FORCE WINTER2 | D139: N2555019VGFORCEWI107 | E139: 4x4 HIVER | F139: BF G-FORCE WINTER2 | G139: 255 | H139: 50 | I139: R | J139: 19 | K139: 107 | L139: V | P139: 0 | Q139: 178.1 | R139: 127.3415
A140: 891598 | B140: 3528708915985 | C140: PN BFG 215/50R18 92V G-FORCE WINTER2 | D140: N2155018VGFORCEWIN92 | E140: TOURISME HIVER | F140: BF G-FORCE WINTER2 | G140: 215 | H140: 50 | I140: R | J140: 18 | K140: 92 | L140: V | M140: D | N140: B | O140: A | P140: 69 | Q140: 175.2 | R140: 125.268
A141: 898501 | B141: 3528708985018 | C141: PN BFG 215/65R17 99V G-FORCE WINTER2 | D141: N2156517VGFORCEWIN99 | E141: 4x4 HIVER | F141: BF G-FORCE WINTER2 | G141: 215 | H141: 65 | I141: R | J141: 17 | K141: 99 | L141: V | M141: C | N141: B | O141: A | P141: 69 | Q141: 156.5 | R141: 111.8975
A142: 899576 | B142: 3528708995765 | C142: PN BFG 275/50R20 XL 113V G-FORCE WINTER2 | D142: N2755020VGFORCEW113 | E142: TOURISME HIVER | F142: BF G-FORCE WINTER2 | G142: 275 | H142: 50 | I142: R | J142: 20 | K142: 113 | L142: V | P142: 0 | Q142: 236.2 | R142: 168.883
A143: 906908 | B143: 3528709069083 | C143: PN BFG 235/45R17 94H G-FORCE WINT 2 | D143: N2354517HGFOW294 | E143: TOURISME HIVER | F143: BF G-FORCE WINTER2 | G143: 235 | H143: 45 | I143: R | J143: 17 | K143: 94 | L143: H | M143: D | N143: B | O143: A | P143: 69 | Q143: 139.7 | R143: 99.8855
A144: 919982 | B144: 3528709199827 | C144: PN BFG 205/65R15 94 H GFW2 | D144: N2056515HGFW294 | E144: TOURISME HIVER | F144: BF G-FORCE WINTER2 | G144: 205 | H144: 65 | I144: R | J144: 15 | K144: 94 | L144: H | M144: D | N144: B | O144: A | P144: 69 | Q144: 112.8 | R144: 80.652
A145: 920511 | B145: 3528709205115 | C145: PN BFG 185/60R14 82T G-FORCE WINTER 2 | D145: N1856014TGFORW282 | E145: TOURISME HIVER | F145: BF G-FORCE WINTER2 | G145: 185 | H145: 60 | I145: R | J145: 14 | K145: 82 | L145: T | M145: D | N145: C | O145: B | P145: 69 | Q145: 81.6 | R145: 58.344
A146: 920531 | B146: 3528709205313 | C146: PN BFG 215/60R17 96H G-FORCE WINT2 SUV | D146: 2156017HGFORW296 | E146: 4x4 HIVER | F146: BF G-FORCE WINTER2 | G146: 215 | H146: 60 | I146: R | J146: 17 | K146: 96 | L146: H | M146: C | N146: B | O146: A | P146: 69 | Q146: 137.3 | R146: 98.1695
A147: 920988 | B147: 3528709209885 | C147: PN BFG 165/60R15 77T G-FORCE WINTER2 | D147: N1656015TGFORCEWIN77 | E147: TOURISME HIVER | F147: BF G-FORCE WINTER2 | G147: 165 | H147: 60 | I147: R | J147: 15 | K147: 77 | L147: T | M147: D | N147: B | O147: A | P147: 68 | Q147: 96.5 | R147: 68.9975
A148: 924840 | B148: 3528709248402 | C148: PN BFG 225/65R17 XL 106H G-FORCE WINTER2 | D148: N2256517HGFORCEWI106 | E148: 4x4 HIVER | F148: BF G-FORCE WINTER2 | G148: 225 | H148: 65 | I148: R | J148: 17 | K148: 106 | L148: H | P148: 0 | Q148: 158.9 | R148: 113.6135
A149: 933311 | B149: 3528709333115 | C149: PN BFG 215/65R16 98H G-FORCE WINTER2 | D149: N2156516HGFORCEW98 | E149: 4x4 HIVER | F149: BF G-FORCE WINTER2 | G149: 215 | H149: 65 | I149: R | J149: 16 | K149: 98 | L149: H | M149: C | N149: B | O149: A | P149: 69 | Q149: 116.6 | R149: 83.369
A150: 954716 | B150: 3528709547161 | C150: PN BFG 205/50R16 87 H G-FORCE WINTER | D150: N2055016HGFORC87 | E150: TOURISME HIVER | F150: BF G-FORCE WINTER | G150: 205 | H150: 50 | I150: R | J150: 16 | K150: 87 | L150: H | M150: D | N150: C | O150: B | P150: 71 | Q150: 136.3 | R150: 97.4545
A151: 957710 | B151: 3528709577106 | C151: PN BFG 225/45R18 XL 95V G-FORCE WINT 2 | D151: N2254518VGFOW295 | E151: TOURISME HIVER | F151: BF G-FORCE WINTER2 | G151: 225 | H151: 45 | I151: R | J151: 18 | K151: 95 | L151: V | M151: C | N151: B | O151: A | P151: 69 | Q151: 153.1 | R151: 109.4665
A152: 960014 | B152: 3528709600149 | C152: PN BFG 195/50R16 XL 88H G-FORCE WINT 2 | D152: N1955016HGFOW288 | E152: TOURISME HIVER | F152: BF G-FORCE WINTER2 | G152: 195 | H152: 50 | I152: R | J152: 16 | K152: 88 | L152: H | M152: D | N152: B | O152: A | P152: 69 | Q152: 132.5 | R152: 94.7375
A153: 982904 | B153: 3528709829045 | C153: PN BFG 255/35R19 XL 96V G-FORCE WINTER2 | D153: N2553519VGFORCEWIN96 | E153: TOURISME HIVER | F153: BF G-FORCE WINTER2 | G153: 255 | H153: 35 | I153: R | J153: 19 | K153: 96 | L153: V | M153: C | N153: B | O153: B | P153: 71 | Q153: 204.5 | R153: 146.2175
A154: 998745 | B154: 3528709987455 | C154: PN BFG 275/50R20 XL 113V G-FORCE WINTER2 | D154: N2755020VGFORCEWI113 | E154: 4x4 HIVER | F154: BF G-FORCE WINTER2 | G154: 275 | H154: 50 | I154: R | J154: 20 | K154: 113 | L154: V | P154: 0 | Q154: 236.2 | R154: 168.883

Sheet CON
D2: Remise
D3: =Remises!O8 -> 0.25
A5: Actualisation au 04/04/2024
A7: REFERENCES PNEUMATIQUES | Q7: TARIFS
A8: CAI | B8: EAN | C8: Désignation | D8: Appellation | E8: Catégorie | F8: Profil | G8: Largeur | H8: Hauteur | I8: Structure | J8: Diamètre | K8: IC | L8: IV | M8: Conso. | N8: Frein. | O8: Bruit. | P8: Décibels. | Q8: Prix BF | R8: Prix Remisé
A9: 03119470000 | B9: 4019238055450 | C9: PN CON 285/40R22 XL 110V TS 860 S NC0 | D9: N2854022VTS860SNC110 | E9: TOURISME HIVER | F9: CO WINT TS 860 S | G9: 285 | H9: 40 | I9: R | J9: 22 | K9: 110 | L9: V | M9: B | N9: B | P9: 75 | Q9: 548.5 | R9: =Q9*(1-$D$3) -> 411.375
A10: 03119480000 | B10: 4019238055443 | C10: PN CON 315/35R22 XL 111V TS 860 S NC0 | D10: N3153522VTS860SNC111 | E10: TOURISME HIVER | F10: CO WINT TS 860 S | G10: 315 | H10: 35 | I10: R | J10: 22 | K10: 111 | L10: V | M10: C | N10: B | P10: 75 | Q10: 580.5 | R10: =Q10*(1-$D$3) -> 435.375
A11: 03139700000 | B11: 4019238098310 | C11: PN CON 295/40R22 XL 112V TS 860 S EV | D11: N2954022VTS860SEV112 | E11: TOURISME HIVER | F11: CO WINT TS 860 S | G11: 295 | H11: 40 | I11: R | J11: 22 | K11: 112 | L11: V | M11: B | N11: B | O11: B | P11: 75 | Q11: 501.5 | R11: 376.125
A12: 03143540000 | B12: 4019238399745 | C12: PN CON 265/45R20 XL 108V TS 860 S EVC | D12: N2654520VTS860SEV108 | E12: TOURISME HIVER | F12: CO WINT TS 860 S | G12: 265 | H12: 45 | I12: R | J12: 20 | K12: 108 | L12: V | P12: 0 | Q12: 514.5 | R12: 385.875
A13: 03143560000 | B13: 4019238399738 | C13: PN CON 275/45R20 XL 110V TS 860 S EVC | D13: N2754520VTS860SEV110 | E13: TOURISME HIVER | F13: CO WINT TS 860 S | G13: 275 | H13: 45 | I13: R | J13: 20 | K13: 110 | L13: V | P13: 0 | Q13: 500.5 | R13: 375.375
A14: 03144560000 | B14: 4019238401264 | C14: PN CON 255/45R20 XL 105V TS 860 S MO1 | D14: N2554520VTS860SMO105 | E14: TOURISME HIVER | F14: CO WINT TS 860 S | G14: 255 | H14: 45 | I14: R | J14: 20 | K14: 105 | L14: V | M14: C | N14: B | O14: B | P14: 73 | Q14: 393 | R14: 294.75
A15: 03145130000 | B15: 4019238283693 | C15: PN CON 195/60R16 XL 93H TS 860 S * | D15: N1956016HTS860S*93 | E15: TOURISME HIVER | F15: CO WINT TS 860 S | G15: 195 | H15: 60 | I15: R | J15: 16 | K15: 93 | L15: H | M15: B | N15: B | O15: B | P15: 72 | Q15: 169 | R15: 126.75
A16: 03148540000 | B16: 4019238288407 | C16: PN CON 285/45R21 XL 113H TS 860 S * FR | D16: N2854521HTS860*113FR | E16: TOURISME HIVER | F16: CO WINT TS 860 S | G16: 285 | H16: 45 | I16: R | J16: 21 | K16: 113 | L16: H | P16: 0 | Q16: 480 | R16: 360
A17: 03148620000 | B17: 4019238287950 | C17: PN CON 265/35R20 XL 102V TS 860 S MO1 FR | D17: N2653520VTS860MO102F | E17: TOURISME HIVER | F17: CO WINT TS 860 S | G17: 265 | H17: 35 | I17: R | J17: 20 | K17: 102 | L17: V | P17: 0 | Q17: 465.5 | R17: 349.125
A18: 03148630000 | B18: 4019238287943 | C18: PN CON 275/35R20 XL 104V TS 860 S MO1 FR | D18: N2753520VTS860MO104F | E18: TOURISME HIVER | F18: CO WINT TS 860 S | G18: 275 | H18: 35 | I18: R | J18: 20 | K18: 104 | L18: V | P18: 0 | Q18: 502 | R18: 376.5
A19: 03150420000 | B19: 4019238293180 | C19: PN CON 265/35R21 XL 103V TS 860 S NF0 FR | D19: N2653521VTS860NF103F | E19: TOURISME HIVER | F19: CO WINT TS 860 S | G19: 265 | H19: 35 | I19: R | J19: 21 | K19: 103 | L19: V | P19: 0 | Q19: 498 | R19: 373.5
A20: 03150520000 | B20: 4019238292411 | C20: PN CON 305/30R21 XL 107V TS 860 S NF0 FR | D20: N3053021VTS860NF107F | E20: TOURISME HIVER | F20: CO WINT TS 860 S | G20: 305 | H20: 30 | I20: R | J20: 21 | K20: 107 | L20: V | P20: 0 | Q20: 539 | R20: 404.25
A21: 03200180000 | B21: 4019238093124 | C21: PN CON 265/40R22 XL 106V TS 850 P CS | D21: N2654022VTS850P106 | E21: 4x4 HIVER | F21: CO WINT TS 850P | G21: 265 | H21: 40 | I21: R | J21: 22 | K21: 106 | L21: V | M21: C | N21: B | O21: B | P21: 73 | Q21: 536.5 | R21: 402.375
A22: 03200190000 | B22: 4019238093599 | C22: PN CON 215/60R16 XL 99H TS870 | D22: N2156016HTS87099 | E22: TOURISME HIVER | F22: CO WINTCTC TS870 | G22: 215 | H22: 60 | I22: R | J22: 16 | K22: 99 | L22: H | M22: C | N22: B | O22: B | P22: 72 | Q22: 196.5 | R22: 147.375
A23: 03200200000 | B23: 4019238093582 | C23: PN CON 155/70R19 XL 88T TS870 | D23: N1557019TTS87088 | E23: TOURISME HIVER | F23: CO WINTCTC TS870 | G23: 155 | H23: 70 | I23: R | J23: 19 | K23: 88 | L23: T | M23: C | N23: C | O23: B | P23: 71 | Q23: 206.5 | R23: 154.875
A24: 03200210000 | B24: 4019238093575 | C24: PN CON 245/50R18 XL 104V TS870P FR | D24: N2455018VTS870P104FR | E24: TOURISME HIVER | F24: CO WINCTC TS870P | G24: 245 | H24: 50 | I24: R | J24: 18 | K24: 104 | L24: V | M24: B | N24: B | O24: B | P24: 71 | Q24: 295 | R24: 221.25
A25: 03200220000 | B25: 4019238093568 | C25: PN CON 285/45R20 XL 112V TS870P FR | D25: N2854520VTS870P112FR | E25: TOURISME HIVER | F25: CO WINCTC TS870P | G25: 285 | H25: 45 | I25: R | J25: 20 | K25: 112 | L25: V | M25: B | N25: C | P25: 74 | Q25: 462.5 | R25: 346.875
A26: 03200230000 | B26: 4019238093551 | C26: PN CON 285/35R22 XL 106V TS870P FR | D26: N2853522VTS870P106FR | E26: TOURISME HIVER | F26: CO WINCTC TS870P | G26: 285 | H26: 35 | I26: R | J26: 22 | K26: 106 | L26: V | M26: C | N26: B | O26: B | P26: 74 | Q26: 499 | R26: 374.25
A27: 03200240000 | B27: 4019238093636 | C27: PN CON 205/40R18 XL 86V TS870P | D27: N2054018VTS870P86 | E27: TOURISME HIVER | F27: CO WINCTC TS870P | G27: 205 | H27: 40 | I27: R | J27: 18 | K27: 86 | L27: V | M27: C | N27: B | O27: B | P27: 72 | Q27: 246 | R27: 184.5
A28: 03200250000 | B28: 4019238093629 | C28: PN CON 235/60R20 XL 108T TS870P FR | D28: N2356020TTS870P108 | E28: TOURISME HIVER | F28: CO WINCTC TS870P | G28: 235 | H28: 60 | I28: R | J28: 20 | K28: 108 | L28: T | M28: B | N28: B | O28: B | P28: 72 | Q28: 306.5 | R28: 229.875
A29: 03200260000 | B29: 4019238093612 | C29: PN CON 205/65R17 96V TS870P FR | D29: N2056517VTS870P96FR | E29: TOURISME HIVER | F29: CO WINCTC TS870P | G29: 205 | H29: 65 | I29: R | J29: 17 | K29: 96 | L29: V | M29: C | N29: B | O29: B | P29: 71 | Q29: 255 | R29: 191.25
A30: 03200270000 | B30: 4019238093544 | C30: PN CON 265/40R22 XL 106W TS870P EV FR | D30: N2654022WTS870EV106F | E30: TOURISME HIVER | F30: CO WINCTC TS870P | G30: 265 | H30: 40 | I30: R | J30: 22 | K30: 106 | L30: W | M30: B | N30: B | O30: B | P30: 71 | Q30: 521.5 | R30: 391.125
A31: 03200280000 | B31: 4019238093605 | C31: PN CON 285/35R20 XL 104W TS 860 S FR | D31: N2853520WTS860S104FR | E31: TOURISME HIVER | F31: CO WINT TS 860 S | G31: 285 | H31: 35 | I31: R | J31: 20 | K31: 104 | L31: W | M31: C | N31: C | O31: B | P31: 75 | Q31: 535 | R31: 401.25
A32: 03200290000 | B32: 4019238093773 | C32: PN CON 245/55R17 XL 106H TS870P FR | D32: N2455517HTS870P106FR | E32: TOURISME HIVER | F32: CO WINCTC TS870P | G32: 245 | H32: 55 | I32: R | J32: 17 | K32: 106 | L32: H | M32: B | N32: B | O32: B | P32: 71 | Q32: 310 | R32: 232.5
A33: 03200300000 | B33: 4019238093766 | C33: PN CON 295/35R22 XL 108W TS870P EV FR | D33: N2953522WTS870EV108F | E33: TOURISME HIVER | F33: CO WINCTC TS870P | G33: 295 | H33: 35 | I33: R | J33: 22 | K33: 108 | L33: W | M33: B | N33: B | O33: B | P33: 75 | Q33: 529 | R33: 396.75
A34: 03200310000 | B34: 4019238093759 | C34: PN CON 255/40R22 XL 103V TS870P EV FR | D34: N2554022VTS870EV103F | E34: TOURISME HIVER | F34: CO WINCTC TS870P | G34: 255 | H34: 40 | I34: R | J34: 22 | K34: 103 | L34: V | M34: B | N34: B | O34: B | P34: 71 | Q34: 487 | R34: 365.25
A35: 03200330000 | B35: 4019238094459 | C35: PN CON 185/50R17 XL 86H TS870 EVC | D35: N1855017HTS870EV86 | E35: TOURISME HIVER | F35: CO WINTCTC TS870 | G35: 185 | H35: 50 | I35: R | J35: 17 | K35: 86 | L35: H | M35: C | N35: B | O35: B | P35: 71 | Q35: 203 | R35: 152.25
A36: 03200340000 | B36: 4019238093797 | C36: PN CON 285/35R21 XL 105V TS870P EV FR | D36: N2853521VTS870EV105F | E36: TOURISME HIVER | F36: CO WINCTC TS870P | G36: 285 | H36: 35 | I36: R | J36: 21 | K36: 105 | L36: V | M36: C | N36: B | O36: B | P36: 74 | Q36: 505 | R36: 378.75
A37: 03200350000 | B37: 4019238093780 | C37: PN CON 255/45R21 XL 106V TS870P FR | D37: N2554521VTS870P106FR | E37: TOURISME HIVER | F37: CO WINCTC TS870P | G37: 255 | H37: 45 | I37: R | J37: 21 | K37: 106 | L37: V | M37: C | N37: B | O37: B | P37: 73 | Q37: 475.5 | R37: 356.625
A38: 03200360000 | B38: 4019238093810 | C38: PN CON 285/30R20 XL 99W TS870P EV FR | D38: N2853020WTS870EV99FR | E38: TOURISME HIVER | F38: CO WINCTC TS870P | G38: 285 | H38: 30 | I38: R | J38: 20 | K38: 99 | L38: W | M38: C | N38: B | O38: B | P38: 75 | Q38: 545 | R38: 408.75
A39: 03200370000 | B39: 4019238093803 | C39: PN CON 265/30R20 XL 94W TS870P EV FR | D39: N2653020WTS870EV94FR | E39: TOURISME HIVER | F39: CO WINCTC TS870P | G39: 265 | H39: 30 | I39: R | J39: 20 | K39: 94 | L39: W | M39: C | N39: B | P39: 71 | Q39: 556.5 | R39: 417.375
A40: 03200390000 | B40: 4019238093834 | C40: PN CON 235/45R21 XL 101T TS870P CS FR | D40: N2354521TTS870C101FR | E40: TOURISME HIVER | F40: CO WINCTC TS870P | G40: 235 | H40: 45 | I40: R | J40: 21 | K40: 101 | L40: T | M40: C | N40: B | O40: B | P40: 71 | Q40: 465.5 | R40: 349.125
A41: 03200400000 | B41: 4019238093827 | C41: PN CON 255/40R21 XL 102T TS870P CS | D41: N2554021TTS870PC102 | E41: TOURISME HIVER | F41: CO WINCTC TS870P | G41: 255 | H41: 40 | I41: R | J41: 21 | K41: 102 | L41: T | M41: B | N41: B | O41: B | P41: 72 | Q41: 435 | R41: 326.25
A42: 03200420000 | B42: 4019238097696 | C42: PN CON 255/40R18 XL 99V TS830 P * FR | D42: N2554018VTS830P99FR | E42: TOURISME HIVER | F42: CO WINT TS 830 P | G42: 255 | H42: 40 | I42: R | J42: 18 | K42: 99 | L42: V | M42: C | N42: D | O42: B | P42: 73 | Q42: 282 | R42: 211.5
A43: 03200570000 | B43: 4019238098754 | C43: PN CON 235/50R20 XL 104V TS870P EV | D43: N2355020VTS870PEV104 | E43: TOURISME HIVER | F43: CO WINCTC TS870P | G43: 235 | H43: 50 | I43: R | J43: 20 | K43: 104 | L43: V | M43: B | N43: B | P43: 71 | Q43: 409.5 | R43: 307.125
A44: 03200640000 | B44: 4019238212051 | C44: PN CON 155/80R13 79T TS 860 EV | D44: N1558013TTS860EV79 | E44: TOURISME HIVER | F44: CO WINT TS 860 | G44: 155 | H44: 80 | I44: R | J44: 13 | K44: 79 | L44: T | M44: D | N44: C | O44: B | P44: 71 | Q44: 96.5 | R44: 72.375
A45: 03200650000 | B45: 4019238212068 | C45: PN CON 155/70R13 75T TS 860 EV | D45: N1557013TTS860EV75 | E45: TOURISME HIVER | F45: CO WINT TS 860 | G45: 155 | H45: 70 | I45: R | J45: 13 | K45: 75 | L45: T | M45: D | N45: C | O45: B | P45: 71 | Q45: 103.5 | R45: 77.625
A46: 03200660000 | B46: 4019238400069 | C46: PN CON 165/65R14 79T TS870 | D46: N1656514TTS87079 | E46: TOURISME HIVER | F46: CO WINTCTC TS870 | G46: 165 | H46: 65 | I46: R | J46: 14 | K46: 79 | L46: T | M46: D | N46: C | O46: B | P46: 69 | Q46: 124.5 | R46: 93.375
A47: 03201330000 | B47: 4019238401257 | C47: PN CON 175/70R14 XL 88T TS870 | D47: N1757014TTS870882 | E47: TOURISME HIVER | F47: CO WINTCTC TS870 | G47: 175 | H47: 70 | I47: R | J47: 14 | K47: 88 | L47: T | M47: C | N47: C | O47: B | P47: 69 | Q47: 142.5 | R47: 106.875
A48: 03201890000 | B48: 4019238283167 | C48: PN CON 175/65R14 XL 86T TS870 EV | D48: N1756514TTS870EV86 | E48: TOURISME HIVER | F48: CO WINTCTC TS870 | G48: 175 | H48: 65 | I48: R | J48: 14 | K48: 86 | L48: T | M48: C | N48: C | O48: B | P48: 71 | Q48: 122 | R48: 91.5
A49: 03201900000 | B49: 4019238283181 | C49: PN CON 175/65R17 87H TS870 EV FR | D49: N1756517HTS870EV87FR | E49: TOURISME HIVER | F49: CO WINTCTC TS870 | G49: 175 | H49: 65 | I49: R | J49: 17 | K49: 87 | L49: H | M49: C | N49: C | O49: B | P49: 71 | Q49: 190.5 | R49: 142.875
A50: 03201910000 | B50: 4019238283150 | C50: PN CON 175/70R14 84T TS870 EV | D50: N1757014TTS870EV84 | E50: TOURISME HIVER | F50: CO WINTCTC TS870 | G50: 175 | H50: 70 | I50: R | J50: 14 | K50: 84 | L50: T | M50: D | N50: C | O50: B | P50: 69 | Q50: 136 | R50: 102
A51: 03201940000 | B51: 4019238283143 | C51: PN CON 175/60R18 85H TS870 EV FR | D51: N1756018HTS870EV85FR | E51: TOURISME HIVER | F51: CO WINTCTC TS870 | G51: 175 | H51: 60 | I51: R | J51: 18 | K51: 85 | L51: H | M51: D | N51: C | O51: B | P51: 71 | Q51: 254 | R51: 190.5
A52: 03202030000 | B52: 4019238283730 | C52: PN CON 175/65R14 82T TS870 EV | D52: N1756514TTS870EV82 | E52: TOURISME HIVER | F52: CO WINTCTC TS870 | G52: 175 | H52: 65 | I52: R | J52: 14 | K52: 82 | L52: T | M52: D | N52: C | O52: B | P52: 69 | Q52: 106.5 | R52: 79.875
A53: 03202100000 | B53: 4019238286878 | C53: PN CON 295/40R21 XL 111V TS 860 S EV FR | D53: N2954021VTS860EV111F | E53: TOURISME HIVER | F53: CO WINT TS 860 S | G53: 295 | H53: 40 | I53: R | J53: 21 | K53: 111 | L53: V | M53: B | N53: C | O53: B | P53: 75 | Q53: 483 | R53: 362.25
A54: 03202520000 | B54: 4019238287936 | C54: PN CON 245/45R19 XL 102V TS870P EV FR | D54: N2454519VTS870EV102F | E54: TOURISME HIVER | F54: CO WINCTC TS870P | G54: 245 | H54: 45 | I54: R | J54: 19 | K54: 102 | L54: V | M54: C | N54: B | O54: B | P54: 71 | Q54: 350 | R54: 262.5
A55: 03530030000 | B55: 4019238374513 | C55: PN CON 235/40R18 XL 95 V TS810 S N FR | D55: N2354018VTS810SN95XL | E55: TOURISME HIVER | F55: CO WINT TS810S | G55: 235 | H55: 40 | I55: R | J55: 18 | K55: 95 | L55: V | M55: D | N55: C | O55: B | P55: 72 | Q55: 276.5 | R55: 207.375
A56: 03530050000 | B56: 4019238374537 | C56: PN CON 265/40R18 XL 101 V TS810 S FR | D56: N2654018VTS810101XL | E56: TOURISME HIVER | F56: CO WINT TS810S | G56: 265 | H56: 40 | I56: R | J56: 18 | K56: 101 | L56: V | M56: E | N56: C | O56: B | P56: 73 | Q56: 343 | R56: 257.25
A57: 03530070000 | B57: 4019238374551 | C57: PN CON 255/40R18 XL 99 V TS810 S N FR | D57: N2554018VTS81099XL | E57: TOURISME HIVER | F57: CO WINT TS810S | G57: 255 | H57: 40 | I57: R | J57: 18 | K57: 99 | L57: V | M57: E | N57: C | O57: B | P57: 73 | Q57: 282 | R57: 211.5
A58: 03530330000 | B58: 4019238407846 | C58: PN CON 235/35R19 XL 91 V TS810 S MO FR | D58: N2353519VTS810SM91XL | E58: TOURISME HIVER | F58: CO WINT TS810S | G58: 235 | H58: 35 | I58: R | J58: 19 | K58: 91 | L58: V | M58: D | N58: C | O58: B | P58: 72 | Q58: 353 | R58: 264.75
A59: 03530740000 | B59: 4019238434033 | C59: PN CON 205/55R16 91 H TS830 P MO | D59: N2055516HTS830P91 | E59: TOURISME HIVER | F59: CO WINT TS 830 P | G59: 205 | H59: 55 | I59: R | J59: 16 | K59: 91 | L59: H | M59: D | N59: C | O59: B | P59: 72 | Q59: 151 | R59: 113.25
A60: 03530750000 | B60: 4019238434040 | C60: PN CON 215/55R16 93 H TS830 P MO | D60: N2155516HTS830P93 | E60: TOURISME HIVER | F60: CO WINT TS 830 P | G60: 215 | H60: 55 | I60: R | J60: 16 | K60: 93 | L60: H | M60: D | N60: C | O60: B | P60: 72 | Q60: 219 | R60: 164.25
A61: 03530760000 | B61: 4019238434057 | C61: PN CON 225/55R16 95 H TS830 P FR MO | D61: N2255516HTS83095 | E61: TOURISME HIVER | F61: CO WINT TS 830 P | G61: 225 | H61: 55 | I61: R | J61: 16 | K61: 95 | L61: H | M61: D | N61: C | O61: B | P61: 72 | Q61: 211 | R61: 158.25
A62: 03530820000 | B62: 4019238434088 | C62: PN CON 245/45R17 XL 99 H TS830 P FR MO | D62: N2454517HTS83099XL | E62: TOURISME HIVER | F62: CO WINT TS 830 P | G62: 245 | H62: 45 | I62: R | J62: 17 | K62: 99 | L62: H | M62: D | N62: C | O62: B | P62: 72 | Q62: 293.5 | R62: 220.125
A63: 03530930000 | B63: 4019238444872 | C63: PN CON 215/60R16 XL 99 H TS830 P | D63: N2156016HTS83099XL | E63: TOURISME HIVER | F63: CO WINT TS 830 P | G63: 215 | H63: 60 | I63: R | J63: 16 | K63: 99 | L63: H | M63: C | N63: C | O63: B | P63: 72 | Q63: 196.5 | R63: 147.375
A64: 03531040000 | B64: 4019238444971 | C64: PN CON 225/55R17 XL 101 V TS830 P | D64: N2255517VTS830101XL | E64: TOURISME HIVER | F64: CO WINT TS 830 P | G64: 225 | H64: 55 | I64: R | J64: 17 | K64: 101 | L64: V | M64: C | N64: C | O64: B | P64: 72 | Q64: 225 | R64: 168.75
A65: 03531090000 | B65: 4019238447668 | C65: PN CON 205/50R17 XL 93 H TS830 P CS FR | D65: N2055017HTS830P93XL | E65: TOURISME HIVER | F65: CO WINT TS 830 P | G65: 205 | H65: 50 | I65: R | J65: 17 | K65: 93 | L65: H | M65: E | N65: C | O65: B | P65: 72 | Q65: 228.5 | R65: 171.375
A66: 03531100000 | B66: 4019238447729 | C66: PN CON 205/55R17 XL 95 V TS810S N2 FR | D66: N2055517VTS810S95XL | E66: TOURISME HIVER | F66: CO WINT TS810S | G66: 205 | H66: 55 | I66: R | J66: 17 | K66: 95 | L66: V | M66: D | N66: C | O66: B | P66: 72 | Q66: 240 | R66: 180
A67: 03531110000 | B67: 4019238447736 | C67: PN CON 235/50R17 XL 100 V TS810S N2 FR | D67: N2355017VTS810S100XL | E67: TOURISME HIVER | F67: CO WINT TS810S | G67: 235 | H67: 50 | I67: R | J67: 17 | K67: 100 | L67: V | M67: E | N67: C | O67: B | P67: 72 | Q67: 312.5 | R67: 234.375
A68: 03531200000 | B68: 4019238449396 | C68: PN CON 225/55R16 XL 99 H TS830 P MO | D68: N2255516HTS830P99XL | E68: TOURISME HIVER | F68: CO WINT TS 830 P | G68: 225 | H68: 55 | I68: R | J68: 16 | K68: 99 | L68: H | M68: D | N68: C | O68: B | P68: 72 | Q68: 213.5 | R68: 160.125
A69: 03531250000 | B69: 4019238454215 | C69: PN CON 195/65R15 91 T TS830 P MO | D69: N1956515TTS830PMO91 | E69: TOURISME HIVER | F69: CO WINT TS 830 P | G69: 195 | H69: 65 | I69: R | J69: 15 | K69: 91 | L69: T | M69: D | N69: C | O69: B | P69: 72 | Q69: 103.5 | R69: 77.625
A70: 03531270000 | B70: 4019238454239 | C70: PN CON 205/50R17 XL 93 H TS830 P MO | D70: N2055017HTS830PM93XL | E70: TOURISME HIVER | F70: CO WINT TS 830 P | G70: 205 | H70: 50 | I70: R | J70: 17 | K70: 93 | L70: H | M70: D | N70: C | O70: B | P70: 72 | Q70: 211.5 | R70: 158.625
A71: 03531290000 | B71: 4019238454253 | C71: PN CON 255/40R18 XL 99 V TS830P MO FR | D71: N2554018VTS830P99XL | E71: TOURISME HIVER | F71: CO WINT TS 830 P | G71: 255 | H71: 40 | I71: R | J71: 18 | K71: 99 | L71: V | M71: D | N71: C | O71: B | P71: 73 | Q71: 282 | R71: 211.5
A72: 03531300000 | B72: 4019238454260 | C72: PN CON 205/60R16 XL 96 H TS830 P | D72: N2056016HTS83096XL | E72: TOURISME HIVER | F72: CO WINT TS 830 P | G72: 205 | H72: 60 | I72: R | J72: 16 | K72: 96 | L72: H | M72: C | N72: C | O72: B | P72: 72 | Q72: 158 | R72: 118.5
A73: 03531320000 | B73: 4019238454284 | C73: PN CON 205/60R16 XL 96 H TS830 P CS | D73: N2056016HTS830P96XL | E73: TOURISME HIVER | F73: CO WINT TS 830 P | G73: 205 | H73: 60 | I73: R | J73: 16 | K73: 96 | L73: H | M73: D | N73: C | O73: B | P73: 72 | Q73: 169 | R73: 126.75
A74: 03531480000 | B74: 4019238483116 | C74: PN CON 155/65R13 73 T TS800 | D74: N1556513TTS80073 | E74: TOURISME HIVER | F74: CO TS800 | G74: 155 | H74: 65 | I74: R | J74: 13 | K74: 73 | L74: T | M74: E | N74: C | O74: B | P74: 71 | Q74: 102 | R74: =Q74*(1-$D$3) -> 76.5
A75: 03531620000 | B75: 4019238483611 | C75: PN CON 225/50R16 92 H TS830 P | D75: N2255016HTS83092 | E75: TOURISME HIVER | F75: CO WINT TS 830 P | G75: 225 | H75: 50 | I75: R | J75: 16 | K75: 92 | L75: H | M75: D | N75: C | O75: B | P75: 72 | Q75: 316 | R75: 237
A76: 03531690000 | B76: 4019238491586 | C76: PN CON 195/50R16 XL 88 H TS830 P AO | D76: N1955016HTS83088XL | E76: TOURISME HIVER | F76: CO WINT TS 830 P | G76: 195 | H76: 50 | I76: R | J76: 16 | K76: 88 | L76: H | M76: D | N76: C | O76: B | P76: 72 | Q76: 222.5 | R76: 166.875
A77: 03531730000 | B77: 4019238492415 | C77: PN CON 235/45R19 XL 99 V TS830P AO FR | D77: N2354519VTS830P99XL | E77: TOURISME HIVER | F77: CO WINT TS 830 P | G77: 235 | H77: 45 | I77: R | J77: 19 | K77: 99 | L77: V | M77: D | N77: C | O77: B | P77: 72 | Q77: 323 | R77: 242.25
A78: 03531800000 | B78: 4019238508178 | C78: PN CON 255/35R20 XL 97 W TS830P AO FR | D78: N2553520WTS830P97XL | E78: TOURISME HIVER | F78: CO WINT TS 830 P | G78: 255 | H78: 35 | I78: R | J78: 20 | K78: 97 | L78: W | M78: D | N78: C | O78: B | P78: 73 | Q78: 443.5 | R78: 332.625
A79: 03531810000 | B79: 4019238510386 | C79: PN CON 245/50R18 XL 104 V TS830 P MO | D79: N2455018VTS830104XL | E79: TOURISME HIVER | F79: CO WINT TS 830 P | G79: 245 | H79: 50 | I79: R | J79: 18 | K79: 104 | L79: V | M79: D | N79: C | O79: B | P79: 72 | Q79: 295 | R79: 221.25
A80: 03531830000 | B80: 4019238510478 | C80: PN CON 225/50R17 XL 98 H TS830 P AO | D80: N2255017HTS830PA98XL | E80: TOURISME HIVER | F80: CO WINT TS 830 P | G80: 225 | H80: 50 | I80: R | J80: 17 | K80: 98 | L80: H | M80: D | N80: C | O80: B | P80: 72 | Q80: 222.5 | R80: 166.875
A81: 03531910000 | B81: 4019238520019 | C81: PN CON 255/35R18 XL 94 V TS830 P | D81: N2553518VTS83094XL | E81: TOURISME HIVER | F81: CO WINT TS 830 P | G81: 255 | H81: 35 | I81: R | J81: 18 | K81: 94 | L81: V | M81: D | N81: C | O81: B | P81: 73 | Q81: 320 | R81: 240
A82: 03531940000 | B82: 4019238520040 | C82: PN CON 195/55R16 87 H TS830 P* | D82: N1955516HTS830P*87 | E82: TOURISME HIVER | F82: CO WINT TS 830 P | G82: 195 | H82: 55 | I82: R | J82: 16 | K82: 87 | L82: H | M82: E | N82: D | O82: B | P82: 72 | Q82: 173.5 | R82: 130.125
A83: 03531950000 | B83: 4019238520057 | C83: PN CON 195/55R16 87 H SSR TS830 P* | D83: N1955516HTS83087RU | E83: TOURISME HIVER | F83: CO WINT TS 830 P | G83: 195 | H83: 55 | I83: R | J83: 16 | K83: 87 | L83: H | M83: E | N83: D | O83: B | P83: 72 | Q83: 204 | R83: 153
A84: 03532060000 | B84: 4019238523805 | C84: PN CON 215/60R17 96 H TS830 P | D84: N2156017HTS83096 | E84: TOURISME HIVER | F84: CO WINT TS 830 P | G84: 215 | H84: 60 | I84: R | J84: 17 | K84: 96 | L84: H | M84: D | N84: C | O84: B | P84: 72 | Q84: 211 | R84: 158.25
A85: 03532070000 | B85: 4019238523812 | C85: PN CON 225/55R16 95 H TS830 P AO | D85: N2255516HTS830AO95 | E85: TOURISME HIVER | F85: CO WINT TS 830 P | G85: 225 | H85: 55 | I85: R | J85: 16 | K85: 95 | L85: H | M85: D | N85: C | O85: B | P85: 72 | Q85: 211 | R85: 158.25
A86: 03532080000 | B86: 4019238524383 | C86: PN CON 225/60R16 98 H TS830 P AO | D86: N2256016HTS83098 | E86: TOURISME HIVER | F86: CO WINT TS 830 P | G86: 225 | H86: 60 | I86: R | J86: 16 | K86: 98 | L86: H | M86: D | N86: C | O86: B | P86: 72 | Q86: 233.5 | R86: 175.125
A87: 03532090000 | B87: 4019238525472 | C87: PN CON 235/40R19 92 V TS830 P N0 | D87: N2354019VTS83092 | E87: TOURISME HIVER | F87: CO WINT TS 830 P | G87: 235 | H87: 40 | I87: R | J87: 19 | K87: 92 | L87: V | M87: E | N87: C | O87: B | P87: 72 | Q87: 342.5 | R87: 256.875
A88: 03532100000 | B88: 4019238525489 | C88: PN CON 265/40R19 98 V TS830 P N0 | D88: N2654019VTS83098 | E88: TOURISME HIVER | F88: CO WINT TS 830 P | G88: 265 | H88: 40 | I88: R | J88: 19 | K88: 98 | L88: V | M88: E | N88: C | O88: B | P88: 73 | Q88: 365.5 | R88: 274.125
A89: 03532110000 | B89: 4019238525496 | C89: PN CON 285/35R19 99 V TS830 P N0 | D89: N2853519VTS83099 | E89: TOURISME HIVER | F89: CO WINT TS 830 P | G89: 285 | H89: 35 | I89: R | J89: 19 | K89: 99 | L89: V | M89: E | N89: C | O89: B | P89: 75 | Q89: 443.5 | R89: 332.625
A90: 03532120000 | B90: 4019238525502 | C90: PN CON 295/35R19 100 V TS830 P N0 | D90: N2953519VTS830100 | E90: TOURISME HIVER | F90: CO WINT TS 830 P | G90: 295 | H90: 35 | I90: R | J90: 19 | K90: 100 | L90: V | M90: E | N90: C | O90: B | P90: 75 | Q90: 455 | R90: 341.25
A91: 03532130000 | B91: 4019238525915 | C91: PN CON 235/55R17 99 H TS830 P AO | D91: N2355517HTS830PAO99 | E91: TOURISME HIVER | F91: CO WINT TS 830 P | G91: 235 | H91: 55 | I91: R | J91: 17 | K91: 99 | L91: H | M91: D | N91: C | O91: B | P91: 72 | Q91: 261.5 | R91: 196.125
A92: 03532140000 | B92: 4019238538380 | C92: PN CON 225/50R17 94H WIN TS830P AO FR | D92: N2255017HTS830AO94FR | E92: TOURISME HIVER | F92: CO WINT TS 830 P | G92: 225 | H92: 50 | I92: R | J92: 17 | K92: 94 | L92: H | M92: D | N92: C | O92: B | P92: 72 | Q92: 197.5 | R92: 148.125
A93: 03532170000 | B93: 4019238546439 | C93: PN CON 255/40R20 XL 101 V TS830 P | D93: N2554020VTS830101XL | E93: TOURISME HIVER | F93: CO WINT TS 830 P | G93: 255 | H93: 40 | I93: R | J93: 20 | K93: 101 | L93: V | M93: E | N93: C | O93: B | P93: 72 | Q93: 424 | R93: 318
A94: 03532180000 | B94: 4019238546446 | C94: PN CON 255/45R19 100 V TS830 P | D94: N2554519VTS830100 | E94: TOURISME HIVER | F94: CO WINT TS 830 P | G94: 255 | H94: 45 | I94: R | J94: 19 | K94: 100 | L94: V | M94: E | N94: C | O94: B | P94: 73 | Q94: 356 | R94: 267
A95: 03532190000 | B95: 4019238546453 | C95: PN CON 285/40R19 103 V TS830 P | D95: N2854019VTS830103 | E95: TOURISME HIVER | F95: CO WINT TS 830 P | G95: 285 | H95: 40 | I95: R | J95: 19 | K95: 103 | L95: V | M95: E | N95: C | O95: B | P95: 75 | Q95: 430 | R95: 322.5
A96: 03532330000 | B96: 4019238314441 | C96: PN CON 175/65R13 80 T TS800 | D96: N1756513TTS80080 | E96: TOURISME HIVER | F96: CO TS800 | G96: 175 | H96: 65 | I96: R | J96: 13 | K96: 80 | L96: T | M96: D | N96: C | O96: B | P96: 71 | Q96: 133.5 | R96: 100.125
A97: 03532490000 | B97: 4019238314588 | C97: PN CON 175/55R15 77 T TS800 FR | D97: N1755515TTS80077 | E97: TOURISME HIVER | F97: CO TS800 | G97: 175 | H97: 55 | I97: R | J97: 15 | K97: 77 | L97: T | M97: D | N97: C | O97: B | P97: 71 | Q97: 180.5 | R97: 135.375
A98: 03532520000 | B98: 4019238328073 | C98: PN CON 155/60R15 74 T TS800 FR | D98: N1556015TTS80074 | E98: TOURISME HIVER | F98: CO TS800 | G98: 155 | H98: 60 | I98: R | J98: 15 | K98: 74 | L98: T | M98: D | N98: C | O98: B | P98: 71 | Q98: 146.5 | R98: 109.875
A99: 03532540000 | B99: 4019238546460 | C99: PN CON 285/35R20 XL 104 V TS830 P | D99: N2853520VTS830104XL | E99: TOURISME HIVER | F99: CO WINT TS 830 P | G99: 285 | H99: 35 | I99: R | J99: 20 | K99: 104 | L99: V | M99: E | N99: C | O99: B | P99: 75 | Q99: 494 | R99: 370.5
A100: 03532570000 | B100: 4019238546644 | C100: PN CON 145/80R13 75 Q TS800 | D100: N1458013QTS80075 | E100: TOURISME HIVER | F100: CO TS800 | G100: 145 | H100: 80 | I100: R | J100: 13 | K100: 75 | L100: Q | M100: E | N100: C | O100: B | P100: 71 | Q100: 90 | R100: 67.5
A101: 03532580000 | B101: 4019238547160 | C101: PN CON 225/50R18 XL 99 V SSR TS830 P | D101: N2255018VTS83099XLRU | E101: TOURISME HIVER | F101: CO WINT TS 830 P | G101: 225 | H101: 50 | I101: R | J101: 18 | K101: 99 | L101: V | M101: E | N101: D | O101: B | P101: 72 | Q101: 334.5 | R101: 250.875
A102: 03532870000 | B102: 4019238317657 | C102: PN CON 175/65R15 84 T TS810 S* | D102: N1756515TTS81084 | E102: TOURISME HIVER | F102: CO WINT TS810S | G102: 175 | H102: 65 | I102: R | J102: 15 | K102: 84 | L102: T | M102: D | N102: D | O102: B | P102: 71 | Q102: 112 | R102: 84
A103: 03533350000 | B103: 4019238279115 | C103: PN CON 245/45R18 XL 100 V TS810 | D103: N2454518VTS810XL100 | E103: TOURISME HIVER | F103: CO WINT TS810S | G103: 245 | H103: 45 | I103: R | J103: 18 | K103: 100 | L103: V | M103: D | N103: D | O103: B | P103: 72 | Q103: 272.5 | R103: 204.375
A104: 03533750000 | B104: 4019238295016 | C104: PN CON 255/45R18 99 V TS810 S FR MO | D104: N2554518VTS81099 | E104: TOURISME HIVER | F104: CO WINT TS810S | G104: 255 | H104: 45 | I104: R | J104: 18 | K104: 99 | L104: V | M104: D | N104: C | O104: B | P104: 72 | Q104: 321.5 | R104: 241.125
A105: 03533900000 | B105: 4019238311648 | C105: PN CON 245/45R17 XL 99 V TS810 S MO | D105: N2454517VTS81099XL | E105: TOURISME HIVER | F105: CO WINT TS810S | G105: 245 | H105: 45 | I105: R | J105: 17 | K105: 99 | L105: V | M105: D | N105: C | O105: B | P105: 72 | Q105: 295 | R105: 221.25
A106: 03534550000 | B106: 4019238561241 | C106: PN CON 255/35R19 XL 96 V TS830 P FR | D106: N2553519VTS83096XL | E106: TOURISME HIVER | F106: CO WINT TS 830 P | G106: 255 | H106: 35 | I106: R | J106: 19 | K106: 96 | L106: V | M106: D | N106: C | O106: B | P106: 73 | Q106: 354.5 | R106: 265.875
A107: 03534640000 | B107: 4019238561364 | C107: PN CON 225/50R17 94 H TS830 P | D107: N2255017HTS83094CO | E107: TOURISME HIVER | F107: CO WINT TS 830 P | G107: 225 | H107: 50 | I107: R | J107: 17 | K107: 94 | L107: H | M107: D | N107: C | O107: B | P107: 72 | Q107: 197.5 | R107: 148.125
A108: 03534680000 | B108: 4019238563733 | C108: PN CON 225/40R18 XL 92 V TS830 P AO | D108: N2254018VTS83092XLCO | E108: TOURISME HIVER | F108: CO WINT TS 830 P | G108: 225 | H108: 40 | I108: R | J108: 18 | K108: 92 | L108: V | M108: D | N108: C | O108: B | P108: 72 | Q108: 215 | R108: 161.25
A109: 03534690000 | B109: 4019238563740 | C109: PN CON 205/55R16 91 H TS830P AO | D109: N2055516HTS830PAO91 | E109: TOURISME HIVER | F109: CO WINT TS 830 P | G109: 205 | H109: 55 | I109: R | J109: 16 | K109: 91 | L109: H | M109: D | N109: C | O109: B | P109: 72 | Q109: 151 | R109: 113.25
A110: 03534730000 | B110: 4019238571462 | C110: PN CON 245/40R20 99V FR TS830P RO1 XL | D110: N2454020VTS830RO99FR | E110: TOURISME HIVER | F110: CO WINT TS 830 P | G110: 245 | H110: 40 | I110: R | J110: 20 | K110: 99 | L110: V | M110: D | N110: C | O110: B | P110: 72 | Q110: 434 | R110: 325.5
A111: 03535170000 | B111: 4019238593396 | C111: PN CON 295/30R19 XL 100 W TS830 P | D111: N2953019WTS830100XLC | E111: TOURISME HIVER | F111: CO WINT TS 830 P | G111: 295 | H111: 30 | I111: R | J111: 19 | K111: 100 | L111: W | M111: D | N111: C | O111: B | P111: 75 | Q111: 482.5 | R111: 361.875
A112: 03535180000 | B112: 4019238593440 | C112: PN CON 235/40R18 XL 95 V TS830 P | D112: N2354018VTS83095XLCO | E112: TOURISME HIVER | F112: CO WINT TS 830 P | G112: 235 | H112: 40 | I112: R | J112: 18 | K112: 95 | L112: V | M112: D | N112: C | O112: B | P112: 72 | Q112: 276.5 | R112: 207.375
A113: 03535190000 | B113: 4019238593433 | C113: PN CON 255/35R18 XL 94 V TS830 P | D113: N2553518VTS83094XLCO | E113: TOURISME HIVER | F113: CO WINT TS 830 P | G113: 255 | H113: 35 | I113: R | J113: 18 | K113: 94 | L113: V | M113: D | N113: C | O113: B | P113: 72 | Q113: 320 | R113: 240
A114: 03536890000 | B114: 4019238176858 | C114: PN CON 235/65R17 104 H 4X4 W.CO | D114: N2356517H4X4WI104 | E114: 4x4 HIVER | F114: CO 4X4WINTCTC | G114: 235 | H114: 65 | I114: R | J114: 17 | K114: 104 | L114: H | M114: D | N114: D | O114: B | P114: 72 | Q114: 239.5 | R114: 179.625
A115: 03536970000 | B115: 4019238598506 | C115: PN CON 255/45R17 98 V TS830 P | D115: N2554517VTS83098CO | E115: TOURISME HIVER | F115: CO WINT TS 830 P | G115: 255 | H115: 45 | I115: R | J115: 17 | K115: 98 | L115: V | M115: E | N115: C | O115: B | P115: 73 | Q115: 408 | R115: 306
A116: 03536980000 | B116: 4019238598797 | C116: PN CON 265/30R20 94 V TS830 P RO1# | D116: N2653020VTS83094 | E116: TOURISME HIVER | F116: CO WINT TS 830 P | G116: 265 | H116: 30 | I116: R | J116: 20 | K116: 94 | L116: V | M116: E | N116: C | O116: B | P116: 73 | Q116: 530 | R116: 397.5
A117: 03537280000 | B117: 4019238208290 | C117: PN CON 255/40R17 XL 98 V TS790 FR | D117: N2554017VTS79098XL | E117: TOURISME HIVER | F117: CO WIN TS790V | G117: 255 | H117: 40 | I117: R | J117: 17 | K117: 98 | L117: V | M117: D | N117: C | O117: B | P117: 73 | Q117: 352 | R117: 264
A118: 03537510000 | B118: 4019238598735 | C118: PN CON 235/55R18 XL 104 H TS830 P | D118: N2355518HTS830104XL | E118: TOURISME HIVER | F118: CO WINT TS 830 P | G118: 235 | H118: 55 | I118: R | J118: 18 | K118: 104 | L118: H | M118: D | N118: C | O118: B | P118: 72 | Q118: 287 | R118: 215.25
A119: 03537560000 | B119: 4019238599299 | C119: PN CON 245/40R19 XL 98 V TS830 P | D119: N2454019VTS83098XL | E119: TOURISME HIVER | F119: CO WINT TS 830 P | G119: 245 | H119: 40 | I119: R | J119: 19 | K119: 98 | L119: V | M119: D | N119: C | O119: B | P119: 72 | Q119: 384.5 | R119: 288.375
A120: 03537590000 | B120: 4019238601701 | C120: PN CON 225/50R18 XL 99 H TS830P AO FR# | D120: N2255018HTS830PA99XL | E120: TOURISME HIVER | F120: CO WINT TS 830 P | G120: 225 | H120: 50 | I120: R | J120: 18 | K120: 99 | L120: H | M120: D | N120: C | O120: B | P120: 72 | Q120: 283.5 | R120: 212.625
A121: 03537610000 | B121: 4019238606287 | C121: PN CON 295/30R20 XL 101 W FR TS830P RO | D121: N2953020WFRTS8101XL | E121: TOURISME HIVER | F121: CO WINT TS 830 P | G121: 295 | H121: 30 | I121: R | J121: 20 | K121: 101 | L121: W | M121: D | N121: C | O121: B | P121: 75 | Q121: 619 | R121: 464.25
A122: 03537640000 | B122: 4019238606300 | C122: PN CON 285/35R20 XL 104 V TS830 P | D122: N2853520VTS830104XLC | E122: TOURISME HIVER | F122: CO WINT TS 830 P | G122: 285 | H122: 35 | I122: R | J122: 20 | K122: 104 | L122: V | M122: D | N122: D | O122: B | P122: 75 | Q122: 494 | R122: 370.5
A123: 03537650000 | B123: 4019238606317 | C123: PN CON 255/40R20 XL 101 V TS830 P | D123: N2554020VTS830101XLC | E123: TOURISME HIVER | F123: CO WINT TS 830 P | G123: 255 | H123: 40 | I123: R | J123: 20 | K123: 101 | L123: V | M123: D | N123: D | O123: B | P123: 73 | Q123: 424 | R123: 318
A124: 03537680000 | B124: 4019238606485 | C124: PN CON 295/35R19 XL 104 W FR TS830P RO | D124: N2953519WFRTS8104XL | E124: TOURISME HIVER | F124: CO WINT TS 830 P | G124: 295 | H124: 35 | I124: R | J124: 19 | K124: 104 | L124: W | M124: C | N124: C | O124: B | P124: 75 | Q124: 491.5 | R124: 368.625
A125: 03537700000 | B125: 4019238606492 | C125: PN CON 245/35R19 XL 93 W FR TS830P RO1 | D125: N2453519WFRTS893XL | E125: TOURISME HIVER | F125: CO WINT TS 830 P | G125: 245 | H125: 35 | I125: R | J125: 19 | K125: 93 | L125: W | M125: C | N125: C | O125: B | P125: 72 | Q125: 413 | R125: 309.75
A126: 03537740000 | B126: 4019238616590 | C126: PN CON 265/45R19 XL 105 V TS830P N0 | D126: N2654519VTS830P105XL | E126: TOURISME HIVER | F126: CO WINT TS 830 P | G126: 265 | H126: 45 | I126: R | J126: 19 | K126: 105 | L126: V | M126: D | N126: C | O126: B | P126: 73 | Q126: 370 | R126: 277.5
A127: 03537760000 | B127: 4019238616583 | C127: PN CON 295/40R19 XL 108 V TS830P N0 | D127: N2954019VTS830P108XL | E127: TOURISME HIVER | F127: CO WINT TS 830 P | G127: 295 | H127: 40 | I127: R | J127: 19 | K127: 108 | L127: V | M127: D | N127: C | O127: B | P127: 75 | Q127: 442 | R127: 331.5
A128: 03537780000 | B128: 4019238618501 | C128: PN CON 225/50R17 XL 98 H FR TS850P AO | D128: N2255017HFRTS898XL | E128: TOURISME HIVER | F128: CO WINT TS 850P | G128: 225 | H128: 50 | I128: R | J128: 17 | K128: 98 | L128: H | M128: D | N128: C | O128: B | P128: 72 | Q128: 222.5 | R128: 166.875
A129: 03537810000 | B129: 4019238618495 | C129: PN CON 255/50R20 XL 109 H TS830 P FR S | D129: N2555020HTS830109XL | E129: 4x4 HIVER | F129: CO WINT TS 830 P | G129: 255 | H129: 50 | I129: R | J129: 20 | K129: 109 | L129: H | M129: C | N129: C | O129: B | P129: 73 | Q129: 418.5 | R129: 313.875
A130: 03537830000 | B130: 4019238618488 | C130: PN CO 255/55R19 XL 111H TS830P FR SUV AO | D130: N2555519HTS830111XL | E130: 4x4 HIVER | F130: CO WINT TS 830 P | G130: 255 | H130: 55 | I130: R | J130: 19 | K130: 111 | L130: H | M130: C | N130: C | O130: B | P130: 73 | Q130: 377 | R130: 282.75
A131: 03537980000 | B131: 4019238618471 | C131: PN CON 255/60R18 108H TS830P SUV AO FR | D131: N2556018HTS830AO108F | E131: 4x4 HIVER | F131: CO WINT TS 830 P | G131: 255 | H131: 60 | I131: R | J131: 18 | K131: 108 | L131: H | M131: D | N131: C | O131: B | P131: 73 | Q131: 267.5 | R131: 200.625
A132: 03538250000 | B132: 4019238192858 | C132: PN CON 175/70R13 82 T TS780 | D132: N1757013TTS780 | E132: TOURISME HIVER | F132: CO TS780 | G132: 175 | H132: 70 | I132: R | J132: 13 | K132: 82 | L132: T | M132: E | N132: C | O132: B | P132: 71 | Q132: 113 | R132: 84.75
A133: 03539010000 | B133: 4019238631302 | C133: PN CON 235/45R19 XL 99 V TS830 P FR MO | D133: N2354519VTS83099XL | E133: TOURISME HIVER | F133: CO WINT TS 830 P | G133: 235 | H133: 45 | I133: R | J133: 19 | K133: 99 | L133: V | M133: D | N133: C | O133: B | P133: 72 | Q133: 323 | R133: 242.25
A134: 03539050000 | B134: 4019238640229 | C134: PN CON 205/60R16 92 H TS850P AO | D134: N2056016HTS850P92 | E134: TOURISME HIVER | F134: CO WINT TS 850P | G134: 205 | H134: 60 | I134: R | J134: 16 | K134: 92 | L134: H | M134: C | N134: C | O134: B | P134: 72 | Q134: 155.5 | R134: 116.625
A135: 03539070000 | B135: 4019238640281 | C135: PN CON 225/45R18 XL 95 H TS850 P FR MO | D135: N2254518HTS85095XL | E135: TOURISME HIVER | F135: CO WINT TS 850P | G135: 225 | H135: 45 | I135: R | J135: 18 | K135: 95 | L135: H | M135: D | N135: C | O135: B | P135: 72 | Q135: 255 | R135: 191.25
A136: 03539090000 | B136: 4019238640267 | C136: PN CON 245/40R18 XL 97 V FR TS850P AO | D136: N2454018VFRTS897XL | E136: TOURISME HIVER | F136: CO WINT TS 850P | G136: 245 | H136: 40 | I136: R | J136: 18 | K136: 97 | L136: V | M136: C | N136: B | O136: B | P136: 72 | Q136: 249.5 | R136: 187.125
A137: 03539100000 | B137: 4019238640250 | C137: PN CON 245/45R18 XL 100 V SSR FR TS850 | D137: N2454518VFRTS8100XLR | E137: TOURISME HIVER | F137: CO WINT TS 850P | G137: 245 | H137: 45 | I137: R | J137: 18 | K137: 100 | L137: V | M137: D | N137: C | O137: B | P137: 72 | Q137: 264.5 | R137: 198.375
A138: 03539110000 | B138: 4019238640243 | C138: PN CON 225/55R17 97 H TS850P*MO | D138: N2255517HTS850P97 | E138: TOURISME HIVER | F138: CO WINT TS 850P | G138: 225 | H138: 55 | I138: R | J138: 17 | K138: 97 | L138: H | M138: C | N138: C | O138: B | P138: 72 | Q138: 220.5 | R138: =Q138*(1-$D$3) -> 165.375
A139: 03539120000 | B139: 4019238640236 | C139: PN CON 225/55R17 97 H SSR TS850P*MO | D139: N2255517HTS850P97RU | E139: TOURISME HIVER | F139: CO WINT TS 850P | G139: 225 | H139: 55 | I139: R | J139: 17 | K139: 97 | L139: H | M139: D | N139: C | O139: B | P139: 72 | Q139: 243 | R139: 182.25
A140: 03539260000 | B140: 4019238641165 | C140: PN CON 235/45R17 94 H TS850 P FR | D140: N2354517HTS85094CO | E140: TOURISME HIVER | F140: CO WINT TS 850P | G140: 235 | H140: 45 | I140: R | J140: 17 | K140: 94 | L140: H | M140: C | N140: C | O140: B | P140: 72 | Q140: 283 | R140: 212.25
A141: 03539380000 | B141: 4019238646511 | C141: PN CON 215/60R16 XL 99 H TS830 P CS | D141: N2156016HTS83099XLCO | E141: TOURISME HIVER | F141: CO WINT TS 830 P | G141: 215 | H141: 60 | I141: R | J141: 16 | K141: 99 | L141: H | M141: D | N141: C | O141: B | P141: 72 | Q141: 212.5 | R141: 159.375
A142: 03539390000 | B142: 4019238651614 | C142: PN CON 225/50R17 94 H TS850 P FR AO | D142: N2255017HTS85094 | E142: TOURISME HIVER | F142: CO WINT TS 850P | G142: 225 | H142: 50 | I142: R | J142: 17 | K142: 94 | L142: H | M142: D | N142: C | O142: B | P142: 72 | Q142: 197.5 | R142: 148.125
A143: 03539420000 | B143: 4019238661736 | C143: PN CON 265/35R19 XL 98 V FR TS830P MO | D143: N2653519VFRTS898XL | E143: TOURISME HIVER | F143: CO WINT TS 830 P | G143: 265 | H143: 35 | I143: R | J143: 19 | K143: 98 | L143: V | M143: D | N143: C | O143: B | P143: 73 | Q143: 454.5 | R143: 340.875
A144: 03539430000 | B144: 4019238666151 | C144: PN CON 245/35R19 XL 93 V FR TS830P MO | D144: N2453519VFRTS893XL | E144: TOURISME HIVER | F144: CO WINT TS 830 P | G144: 245 | H144: 35 | I144: R | J144: 19 | K144: 93 | L144: V | M144: D | N144: C | O144: B | P144: 72 | Q144: 393 | R144: 294.75
A145: 03539450000 | B145: 4019238675337 | C145: PN CON 245/35R19 93 W TS830 P | D145: N2453519WTS83093 | E145: TOURISME HIVER | F145: CO WINT TS 830 P | G145: 245 | H145: 35 | I145: R | J145: 19 | K145: 93 | L145: W | M145: D | N145: C | O145: B | P145: 72 | Q145: 413 | R145: 309.75
A146: 03539680000 | B146: 4019238700077 | C146: PN CON 265/40R19 XL 102V TS 830 P * FR | D146: N2654019VTS830*102FR | E146: TOURISME HIVER | F146: CO WINT TS 830 P | G146: 265 | H146: 40 | I146: R | J146: 19 | K146: 102 | L146: V | M146: C | N146: B | O146: B | P146: 73 | Q146: 367 | R146: 275.25
A147: 03539770000 | B147: 4019238727067 | C147: PN CON 285/40R19 XL 107V TS 830 P * FR | D147: N2854019VTS830*107FR | E147: TOURISME HIVER | F147: CO WINT TS 830 P | G147: 285 | H147: 40 | I147: R | J147: 19 | K147: 107 | L147: V | M147: C | N147: B | O147: B | P147: 75 | Q147: 431.5 | R147: 323.625
A148: 03539810000 | B148: 4019238729757 | C148: PN CON 255/35R19 XL 96 V TS830P AO FR | D148: N2553519VTS830P96XL | E148: TOURISME HIVER | F148: CO WINT TS 830 P | G148: 255 | H148: 35 | I148: R | J148: 19 | K148: 96 | L148: V | M148: D | N148: C | O148: B | P148: 73 | Q148: 354.5 | R148: 265.875
A149: 03539850000 | B149: 4019238735727 | C149: PN CON 155/65R14 75 T TS860 | D149: N1556514TTS86075 | E149: TOURISME HIVER | F149: CO WINT TS 860 | G149: 155 | H149: 65 | I149: R | J149: 14 | K149: 75 | L149: T | M149: D | N149: B | O149: B | P149: 71 | Q149: 113 | R149: 84.75
A150: 03539880000 | B150: 4019238741421 | C150: PN CON 165/70R14 81 T TS860 | D150: N1657014TTS86081 | E150: TOURISME HIVER | F150: CO WINT TS 860 | G150: 165 | H150: 70 | I150: R | J150: 14 | K150: 81 | L150: T | M150: C | N150: B | O150: B | P150: 71 | Q150: 112 | R150: 84
A151: 03539900000 | B151: 4019238741520 | C151: PN CON 175/60R15 81 T TS860 | D151: N1756015TTS86081 | E151: TOURISME HIVER | F151: CO WINT TS 860 | G151: 175 | H151: 60 | I151: R | J151: 15 | K151: 81 | L151: T | M151: D | N151: B | O151: B | P151: 71 | Q151: 138 | R151: 103.5
A152: 03540290000 | B152: 4019238384147 | C152: PN CON 235/60R17 102 H CRC | D152: N2356017HCRC102 | E152: 4x4 HIVER | F152: CO C.C.WINT. | G152: 235 | H152: 60 | I152: R | J152: 17 | K152: 102 | L152: H | M152: D | N152: C | O152: B | P152: 72 | Q152: 282.5 | R152: 211.875
A153: 03540610000 | B153: 4019238424768 | C153: PN CON 245/65R17 XL 111 T C.C.WINT. | D153: N2456517TCCWI111XL | E153: 4x4 HIVER | F153: CO C.C.WINT. | G153: 245 | H153: 65 | I153: R | J153: 17 | K153: 111 | L153: T | M153: D | N153: C | O153: B | P153: 72 | Q153: 293.5 | R153: 220.125
A154: 03540760000 | B154: 4019238435856 | C154: PN CON 295/40R20 XL 110 V C.C.WINT.MO | D154: N2954020VCCWIMO110XL | E154: 4x4 HIVER | F154: CO C.C.WINT. | G154: 295 | H154: 40 | I154: R | J154: 20 | K154: 110 | L154: V | M154: D | N154: C | O154: B | P154: 75 | Q154: 480.5 | R154: 360.375
A155: 03541570000 | B155: 4019238517224 | C155: PN CON 235/65R18 110 H CCWINTER | D155: N2356518HCCWINT110 | E155: 4x4 HIVER | F155: CO C.C.WINT. | G155: 235 | H155: 65 | I155: R | J155: 18 | K155: 110 | L155: H | M155: C | N155: C | O155: B | P155: 72 | Q155: 283 | R155: 212.25
A156: 03542320000 | B156: 4019238563641 | C156: PN CON 255/50R19 XL 107 V SSR TS830 P | D156: N2555019VTS830107XLR | E156: 4x4 HIVER | F156: CO WINT TS 830 P | G156: 255 | H156: 50 | I156: R | J156: 19 | K156: 107 | L156: V | M156: E | N156: D | O156: B | P156: 72 | Q156: 301.5 | R156: 226.125
A157: 03542340000 | B157: 4019238563788 | C157: PN CON 235/60R18 103 V TS830 P | D157: N2356018VTS830103 | E157: 4x4 HIVER | F157: CO WINT TS 830 P | G157: 235 | H157: 60 | I157: R | J157: 18 | K157: 103 | L157: V | M157: E | N157: C | O157: B | P157: 72 | Q157: 258.5 | R157: 193.875
A158: 03542350000 | B158: 4019238563795 | C158: PN CON 255/55R18 105 V TS830 P | D158: N2555518VTS830105 | E158: 4x4 HIVER | F158: CO WINT TS 830 P | G158: 255 | H158: 55 | I158: R | J158: 18 | K158: 105 | L158: V | M158: E | N158: C | O158: B | P158: 72 | Q158: 244.5 | R158: 183.375
A159: 03542380000 | B159: 4019238568042 | C159: PN CON 275/40R22 XL 108 V C.C.WINT. | D159: N2754022VCCWI108XL | E159: 4x4 HIVER | F159: CO C.C.WINT. | G159: 275 | H159: 40 | I159: R | J159: 22 | K159: 108 | L159: V | M159: D | N159: C | O159: B | P159: 73 | Q159: 501 | R159: 375.75
A160: 03542510000 | B160: 4019238580006 | C160: PN CON 235/55R19 101 H C.C.WINT.AO | D160: N2355519HCCWI101 | E160: 4x4 HIVER | F160: CO C.C.WINT. | G160: 235 | H160: 55 | I160: R | J160: 19 | K160: 101 | L160: H | M160: D | N160: C | O160: B | P160: 72 | Q160: 298.5 | R160: 223.875
A161: 03542800000 | B161: 4019238591163 | C161: PN CON 275/45R21 XL 110 V C.C.WINT.FR | D161: N2754521VCCWI110XL | E161: 4x4 HIVER | F161: CO C.C.WINT. | G161: 275 | H161: 45 | I161: R | J161: 21 | K161: 110 | L161: V | M161: D | N161: C | O161: B | P161: 73 | Q161: 460.5 | R161: 345.375
A162: 03542840000 | B162: 4019238591521 | C162: PN CON 175/65R15 84 T C.C.WINT. | D162: N1756515TCCWI84CO | E162: 4x4 HIVER | F162: CO C.C.WINT. | G162: 175 | H162: 65 | I162: R | J162: 15 | K162: 84 | L162: T | M162: D | N162: C | O162: B | P162: 71 | Q162: 112 | R162: 84
A163: 03543350000 | B163: 4019238797275 | C163: PN CON 255/65R17 110H TS 850 P SUV FR | D163: N2556517HTS850P110FR | E163: 4x4 HIVER | F163: CO WINT TS 850P | G163: 255 | H163: 65 | I163: R | J163: 17 | K163: 110 | L163: H | M163: D | N163: B | O163: B | P163: 73 | Q163: 293 | R163: 219.75
A164: 03543420000 | B164: 4019238629545 | C164: PN CON 235/55R19 101H SSR TS850P SUV MOE | D164: N2355519HTS850101RU | E164: 4x4 HIVER | F164: CO WINT TS 850P | G164: 235 | H164: 55 | I164: R | J164: 19 | K164: 101 | L164: H | M164: D | N164: C | O164: B | P164: 72 | Q164: 318 | R164: 238.5
A165: 03543940000 | B165: 4019238797343 | C165: PN CON 275/45R21 XL 110V TS 850 P SUV FR | D165: N2754521VTS850P110FR | E165: 4x4 HIVER | F165: CO WINT TS 850P | G165: 275 | H165: 45 | I165: R | J165: 21 | K165: 110 | L165: V | M165: B | N165: B | O165: B | P165: 73 | Q165: 460.5 | R165: 345.375
A166: 03544020000 | B166: 4019238337716 | C166: PN CON 205/70R15 96 T C.C.WINT. | D166: N2057015TCCWI96 | E166: 4x4 HIVER | F166: CO C.C.WINT. | G166: 205 | H166: 70 | I166: R | J166: 15 | K166: 96 | L166: T | M166: D | N166: C | O166: B | P166: 72 | Q166: 198.5 | R166: 148.875
A167: 03544080000 | B167: 4019238337778 | C167: PN CON 225/75R16 104 T C.C.WINT. | D167: N2257516TCCWI104 | E167: 4x4 HIVER | F167: CO C.C.WINT. | G167: 225 | H167: 75 | I167: R | J167: 16 | K167: 104 | L167: T | M167: D | N167: C | O167: B | P167: 72 | Q167: 247.5 | R167: 185.625
A168: 03544090000 | B168: 4019238337792 | C168: PN CON 235/70R16 106 T C.C.WINT. | D168: N2357016TCCWI106 | E168: 4x4 HIVER | F168: CO C.C.WINT. | G168: 235 | H168: 70 | I168: R | J168: 16 | K168: 106 | L168: T | M168: D | N168: C | O168: B | P168: 72 | Q168: 250 | R168: 187.5
A169: 03544120000 | B169: 4019238337822 | C169: PN CON 265/70R16 112 T C.C.WINT. | D169: N2657016TCCWI112 | E169: 4x4 HIVER | F169: CO C.C.WINT. | G169: 265 | H169: 70 | I169: R | J169: 16 | K169: 112 | L169: T | M169: D | N169: C | O169: B | P169: 73 | Q169: 266.5 | R169: 199.875
A170: 03544320000 | B170: 4019238797213 | C170: PN CON 285/45R20 XL 112V TS 830P | D170: N2854520VTS830P112 | E170: 4x4 HIVER | F170: CO WINT TS 830 P | G170: 285 | H170: 45 | I170: R | J170: 20 | K170: 112 | L170: V | M170: C | N170: C | O170: B | P170: 75 | Q170: 462.5 | R170: 346.875
A171: 03544480000 | B171: 4019238673319 | C171: PN CON 235/55R19 101 H TS850P AO SUV | D171: N2355519HTS850P101 | E171: 4x4 HIVER | F171: CO WINT TS 850P | G171: 235 | H171: 55 | I171: R | J171: 19 | K171: 101 | L171: H | M171: C | N171: B | O171: B | P171: 72 | Q171: 298.5 | R171: 223.875
A172: 03544490000 | B172: 4019238673302 | C172: PN CON 255/45R20 101 V TS850P AO SUV | D172: N2554520VTS850P101 | E172: 4x4 HIVER | F172: CO WINT TS 850P | G172: 255 | H172: 45 | I172: R | J172: 20 | K172: 101 | L172: V | M172: D | N172: C | O172: B | P172: 73 | Q172: 374.5 | R172: 280.875
A173: 03544500000 | B173: 4019238673296 | C173: PN CON 235/65R17 104 H TS850P AO SUV | D173: N2356517HTS850P104 | E173: 4x4 HIVER | F173: CO WINT TS 850P | G173: 235 | H173: 65 | I173: R | J173: 17 | K173: 104 | L173: H | M173: C | N173: C | O173: B | P173: 72 | Q173: 239.5 | R173: 179.625
A174: 03544720000 | B174: 4019238691719 | C174: PN CON 225/70R16 103 H TS850P FR SUV | D174: N2257016HTS850P103 | E174: 4x4 HIVER | F174: CO WINT TS 850P | G174: 225 | H174: 70 | I174: R | J174: 16 | K174: 103 | L174: H | M174: D | N174: C | O174: B | P174: 72 | Q174: 260 | R174: 195
A175: 03544740000 | B175: 4019238691764 | C175: PN CON 245/70R16 107 T TS850P FR SUV | D175: N2457016TTS850P107 | E175: 4x4 HIVER | F175: CO WINT TS 850P | G175: 245 | H175: 70 | I175: R | J175: 16 | K175: 107 | L175: T | M175: D | N175: C | O175: B | P175: 72 | Q175: 252.5 | R175: 189.375
A176: 03544760000 | B176: 4019238691740 | C176: PN CON 255/60R17 106 H TS850P FR SUV | D176: N2556017HTS850P106 | E176: 4x4 HIVER | F176: CO WINT TS 850P | G176: 255 | H176: 60 | I176: R | J176: 17 | K176: 106 | L176: H | M176: C | N176: C | O176: B | P176: 73 | Q176: 304.5 | R176: 228.375
A177: 03544770000 | B177: 4019238691665 | C177: PN CON 265/65R17 112 T TS850P FR SUV | D177: N2656517TTS850P112 | E177: 4x4 HIVER | F177: CO WINT TS 850P | G177: 265 | H177: 65 | I177: R | J177: 17 | K177: 112 | L177: T | M177: C | N177: C | O177: B | P177: 73 | Q177: 292 | R177: 219
A178: 03544860000 | B178: 4019238804065 | C178: PN CON 275/40R21 XL 107V TS 860 S N0 FR | D178: N2754021VTS860N0107F | E178: 4x4 HIVER | F178: CO WINT TS 860 S | G178: 275 | H178: 40 | I178: R | J178: 21 | K178: 107 | L178: V | M178: C | N178: B | O178: B | P178: 73 | Q178: 472.5 | R178: 354.375
A179: 03544890000 | B179: 4019238697858 | C179: PN CON 275/45R20 XL 110V TS 830 P SUV N0 | D179: N2754520VTS830N0110F | E179: 4x4 HIVER | F179: CO WINT TS 830 P | G179: 275 | H179: 45 | I179: R | J179: 20 | K179: 110 | L179: V | M179: D | N179: C | O179: B | P179: 73 | Q179: 457 | R179: 342.75
A180: 03544900000 | B180: 4019238697841 | C180: PN CON 305/40R20 XL 112V TS 830 P SUV N0 | D180: N3054020VTS830N0112F | E180: 4x4 HIVER | F180: CO WINT TS 830 P | G180: 305 | H180: 40 | I180: R | J180: 20 | K180: 112 | L180: V | M180: D | N180: C | O180: B | P180: 75 | Q180: 473.5 | R180: 355.125
A181: 03545090000 | B181: 4019238804058 | C181: PN CON 305/35R21 XL 109V TS 860 S N0 FR | D181: N3053521VTS860N0109F | E181: 4x4 HIVER | F181: CO WINT TS 860 S | G181: 305 | H181: 35 | I181: R | J181: 21 | K181: 109 | L181: V | M181: C | N181: B | O181: B | P181: 75 | Q181: 514 | R181: 385.5
A182: 03546260000 | B182: 4019238214666 | C182: PN CON 255/55R18 105 H 4X4 W.CO | D182: N2555518H4X4WI105 | E182: 4x4 HIVER | F182: CO 4X4WINTCTC | G182: 255 | H182: 55 | I182: R | J182: 18 | K182: 105 | L182: H | M182: D | N182: D | O182: B | P182: 73 | Q182: 243.5 | R182: 182.625
A183: 03546880000 | B183: 4019238311266 | C183: PN CON 235/65R17 104 H 4X4 W.CO ML MO | D183: N2356517H4X4W104 | E183: 4x4 HIVER | F183: CO 4X4WINTCTC | G183: 235 | H183: 65 | I183: R | J183: 17 | K183: 104 | L183: H | M183: D | N183: C | O183: B | P183: 72 | Q183: 239.5 | R183: 179.625
A184: 03547250000 | B184: 4019238203042 | C184: PN CON 235/60R18 XL 107 H 4X4 W.CO FR | D184: N2356018H4X4W107XL | E184: 4x4 HIVER | F184: CO 4X4WINTCTC | G184: 235 | H184: 60 | I184: R | J184: 18 | K184: 107 | L184: H | M184: D | N184: C | O184: B | P184: 72 | Q184: 237.5 | R184: 178.125
A185: 03547280000 | B185: 4019238293999 | C185: PN CON 265/60R18 110 H 4X4 W.CO ML MO | D185: N2656018H4X4W110 | E185: 4x4 HIVER | F185: CO 4X4WINTCTC | G185: 265 | H185: 60 | I185: R | J185: 18 | K185: 110 | L185: H | M185: D | N185: C | O185: B | P185: 73 | Q185: 303 | R185: 227.25
A186: 03547480000 | B186: 4019238807462 | C186: PN CON 255/55R19 XL 111H TS 850 P SUV AO | D186: N2555519HTS850AO111F | E186: 4x4 HIVER | F186: CO WINT TS 850P | G186: 255 | H186: 55 | I186: R | J186: 19 | K186: 111 | L186: H | M186: B | N186: B | O186: B | P186: 73 | Q186: 377 | R186: 282.75
A187: 03547530000 | B187: 4019238807455 | C187: PN CON 255/50R20 XL 109H TS 850 P SUV AO | D187: N2555020HTS850AO109F | E187: 4x4 HIVER | F187: CO WINT TS 850P | G187: 255 | H187: 50 | I187: R | J187: 20 | K187: 109 | L187: H | M187: C | N187: B | O187: B | P187: 73 | Q187: 418.5 | R187: 313.875
A188: 03547560000 | B188: 4019238807448 | C188: PN CON 215/65R17 99H TS 850 P SUV AO FR | D188: N2156517HTS850AO99FR | E188: 4x4 HIVER | F188: CO WINT TS 850P | G188: 215 | H188: 65 | I188: R | J188: 17 | K188: 99 | L188: H | M188: C | N188: B | O188: B | P188: 72 | Q188: 236 | R188: 177
A189: 03547650000 | B189: 4019238743333 | C189: PN CON 255/60R19 XL 113 V TS850P SUV | D189: N2556019VTS850P113XL | E189: 4x4 HIVER | F189: CO WINT TS 850P | G189: 255 | H189: 60 | I189: R | J189: 19 | K189: 113 | L189: V | M189: B | N189: C | O189: B | P189: 73 | Q189: 418 | R189: 313.5
A190: 03547660000 | B190: 4019238743302 | C190: PN CON 225/60R17 99 H SSR TS830P SUV | D190: N2256017HTS830P99RU | E190: 4x4 HIVER | F190: CO WINT TS 830 P | G190: 225 | H190: 60 | I190: R | J190: 17 | K190: 99 | L190: H | M190: D | N190: C | O190: B | P190: 72 | Q190: 314 | R190: 235.5
A191: 03547680000 | B191: 4019238233896 | C191: PN CON 215/60R17 FR 96 H 4X4 W.CO | D191: N2156017H4X4WIFR96 | E191: 4x4 HIVER | F191: CO 4X4WINTCTC | G191: 215 | H191: 60 | I191: R | J191: 17 | K191: 96 | L191: H | M191: E | N191: D | O191: B | P191: 72 | Q191: 211 | R191: 158.25
A192: 03547700000 | B192: 4019238313000 | C192: PN CON 235/55R17 99 H 4X4 W.CO* | D192: N2355517H4X4W99 | E192: 4x4 HIVER | F192: CO 4X4WINTCTC | G192: 235 | H192: 55 | I192: R | J192: 17 | K192: 99 | L192: H | M192: D | N192: D | O192: B | P192: 72 | Q192: 261.5 | R192: 196.125
A193: 03547760000 | B193: 4019238744040 | C193: PN CON 235/70R18 XL 110 V TS850P SUV | D193: N2357018VTS850P110XL | E193: 4x4 HIVER | F193: CO WINT TS 850P | G193: 235 | H193: 70 | I193: R | J193: 18 | K193: 110 | L193: V | M193: C | N193: C | O193: B | P193: 72 | Q193: 295.5 | R193: 221.625
A194: 03547860000 | B194: 4019238744019 | C194: PN CON 235/60R20 XL 108 V TS850P SUV | D194: N2356020VTS850P108XL | E194: 4x4 HIVER | F194: CO WINT TS 850P | G194: 235 | H194: 60 | I194: R | J194: 20 | K194: 108 | L194: V | M194: B | N194: C | O194: B | P194: 72 | Q194: 325 | R194: 243.75
A195: 03547890000 | B195: 4019238744125 | C195: PN CON 265/45R20 XL 108 W TS830P SUV | D195: N2654520WTS830P108XL | E195: 4x4 HIVER | F195: CO WINT TS 830 P | G195: 265 | H195: 45 | I195: R | J195: 20 | K195: 108 | L195: W | M195: C | N195: C | O195: B | P195: 73 | Q195: 491.5 | R195: 368.625
A196: 03547900000 | B196: 4019238744118 | C196: PN CON 295/40R20 XL 110 W TS830P SUV | D196: N2954020WTS830P110XL | E196: 4x4 HIVER | F196: CO WINT TS 830 P | G196: 295 | H196: 40 | I196: R | J196: 20 | K196: 110 | L196: W | M196: C | N196: C | O196: B | P196: 75 | Q196: 531 | R196: 398.25
A197: 03547930000 | B197: 4019238749663 | C197: PN CON 215/60R18 98H SSR TS 850P SUV MOE | D197: N2156018HTS850MO98RU | E197: 4x4 HIVER | F197: CO WINT TS 850P | G197: 215 | H197: 60 | I197: R | J197: 18 | K197: 98 | L197: H | M197: D | N197: B | O197: B | P197: 72 | Q197: 262.5 | R197: 196.875
A198: 03548000000 | B198: 4019238752137 | C198: PN CON 275/50R20 XL 113V TS 850 P SUV MO | D198: N2755020VTS850PMO113 | E198: 4x4 HIVER | F198: CO WINT TS 850P | G198: 275 | H198: 50 | I198: R | J198: 20 | K198: 113 | L198: V | M198: C | N198: B | O198: B | P198: 73 | Q198: 386 | R198: 289.5
A199: 03549310000 | B199: 4019238780901 | C199: PN CON 215/65R16 98 H CCCW AO | D199: N2156516HCCCWA98 | E199: 4x4 HIVER | F199: CO C.C.WINT. | G199: 215 | H199: 65 | I199: R | J199: 16 | K199: 98 | L199: H | M199: D | N199: C | O199: B | P199: 72 | Q199: 187.5 | R199: 140.625
A200: 03549510000 | B200: 4019238782448 | C200: PN CON 265/50R20 XL 111H TS 850 P SUV AO | D200: N2655020HTS850AO111F | E200: 4x4 HIVER | F200: CO WINT TS 850P | G200: 265 | H200: 50 | I200: R | J200: 20 | K200: 111 | L200: H | M200: C | N200: B | O200: B | P200: 73 | Q200: 444.5 | R200: 333.375
A201: 03549520000 | B201: 4019238782493 | C201: PN CON 285/45R21 XL 113V TS 850 P SUV AO | D201: N2854521VTS850AO113F | E201: 4x4 HIVER | F201: CO WINT TS 850P | G201: 285 | H201: 45 | I201: R | J201: 21 | K201: 113 | L201: V | M201: C | N201: B | O201: B | P201: 75 | Q201: 505 | R201: 378.75
A202: 03550150000 | B202: 4019238744101 | C202: PN CON 205/45R17 XL 88V SSR TS 830 P FR | D202: N2054517VTS830P88RUF | E202: TOURISME HIVER | F202: CO WINT TS 830 P | G202: 205 | H202: 45 | I202: R | J202: 17 | K202: 88 | L202: V | M202: D | N202: C | O202: B | P202: 72 | Q202: 268 | R202: =Q202*(1-$D$3) -> 201
A203: 03550160000 | B203: 4019238744095 | C203: PN CON 225/50R17 XL 98 V SSR TS830P | D203: N2255017VTS830P98XLR | E203: TOURISME HIVER | F203: CO WINT TS 830 P | G203: 225 | H203: 50 | I203: R | J203: 17 | K203: 98 | L203: V | M203: D | N203: C | O203: B | P203: 72 | Q203: 267 | R203: 200.25
... 471 more rows

Sheet DUN
D2: Remise
D3: =Remises!T8 -> 0.345
A5: Actualisation au 04/04/2024
A7: REFERENCES PNEUMATIQUES | Q7: TARIFS
A8: CAI | B8: EAN | C8: Désignation | D8: Appellation | E8: Catégorie | F8: Profil | G8: Largeur | H8: Hauteur | I8: Structure | J8: Diamètre | K8: IC | L8: IV | M8: Conso. | N8: Frein. | O8: Bruit. | P8: Décibels. | Q8: Prix BF | R8: Prix Remisé
A9: 518092 | B9: 4038526277312 | C9: PN DUN 235/35R19 XL 91 W SPWS 3D | D9: N2353519WSPWS391XL | E9: TOURISME HIVER | F9: DU SW3D | G9: 235 | H9: 35 | I9: R | J9: 19 | K9: 91 | L9: W | M9: D | N9: C | O9: A | P9: 69 | Q9: 382 | R9: =Q9*(1-$D$3) -> 250.21
A10: 518281 | B10: 4038526279972 | C10: PN DUN 245/50R18 100 H ROF SP3D*MFS | D10: N2455018HSP3D*M100RU | E10: TOURISME HIVER | F10: DU SW3D | G10: 245 | H10: 50 | I10: R | J10: 18 | K10: 100 | L10: H | M10: E | N10: D | O10: B | P10: 71 | Q10: 354.5 | R10: =Q10*(1-$D$3) -> 232.1975
A11: 519531 | B11: 4038526290717 | C11: PN DUN 255/45R17 98 V SP3D MFS MO | D11: N2554517VSP3DM98 | E11: TOURISME HIVER | F11: DU SW3D | G11: 255 | H11: 45 | I11: R | J11: 17 | K11: 98 | L11: V | M11: D | N11: C | O11: A | P11: 70 | Q11: 401 | R11: 262.655
A12: 521073 | B12: 4038526259509 | C12: PN DUN 245/45R19 XL 102V SP3D* ROF MFS | D12: N2454519VSP3D*102XL | E12: TOURISME HIVER | F12: DU SW3D | G12: 245 | H12: 45 | I12: R | J12: 19 | K12: 102 | L12: V | M12: D | N12: D | O12: B | P12: 71 | Q12: 428.5 | R12: 280.6675
A13: 521120 | B13: 4038526289049 | C13: PN DUN 275/35R20 XL 102 W SP3D | D13: N2753520WSP3D102XL | E13: TOURISME HIVER | F13: DU SW3D | G13: 275 | H13: 35 | I13: R | J13: 20 | K13: 102 | L13: W | M13: D | N13: D | O13: B | P13: 72 | Q13: 519 | R13: 339.945
A14: 522180 | B14: 4038526313218 | C14: PN DUN 185/50R17 XL 86 H ROF SP3D*MFS | D14: N1855017HSP3D*M86XLR | E14: TOURISME HIVER | F14: DU SW3D | G14: 185 | H14: 50 | I14: R | J14: 17 | K14: 86 | L14: H | M14: D | N14: C | O14: B | P14: 71 | Q14: 256.5 | R14: 168.0075
A15: 523186 | B15: 4038526320360 | C15: PN DUN 225/55R16 95 H SP3D MFS AO | D15: N2255516HSP3DMFS95 | E15: TOURISME HIVER | F15: DU SW3D | G15: 225 | H15: 55 | I15: R | J15: 16 | K15: 95 | L15: H | M15: E | N15: D | O15: B | P15: 70 | Q15: 212.5 | R15: 139.1875
A16: 523189 | B16: 4038526320384 | C16: PN DUN 225/50R17 94 H SP3D MFS AO | D16: N2255017HSP3DMFS94 | E16: TOURISME HIVER | F16: DU SW3D | G16: 225 | H16: 50 | I16: R | J16: 17 | K16: 94 | L16: H | M16: E | N16: D | O16: B | P16: 70 | Q16: 203.5 | R16: 133.2925
A17: 523283 | B17: 4038526320421 | C17: PN DUN 245/40R18 XL 97 V SP3D MFS AO | D17: N2454018VSP3DMFS97XL | E17: TOURISME HIVER | F17: DU SW3D | G17: 245 | H17: 40 | I17: R | J17: 18 | K17: 97 | L17: V | M17: E | N17: D | O17: B | P17: 70 | Q17: 262.5 | R17: 171.9375
A18: 523327 | B18: 4038526320889 | C18: PN DUN 235/55R18 XL 104 H SP3D AO | D18: N2355518HSP3DA104XL | E18: 4x4 HIVER | F18: DU SW3D | G18: 235 | H18: 55 | I18: R | J18: 18 | K18: 104 | L18: H | M18: D | N18: C | O18: B | P18: 72 | Q18: 302.5 | R18: 198.1375
A19: 523328 | B19: 4038526320896 | C19: PN DUN 235/50R19 XL 103 H SP3D AO | D19: N2355019HSP3DA103XL | E19: TOURISME HIVER | F19: DU SW3D | G19: 235 | H19: 50 | I19: R | J19: 19 | K19: 103 | L19: H | M19: D | N19: C | O19: B | P19: 71 | Q19: 365.5 | R19: 239.4025
A20: 523432 | B20: 4038526320704 | C20: PN DUN 235/40R19 XL 96V SP3D MFS MO RO1 | D20: N2354019VSP3DM96XL | E20: TOURISME HIVER | F20: DU SW3D | G20: 235 | H20: 40 | I20: R | J20: 19 | K20: 96 | L20: V | M20: D | N20: D | O20: B | P20: 71 | Q20: 359 | R20: 235.145
A21: 523930 | B21: 4038526322159 | C21: PN DUN 205/50R17 XL 93 H SP3D MFS AO | D21: N2055017HSP3DM93XL | E21: TOURISME HIVER | F21: DU SW3D | G21: 205 | H21: 50 | I21: R | J21: 17 | K21: 93 | L21: H | M21: E | N21: D | O21: B | P21: 71 | Q21: 211 | R21: 138.205
A22: 524840 | B22: 3188649805389 | C22: PN DUN 275/45R20 XL 110 V SP3D N0 | D22: N2754520VSP3DN110XL | E22: 4x4 HIVER | F22: DU SW3D | G22: 275 | H22: 45 | I22: R | J22: 20 | K22: 110 | L22: V | M22: D | N22: C | O22: B | P22: 72 | Q22: 492 | R22: 322.26
A23: 525556 | B23: 3188649806539 | C23: PN DUN 225/60R17 99 H SP3D* | D23: N2256017HSP3D*99 | E23: 4x4 HIVER | F23: DU SW3D | G23: 225 | H23: 60 | I23: R | J23: 17 | K23: 99 | L23: H | M23: D | N23: C | O23: B | P23: 72 | Q23: 289.5 | R23: 189.6225
A24: 525557 | B24: 3188649806546 | C24: PN DUN 225/60R17 99 H ROF SP3D* | D24: N2256017HSP3D*99RU | E24: 4x4 HIVER | F24: DU SW3D | G24: 225 | H24: 60 | I24: R | J24: 17 | K24: 99 | L24: H | M24: D | N24: D | O24: B | P24: 72 | Q24: 318.5 | R24: 208.6175
A25: 525817 | B25: 3188649808793 | C25: PN DUN 255/40R18 XL 99 V SP4D MS MO | D25: N2554018VSP4DM99XL | E25: TOURISME HIVER | F25: DU SW3D | G25: 255 | H25: 40 | I25: R | J25: 18 | K25: 99 | L25: V | M25: D | N25: C | O25: B | P25: 73 | Q25: 304.5 | R25: 199.4475
A26: 525894 | B26: 3188649808854 | C26: PN DUN 265/35R20 XL 99 V SP3D MFS AO | D26: N2653520VSP3DMF99XL | E26: TOURISME HIVER | F26: DU SW3D | G26: 265 | H26: 35 | I26: R | J26: 20 | K26: 99 | L26: V | M26: D | N26: C | O26: B | P26: 72 | Q26: 533.5 | R26: 349.4425
A27: 525895 | B27: 3188649808861 | C27: PN DUN 235/45R19 XL 99 V SP3D AO | D27: N2354519VSP3DA99XL | E27: TOURISME HIVER | F27: DU SW3D | G27: 235 | H27: 45 | I27: R | J27: 19 | K27: 99 | L27: V | M27: D | N27: D | O27: B | P27: 72 | Q27: 336.5 | R27: 220.4075
A28: 525998 | B28: 3188649809226 | C28: PN DUN 205/55R16 91 H ROF SP3D MOE | D28: N2055516HSP3DM91RU | E28: TOURISME HIVER | F28: DU SW3D | G28: 205 | H28: 55 | I28: R | J28: 16 | K28: 91 | L28: H | M28: D | N28: C | O28: B | P28: 70 | Q28: 189.5 | R28: 124.1225
A29: 526250 | B29: 3188649809714 | C29: PN DUN 215/40R17 XL 87 V SP3D AO | D29: N2154017VSP3DA87XL | E29: TOURISME HIVER | F29: DU SW3D | G29: 215 | H29: 40 | I29: R | J29: 17 | K29: 87 | L29: V | M29: E | N29: D | O29: A | P29: 69 | Q29: 263.5 | R29: 172.5925
A30: 526253 | B30: 3188649809738 | C30: PN DUN 225/50R18 XL 99 H SP3D AO | D30: N2255018HSP3DA99XL | E30: TOURISME HIVER | F30: DU SW3D | G30: 225 | H30: 50 | I30: R | J30: 18 | K30: 99 | L30: H | M30: D | N30: D | O30: B | P30: 71 | Q30: 308 | R30: 201.74
A31: 526714 | B31: 3188649811342 | C31: PN DUN 205/55R16 91 H SPWS 3D MS* | D31: N2055516HSPWS391 | E31: TOURISME HIVER | F31: DU SW3D | G31: 205 | H31: 55 | I31: R | J31: 16 | K31: 91 | L31: H | M31: D | N31: C | O31: B | P31: 72 | Q31: 158 | R31: 103.49
A32: 526747 | B32: 3188649811120 | C32: PN DUN 215/60R17 96 H SP3D AO | D32: N2156017HSP3DA96 | E32: TOURISME HIVER | F32: DU SW3D | G32: 215 | H32: 60 | I32: R | J32: 17 | K32: 96 | L32: H | M32: D | N32: D | O32: B | P32: 71 | Q32: 218 | R32: 142.79
A33: 526897 | B33: 5452000392183 | C33: PN DUN 225/55R16 95 H ROF SP4D* MFS | D33: N2255516HSP4D*95RU | E33: TOURISME HIVER | F33: DU SP W 4D | G33: 225 | H33: 55 | I33: R | J33: 16 | K33: 95 | L33: H | M33: E | N33: C | O33: B | P33: 72 | Q33: 247 | R33: 161.785
A34: 526898 | B34: 3188649811571 | C34: PN DUN 225/55R16 95 H SP4D* MFS | D34: N2255516HSP4D*95 | E34: TOURISME HIVER | F34: DU SP W 4D | G34: 225 | H34: 55 | I34: R | J34: 16 | K34: 95 | L34: H | M34: E | N34: C | O34: B | P34: 70 | Q34: 212.5 | R34: 139.1875
A35: 527450 | B35: 3188649814619 | C35: PN DUN 255/35R20 XL 97 W SPWS 3D AO FP | D35: N2553520WSPWS397XL | E35: TOURISME HIVER | F35: DU SW3D | G35: 255 | H35: 35 | I35: R | J35: 20 | K35: 97 | L35: W | M35: D | N35: C | O35: B | P35: 72 | Q35: 451 | R35: 295.405
A36: 527587 | B36: 3188649815111 | C36: PN DUN 235/55R18 100 H SP3D AO | D36: N2355518HSP3DA100 | E36: 4x4 HIVER | F36: DU SW3D | G36: 235 | H36: 55 | I36: R | J36: 18 | K36: 100 | L36: H | M36: D | N36: D | O36: B | P36: 72 | Q36: 293.5 | R36: 192.2425
A37: 527622 | B37: 3188649815197 | C37: PN DUN 245/50R18 XL 104 V SP4D MOE | D37: N2455018VSP4DM104XL | E37: TOURISME HIVER | F37: DU SP W 4D | G37: 245 | H37: 50 | I37: R | J37: 18 | K37: 104 | L37: V | M37: C | N37: C | O37: B | P37: 72 | Q37: 384.5 | R37: 251.8475
A38: 527623 | B38: 3188649815203 | C38: PN DUN 225/50R17 94 H ROF SP4D* MFS | D38: N2255017HSP4D*94RU | E38: TOURISME HIVER | F38: DU SP W 4D | G38: 225 | H38: 50 | I38: R | J38: 17 | K38: 94 | L38: H | M38: E | N38: C | O38: B | P38: 71 | Q38: 253.5 | R38: 166.0425
A39: 527627 | B39: 3188649815289 | C39: PN DUN 255/45R20 XL 105 V SPWS 3D MO | D39: N2554520VSPWS3105XL | E39: 4x4 HIVER | F39: DU SW3D | G39: 255 | H39: 45 | I39: R | J39: 20 | K39: 105 | L39: V | M39: C | N39: C | O39: B | P39: 73 | Q39: 413 | R39: 270.515
A40: 528077 | B40: 3188649817955 | C40: PN DUN 195/55R16 87 T SP4D MO MFS | D40: N1955516TSP4DM87 | E40: TOURISME HIVER | F40: DU SP W 4D | G40: 195 | H40: 55 | I40: R | J40: 16 | K40: 87 | L40: T | M40: E | N40: D | O40: A | P40: 69 | Q40: 185.5 | R40: 121.5025
A41: 528081 | B41: 3188649817573 | C41: PN DUN 205/55R16 91 H SP4D MFS AO | D41: N2055516HSP4DM91AO | E41: TOURISME HIVER | F41: DU SP W 4D | G41: 205 | H41: 55 | I41: R | J41: 16 | K41: 91 | L41: H | M41: D | N41: C | O41: B | P41: 70 | Q41: 158 | R41: 103.49
A42: 528420 | B42: 3188649818501 | C42: PN DUN 285/30R21 XL 100 W MFS SP4D RO1 | D42: N2853021WMFSSP100XL | E42: TOURISME HIVER | F42: DU SP W 4D | G42: 285 | H42: 30 | I42: R | J42: 21 | K42: 100 | L42: W | M42: C | N42: C | O42: B | P42: 75 | Q42: 650.5 | R42: 426.0775
A43: 528640 | B43: 3188649819461 | C43: PN DUN 225/55R17 97 H SP3D AO AU1 | D43: N2255517HSP3DA97 | E43: TOURISME HIVER | F43: DU SW3D | G43: 225 | H43: 55 | I43: R | J43: 17 | K43: 97 | L43: H | M43: D | N43: D | O43: B | P43: 70 | Q43: 229 | R43: 149.995
A44: 528756 | B44: 4038526318527 | C44: PN DUN 255/45R20 101 V SP3D AO | D44: N2554520VSP3DA101 | E44: 4x4 HIVER | F44: DU SW3D | G44: 255 | H44: 45 | I44: R | J44: 20 | K44: 101 | L44: V | M44: D | N44: C | O44: B | P44: 73 | Q44: 393.5 | R44: 257.7425
A45: 528925 | B45: 3188649820351 | C45: PN DUN 165/70R14 81 T W.RESP 2 | D45: N1657014TWRESP81 | E45: TOURISME HIVER | F45: DU W.RESP 2 | G45: 165 | H45: 70 | I45: R | J45: 14 | K45: 81 | L45: T | M45: C | N45: B | O45: B | P45: 69 | Q45: 95 | R45: 62.225
A46: 528927 | B46: 3188649820375 | C46: PN DUN 175/65R14 82 T W.RESP 2 | D46: N1756514TWRESP82 | E46: TOURISME HIVER | F46: DU W.RESP 2 | G46: 175 | H46: 65 | I46: R | J46: 14 | K46: 82 | L46: T | M46: C | N46: B | O46: B | P46: 70 | Q46: 92 | R46: 60.26
A47: 528962 | B47: 3188649820429 | C47: PN DUN 185/55R15 82 T W.RESP 2 | D47: N1855515TWRESP82 | E47: TOURISME HIVER | F47: DU W.RESP 2 | G47: 185 | H47: 55 | I47: R | J47: 15 | K47: 82 | L47: T | M47: C | N47: C | O47: B | P47: 69 | Q47: 136.5 | R47: 89.4075
A48: 528966 | B48: 3188649820467 | C48: PN DUN 185/65R14 86 T W.RESP 2 | D48: N1856514TWRESP86 | E48: TOURISME HIVER | F48: DU W.RESP 2 | G48: 185 | H48: 65 | I48: R | J48: 14 | K48: 86 | L48: T | M48: C | N48: C | O48: B | P48: 70 | Q48: 107 | R48: 70.085
A49: 528970 | B49: 3188649820504 | C49: PN DUN 195/65R15 91 T W.RESP 2 | D49: N1956515TWRESP91 | E49: TOURISME HIVER | F49: DU W.RESP 2 | G49: 195 | H49: 65 | I49: R | J49: 15 | K49: 91 | L49: T | M49: C | N49: C | O49: B | P49: 70 | Q49: 95 | R49: 62.225
A50: 528971 | B50: 3188649821709 | C50: PN DUN 195/65R15 XL 95 T W.RESP 2 | D50: N1956515TWRESP95XL | E50: TOURISME HIVER | F50: DU W.RESP 2 | G50: 195 | H50: 65 | I50: R | J50: 15 | K50: 95 | L50: T | M50: C | N50: B | O50: A | P50: 69 | Q50: 105 | R50: 68.775
A51: 529088 | B51: 3188649821594 | C51: PN DUN 225/55R18 XL 102 H SP4D | D51: N2255518HSP4D102XL | E51: 4x4 HIVER | F51: DU SP W 4D | G51: 225 | H51: 55 | I51: R | J51: 18 | K51: 102 | L51: H | M51: C | N51: C | O51: B | P51: 71 | Q51: 241 | R51: 157.855
A52: 529105 | B52: 3188649821730 | C52: PN DUN 215/55R18 95 H ROF SP4D MOE R | D52: N2155518HSP4DM95RU | E52: TOURISME HIVER | F52: DU SP W 4D | G52: 215 | H52: 55 | I52: R | J52: 18 | K52: 95 | L52: H | M52: D | N52: D | O52: B | P52: 70 | Q52: 331.5 | R52: 217.1325
A53: 529121 | B53: 3188649821761 | C53: PN DUN 255/50R19 103 V SPWS 4D N0 | D53: N2555019VSPWS4103 | E53: 4x4 HIVER | F53: DU SP W 4D | G53: 255 | H53: 50 | I53: R | J53: 19 | K53: 103 | L53: V | M53: D | N53: C | O53: B | P53: 73 | Q53: 319 | R53: 208.945
A54: 529226 | B54: 5452000421012 | C54: PN DUN 235/45R17 94 H MFS SP4D MO | D54: N2354517HMFSSP94 | E54: TOURISME HIVER | F54: DU SP W 4D | G54: 235 | H54: 45 | I54: R | J54: 17 | K54: 94 | L54: H | M54: D | N54: C | O54: B | P54: 70 | Q54: 292 | R54: 191.26
A55: 529227 | B55: 5452000421227 | C55: PN DUN 205/55R16 91 H SP4D MO | D55: N2055516HSP4DMO91 | E55: TOURISME HIVER | F55: DU SP W 4D | G55: 205 | H55: 55 | I55: R | J55: 16 | K55: 91 | L55: H | M55: C | N55: C | O55: B | P55: 70 | Q55: 158 | R55: 103.49
A56: 529228 | B56: 5452000421234 | C56: PN DUN 225/45R17 91 H MFS SP4D MO | D56: N2254517HMFSSP91 | E56: TOURISME HIVER | F56: DU SP W 4D | G56: 225 | H56: 45 | I56: R | J56: 17 | K56: 91 | L56: H | M56: D | N56: D | O56: B | P56: 71 | Q56: 210 | R56: 137.55
A57: 529234 | B57: 5452000421296 | C57: PN DUN 245/45R17 XL 99 H MFS SP4D MO | D57: N2454517HMFSSP99XL | E57: TOURISME HIVER | F57: DU SP W 4D | G57: 245 | H57: 45 | I57: R | J57: 17 | K57: 99 | L57: H | M57: D | N57: C | O57: B | P57: 71 | Q57: 308.5 | R57: 202.0675
A58: 529435 | B58: 5452000425546 | C58: PN DUN 295/40R20 106 V SP4D N0 MFS | D58: N2954020VSP4DN106 | E58: 4x4 HIVER | F58: DU SP W 4D | G58: 295 | H58: 40 | I58: R | J58: 20 | K58: 106 | L58: V | M58: D | N58: C | O58: B | P58: 75 | Q58: 533.5 | R58: 349.4425
A59: 529436 | B59: 5452000425553 | C59: PN DUN 265/45R20 104 V SP4D N0 MFS | D59: N2654520VSP4DN104 | E59: 4x4 HIVER | F59: DU SP W 4D | G59: 265 | H59: 45 | I59: R | J59: 20 | K59: 104 | L59: V | M59: D | N59: C | O59: B | P59: 73 | Q59: 489 | R59: 320.295
A60: 529476 | B60: 5452000428042 | C60: PN DUN 275/30R21 XL 98 W SP4D RO1 MFS | D60: N2753021WSP4DR98XL | E60: TOURISME HIVER | F60: DU SP W 4D | G60: 275 | H60: 30 | I60: R | J60: 21 | K60: 98 | L60: W | M60: C | N60: C | O60: B | P60: 73 | Q60: 582 | R60: 381.21
A61: 530156 | B61: 5452000438751 | C61: PN DUN 225/55R17 XL 101 H SP4D | D61: N2255517HSP4D101XL | E61: TOURISME HIVER | F61: DU SP W 4D | G61: 225 | H61: 55 | I61: R | J61: 17 | K61: 101 | L61: H | M61: C | N61: C | O61: B | P61: 71 | Q61: 194 | R61: 127.07
A62: 530834 | B62: 5452000446343 | C62: PN DUN 235/55R19 101 V SPWS 4D N0 | D62: N2355519VSPWS4101 | E62: 4x4 HIVER | F62: DU SP W 4D | G62: 235 | H62: 55 | I62: R | J62: 19 | K62: 101 | L62: V | M62: D | N62: C | O62: B | P62: 72 | Q62: 323 | R62: 211.565
A63: 531293 | B63: 5452000452252 | C63: PN DUN 195/65R16 92 H SP4D* | D63: N1956516HSP4D*92 | E63: TOURISME HIVER | F63: DU SP W 4D | G63: 195 | H63: 65 | I63: R | J63: 16 | K63: 92 | L63: H | M63: B | N63: B | O63: B | P63: 71 | Q63: 188 | R63: 123.14
A64: 531618 | B64: 5452000462459 | C64: PN DUN 205/45R17 XL 88 V SP4D* MFS | D64: N2054517VSP4D*88XL | E64: TOURISME HIVER | F64: DU SP W 4D | G64: 205 | H64: 45 | I64: R | J64: 17 | K64: 88 | L64: V | M64: C | N64: C | O64: B | P64: 71 | Q64: 251.5 | R64: 164.7325
A65: 531637 | B65: 5452000463524 | C65: PN DUN 205/45R17 XL 88 V ROF SP4D* MFS | D65: N2054517VSP4D*88XLRU | E65: TOURISME HIVER | F65: DU SP W 4D | G65: 205 | H65: 45 | I65: R | J65: 17 | K65: 88 | L65: V | M65: C | N65: C | O65: B | P65: 72 | Q65: 291 | R65: 190.605
A66: 531845 | B66: 5452000468239 | C66: PN DUN 225/50R17 XL 98 H SP4D AO | D66: N2255017HSP4DA98XL | E66: TOURISME HIVER | F66: DU SP W 4D | G66: 225 | H66: 50 | I66: R | J66: 17 | K66: 98 | L66: H | M66: C | N66: C | O66: B | P66: 71 | Q66: 230.5 | R66: 150.9775
A67: 531909 | B67: 5452000469298 | C67: PN DUN 275/40R20 XL 106 V WINSPT5SUV | D67: N2754020VWINSPT106XL | E67: 4x4 HIVER | F67: DU WSPO5SU | G67: 275 | H67: 40 | I67: R | J67: 20 | K67: 106 | L67: V | M67: C | N67: B | O67: B | P67: 71 | Q67: 376 | R67: 246.28
A68: 531910 | B68: 5452000469304 | C68: PN DUN 255/50R19 XL 107 V WINSPT5SUV | D68: N2555019VWINSPT107XL | E68: 4x4 HIVER | F68: DU WSPO5SU | G68: 255 | H68: 50 | I68: R | J68: 19 | K68: 107 | L68: V | M68: C | N68: B | O68: B | P68: 73 | Q68: 266.5 | R68: 174.5575
A69: 532002 | B69: 5452000470522 | C69: PN DUN 235/55R19 XL 105 V WINSPT5SUV | D69: N2355519VWINSPT105XL | E69: 4x4 HIVER | F69: DU WSPO5SU | G69: 235 | H69: 55 | I69: R | J69: 19 | K69: 105 | L69: V | M69: C | N69: B | O69: B | P69: 72 | Q69: 271.5 | R69: 177.8325
A70: 532087 | B70: 5452000472229 | C70: PN DUN 185/60R14 82 T WINTER RESPONSE | D70: N1856014TW82DU | E70: TOURISME HIVER | F70: DU W.RESP 2 | G70: 185 | H70: 60 | I70: R | J70: 14 | K70: 82 | L70: T | M70: D | N70: B | O70: B | P70: 70 | Q70: 102.5 | R70: 67.1375
A71: 532266 | B71: 5452000483607 | C71: PN DUN 235/50R18 97 V SP4D MO MFS | D71: N2355018VSP4DM97DU | E71: TOURISME HIVER | F71: DU SP W 4D | G71: 235 | H71: 50 | I71: R | J71: 18 | K71: 97 | L71: V | M71: D | N71: C | O71: A | P71: 69 | Q71: 303.5 | R71: 198.7925
A72: 532329 | B72: 5452000486424 | C72: PN DUN 255/55R18 XL 109 V WINSPT5SUV | D72: N2555518VWINSPT109XL | E72: 4x4 HIVER | F72: DU WSPO5SU | G72: 255 | H72: 55 | I72: R | J72: 18 | K72: 109 | L72: V | M72: C | N72: B | O72: B | P72: 72 | Q72: 232.5 | R72: 152.2875
A73: 532331 | B73: 5452000486448 | C73: PN DUN 235/60R18 XL 107 H WINSPT5SUV | D73: N2356018HWINSPT107XL | E73: 4x4 HIVER | F73: DU WSPO5SU | G73: 235 | H73: 60 | I73: R | J73: 18 | K73: 107 | L73: H | M73: C | N73: B | O73: B | P73: 72 | Q73: 213.5 | R73: 139.8425
A74: 532332 | B74: 5452000486455 | C74: PN DUN 235/60R18 XL 107 V WINSPT5SUV | D74: N2356018VWINSPT107XL | E74: 4x4 HIVER | F74: DU WSPO5SU | G74: 235 | H74: 60 | I74: R | J74: 18 | K74: 107 | L74: V | M74: C | N74: B | O74: B | P74: 72 | Q74: 224.5 | R74: =Q74*(1-$D$3) -> 147.0475
A75: 532337 | B75: 5452000486523 | C75: PN DUN 225/65R17 102 H WINSPT5SUV | D75: N2256517HWINSPT102 | E75: 4x4 HIVER | F75: DU WSPO5SU | G75: 225 | H75: 65 | I75: R | J75: 17 | K75: 102 | L75: H | M75: C | N75: C | O75: B | P75: 72 | Q75: 228 | R75: 149.34
A76: 532348 | B76: 5452000485519 | C76: PN DUN 215/70R16 100 T WINSPT5SUV | D76: N2157016TWINSPT100 | E76: 4x4 HIVER | F76: DU WSPO5SU | G76: 215 | H76: 70 | I76: R | J76: 16 | K76: 100 | L76: T | M76: C | N76: B | O76: B | P76: 72 | Q76: 182 | R76: 119.21
A77: 532432 | B77: 5452000488251 | C77: PN DUN 225/45R18 XL 95 H SP4D MFS AO M | D77: N2254518HSP4DM95XL | E77: TOURISME HIVER | F77: DU SP W 4D | G77: 225 | H77: 45 | I77: R | J77: 18 | K77: 95 | L77: H | M77: C | N77: B | O77: B | P77: 72 | Q77: 251.5 | R77: 164.7325
A78: 532442 | B78: 5452000488411 | C78: PN DUN 225/55R17 97 H ROF SP4D MOE* | D78: N2255517HSP4DM97RU | E78: TOURISME HIVER | F78: DU SP W 4D | G78: 225 | H78: 55 | I78: R | J78: 17 | K78: 97 | L78: H | M78: C | N78: C | O78: B | P78: 72 | Q78: 264 | R78: 172.92
A79: 533441 | B79: 5452000543028 | C79: PN DUN 285/30R21 XL 100 W SP4D RO1 MF | D79: N2853021WSP4DR100XL | E79: TOURISME HIVER | F79: DU SP W 4D | G79: 285 | H79: 30 | I79: R | J79: 21 | K79: 100 | L79: W | M79: C | N79: C | O79: B | P79: 75 | Q79: 714.5 | R79: 467.9975
A80: 533442 | B80: 5452000544780 | C80: PN DUN 155/65R14 75 T W.RESP 2 | D80: N1556514TWRESP75DU | E80: TOURISME HIVER | F80: DU W.RESP 2 | G80: 155 | H80: 65 | I80: R | J80: 14 | K80: 75 | L80: T | M80: D | N80: C | O80: B | P80: 70 | Q80: 93 | R80: 60.915
A81: 533465 | B81: 5452000543295 | C81: PN DUN 275/30R21 XL 98 W SP4D RO1 MF N | D81: N2753021WSP4DR98DU | E81: TOURISME HIVER | F81: DU SP W 4D | G81: 275 | H81: 30 | I81: R | J81: 21 | K81: 98 | L81: W | M81: C | N81: C | O81: B | P81: 73 | Q81: 669.5 | R81: 438.5225
A82: 534127 | B82: 5452000555557 | C82: PN DUN 225/60R17 99 H SP4D* MS | D82: N2256017HSP4D*99 | E82: TOURISME HIVER | F82: DU SP W 4D | G82: 225 | H82: 60 | I82: R | J82: 17 | K82: 99 | L82: H | M82: B | N82: C | O82: B | P82: 72 | Q82: 289.5 | R82: 189.6225
A83: 534128 | B83: 5452000555564 | C83: PN DUN 245/50R18 100 H SP4D* MFS MS | D83: N2455018HSP4D*100 | E83: TOURISME HIVER | F83: DU SP W 4D | G83: 245 | H83: 50 | I83: R | J83: 18 | K83: 100 | L83: H | M83: C | N83: C | O83: B | P83: 71 | Q83: 310.5 | R83: 203.3775
A84: 537145 | B84: 5452000573452 | C84: PN DUN 185/60R15 XL 88 T WINTER RESPON | D84: N1856015TW88XL | E84: TOURISME HIVER | F84: DU W.RESP 2 | G84: 185 | H84: 60 | I84: R | J84: 15 | K84: 88 | L84: T | M84: C | N84: C | O84: B | P84: 70 | Q84: 102.5 | R84: 67.1375
A85: 537146 | B85: 5452000573469 | C85: PN DUN 175/70R14 84 T WINTER RESPONSE | D85: N1757014TW84DU | E85: TOURISME HIVER | F85: DU W.RESP 2 | G85: 175 | H85: 70 | I85: R | J85: 14 | K85: 84 | L85: T | M85: D | N85: C | O85: B | P85: 70 | Q85: 109 | R85: 71.395
A86: 537147 | B86: 5452000573476 | C86: PN DUN 175/70R14 XL 88 T WINTER RESPON | D86: N1757014TW88XL | E86: TOURISME HIVER | F86: DU W.RESP 2 | G86: 175 | H86: 70 | I86: R | J86: 14 | K86: 88 | L86: T | M86: C | N86: B | O86: B | P86: 71 | Q86: 116 | R86: 75.98
A87: 537878 | B87: 5452000578310 | C87: PN DUN 255/45R20 XL 105 V WINSPT5SUV | D87: N2554520VWINSPT105XL | E87: 4x4 HIVER | F87: DU WSPO5SU | G87: 255 | H87: 45 | I87: R | J87: 20 | K87: 105 | L87: V | M87: C | N87: C | O87: B | P87: 73 | Q87: 413 | R87: 270.515
A88: 537879 | B88: 5452000578327 | C88: PN DUN 285/40R20 XL 108 V WINSPT5SUV | D88: N2854020VWINSPT108XL | E88: 4x4 HIVER | F88: DU WSPO5SU | G88: 285 | H88: 40 | I88: R | J88: 20 | K88: 108 | L88: V | M88: C | N88: D | O88: B | P88: 75 | Q88: 519 | R88: 339.945
A89: 539033 | B89: 5452000582713 | C89: PN DUN 185/65R15 88 T W.RESP 2 | D89: N1856515TWRESP88DU | E89: TOURISME HIVER | F89: DU W.RESP 2 | G89: 185 | H89: 65 | I89: R | J89: 15 | K89: 88 | L89: T | M89: C | N89: C | O89: B | P89: 70 | Q89: 94 | R89: 61.57
A90: 540623 | B90: 5452000666123 | C90: PN DUN 235/60R18 XL 107H SP WT SPO 3D AO | D90: N2356018HWSP3DAO107 | E90: 4x4 HIVER | F90: DU SW3D | G90: 235 | H90: 60 | I90: R | J90: 18 | K90: 107 | L90: H | M90: D | N90: D | O90: B | P90: 72 | Q90: 246 | R90: 161.13
A91: 542031 | B91: 5452000701053 | C91: PN DUN 225/60R17 XL 103V WINT SP 5 SUV | D91: N2256017VWSPO5103 | E91: 4x4 HIVER | F91: DU WSPO5SU | G91: 225 | H91: 60 | I91: R | J91: 17 | K91: 103 | L91: V | M91: C | N91: B | O91: B | P91: 71 | Q91: 255.5 | R91: 167.3525
A92: 542032 | B92: 5452000701060 | C92: PN DUN 225/65R17 XL 106H WINT SPO 5 SUV | D92: N2256517HWSP5SU106 | E92: 4x4 HIVER | F92: DU WSPO5SU | G92: 225 | H92: 65 | I92: R | J92: 17 | K92: 106 | L92: H | M92: C | N92: C | O92: B | P92: 72 | Q92: 238.5 | R92: 156.2175
A93: 542704 | B93: 5452000685360 | C93: PN DUN 195/60R16 89H WINT RESPONSE 2 | D93: N1956016HWRESP289 | E93: TOURISME HIVER | F93: DU W.RESP 2 | G93: 195 | H93: 60 | I93: R | J93: 16 | K93: 89 | L93: H | M93: C | N93: B | O93: B | P93: 71 | Q93: 148.5 | R93: 97.2675
A94: 545933 | B94: 5452000734655 | C94: PN DUN 225/55R17 97H SP WI SPO 4D*MO | D94: N2255517HWSP4D*MO97 | E94: TOURISME HIVER | F94: DU SP W 4D | G94: 225 | H94: 55 | I94: R | J94: 17 | K94: 97 | L94: H | M94: C | N94: C | O94: B | P94: 72 | Q94: 229 | R94: 149.995
A95: 545991 | B95: 5452000735546 | C95: PN DUN 215/55R18 XL 99V WINT SPT 5 SUV | D95: N2155518VWSP5SU99 | E95: 4x4 HIVER | F95: DU WSPO5SU | G95: 215 | H95: 55 | I95: R | J95: 18 | K95: 99 | L95: V | M95: C | N95: C | O95: B | P95: 71 | Q95: 243.5 | R95: 159.4925
A96: 545994 | B96: 5452000735676 | C96: PN DUN 235/60R17 XL 106H WINT SP 5 SUV | D96: N2356017HWSP5SU106 | E96: 4x4 HIVER | F96: DU WSPO5SU | G96: 235 | H96: 60 | I96: R | J96: 17 | K96: 106 | L96: H | M96: D | N96: C | O96: B | P96: 72 | Q96: 251 | R96: 164.405
A97: 545996 | B97: 5452000735690 | C97: PN DUN 255/50R20 XL 109V WI SPT 5 SUV | D97: N2555020VWSP5S109MFS | E97: 4x4 HIVER | F97: DU WSPO5SU | G97: 255 | H97: 50 | I97: R | J97: 20 | K97: 109 | L97: V | M97: C | N97: C | O97: B | P97: 72 | Q97: 382.5 | R97: 250.5375
A98: 547027 | B98: 5452000749826 | C98: PN DUN 225/45R17 91H ROF SP WI 4D * | D98: N2254517HSPW4D*91RU | E98: TOURISME HIVER | F98: DU SP W 4D | G98: 225 | H98: 45 | I98: R | J98: 17 | K98: 91 | L98: H | M98: D | N98: C | O98: B | P98: 71 | Q98: 231.5 | R98: 151.6325
A99: 548021 | B99: 5452000808875 | C99: PN DUN 185/60R15 XL 88H SP WI RESP MS AO | D99: N1856015HSWRESPOAO88 | E99: TOURISME HIVER | F99: DU SP WINTER RESPO | G99: 185 | H99: 60 | I99: R | J99: 15 | K99: 88 | L99: H | M99: D | N99: C | O99: B | P99: 69 | Q99: 130 | R99: 85.15
A100: 548212 | B100: 5452000811295 | C100: PN DUN 275/40R19 XL 105V WI SP 3D MS J | D100: N2754019VSW3DJ105 | E100: TOURISME HIVER | F100: DU SW3D | G100: 275 | H100: 40 | I100: R | J100: 19 | K100: 105 | L100: V | M100: D | N100: C | O100: B | P100: 73 | Q100: 531.5 | R100: 348.1325
A101: 548437 | B101: 5452000815231 | C101: PN DUN 265/50R19 XL 110V SP WI SPT 3D N0 | D101: N2655019VSW3DN0110 | E101: 4x4 HIVER | F101: DU SW3D | G101: 265 | H101: 50 | I101: R | J101: 19 | K101: 110 | L101: V | M101: D | N101: D | O101: B | P101: 73 | Q101: 367.5 | R101: 240.7125
A102: 548502 | B102: 5452000815576 | C102: PN DUN 225/35R19 XL 88W WINT SP 3D MFS | D102: N2253519WSPWINTE88FP | E102: TOURISME HIVER | F102: DU SW3D | G102: 225 | H102: 35 | I102: R | J102: 19 | K102: 88 | L102: W | M102: E | N102: C | O102: B | P102: 72 | Q102: 308 | R102: 201.74
A103: 548518 | B103: 5452000816061 | C103: PN DUN 265/55R19 109H GTREK WINT M3 MO | D103: N2655519HGRANDTMO109 | E103: 4x4 HIVER | F103: DU GRANDTREK WINTE | G103: 265 | H103: 55 | I103: R | J103: 19 | K103: 109 | L103: H | M103: D | N103: C | O103: B | P103: 73 | Q103: 383 | R103: 250.865
A104: 548974 | B104: 5452000818928 | C104: PN DUN 255/55R19 XL 111V WINT SPT 5 SUV | D104: N2555519VWSPO5SU111 | E104: 4x4 HIVER | F104: DU WSPO5SU | G104: 255 | H104: 55 | I104: R | J104: 19 | K104: 111 | L104: V | M104: C | N104: B | O104: B | P104: 71 | Q104: 315.5 | R104: 206.6525
A105: 562810 | B105: 4038526262363 | C105: PN DUN 235/65R17 108 H SPWS 3D N0 | D105: N2356517HSPWS3108 | E105: 4x4 HIVER | F105: DU SW3D | G105: 235 | H105: 65 | I105: R | J105: 17 | K105: 108 | L105: H | M105: D | N105: D | O105: B | P105: 72 | Q105: 268 | R105: 175.54
A106: 565776 | B106: 4038526321824 | C106: PN DUN 235/65R17 104 H SPWS 3D AO | D106: N2356517HSPWS3D104 | E106: 4x4 HIVER | F106: DU SW3D | G106: 235 | H106: 65 | I106: R | J106: 17 | K106: 104 | L106: H | M106: E | N106: C | O106: B | P106: 72 | Q106: 246.5 | R106: 161.4575
A107: 566043 | B107: 4038526011176 | C107: PN DUN 255/55R18 XL 109 V SP3D N0 | D107: N2555518VSP3DN109XL | E107: 4x4 HIVER | F107: DU SW3D | G107: 255 | H107: 55 | I107: R | J107: 18 | K107: 109 | L107: V | M107: D | N107: C | O107: B | P107: 73 | Q107: 269 | R107: 176.195
A108: 567152 | B108: 3188649817603 | C108: PN DUN 215/60R17C 104/102 H SP3D | D108: N2156017HSP3D104102 | E108: CAMIONNETTE HIVER | F108: DU SW3D | G108: 215 | H108: 60 | I108: R | J108: 17 | K108: 104/102 | L108: H | M108: C | N108: B | O108: A | P108: 70 | Q108: 247 | R108: 161.785
A109: 574554 | B109: 5452000831798 | C109: PN DUN 195/45R16 XL 84V WI SPT 5 MFS | D109: N1954516VWSP584MFS | E109: TOURISME HIVER | F109: DU W SP 5 | G109: 195 | H109: 45 | I109: R | J109: 16 | K109: 84 | L109: V | M109: D | N109: C | O109: B | P109: 72 | Q109: 154.5 | R109: 101.1975
A110: 574555 | B110: 5452000831804 | C110: PN DUN 195/55R15 85H WINT SPT 5 | D110: N1955515HWSP585 | E110: TOURISME HIVER | F110: DU W SP 5 | G110: 195 | H110: 55 | I110: R | J110: 15 | K110: 85 | L110: H | M110: D | N110: B | O110: B | P110: 71 | Q110: 142 | R110: 93.01
A111: 574556 | B111: 5452000832719 | C111: PN DUN 195/55R16 87H WINT SPT 5 | D111: N1955516HWISP587 | E111: TOURISME HIVER | F111: DU WINTER SPORT 5 | G111: 195 | H111: 55 | I111: R | J111: 16 | K111: 87 | L111: H | M111: D | N111: B | O111: B | P111: 72 | Q111: 155 | R111: 101.525
A112: 574557 | B112: 5452000832726 | C112: PN DUN 195/55R16 XL 91H WINT SPT 5 SUV | D112: N1955516HWSP5SUV91 | E112: TOURISME HIVER | F112: DU WSPO5SU | G112: 195 | H112: 55 | I112: R | J112: 16 | K112: 91 | L112: H | M112: C | N112: B | O112: B | P112: 72 | Q112: 162 | R112: 106.11
A113: 574595 | B113: 5452000832603 | C113: PN DUN 225/40R18 XL 92V WI SPT 5 MFS | D113: N2254018VWSP592MFS | E113: TOURISME HIVER | F113: DU W SP 5 | G113: 225 | H113: 40 | I113: R | J113: 18 | K113: 92 | L113: V | M113: D | N113: C | O113: B | P113: 72 | Q113: 198 | R113: 129.69
A114: 574596 | B114: 5452000833013 | C114: PN DUN 225/45R17 91H WI SPT 5 MFS | D114: N2254517HWSP591MFS | E114: TOURISME HIVER | F114: DU W SP 5 | G114: 225 | H114: 45 | I114: R | J114: 17 | K114: 91 | L114: H | M114: D | N114: C | O114: B | P114: 72 | Q114: 177.5 | R114: 116.2625
A115: 574597 | B115: 5452000833020 | C115: PN DUN 225/45R17 XL 94H WI SPT 5 MFS | D115: N2254517HWSP594MFS | E115: TOURISME HIVER | F115: DU W SP 5 | G115: 225 | H115: 45 | I115: R | J115: 17 | K115: 94 | L115: H | M115: D | N115: B | O115: B | P115: 72 | Q115: 186 | R115: 121.83
A116: 574598 | B116: 5452000833037 | C116: PN DUN 225/45R17 XL 94V WI SPT 5 MFS | D116: N2254517VWSP594MFS | E116: TOURISME HIVER | F116: DU W SP 5 | G116: 225 | H116: 45 | I116: R | J116: 17 | K116: 94 | L116: V | M116: D | N116: B | O116: B | P116: 72 | Q116: 187.5 | R116: 122.8125
A117: 574599 | B117: 5452000833044 | C117: PN DUN 225/45R17 XL 94V ROF WIN SPORT 5 | D117: N2254517VWSP5M94RUDU | E117: TOURISME HIVER | F117: DU WINTER SPORT 5 | G117: 225 | H117: 45 | I117: R | J117: 17 | K117: 94 | L117: V | M117: D | N117: B | O117: B | P117: 72 | Q117: 206 | R117: 134.93
A118: 574620 | B118: 5452000832269 | C118: PN DUN 195/65R15 91H WINT SPT 5 SUV | D118: N1956515HWSP5SUV91 | E118: TOURISME HIVER | F118: DU WSPO5SU | G118: 195 | H118: 65 | I118: R | J118: 15 | K118: 91 | L118: H | M118: C | N118: B | O118: B | P118: 72 | Q118: 107 | R118: 70.085
A119: 574621 | B119: 5452000832276 | C119: PN DUN 205/50R17 XL 93H WI SPT 5 MFS | D119: N2055017HWSP593MFS | E119: TOURISME HIVER | F119: DU W SP 5 | G119: 205 | H119: 50 | I119: R | J119: 17 | K119: 93 | L119: H | M119: C | N119: B | O119: B | P119: 72 | Q119: 178.5 | R119: 116.9175
A120: 574622 | B120: 5452000832283 | C120: PN DUN 205/50R17 XL 93V WI SPT 5 MFS | D120: N2055017VWSP593MFS | E120: TOURISME HIVER | F120: DU W SP 5 | G120: 205 | H120: 50 | I120: R | J120: 17 | K120: 93 | L120: V | M120: C | N120: B | O120: B | P120: 72 | Q120: 191.5 | R120: 125.4325
A121: 574623 | B121: 5452000832290 | C121: PN DUN 205/55R16 91H WINT SPORT 5 | D121: N2055516HWISP591 | E121: TOURISME HIVER | F121: DU W SP 5 | G121: 205 | H121: 55 | I121: R | J121: 16 | K121: 91 | L121: H | M121: C | N121: B | O121: B | P121: 71 | Q121: 136.5 | R121: 89.4075
A122: 574624 | B122: 5452000832306 | C122: PN DUN 205/55R16 91T WINT SPT 5 | D122: N2055516TWSP591 | E122: TOURISME HIVER | F122: DU W SP 5 | G122: 205 | H122: 55 | I122: R | J122: 16 | K122: 91 | L122: T | M122: C | N122: B | O122: B | P122: 71 | Q122: 134.5 | R122: 88.0975
A123: 574625 | B123: 5452000832818 | C123: PN DUN 205/55R16 XL 94H WINT SPT 5 | D123: N2055516HWSP594 | E123: TOURISME HIVER | F123: DU W SP 5 | G123: 205 | H123: 55 | I123: R | J123: 16 | K123: 94 | L123: H | M123: C | N123: B | O123: B | P123: 71 | Q123: 155 | R123: 101.525
A124: 574626 | B124: 5452000832825 | C124: PN DUN 205/55R16 XL 94V WINT SPT 5 | D124: N2055516VWSP594 | E124: TOURISME HIVER | F124: DU W SP 5 | G124: 205 | H124: 55 | I124: R | J124: 16 | K124: 94 | L124: V | M124: C | N124: B | O124: B | P124: 71 | Q124: 168.5 | R124: 110.3675
A125: 574627 | B125: 5452000832832 | C125: PN DUN 205/55R17 XL 95V WINT SPORT 5 | D125: N2055517VWISP595 | E125: TOURISME HIVER | F125: DU W SP 5 | G125: 205 | H125: 55 | I125: R | J125: 17 | K125: 95 | L125: V | M125: C | N125: B | O125: B | P125: 72 | Q125: 216.5 | R125: 141.8075
A126: 574628 | B126: 5452000832849 | C126: PN DUN 205/60R16 92H WINT SPT 5 | D126: N2056016HWSP592 | E126: TOURISME HIVER | F126: DU W SP 5 | G126: 205 | H126: 60 | I126: R | J126: 16 | K126: 92 | L126: H | M126: C | N126: B | O126: B | P126: 72 | Q126: 144.5 | R126: 94.6475
A127: 574629 | B127: 5452000832856 | C127: PN DUN 205/60R16 XL 96H WINT SPT 5 | D127: N2056016HWSP596 | E127: TOURISME HIVER | F127: DU W SP 5 | G127: 205 | H127: 60 | I127: R | J127: 16 | K127: 96 | L127: H | M127: C | N127: B | O127: B | P127: 71 | Q127: 146.5 | R127: 95.9575
A128: 574630 | B128: 5452000832863 | C128: PN DUN 205/65R15 94T WINT SPT 5 | D128: N2056515TWSP594 | E128: TOURISME HIVER | F128: DU W SP 5 | G128: 205 | H128: 65 | I128: R | J128: 15 | K128: 94 | L128: T | M128: C | N128: B | O128: B | P128: 71 | Q128: 153.5 | R128: 100.5425
A129: 574631 | B129: 5452000832870 | C129: PN DUN 215/45R17 XL 91V WINT SPORT 5 MFS | D129: N2154517VWSP591MFS | E129: TOURISME HIVER | F129: DU WINTER SPORT 5 | G129: 215 | H129: 45 | I129: R | J129: 17 | K129: 91 | L129: V | M129: C | N129: B | O129: B | P129: 71 | Q129: 210 | R129: 137.55
A130: 574632 | B130: 5452000832887 | C130: PN DUN 215/45R18 XL 93V WINT SPORT 5 MFS | D130: N2154518VWSP593MFS | E130: TOURISME HIVER | F130: DU WINTER SPORT 5 | G130: 215 | H130: 45 | I130: R | J130: 18 | K130: 93 | L130: V | M130: D | N130: B | O130: B | P130: 72 | Q130: 229.5 | R130: 150.3225
A131: 574633 | B131: 5452000832894 | C131: PN DUN 215/50R17 91H WINT SPT 5 MFS | D131: N2155017HWISP591FP | E131: TOURISME HIVER | F131: DU WINTER SPORT 5 | G131: 215 | H131: 50 | I131: R | J131: 17 | K131: 91 | L131: H | M131: C | N131: C | O131: B | P131: 72 | Q131: 183.5 | R131: 120.1925
A132: 574634 | B132: 5452000832900 | C132: PN DUN 215/50R17 XL 95V WINT SPORT 5 MFS | D132: N2155017VWSP595MFS | E132: TOURISME HIVER | F132: DU WINTER SPORT 5 | G132: 215 | H132: 50 | I132: R | J132: 17 | K132: 95 | L132: V | M132: C | N132: C | O132: B | P132: 72 | Q132: 203.5 | R132: 133.2925
A133: 574635 | B133: 5452000832917 | C133: PN DUN 215/55R16 93H WINT SPT 5 | D133: N2155516HWSP593 | E133: TOURISME HIVER | F133: DU W SP 5 | G133: 215 | H133: 55 | I133: R | J133: 16 | K133: 93 | L133: H | M133: C | N133: C | O133: B | P133: 72 | Q133: 180.5 | R133: 118.2275
A134: 574636 | B134: 5452000832924 | C134: PN DUN 215/55R16 XL 97H WINT SPT 5 | D134: N2155516HWSP597 | E134: TOURISME HIVER | F134: DU W SP 5 | G134: 215 | H134: 55 | I134: R | J134: 16 | K134: 97 | L134: H | M134: C | N134: C | O134: B | P134: 71 | Q134: 186 | R134: 121.83
A135: 574637 | B135: 5452000832931 | C135: PN DUN 215/55R17 XL 98V WI SPT 5 MFS | D135: N2155517VWSP598MFS | E135: TOURISME HIVER | F135: DU W SP 5 | G135: 215 | H135: 55 | I135: R | J135: 17 | K135: 98 | L135: V | M135: C | N135: C | O135: B | P135: 71 | Q135: 217 | R135: 142.135
A136: 574638 | B136: 5452000832948 | C136: PN DUN 215/60R16 95H WINT SPT 5 | D136: N2156016HWSP595 | E136: TOURISME HIVER | F136: DU W SP 5 | G136: 215 | H136: 60 | I136: R | J136: 16 | K136: 95 | L136: H | M136: C | N136: B | O136: B | P136: 71 | Q136: 164.5 | R136: 107.7475
A137: 574639 | B137: 5452000832955 | C137: PN DUN 215/60R16 XL 99H WINT SPT 5 | D137: N2156016HWSP599 | E137: TOURISME HIVER | F137: DU W SP 5 | G137: 215 | H137: 60 | I137: R | J137: 16 | K137: 99 | L137: H | M137: C | N137: B | O137: B | P137: 72 | Q137: 173 | R137: 113.315
A138: 574640 | B138: 5452000832962 | C138: PN DUN 215/65R16 98H WINT SPT 5 | D138: N2156516HWSP598 | E138: TOURISME HIVER | F138: DU W SP 5 | G138: 215 | H138: 65 | I138: R | J138: 16 | K138: 98 | L138: H | M138: C | N138: C | O138: B | P138: 72 | Q138: 160.5 | R138: =Q138*(1-$D$3) -> 105.1275
A139: 574650 | B139: 5452000833051 | C139: PN DUN 225/45R18 XL 95V WINT SPORT 5 MFS | D139: N2254518VWSP595MFS | E139: TOURISME HIVER | F139: DU WINTER SPORT 5 | G139: 225 | H139: 45 | I139: R | J139: 18 | K139: 95 | L139: V | M139: C | N139: B | O139: B | P139: 72 | Q139: 220.5 | R139: 144.4275
A140: 574651 | B140: 5452000833068 | C140: PN DUN 225/50R17 94H WI SPT 5 MFS | D140: N2255017HWSP594MFS | E140: TOURISME HIVER | F140: DU W SP 5 | G140: 225 | H140: 50 | I140: R | J140: 17 | K140: 94 | L140: H | M140: C | N140: B | O140: B | P140: 72 | Q140: 182 | R140: 119.21
A141: 574652 | B141: 5452000833075 | C141: PN DUN 225/50R17 XL 98H WINT SPO-5 FP | D141: N2255017HWINSP598FP | E141: TOURISME HIVER | F141: DU W SP 5 | G141: 225 | H141: 50 | I141: R | J141: 17 | K141: 98 | L141: H | M141: C | N141: C | O141: B | P141: 72 | Q141: 194 | R141: 127.07
A142: 574653 | B142: 5452000833082 | C142: PN DUN 225/50R17 XL 98V WINT SPORT 5 MFS | D142: N2255017VWSP598DU | E142: TOURISME HIVER | F142: DU WINTER SPORT 5 | G142: 225 | H142: 50 | I142: R | J142: 17 | K142: 98 | L142: V | M142: C | N142: C | O142: B | P142: 72 | Q142: 204.5 | R142: 133.9475
A143: 574654 | B143: 5452000833099 | C143: PN DUN 225/55R16 95H WI SPT 5 MFS | D143: N2255516HWSP595MFS | E143: TOURISME HIVER | F143: DU W SP 5 | G143: 225 | H143: 55 | I143: R | J143: 16 | K143: 95 | L143: H | M143: C | N143: B | O143: B | P143: 72 | Q143: 179 | R143: 117.245
A144: 574655 | B144: 5452000833105 | C144: PN DUN 225/55R16 XL 99H WI SPT 5 MFS | D144: N2255516HWSP599MFS | E144: TOURISME HIVER | F144: DU W SP 5 | G144: 225 | H144: 55 | I144: R | J144: 16 | K144: 99 | L144: H | M144: C | N144: C | O144: B | P144: 72 | Q144: 186.5 | R144: 122.1575
A145: 574656 | B145: 5452000833112 | C145: PN DUN 225/55R16 XL 99V WI SPT 5 MFS | D145: N2255516VWSP599MFS | E145: TOURISME HIVER | F145: DU W SP 5 | G145: 225 | H145: 55 | I145: R | J145: 16 | K145: 99 | L145: V | M145: C | N145: C | O145: B | P145: 72 | Q145: 207.5 | R145: 135.9125
A146: 574657 | B146: 5452000833129 | C146: PN DUN 225/55R17 XL 101V WINT SPORT 5 | D146: N2255517VWISP5101 | E146: TOURISME HIVER | F146: DU W SP 5 | G146: 225 | H146: 55 | I146: R | J146: 17 | K146: 101 | L146: V | M146: C | N146: B | O146: B | P146: 72 | Q146: 204.5 | R146: 133.9475
A147: 574658 | B147: 5452000833136 | C147: PN DUN 235/40R18 XL 95V WINT SPORT 5 MFS | D147: N2354018VWISP595MF | E147: TOURISME HIVER | F147: DU W SP 5 | G147: 235 | H147: 40 | I147: R | J147: 18 | K147: 95 | L147: V | M147: D | N147: B | O147: B | P147: 72 | Q147: 244.5 | R147: 160.1475
A148: 574659 | B148: 5452000833143 | C148: PN DUN 235/45R17 XL 97V WINT SPORT 5 MFS | D148: N2354517VWSP597MFS | E148: TOURISME HIVER | F148: DU WINTER SPORT 5 | G148: 235 | H148: 45 | I148: R | J148: 17 | K148: 97 | L148: V | M148: C | N148: C | O148: B | P148: 72 | Q148: 244 | R148: 159.82
A149: 574660 | B149: 5452000833150 | C149: PN DUN 235/45R18 XL 98V WI SPT 5 MFS | D149: N2354518VWSP598MFS | E149: TOURISME HIVER | F149: DU W SP 5 | G149: 235 | H149: 45 | I149: R | J149: 18 | K149: 98 | L149: V | M149: C | N149: C | O149: B | P149: 72 | Q149: 253 | R149: 165.715
A150: 574662 | B150: 5452000833174 | C150: PN DUN 235/55R17 99V WINT SPORT 5 | D150: N2355517VWISP599 | E150: TOURISME HIVER | F150: DU W SP 5 | G150: 235 | H150: 55 | I150: R | J150: 17 | K150: 99 | L150: V | M150: C | N150: C | O150: B | P150: 70 | Q150: 231.5 | R150: 151.6325
A151: 574663 | B151: 5452000833181 | C151: PN DUN 245/40R18 XL 97V WINT SPORT 5 MFS | D151: N2454018VWISP597MF | E151: TOURISME HIVER | F151: DU W SP 5 | G151: 245 | H151: 40 | I151: R | J151: 18 | K151: 97 | L151: V | M151: C | N151: B | O151: B | P151: 72 | Q151: 224 | R151: 146.72
A152: 574664 | B152: 5452000833198 | C152: PN DUN 245/40R19 XL 98V WINT SPORT 5 MFS | D152: N2454019VWSP598MFS | E152: TOURISME HIVER | F152: DU WINTER SPORT 5 | G152: 245 | H152: 40 | I152: R | J152: 19 | K152: 98 | L152: V | M152: C | N152: B | O152: B | P152: 72 | Q152: 342 | R152: 224.01
A153: 574665 | B153: 5452000833204 | C153: PN DUN 245/40R19 XL 98V ROF WINT SPT 5 M | D153: N2454019VWISP598RUMF | E153: TOURISME HIVER | F153: DU WINTER SPORT 5 | G153: 245 | H153: 40 | I153: R | J153: 19 | K153: 98 | L153: V | M153: D | N153: B | O153: B | P153: 72 | Q153: 393.5 | R153: 257.7425
A154: 574666 | B154: 5452000833211 | C154: PN DUN 245/45R17 XL 99V WINT SPORT 5 MFS | D154: N2454517VWSP599DU | E154: TOURISME HIVER | F154: DU WINTER SPORT 5 | G154: 245 | H154: 45 | I154: R | J154: 17 | K154: 99 | L154: V | M154: C | N154: C | O154: B | P154: 72 | Q154: 254.5 | R154: 166.6975
A155: 574667 | B155: 5452000833228 | C155: PN DUN 245/45R18 XL 100V WI SPT 5 MFS | D155: N2454518VWSP5100MFSG | E155: TOURISME HIVER | F155: DU W SP 5 | G155: 245 | H155: 45 | I155: R | J155: 18 | K155: 100 | L155: V | M155: C | N155: C | O155: B | P155: 72 | Q155: 256.5 | R155: 168.0075
A156: 574668 | B156: 5452000833235 | C156: PN DUN 255/40R19 XL 100V WIN SPORT 5 MFS | D156: N2554019VWSP5100MFS | E156: TOURISME HIVER | F156: DU WINTER SPORT 5 | G156: 255 | H156: 40 | I156: R | J156: 19 | K156: 100 | L156: V | M156: C | N156: B | O156: B | P156: 73 | Q156: 316 | R156: 206.98
A157: 574669 | B157: 5452000833242 | C157: PN DUN 255/45R18 XL 103V WI SPT 5 MFS | D157: N2554518VWSP5103MFS | E157: TOURISME HIVER | F157: DU W SP 5 | G157: 255 | H157: 45 | I157: R | J157: 18 | K157: 103 | L157: V | M157: C | N157: C | O157: B | P157: 73 | Q157: 292 | R157: 191.26
A158: 574670 | B158: 5452000833259 | C158: PN DUN 265/45R20 XL 108V WIN SPORT 5 MFS | D158: N2654520VWSP5108DU | E158: TOURISME HIVER | F158: DU WINTER SPORT 5 | G158: 265 | H158: 45 | I158: R | J158: 20 | K158: 108 | L158: V | M158: C | N158: C | O158: B | P158: 73 | Q158: 385.5 | R158: 252.5025
A159: 574672 | B159: 5452000833273 | C159: PN DUN 295/35R21 XL 107V WI SPT 5 MFS | D159: N2953521VWSP5107MFS | E159: TOURISME HIVER | F159: DU W SP 5 | G159: 295 | H159: 35 | I159: R | J159: 21 | K159: 107 | L159: V | M159: C | N159: C | O159: B | P159: 74 | Q159: 426 | R159: 279.03
A160: 574726 | B160: 5452000834904 | C160: PN DUN 175/65R15 84T WINT RESPONSE 2 MS | D160: N1756515TWRESP284 | E160: TOURISME HIVER | F160: DU W RESP 2 | G160: 175 | H160: 65 | I160: R | J160: 15 | K160: 84 | L160: T | M160: D | N160: B | O160: B | P160: 70 | Q160: 94.5 | R160: 61.8975
A161: 574727 | B161: 5452000835017 | C161: PN DUN 185/65R15 XL 92T WINT RESP 2 | D161: N1856515TWRESP292 | E161: TOURISME HIVER | F161: DU W.RESP 2 | G161: 185 | H161: 65 | I161: R | J161: 15 | K161: 92 | L161: T | M161: C | N161: B | O161: B | P161: 71 | Q161: 109 | R161: 71.395
A162: 574728 | B162: 5452000835024 | C162: PN DUN 195/50R15 82H WINT RESP 2 | D162: N1955015HWRESP282 | E162: TOURISME HIVER | F162: DU W.RESP 2 | G162: 195 | H162: 50 | I162: R | J162: 15 | K162: 82 | L162: H | M162: D | N162: B | O162: B | P162: 70 | Q162: 121 | R162: 79.255
A163: 574729 | B163: 5452000835031 | C163: PN DUN 195/50R15 82T WINT RESP 2 | D163: N1955015TWRESP282 | E163: TOURISME HIVER | F163: DU W.RESP 2 | G163: 195 | H163: 50 | I163: R | J163: 15 | K163: 82 | L163: T | M163: D | N163: B | O163: B | P163: 70 | Q163: 115 | R163: 75.325
A164: 574760 | B164: 5452000835048 | C164: PN DUN 195/60R15 88T WINT RESPONSE-2 | D164: N1956015TWRESP288 | E164: TOURISME HIVER | F164: DU W RESP 2 | G164: 195 | H164: 60 | I164: R | J164: 15 | K164: 88 | L164: T | M164: C | N164: B | O164: B | P164: 70 | Q164: 114 | R164: 74.67
A165: 577079 | B165: 4038526028266 | C165: PN DUN 255/30R19 XL 91W SP WINT SP 3D MS | D165: N2553019WSP3DMS91 | E165: TOURISME HIVER | F165: DU SW3D | G165: 255 | H165: 30 | I165: R | J165: 19 | K165: 91 | L165: W | M165: E | N165: C | O165: B | P165: 71 | Q165: 459.5 | R165: 300.9725
A166: 578527 | B166: 4038526041838 | C166: PN DUN 215/65R17 99V WSPO5SU | D166: N2156517VWSPO5SU99 | E166: 4x4 HIVER | F166: DU WSPO5SU | G166: 215 | H166: 65 | I166: R | J166: 17 | K166: 99 | L166: V | M166: C | N166: B | O166: B | P166: 72 | Q166: 231.5 | R166: 151.6325
A167: 578581 | B167: 4038526040343 | C167: PN DUN 235/65R17 XL 108V WINT SPORT 5 SU | D167: N2356517VWSP5SUV108 | E167: 4x4 HIVER | F167: DU WINT SPORT 5 SU | G167: 235 | H167: 65 | I167: R | J167: 17 | K167: 108 | L167: V | M167: C | N167: B | O167: B | P167: 72 | Q167: 235.5 | R167: 154.2525
A168: 578629 | B168: 4038526041746 | C168: PN DUN 225/45R18 XL 95V ROF WINT SPT 5 M | D168: N2254518VWISP595RUMF | E168: TOURISME HIVER | F168: DU WINTER SPORT 5 | G168: 225 | H168: 45 | I168: R | J168: 18 | K168: 95 | L168: V | M168: D | N168: B | O168: B | P168: 72 | Q168: 242.5 | R168: 158.8375
A169: 578640 | B169: 4038526040206 | C169: PN DUN 215/60R17 XL 100V WINT SPT 5 SUV | D169: N2156017VWISP5SUV100 | E169: 4x4 HIVER | F169: DU WSPO5SU | G169: 215 | H169: 60 | I169: R | J169: 17 | K169: 100 | L169: V | M169: C | N169: B | O169: B | P169: 71 | Q169: 221.5 | R169: 145.0825
A170: 578641 | B170: 4038526040916 | C170: PN DUN 215/60R17 96H WINT SPORT 5 SUV | D170: N2156017HWSPO5SUV96 | E170: 4x4 HIVER | F170: DU WSPO5SU | G170: 215 | H170: 60 | I170: R | J170: 17 | K170: 96 | L170: H | M170: D | N170: C | O170: B | P170: 72 | Q170: 194.5 | R170: 127.3975
A171: 578642 | B171: 4038526040923 | C171: PN DUN 235/65R17 104H WINT SPT 5 SUV | D171: N2356517HWISP5SUV104 | E171: 4x4 HIVER | F171: DU WSPO5SU | G171: 235 | H171: 65 | I171: R | J171: 17 | K171: 104 | L171: H | M171: C | N171: B | O171: B | P171: 72 | Q171: 208.5 | R171: 136.5675
A172: 578643 | B172: 4038526040930 | C172: PN DUN 235/65R17 XL 108H WINT SPT 5 SUV | D172: N2356517HWISP5SUV108 | E172: 4x4 HIVER | F172: DU WSPO5SU | G172: 235 | H172: 65 | I172: R | J172: 17 | K172: 108 | L172: H | M172: C | N172: B | O172: B | P172: 72 | Q172: 223.5 | R172: 146.3925
A173: 578662 | B173: 4038526041777 | C173: PN DUN 255/40R20 XL 101W WINT SPT 5 MFS | D173: N2554020WWISP5101FP | E173: TOURISME HIVER | F173: DU WINTER SPORT 5 | G173: 255 | H173: 40 | I173: RF | J173: 20 | K173: 101 | L173: W | M173: C | N173: C | O173: B | P173: 73 | Q173: 426.5 | R173: 279.3575
A174: 579318 | B174: 4038526054210 | C174: PN DUN 185/60R15 84T WINT RESPONSE 2 | D174: N1856015TWRESP284 | E174: TOURISME HIVER | F174: DU W RESP 2 | G174: 185 | H174: 60 | I174: R | J174: 15 | K174: 84 | L174: T | M174: C | N174: B | O174: B | P174: 70 | Q174: 101 | R174: 66.155
A175: 580246 | B175: 4038526060518 | C175: PN DUN 175/60R16 XL 86H ROF SP W SPT 3D* | D175: N1756016HSW3D*R86RU | E175: TOURISME HIVER | F175: DU SW3D | G175: 175 | H175: 60 | I175: R | J175: 16 | K175: 86 | L175: H | M175: D | N175: C | O175: B | P175: 71 | Q175: 218.5 | R175: 143.1175
A176: 581258 | B176: 4038526071958 | C176: PN DUN 235/35R19 XL 91W WINTER SPORT 5 | D176: N2353519WWINTERSPO91 | E176: TOURISME HIVER | F176: DU WINTER SPORT 5 | G176: 235 | H176: 35 | I176: R | J176: 19 | K176: 91 | L176: W | M176: D | N176: B | P176: 72 | Q176: 322 | R176: 210.91
A177: 581259 | B177: 4038526071965 | C177: PN DUN 245/35R19 XL 93W WINTER SPORT 5 | D177: N2453519WWINTERSPO93 | E177: TOURISME HIVER | F177: DU WINTER SPORT 5 | G177: 245 | H177: 35 | I177: R | J177: 19 | K177: 93 | L177: W | M177: D | N177: B | O177: B | P177: 72 | Q177: 355.5 | R177: 232.8525
A178: 581340 | B178: 4038526071972 | C178: PN DUN 255/35R19 XL 96W WINTER SPORT 5 | D178: N2553519WWINTERSMF96 | E178: TOURISME HIVER | F178: DU WINTER SPORT 5 | G178: 255 | H178: 35 | I178: R | J178: 19 | K178: 96 | L178: W | M178: C | N178: C | O178: B | P178: 73 | Q178: 318.5 | R178: 208.6175
A179: 581341 | B179: 4038526071989 | C179: PN DUN 225/50R18 XL 99V WINTER SPORT 5 | D179: N2255018VWINTERSPO99 | E179: TOURISME HIVER | F179: DU WINTER SPORT 5 | G179: 225 | H179: 50 | I179: R | J179: 18 | K179: 99 | L179: V | M179: B | N179: C | O179: B | P179: 72 | Q179: 287.5 | R179: 188.3125
A180: 581345 | B180: 4038526072528 | C180: PN DUN 255/45R19 XL 104V WINTER SPORT 5 | D180: N2554519VWINTERSP104 | E180: TOURISME HIVER | F180: DU WINTER SPORT 5 | G180: 255 | H180: 45 | I180: R | J180: 19 | K180: 104 | L180: V | M180: C | N180: C | O180: B | P180: 73 | Q180: 313 | R180: 205.015
A181: 581350 | B181: 4038526072573 | C181: PN DUN 225/40R19 XL 93W WINTER SPORT 5 | D181: N2254019WWINTERSPO93 | E181: TOURISME HIVER | F181: DU WINTER SPORT 5 | G181: 225 | H181: 40 | I181: R | J181: 19 | K181: 93 | L181: W | M181: D | N181: C | O181: B | P181: 72 | Q181: 292 | R181: 191.26
A182: 581351 | B182: 4038526072580 | C182: PN DUN 245/45R19 XL 102V WINTER SPORT 5 | D182: N2454519VWINTERSP102 | E182: TOURISME HIVER | F182: DU WINTER SPORT 5 | G182: 245 | H182: 45 | I182: R | J182: 19 | K182: 102 | L182: V | M182: C | N182: C | O182: B | P182: 72 | Q182: 334.5 | R182: 219.0975
A183: 581353 | B183: 4038526072603 | C183: PN DUN 225/45R19 XL 96V WINTER SPORT 5 | D183: N2254519VWINTERSPO96 | E183: TOURISME HIVER | F183: DU WINTER SPORT 5 | G183: 225 | H183: 45 | I183: R | J183: 19 | K183: 96 | L183: V | M183: C | N183: C | P183: 72 | Q183: 322.5 | R183: 211.2375
A184: 581409 | B184: 4038526073433 | C184: PN DUN 265/60R18 XL 114H WSPO5SU | D184: N2656018HWSPO5SU114 | E184: 4x4 HIVER | F184: DU WSPO5SU | G184: 265 | H184: 60 | I184: R | J184: 18 | K184: 114 | L184: H | M184: C | N184: C | O184: B | P184: 73 | Q184: 272.5 | R184: 178.4875
A185: 581412 | B185: 4038526073464 | C185: PN DUN 255/60R18 XL 112V WSPO5SU N | D185: N2556018VWSPO5SU112 | E185: 4x4 HIVER | F185: DU WSPO5SU | G185: 255 | H185: 60 | I185: R | J185: 18 | K185: 112 | L185: V | M185: C | N185: C | P185: 73 | Q185: 263.5 | R185: 172.5925
A186: 581413 | B186: 4038526073471 | C186: PN DUN 225/55R19 99V WSPO5SUV | D186: N2255519VWSPO5SU99 | E186: 4x4 HIVER | F186: DU WSPO5SU | G186: 225 | H186: 55 | I186: R | J186: 19 | K186: 99 | L186: V | M186: C | N186: C | O186: B | P186: 72 | Q186: 289 | R186: 189.295
A187: 581414 | B187: 4038526073488 | C187: PN DUN 245/65R17 XL 111H WSPO5SU | D187: N2456517HWSPO5SU111 | E187: 4x4 HIVER | F187: DU WSPO5SU | G187: 245 | H187: 65 | I187: R | J187: 17 | K187: 111 | L187: H | M187: C | N187: C | O187: B | P187: 72 | Q187: 261.5 | R187: 171.2825
A188: 581415 | B188: 4038526073495 | C188: PN DUN 235/50R19 XL 103V WSPO5SU | D188: N2355019VWSPO5SU103 | E188: 4x4 HIVER | F188: DU WSPO5SU | G188: 235 | H188: 50 | I188: R | J188: 19 | K188: 103 | L188: V | M188: C | N188: C | O188: B | P188: 72 | Q188: 315.5 | R188: 206.6525
A189: 581416 | B189: 4038526073501 | C189: PN DUN 205/60R17 93H WSPO5SU | D189: N2056017HWSPO5SU93 | E189: 4x4 HIVER | F189: DU WSPO5SU | G189: 205 | H189: 60 | I189: R | J189: 17 | K189: 93 | L189: H | M189: C | N189: C | P189: 72 | Q189: 200.5 | R189: 131.3275
A190: 581418 | B190: 4038526073525 | C190: PN DUN 225/60R18 XL 104V WSPO5SU | D190: N2256018VWSPO5SU104 | E190: 4x4 HIVER | F190: DU WSPO5SU | G190: 225 | H190: 60 | I190: R | J190: 18 | K190: 104 | L190: V | M190: C | N190: C | O190: B | P190: 72 | Q190: 259 | R190: 169.645
A191: 581422 | B191: 4038526073563 | C191: PN DUN 245/50R19 XL 105V WSPO5SU MFS | D191: N2455019VWSPO5SMF105 | E191: 4x4 HIVER | F191: DU WSPO5SU | G191: 245 | H191: 50 | I191: R | J191: 19 | K191: 105 | L191: V | M191: C | N191: C | O191: B | P191: 72 | Q191: 246 | R191: 161.13
A192: 581427 | B192: 4038526073617 | C192: PN DUN 265/50R19 XL 110V WSPO5SU MF | D192: N2655019VWSPO5S110MF | E192: 4x4 HIVER | F192: DU WSPO5SU | G192: 265 | H192: 50 | I192: R | J192: 19 | K192: 110 | L192: V | M192: C | N192: C | O192: B | P192: 73 | Q192: 308 | R192: 201.74
A193: 582573 | B193: 4038526088109 | C193: PN DUN 235/55R17 XL 103V WINT SPORT 5 SU | D193: N2355517VWINTSPOR103 | E193: 4x4 HIVER | F193: DU WINT SPORT 5 SU | G193: 235 | H193: 55 | I193: R | J193: 17 | K193: 103 | L193: V | M193: C | N193: C | O193: B | P193: 71 | Q193: 243 | R193: 159.165
A194: 582670 | B194: 4038526089113 | C194: PN DUN 235/55R19 XL 105V WSPO5SU N | D194: N2355519VWSPO5SU105N | E194: 4x4 HIVER | F194: DU WSPO5SU | G194: 235 | H194: 55 | I194: R | J194: 19 | K194: 105 | L194: V | M194: C | N194: B | O194: B | P194: 71 | Q194: 290.5 | R194: 190.2775
A195: 585206 | B195: 4038526333261 | C195: PN DUN 255/35R19 XL 96V SW3D RO1 | D195: N2553519VSW3DRO96 | E195: TOURISME HIVER | F195: DU SW3D | G195: 255 | H195: 35 | I195: R | J195: 19 | K195: 96 | L195: V | M195: D | N195: C | O195: B | P195: 71 | Q195: 361.5 | R195: 236.7825
A196: 587080 | B196: 4038526341983 | C196: PN DUN 275/35R19 XL 100V WINTER SPORT 5 | D196: N2753519VWINTERSP100 | E196: TOURISME HIVER | F196: DU WINTER SPORT 5 | G196: 275 | H196: 35 | I196: R | J196: 19 | K196: 100 | L196: V | M196: C | N196: C | O196: B | P196: 73 | Q196: 444.5 | R196: 291.1475
A197: 593502 | B197: 4038526389053 | C197: PN DUN 255/55R20 XL 110V WSPO5SU N | D197: N2555520VWSPO5STT110 | E197: 4x4 HIVER | F197: DU WSPO5SU | G197: 255 | H197: 55 | I197: R | J197: 20 | K197: 110 | L197: V | M197: C | N197: B | P197: 72 | Q197: 382.5 | R197: 250.5375
A198: 593506 | B198: 4038526389091 | C198: PN DUN 275/50R20 XL 113V WSPO5SU Y | D198: N2755020VWSPO5TT113F | E198: 4x4 HIVER | F198: DU WSPO5SU | G198: 275 | H198: 50 | I198: R | J198: 20 | K198: 113 | L198: V | M198: C | N198: B | P198: 73 | Q198: 366.5 | R198: 240.0575
A199: 593507 | B199: 4038526389107 | C199: PN DUN 275/45R21 XL 110V WSPO5SU | D199: N2754521VWSPO5SU110 | E199: 4x4 HIVER | F199: DU WSPO5SU | G199: 275 | H199: 45 | I199: R | J199: 21 | K199: 110 | L199: V | M199: C | N199: B | P199: 73 | Q199: 435.5 | R199: 285.2525
A200: 593508 | B200: 4038526389114 | C200: PN DUN 245/45R20 XL 103V WSPO5SU FP | D200: N2454520VWSPO5S103FP | E200: 4x4 HIVER | F200: DU WSPO5SU | G200: 245 | H200: 45 | I200: R | J200: 20 | K200: 103 | L200: V | M200: C | N200: C | O200: B | P200: 71 | Q200: 414.5 | R200: 271.4975
A201: 593621 | B201: 4038526388643 | C201: PN DUN 235/55R18 XL 104H WSPO5SU | D201: N2355518HWSPO5SU104 | E201: 4x4 HIVER | F201: DU WSPO5SU | G201: 235 | H201: 55 | I201: R | J201: 18 | K201: 104 | L201: H | M201: C | N201: B | P201: 71 | Q201: 257.5 | R201: 168.6625
A202: 593623 | B202: 4038526388667 | C202: PN DUN 235/45R20 XL 100V WSPO5SU | D202: N2354520VWSPO5SU100 | E202: 4x4 HIVER | F202: DU WSPO5SU | G202: 235 | H202: 45 | I202: R | J202: 20 | K202: 100 | L202: V | M202: C | N202: C | P202: 71 | Q202: 376.5 | R202: =Q202*(1-$D$3) -> 246.6075
A203: 594147 | B203: 4038526397508 | C203: PN DUN 215/50R18 92V WINTER SPORT 5 | D203: N2155018VWINTERSPO92 | E203: TOURISME HIVER | F203: DU WINTER SPORT 5 | G203: 215 | H203: 50 | I203: R | J203: 18 | K203: 92 | L203: V | M203: C | N203: C | P203: 72 | Q203: 251.5 | R203: 164.7325
... 15 more rows

Sheet FIR
D2: Remise
D3: =Remises!E10 -> 0.32
A5: Actualisation au 04/04/2024
A7: REFERENCES PNEUMATIQUES | Q7: TARIFS
A8: CAI | B8: EAN | C8: Désignation | D8: Appellation | E8: Catégorie | F8: Profil | G8: Largeur | H8: Hauteur | I8: Structure | J8: Diamètre | K8: IC | L8: IV | M8: Conso. | N8: Frein. | O8: Bruit. | P8: Décibels. | Q8: Prix BF | R8: Prix Remisé
A9: 18011 | B9: 3286341801118 | C9: PN FIR 255/50R19 XL 107V WINTERHAWK 4 | D9: N2555019VWINTERHA107 | E9: 4x4 HIVER | F9: FI WINTERHAWK 4 | G9: 255 | H9: 50 | I9: R | J9: 19 | K9: 107 | L9: V | M9: C | N9: B | O9: B | P9: 71 | Q9: 226 | R9: =Q9*(1-$D$3) -> 153.68
A10: 18012 | B10: 3286341801217 | C10: PN FIR 255/55R19 XL 111V WINTERHAWK 4 | D10: N2555519VWINTERHA111 | E10: 4x4 HIVER | F10: FI WINTERHAWK 4 | G10: 255 | H10: 55 | I10: R | J10: 19 | K10: 111 | L10: V | M10: C | N10: B | O10: B | P10: 71 | Q10: 253 | R10: =Q10*(1-$D$3) -> 172.04
A11: 18013 | B11: 3286341801316 | C11: PN FIR 255/55R18 XL 109V WINTERHAWK 4 | D11: N2555518VWINTERHA109 | E11: 4x4 HIVER | F11: FI WINTERHAWK 4 | G11: 255 | H11: 55 | I11: R | J11: 18 | K11: 109 | L11: V | M11: C | N11: B | O11: B | P11: 71 | Q11: 195 | R11: 132.6
A12: 18015 | B12: 3286341801514 | C12: PN FIR 215/65R17 XL 103H WINTERHAWK 4 | D12: N2156517HWINTERHA103 | E12: 4x4 HIVER | F12: FI WINTERHAWK 4 | G12: 215 | H12: 65 | I12: R | J12: 17 | K12: 103 | L12: H | M12: C | N12: B | O12: B | P12: 71 | Q12: 187 | R12: 127.16
A13: 18016 | B13: 3286341801613 | C13: PN FIR 215/65R16 XL 102H WINTERHAWK 4 | D13: N2156516HWINTERHA102 | E13: 4x4 HIVER | F13: FI WINTERHAWK 4 | G13: 215 | H13: 65 | I13: R | J13: 16 | K13: 102 | L13: H | M13: C | N13: B | O13: B | P13: 71 | Q13: 142.5 | R13: 96.9
A14: 18017 | B14: 3286341801712 | C14: PN FIR 215/65R16 98H WINTERHAWK 4 | D14: N2156516HWINTERHAW98 | E14: 4x4 HIVER | F14: FI WINTERHAWK 4 | G14: 215 | H14: 65 | I14: R | J14: 16 | K14: 98 | L14: H | M14: C | N14: B | O14: B | P14: 71 | Q14: 135.5 | R14: 92.14
A15: 18018 | B15: 3286341801811 | C15: PN FIR 225/55R18 XL 102V WINTERHAWK 4 | D15: N2255518VWINTERHA102 | E15: 4x4 HIVER | F15: FI WINTERHAWK 4 | G15: 225 | H15: 55 | I15: R | J15: 18 | K15: 102 | L15: V | M15: C | N15: B | O15: B | P15: 71 | Q15: 206.5 | R15: 140.42
A16: 18020 | B16: 3286341802016 | C16: PN FIR 275/45R20 XL 110V WINTERHAWK 4 | D16: N2754520VWINTERHA110 | E16: 4x4 HIVER | F16: FI WINTERHAWK 4 | G16: 275 | H16: 45 | I16: R | J16: 20 | K16: 110 | L16: V | M16: C | N16: B | O16: B | P16: 71 | Q16: 292.5 | R16: 198.9
A17: 18021 | B17: 3286341802115 | C17: PN FIR 215/60R17 96H WINTERHAWK 4 | D17: N2156017HWINTERHAW96 | E17: 4x4 HIVER | F17: FI WINTERHAWK 4 | G17: 215 | H17: 60 | I17: R | J17: 17 | K17: 96 | L17: H | M17: C | N17: B | O17: B | P17: 71 | Q17: 168.5 | R17: 114.58
A18: 18022 | B18: 3286341802214 | C18: PN FIR 225/60R17 99H WINTERHAWK 4 | D18: N2256017HWINTERHAW99 | E18: 4x4 HIVER | F18: FI WINTERHAWK 4 | G18: 225 | H18: 60 | I18: R | J18: 17 | K18: 99 | L18: H | M18: D | N18: B | O18: B | P18: 71 | Q18: 189.5 | R18: 128.86
A19: 18023 | B19: 3286341802313 | C19: PN FIR 235/50R18 XL 101V WINTERHAWK 4 | D19: N2355018VWINTERHA101 | E19: 4x4 HIVER | F19: FI WINTERHAWK 4 | G19: 235 | H19: 50 | I19: R | J19: 18 | K19: 101 | L19: V | M19: C | N19: B | O19: B | P19: 71 | Q19: 231 | R19: 157.08
A20: 18025 | B20: 3286341802511 | C20: PN FIR 235/65R17 XL 108V WINTERHAWK 4 | D20: N2356517VWH44108 | E20: 4x4 HIVER | F20: FI WINTERHAWK 4 | G20: 235 | H20: 65 | I20: R | J20: 17 | K20: 108 | L20: V | M20: C | N20: B | O20: B | P20: 71 | Q20: 199 | R20: 135.32
A21: 18026 | B21: 3286341802610 | C21: PN FIR 225/65R17 XL 106H WINTERHAWK 4 | D21: N2256517HWINTERHA106 | E21: 4x4 HIVER | F21: FI WINTERHAWK 4 | G21: 225 | H21: 65 | I21: R | J21: 17 | K21: 106 | L21: H | M21: C | N21: B | O21: B | P21: 71 | Q21: 193.5 | R21: 131.58
A22: 18028 | B22: 3286341802818 | C22: PN FIR 215/70R16 100H WINTERHAWK 4 | D22: N2157016HWINTERHA100 | E22: 4x4 HIVER | F22: FI WINTERHAWK 4 | G22: 215 | H22: 70 | I22: R | J22: 16 | K22: 100 | L22: H | M22: D | N22: B | O22: B | P22: 71 | Q22: 147.5 | R22: 100.3
A23: 18034 | B23: 3286341803419 | C23: PN FIR 195/65R15 XL 95T WINTERHAWK 4 | D23: N1956515TWINTERHAW95 | E23: TOURISME HIVER | F23: FI WINTERHAWK 4 | G23: 195 | H23: 65 | I23: R | J23: 15 | K23: 95 | L23: T | M23: D | N23: B | O23: B | P23: 71 | Q23: 87 | R23: 59.16
A24: 18037 | B24: 3286341803716 | C24: PN FIR 185/65R15 88T WINTERHAWK 4 | D24: N1856515TWINTERHAW88 | E24: TOURISME HIVER | F24: FI WINTERHAWK 4 | G24: 185 | H24: 65 | I24: R | J24: 15 | K24: 88 | L24: T | M24: D | N24: B | O24: B | P24: 71 | Q24: 79.5 | R24: 54.06
A25: 18039 | B25: 3286341803914 | C25: PN FIR 205/55R16 91T WINTERHAWK 4 | D25: N2055516TWINTERHAW91 | E25: TOURISME HIVER | F25: FI WINTERHAWK 4 | G25: 205 | H25: 55 | I25: R | J25: 16 | K25: 91 | L25: T | M25: C | N25: B | O25: B | P25: 71 | Q25: 111 | R25: 75.48
A26: 18040 | B26: 3286341804010 | C26: PN FIR 185/60R15 84T WINTERHAWK 4 | D26: N1856015TWINTERHAW84 | E26: TOURISME HIVER | F26: FI WINTERHAWK 4 | G26: 185 | H26: 60 | I26: R | J26: 15 | K26: 84 | L26: T | M26: D | N26: B | O26: B | P26: 71 | Q26: 82.5 | R26: 56.1
A27: 18042 | B27: 3286341804218 | C27: PN FIR 175/65R15 84T WINTERHAWK 4 | D27: N1756515TWINTERHAW84 | E27: TOURISME HIVER | F27: FI WINTERHAWK 4 | G27: 175 | H27: 65 | I27: R | J27: 15 | K27: 84 | L27: T | M27: D | N27: B | O27: B | P27: 71 | Q27: 81 | R27: 55.08
A28: 18044 | B28: 3286341804416 | C28: PN FIR 195/60R15 88T WINTERHAWK 4 | D28: N1956015TWINTERHAW88 | E28: TOURISME HIVER | F28: FI WINTERHAWK 4 | G28: 195 | H28: 60 | I28: R | J28: 15 | K28: 88 | L28: T | M28: D | N28: B | O28: B | P28: 71 | Q28: 96 | R28: 65.28
A29: 18046 | B29: 3286341804614 | C29: PN FIR 195/65R15 91T WINTERHAWK 4 | D29: N1956515TWINTERHAW91 | E29: TOURISME HIVER | F29: FI WINTERHAWK 4 | G29: 195 | H29: 65 | I29: R | J29: 15 | K29: 91 | L29: T | M29: D | N29: B | O29: B | P29: 71 | Q29: 79.5 | R29: 54.06
A30: 18047 | B30: 3286341804713 | C30: PN FIR 185/65R15 XL 92T WINTERHAWK 4 | D30: N1856515TWINTERHAW92 | E30: TOURISME HIVER | F30: FI WINTERHAWK 4 | G30: 185 | H30: 65 | I30: R | J30: 15 | K30: 92 | L30: T | M30: C | N30: B | O30: B | P30: 71 | Q30: 92 | R30: 62.56
A31: 18048 | B31: 3286341804812 | C31: PN FIR 185/60R15 XL 88T WINTERHAWK 4 | D31: N1856015TWINTERHAW88 | E31: TOURISME HIVER | F31: FI WINTERHAWK 4 | G31: 185 | H31: 60 | I31: R | J31: 15 | K31: 88 | L31: T | M31: D | N31: B | O31: B | P31: 71 | Q31: 85.5 | R31: 58.14
A32: 18050 | B32: 3286341805017 | C32: PN FIR 225/55R17 XL 101V WINTERHAWK 4 | D32: N2255517VWINTERHA101 | E32: TOURISME HIVER | F32: FI WINTERHAWK 4 | G32: 225 | H32: 55 | I32: R | J32: 17 | K32: 101 | L32: V | M32: C | N32: B | O32: B | P32: 71 | Q32: 179.5 | R32: 122.06
A33: 18051 | B33: 3286341805116 | C33: PN FIR 195/55R15 85H WINTERHAWK 4 | D33: N1955515HWINTERHAW85 | E33: TOURISME HIVER | F33: FI WINTERHAWK 4 | G33: 195 | H33: 55 | I33: R | J33: 15 | K33: 85 | L33: H | M33: D | N33: B | O33: B | P33: 71 | Q33: 118 | R33: 80.24
A34: 18052 | B34: 3286341805215 | C34: PN FIR 235/55R17 XL 103V WINTERHAWK 4 | D34: N2355517VWINTERHA103 | E34: TOURISME HIVER | F34: FI WINTERHAWK 4 | G34: 235 | H34: 55 | I34: R | J34: 17 | K34: 103 | L34: V | M34: C | N34: B | O34: B | P34: 71 | Q34: 211.5 | R34: 143.82
A35: 18053 | B35: 3286341805314 | C35: PN FIR 195/55R16 87H WINTERHAWK 4 | D35: N1955516HWINTERHAW87 | E35: TOURISME HIVER | F35: FI WINTERHAWK 4 | G35: 195 | H35: 55 | I35: R | J35: 16 | K35: 87 | L35: H | M35: D | N35: B | O35: B | P35: 71 | Q35: 128.5 | R35: 87.38
A36: 18054 | B36: 3286341805413 | C36: PN FIR 205/55R16 XL 94H WINTERHAWK 4 | D36: N2055516HWINTERHAW94 | E36: TOURISME HIVER | F36: FI WINTERHAWK 4 | G36: 205 | H36: 55 | I36: R | J36: 16 | K36: 94 | L36: H | M36: C | N36: B | O36: B | P36: 71 | Q36: 126 | R36: 85.68
A37: 18055 | B37: 3286341805512 | C37: PN FIR 215/55R17 XL 98V WINTERHAWK 4 | D37: N2155517VWINTERHAW98 | E37: TOURISME HIVER | F37: FI WINTERHAWK 4 | G37: 215 | H37: 55 | I37: R | J37: 17 | K37: 98 | L37: V | M37: C | N37: B | O37: B | P37: 71 | Q37: 178.5 | R37: 121.38
A38: 18056 | B38: 3286341805611 | C38: PN FIR 215/55R16 XL 97H WINTERHAWK 4 | D38: N2155516HWINTERHAW97 | E38: TOURISME HIVER | F38: FI WINTERHAWK 4 | G38: 215 | H38: 55 | I38: R | J38: 16 | K38: 97 | L38: H | M38: C | N38: B | O38: B | P38: 71 | Q38: 152.5 | R38: 103.7
A39: 18058 | B39: 3286341805819 | C39: PN FIR 235/40R18 XL 95V WINTERHAWK 4 | D39: N2354018VWH4495 | E39: TOURISME HIVER | F39: FI WINTERHAWK 4 | G39: 235 | H39: 40 | I39: R | J39: 18 | K39: 95 | L39: V | M39: D | N39: B | O39: B | P39: 71 | Q39: 207.5 | R39: 141.1
A40: 18059 | B40: 3286341805918 | C40: PN FIR 235/45R17 XL 97V WINTERHAWK 4 | D40: N2354517VWINTERHAW97 | E40: TOURISME HIVER | F40: FI WINTERHAWK 4 | G40: 235 | H40: 45 | I40: R | J40: 17 | K40: 97 | L40: V | M40: D | N40: B | O40: B | P40: 71 | Q40: 198.5 | R40: 134.98
A41: 18060 | B41: 3286341806014 | C41: PN FIR 195/60R16 89H WINTERHAWK 4 | D41: N1956016HWINTERHAW89 | E41: TOURISME HIVER | F41: FI WINTERHAWK 4 | G41: 195 | H41: 60 | I41: R | J41: 16 | K41: 89 | L41: H | M41: C | N41: B | O41: B | P41: 71 | Q41: 124.5 | R41: 84.66
A42: 18061 | B42: 3286341806113 | C42: PN FIR 205/60R16 92H WINTERHAWK 4 | D42: N2056016HWINTERHAW92 | E42: TOURISME HIVER | F42: FI WINTERHAWK 4 | G42: 205 | H42: 60 | I42: R | J42: 16 | K42: 92 | L42: H | M42: D | N42: B | O42: B | P42: 71 | Q42: 121.5 | R42: 82.62
A43: 18062 | B43: 3286341806212 | C43: PN FIR 235/45R18 XL 98V WINTERHAWK 4 | D43: N2354518VWH4498 | E43: TOURISME HIVER | F43: FI WINTERHAWK 4 | G43: 235 | H43: 45 | I43: R | J43: 18 | K43: 98 | L43: V | M43: D | N43: B | O43: B | P43: 71 | Q43: 207.5 | R43: 141.1
A44: 18063 | B44: 3286341806311 | C44: PN FIR 245/40R18 XL 97V WINTERHAWK 4 | D44: N2454018VWH4497 | E44: TOURISME HIVER | F44: FI WINTERHAWK 4 | G44: 245 | H44: 40 | I44: R | J44: 18 | K44: 97 | L44: V | M44: D | N44: B | O44: B | P44: 71 | Q44: 194.5 | R44: 132.26
A45: 18064 | B45: 3286341806410 | C45: PN FIR 225/45R17 XL 94V WINTERHAWK 4 | D45: N2254517VWH4494 | E45: TOURISME HIVER | F45: FI WINTERHAWK 4 | G45: 225 | H45: 45 | I45: R | J45: 17 | K45: 94 | L45: V | M45: C | N45: B | O45: B | P45: 71 | Q45: 156.5 | R45: 106.42
A46: 18065 | B46: 3286341806519 | C46: PN FIR 225/50R17 XL 98V WINTERHAWK 4 | D46: N2255017VWINTERHAW98 | E46: TOURISME HIVER | F46: FI WINTERHAWK 4 | G46: 225 | H46: 50 | I46: R | J46: 17 | K46: 98 | L46: V | M46: C | N46: B | O46: B | P46: 71 | Q46: 169 | R46: 114.92
A47: 18066 | B47: 3286341806618 | C47: PN FIR 215/45R16 XL 90V WINTERHAWK 4 | D47: N2154516VWH4490 | E47: TOURISME HIVER | F47: FI WINTERHAWK 4 | G47: 215 | H47: 45 | I47: R | J47: 16 | K47: 90 | L47: V | M47: D | N47: B | O47: B | P47: 71 | Q47: 147.5 | R47: 100.3
A48: 18067 | B48: 3286341806717 | C48: PN FIR 195/65R15 91H WINTERHAWK 4 | D48: N1956515HWINTERHAW91 | E48: TOURISME HIVER | F48: FI WINTERHAWK 4 | G48: 195 | H48: 65 | I48: R | J48: 15 | K48: 91 | L48: H | M48: D | N48: B | O48: B | P48: 71 | Q48: 89 | R48: 60.52
A49: 18068 | B49: 3286341806816 | C49: PN FIR 215/55R18 XL 99V WINTERHAWK 4 | D49: N2155518VWH4499 | E49: TOURISME HIVER | F49: FI WINTERHAWK 4 | G49: 215 | H49: 55 | I49: R | J49: 18 | K49: 99 | L49: V | M49: C | N49: B | O49: B | P49: 71 | Q49: 211 | R49: 143.48
A50: 18069 | B50: 3286341806915 | C50: PN FIR 195/50R16 XL 88H WINTERHAWK 4 | D50: N1955016HWINTERHAW88 | E50: TOURISME HIVER | F50: FI WINTERHAWK 4 | G50: 195 | H50: 50 | I50: R | J50: 16 | K50: 88 | L50: H | M50: D | N50: B | O50: B | P50: 71 | Q50: 158 | R50: 107.44
A51: 18070 | B51: 3286341807011 | C51: PN FIR 205/45R17 XL 88V WINTERHAWK 4 | D51: N2054517VWH4488 | E51: TOURISME HIVER | F51: FI WINTERHAWK 4 | G51: 205 | H51: 45 | I51: R | J51: 17 | K51: 88 | L51: V | M51: D | N51: B | O51: B | P51: 71 | Q51: 160.5 | R51: 109.14
A52: 18071 | B52: 3286341807110 | C52: PN FIR 225/45R17 91H WINTERHAWK 4 | D52: N2254517HWINTERHAW91 | E52: TOURISME HIVER | F52: FI WINTERHAWK 4 | G52: 225 | H52: 45 | I52: R | J52: 17 | K52: 91 | L52: H | M52: D | N52: B | O52: B | P52: 71 | Q52: 149 | R52: 101.32
A53: 18073 | B53: 3286341807318 | C53: PN FIR 225/55R16 XL 99H WINTERHAWK 4 | D53: N2255516HWINTERHAW99 | E53: TOURISME HIVER | F53: FI WINTERHAWK 4 | G53: 225 | H53: 55 | I53: R | J53: 16 | K53: 99 | L53: H | M53: C | N53: B | O53: B | P53: 71 | Q53: 161.5 | R53: 109.82
A54: 18074 | B54: 3286341807417 | C54: PN FIR 195/55R16 XL 91H WINTERHAWK 4 | D54: N1955516HWINTERHAW91 | E54: TOURISME HIVER | F54: FI WINTERHAWK 4 | G54: 195 | H54: 55 | I54: R | J54: 16 | K54: 91 | L54: H | M54: C | N54: B | O54: B | P54: 71 | Q54: 138 | R54: 93.84
A55: 18075 | B55: 3286341807516 | C55: PN FIR 215/60R16 XL 99H WINTERHAWK 4 | D55: N2156016HWINTERHAW99 | E55: TOURISME HIVER | F55: FI WINTERHAWK 4 | G55: 215 | H55: 60 | I55: R | J55: 16 | K55: 99 | L55: H | M55: C | N55: B | O55: B | P55: 71 | Q55: 145 | R55: 98.6
A56: 18076 | B56: 3286341807615 | C56: PN FIR 225/45R18 XL 95V WINTERHAWK 4 | D56: N2254518VWINTERHAW95 | E56: TOURISME HIVER | F56: FI WINTERHAWK 4 | G56: 225 | H56: 45 | I56: R | J56: 18 | K56: 95 | L56: V | M56: D | N56: B | O56: B | P56: 71 | Q56: 184.5 | R56: 125.46
A57: 18077 | B57: 3286341807714 | C57: PN FIR 235/45R19 XL 99V WINTERHAWK 4 | D57: N2354519VWINTERHAW99 | E57: TOURISME HIVER | F57: FI WINTERHAWK 4 | G57: 235 | H57: 45 | I57: R | J57: 19 | K57: 99 | L57: V | M57: C | N57: B | O57: B | P57: 71 | Q57: 245 | R57: 166.6
A58: 18078 | B58: 3286341807813 | C58: PN FIR 205/55R16 XL 94V WINTERHAWK 4 | D58: N2055516VWINTERHAW94 | E58: TOURISME HIVER | F58: FI WINTERHAWK 4 | G58: 205 | H58: 55 | I58: R | J58: 16 | K58: 94 | L58: V | M58: C | N58: B | O58: B | P58: 71 | Q58: 135.5 | R58: 92.14
A59: 18079 | B59: 3286341807912 | C59: PN FIR 245/45R17 XL 99V WINTERHAWK 4 | D59: N2454517VWINTERHAW99 | E59: TOURISME HIVER | F59: FI WINTERHAWK 4 | G59: 245 | H59: 45 | I59: R | J59: 17 | K59: 99 | L59: V | M59: D | N59: B | O59: B | P59: 71 | Q59: 210 | R59: 142.8
A60: 18080 | B60: 3286341808018 | C60: PN FIR 225/50R17 XL 98H WINTERHAWK 4 | D60: N2255017HWINTERHAW98 | E60: TOURISME HIVER | F60: FI WINTERHAWK 4 | G60: 225 | H60: 50 | I60: R | J60: 17 | K60: 98 | L60: H | M60: C | N60: B | O60: B | P60: 71 | Q60: 165 | R60: 112.2
A61: 18081 | B61: 3286341808117 | C61: PN FIR 205/60R16 XL 96H WINTERHAWK 4 | D61: N2056016HWINTERHAW96 | E61: TOURISME HIVER | F61: FI WINTERHAWK 4 | G61: 205 | H61: 60 | I61: R | J61: 16 | K61: 96 | L61: H | M61: C | N61: B | O61: B | P61: 71 | Q61: 123.5 | R61: 83.98
A62: 18082 | B62: 3286341808216 | C62: PN FIR 255/40R19 XL 100V WINTERHAWK 4 | D62: N2554019VWINTERHA100 | E62: TOURISME HIVER | F62: FI WINTERHAWK 4 | G62: 255 | H62: 40 | I62: R | J62: 19 | K62: 100 | L62: V | M62: D | N62: B | O62: B | P62: 71 | Q62: 265 | R62: 180.2
A63: 18083 | B63: 3286341808315 | C63: PN FIR 235/35R19 XL 91W WINTERHAWK 4 | D63: N2353519WWH4491 | E63: TOURISME HIVER | F63: FI WINTERHAWK 4 | G63: 235 | H63: 35 | I63: R | J63: 19 | K63: 91 | L63: W | M63: D | N63: B | O63: B | P63: 71 | Q63: 272 | R63: 184.96
A64: 18084 | B64: 3286341808414 | C64: PN FIR 245/45R18 XL 100V WINTERHAWK 4 | D64: N2454518VWH44100 | E64: TOURISME HIVER | F64: FI WINTERHAWK 4 | G64: 245 | H64: 45 | I64: R | J64: 18 | K64: 100 | L64: V | M64: D | N64: B | O64: B | P64: 71 | Q64: 201.5 | R64: 137.02
A65: 18085 | B65: 3286341808513 | C65: PN FIR 205/50R17 XL 93V WINTERHAWK 4 | D65: N2055017VWINTERHAW93 | E65: TOURISME HIVER | F65: FI WINTERHAWK 4 | G65: 205 | H65: 50 | I65: R | J65: 17 | K65: 93 | L65: V | M65: D | N65: B | O65: B | P65: 71 | Q65: 166 | R65: 112.88
A66: 18086 | B66: 3286341808612 | C66: PN FIR 215/45R17 XL 91V WINTERHAWK 4 | D66: N2154517VWH4491 | E66: TOURISME HIVER | F66: FI WINTERHAWK 4 | G66: 215 | H66: 45 | I66: R | J66: 17 | K66: 91 | L66: V | M66: D | N66: B | O66: B | P66: 71 | Q66: 172.5 | R66: 117.3
A67: 18087 | B67: 3286341808711 | C67: PN FIR 205/55R16 91H WINTERHAWK 4 | D67: N2055516HWINTERHAW91 | E67: TOURISME HIVER | F67: FI WINTERHAWK 4 | G67: 205 | H67: 55 | I67: R | J67: 16 | K67: 91 | L67: H | M67: C | N67: B | O67: B | P67: 71 | Q67: 112 | R67: 76.16
A68: 18088 | B68: 3286341808810 | C68: PN FIR 225/40R18 XL 92V WINTERHAWK 4 | D68: N2254018VWH4492 | E68: TOURISME HIVER | F68: FI WINTERHAWK 4 | G68: 225 | H68: 40 | I68: R | J68: 18 | K68: 92 | L68: V | M68: D | N68: B | O68: B | P68: 71 | Q68: 166 | R68: 112.88
A69: 18089 | B69: 3286341808919 | C69: PN FIR 225/50R18 XL 99V WINTERHAWK 4 | D69: N2255018VWINTERHAW99 | E69: TOURISME HIVER | F69: FI WINTERHAWK 4 | G69: 225 | H69: 50 | I69: R | J69: 18 | K69: 99 | L69: V | M69: C | N69: B | O69: B | P69: 71 | Q69: 233 | R69: 158.44
A70: 18091 | B70: 3286341809114 | C70: PN FIR 215/50R17 XL 95V WINTERHAWK 4 | D70: N2155017VWINTERHAW95 | E70: TOURISME HIVER | F70: FI WINTERHAWK 4 | G70: 215 | H70: 50 | I70: R | J70: 17 | K70: 95 | L70: V | M70: C | N70: B | O70: B | P70: 71 | Q70: 174.5 | R70: 118.66
A71: 18092 | B71: 3286341809213 | C71: PN FIR 245/40R19 XL 98V WINTERHAWK 4 | D71: N2454019VWINTERHAW98 | E71: TOURISME HIVER | F71: FI WINTERHAWK 4 | G71: 245 | H71: 40 | I71: R | J71: 19 | K71: 98 | L71: V | M71: D | N71: B | O71: B | P71: 71 | Q71: 283.5 | R71: 192.78
A72: 18093 | B72: 3286341809312 | C72: PN FIR 255/35R19 XL 96V WINTERHAWK 4 | D72: N2553519VWH4496 | E72: TOURISME HIVER | F72: FI WINTERHAWK 4 | G72: 255 | H72: 35 | I72: R | J72: 19 | K72: 96 | L72: V | M72: D | N72: B | O72: B | P72: 71 | Q72: 256.5 | R72: 174.42
A73: 18094 | B73: 3286341809411 | C73: PN FIR 215/55R16 93H WINTERHAWK 4 | D73: N2155516HWINTERHAW93 | E73: TOURISME HIVER | F73: FI WINTERHAWK 4 | G73: 215 | H73: 55 | I73: R | J73: 16 | K73: 93 | L73: H | M73: C | N73: B | O73: B | P73: 71 | Q73: 150 | R73: 102
A74: 18095 | B74: 3286341809510 | C74: PN FIR 205/55R17 XL 95V WINTERHAWK 4 | D74: N2055517VWINTERHAW95 | E74: TOURISME HIVER | F74: FI WINTERHAWK 4 | G74: 205 | H74: 55 | I74: R | J74: 17 | K74: 95 | L74: V | M74: C | N74: B | O74: B | P74: 71 | Q74: 182 | R74: =Q74*(1-$D$3) -> 123.76
A75: 18323 | B75: 3286341832310 | C75: PN FIR 175/65R14C 90/88T VANHAWK 2 WINTE | D75: N1756514TWH2WI90 | E75: CAMIONNETTE HIVER | F75: FI VANHAWK 2 WINT | G75: 175 | H75: 65 | I75: R | J75: 14 | K75: 90/88 | L75: T | M75: E | N75: B | O75: A | P75: 72 | Q75: 128 | R75: 87.04
A76: 18324 | B76: 3286341832419 | C76: PN FIR 215/65R16C 106/104T VANHAWK 2 WIN | D76: N2156516TWH2WI106 | E76: CAMIONNETTE HIVER | F76: FI VANHAWK 2 WINT | G76: 215 | H76: 65 | I76: R | J76: 16 | K76: 106/104 | L76: T | M76: D | N76: B | O76: B | P76: 73 | Q76: 172 | R76: 116.96
A77: 18325 | B77: 3286341832518 | C77: PN FIR 205/65R16C 107/105T VANHAWK 2 WIN | D77: N2056516TWH2WI107 | E77: CAMIONNETTE HIVER | F77: FI VANHAWK 2 WINT | G77: 205 | H77: 65 | I77: R | J77: 16 | K77: 107/105 | L77: T | M77: D | N77: B | O77: B | P77: 73 | Q77: 168.5 | R77: 114.58
A78: 18326 | B78: 3286341832617 | C78: PN FIR 195/65R16C 104/102T VANHAWK 2 WIN | D78: N1956516TWH2WI104 | E78: CAMIONNETTE HIVER | F78: FI VANHAWK 2 WINT | G78: 195 | H78: 65 | I78: R | J78: 16 | K78: 104/102 | L78: T | M78: D | N78: B | O78: A | P78: 72 | Q78: 156.5 | R78: 106.42
A79: 18327 | B79: 3286341832716 | C79: PN FIR 225/65R16C 112/110R VANHAWK 2 WIN | D79: N2256516RWH2WI112 | E79: CAMIONNETTE HIVER | F79: FI VANHAWK 2 WINT | G79: 225 | H79: 65 | I79: R | J79: 16 | K79: 112/110 | L79: R | M79: D | N79: B | O79: B | P79: 73 | Q79: 192.5 | R79: 130.9
A80: 18328 | B80: 3286341832815 | C80: PN FIR 195/60R16C 99/97T VANHAWK 2 WINTE | D80: N1956016TWH2WI99 | E80: CAMIONNETTE HIVER | F80: FI VANHAWK 2 WINT | G80: 195 | H80: 60 | I80: R | J80: 16 | K80: 99/97 | L80: T | M80: E | N80: B | O80: A | P80: 72 | Q80: 155.5 | R80: 105.74
A81: 18329 | B81: 3286341832914 | C81: PN FIR 165/70R14C 89/87R VANHAWK 2 WINTE | D81: N1657014RWH2WI89 | E81: CAMIONNETTE HIVER | F81: FI VANHAWK 2 WINT | G81: 165 | H81: 70 | I81: R | J81: 14 | K81: 89/87 | L81: R | M81: D | N81: B | O81: A | P81: 72 | Q81: 130 | R81: 88.4
A82: 18330 | B82: 3286341833010 | C82: PN FIR 205/65R15C 102/100T VANHAWK 2 WIN | D82: N2056515TWH2WI102 | E82: CAMIONNETTE HIVER | F82: FI VANHAWK 2 WINT | G82: 205 | H82: 65 | I82: R | J82: 15 | K82: 102/100 | L82: T | M82: D | N82: B | O82: A | P82: 72 | Q82: 155 | R82: 105.4
A83: 18331 | B83: 3286341833119 | C83: PN FIR 235/65R16C 115/113R VANHAWK 2 WIN | D83: N2356516RWH2WI115 | E83: CAMIONNETTE HIVER | F83: FI VANHAWK 2 WINT | G83: 235 | H83: 65 | I83: R | J83: 16 | K83: 115/113 | L83: R | M83: D | N83: B | O83: B | P83: 73 | Q83: 219 | R83: 148.92
A84: 18332 | B84: 3286341833218 | C84: PN FIR 215/75R16C 113/111R VANHAWK 2 WIN | D84: N2157516RWH2WI113 | E84: CAMIONNETTE HIVER | F84: FI VANHAWK 2 WINT | G84: 215 | H84: 75 | I84: R | J84: 16 | K84: 113/111 | L84: R | M84: D | N84: B | O84: B | P84: 73 | Q84: 202.5 | R84: 137.7
A85: 18333 | B85: 3286341833317 | C85: PN FIR 195/75R16C 107/105R VANHAWK 2 WIN | D85: N1957516RWH2WI107 | E85: CAMIONNETTE HIVER | F85: FI VANHAWK 2 WINT | G85: 195 | H85: 75 | I85: R | J85: 16 | K85: 107/105 | L85: R | M85: D | N85: B | O85: A | P85: 72 | Q85: 143 | R85: 97.24
A86: 18334 | B86: 3286341833416 | C86: PN FIR 205/75R16C 110/108R VANHAWK 2 WIN | D86: N2057516RWH2WI110 | E86: CAMIONNETTE HIVER | F86: FI VANHAWK 2 WINT | G86: 205 | H86: 75 | I86: R | J86: 16 | K86: 110/108 | L86: R | M86: D | N86: B | O86: A | P86: 72 | Q86: 160.5 | R86: 109.14
A87: 18335 | B87: 3286341833515 | C87: PN FIR 215/70R15C 109/107R VANHAWK 2 WIN | D87: N2157015RWH2WI109 | E87: CAMIONNETTE HIVER | F87: FI VANHAWK 2 WINT | G87: 215 | H87: 70 | I87: R | J87: 15 | K87: 109/107 | L87: R | M87: D | N87: B | O87: B | P87: 73 | Q87: 157.5 | R87: 107.1
A88: 18336 | B88: 3286341833614 | C88: PN FIR 205/70R15C 106/104R VANHAWK 2 WIN | D88: N2057015RWH2WI106 | E88: CAMIONNETTE HIVER | F88: FI VANHAWK 2 WINT | G88: 205 | H88: 70 | I88: R | J88: 15 | K88: 106/104 | L88: R | M88: D | N88: B | O88: A | P88: 72 | Q88: 150.5 | R88: 102.34
A89: 18337 | B89: 3286341833713 | C89: PN FIR 195/70R15C 104/102R VANHAWK 2 WIN | D89: N1957015RWH2WI104 | E89: CAMIONNETTE HIVER | F89: FI VANHAWK 2 WINT | G89: 195 | H89: 70 | I89: R | J89: 15 | K89: 104/102 | L89: R | M89: D | N89: B | O89: A | P89: 72 | Q89: 124.5 | R89: 84.66
A90: 18338 | B90: 3286341833812 | C90: PN FIR 185/75R16C 104/102R VANHAWK 2 WIN | D90: N1857516RWH2WI104 | E90: CAMIONNETTE HIVER | F90: FI VANHAWK 2 WINT | G90: 185 | H90: 75 | I90: R | J90: 16 | K90: 104/102 | L90: R | M90: D | N90: B | O90: A | P90: 72 | Q90: 149 | R90: 101.32
A91: 18339 | B91: 3286341833911 | C91: PN FIR 225/70R15C 112/110R VANHAWK 2 WIN | D91: N2257015RWH2WI112 | E91: CAMIONNETTE HIVER | F91: FI VANHAWK 2 WINT | G91: 225 | H91: 70 | I91: R | J91: 15 | K91: 112/110 | L91: R | M91: D | N91: B | O91: B | P91: 73 | Q91: 166.5 | R91: 113.22
A92: 18340 | B92: 3286341834017 | C92: PN FIR 215/65R16C 109/107T VANHAWK 2 WIN | D92: N2156516TWH2WI109 | E92: CAMIONNETTE HIVER | F92: FI VANHAWK 2 WINT | G92: 215 | H92: 65 | I92: R | J92: 16 | K92: 109/107 | L92: T | M92: D | N92: B | O92: B | P92: 73 | Q92: 181.5 | R92: 123.42
A93: 18827 | B93: 3286341882711 | C93: PN FIR 215/60R16C 103/101T VANHAWK 2 WIN | D93: N2156016TWH2WI103 | E93: CAMIONNETTE HIVER | F93: FI VANHAWK 2 WINT | G93: 215 | H93: 60 | I93: R | J93: 16 | K93: 103/101 | L93: T | M93: D | N93: B | O93: B | P93: 73 | Q93: 189 | R93: 128.52
A94: 18828 | B94: 3286341882810 | C94: PN FIR 225/75R16C 121/120R VANHAWK 2 WIN | D94: N2257516RWH2WI121 | E94: CAMIONNETTE HIVER | F94: FI VANHAWK 2 WINT | G94: 225 | H94: 75 | I94: R | J94: 16 | K94: 121/120 | L94: R | M94: D | N94: B | O94: B | P94: 73 | Q94: 224.5 | R94: 152.66
A95: 19361 | B95: 3286341936117 | C95: PN FIR 195/45R16 XL 84H WINTERHAWK 4 | D95: N1954516HWINTERHAW84 | E95: TOURISME HIVER | F95: FI WINTERHAWK 4 | G95: 195 | H95: 45 | I95: R | J95: 16 | K95: 84 | L95: H | M95: D | N95: B | O95: B | P95: 71 | Q95: 125 | R95: 85
A96: 19362 | B96: 3286341936216 | C96: PN FIR 195/50R15 XL 86H WINTERHAWK 4 | D96: N1955015HWINTERHAW86 | E96: TOURISME HIVER | F96: FI WINTERHAWK 4 | G96: 195 | H96: 50 | I96: R | J96: 15 | K96: 86 | L96: H | M96: D | N96: B | O96: B | P96: 71 | Q96: 92.5 | R96: 62.9
A97: 19363 | B97: 3286341936315 | C97: PN FIR 195/55R20 XL 95H WINTERHAWK 4 | D97: N1955520HWINTERHAW95 | E97: TOURISME HIVER | F97: FI WINTERHAWK 4 | G97: 195 | H97: 55 | I97: R | J97: 20 | K97: 95 | L97: H | M97: C | N97: B | O97: B | P97: 71 | Q97: 171 | R97: 116.28
A98: 19364 | B98: 3286341936414 | C98: PN FIR 215/50R18 92V WINTERHAWK 4 | D98: N2155018VWINTERHAW92 | E98: TOURISME HIVER | F98: FI WINTERHAWK 4 | G98: 215 | H98: 50 | I98: R | J98: 18 | K98: 92 | L98: V | M98: D | N98: B | O98: B | P98: 71 | Q98: 209 | R98: 142.12
A99: 19365 | B99: 3286341936513 | C99: PN FIR 225/45R19 XL 96V WINTERHAWK 4 | D99: N2254519VWINTERHAW96 | E99: TOURISME HIVER | F99: FI WINTERHAWK 4 | G99: 225 | H99: 45 | I99: R | J99: 19 | K99: 96 | L99: V | M99: D | N99: B | O99: B | P99: 71 | Q99: 254.5 | R99: 173.06
A100: 19366 | B100: 3286341936612 | C100: PN FIR 225/55R19 99V WINTERHAWK 4 | D100: N2255519VWINTERHAW99 | E100: 4x4 HIVER | F100: FI WINTERHAWK 4 | G100: 225 | H100: 55 | I100: R | J100: 19 | K100: 99 | L100: V | M100: C | N100: B | O100: B | P100: 71 | Q100: 238 | R100: 161.84
A101: 19367 | B101: 3286341936711 | C101: PN FIR 225/60R18 XL 104V WINTERHAWK 4 | D101: N2256018VWINTERHA104 | E101: 4x4 HIVER | F101: FI WINTERHAWK 4 | G101: 225 | H101: 60 | I101: R | J101: 18 | K101: 104 | L101: V | M101: C | N101: B | O101: B | P101: 71 | Q101: 210 | R101: 142.8
A102: 19368 | B102: 3286341936810 | C102: PN FIR 235/40R19 XL 96V WINTERHAWK 4 | D102: N2354019VWINTERHAW96 | E102: TOURISME HIVER | F102: FI WINTERHAWK 4 | G102: 235 | H102: 40 | I102: R | J102: 19 | K102: 96 | L102: V | M102: D | N102: B | O102: B | P102: 71 | Q102: 250 | R102: 170
A103: 19369 | B103: 3286341936919 | C103: PN FIR 235/50R19 XL 103V WINTERHAWK 4 | D103: N2355019VWINTERHA103 | E103: 4x4 HIVER | F103: FI WINTERHAWK 4 | G103: 235 | H103: 50 | I103: R | J103: 19 | K103: 103 | L103: V | M103: C | N103: B | O103: B | P103: 71 | Q103: 247.5 | R103: 168.3
A104: 19370 | B104: 3286341937015 | C104: PN FIR 235/55R19 XL 105V WINTERHAWK 4 | D104: N2355519VWINTERHA105 | E104: 4x4 HIVER | F104: FI WINTERHAWK 4 | G104: 235 | H104: 55 | I104: R | J104: 19 | K104: 105 | L104: V | M104: C | N104: B | O104: B | P104: 71 | Q104: 235.5 | R104: 160.14
A105: 19372 | B105: 3286341937213 | C105: PN FIR 245/45R19 XL 102V WINTERHAWK 4 | D105: N2454519VWH44102 | E105: TOURISME HIVER | F105: FI WINTERHAWK 4 | G105: 245 | H105: 45 | I105: R | J105: 19 | K105: 102 | L105: V | M105: C | N105: B | O105: B | P105: 71 | Q105: 255.5 | R105: 173.74
A106: 19373 | B106: 3286341937312 | C106: PN FIR 255/45R20 XL 105V WINTERHAWK 4 | D106: N2554520VWH44105 | E106: 4x4 HIVER | F106: FI WINTERHAWK 4 | G106: 255 | H106: 45 | I106: R | J106: 20 | K106: 105 | L106: V | M106: C | N106: B | O106: B | P106: 71 | Q106: 281.5 | R106: 191.42
A107: 19374 | B107: 3286341937411 | C107: PN FIR 255/60R18 XL 112V WINTERHAWK 4 | D107: N2556018VWINTERHA112 | E107: 4x4 HIVER | F107: FI WINTERHAWK 4 | G107: 255 | H107: 60 | I107: R | J107: 18 | K107: 112 | L107: V | M107: C | N107: B | O107: B | P107: 71 | Q107: 223 | R107: 151.64
A108: 19375 | B108: 3286341937510 | C108: PN FIR 205/60R17 XL 93H WINTERHAWK 4 | D108: N2056017HWH4493 | E108: TOURISME HIVER | F108: FI WINTERHAWK 4 | G108: 205 | H108: 60 | I108: R | J108: 17 | K108: 93 | L108: H | M108: D | N108: B | O108: B | P108: 71 | Q108: 180 | R108: 122.4
A109: 28512 | B109: 3286342851211 | C109: PN FIR 235/55R18 XL 104V WINTERHAWK 4 | D109: N2355518VWINTERHA104 | E109: 4x4 HIVER | F109: FI WINTERHAWK 4 | G109: 235 | H109: 55 | I109: R | J109: 18 | K109: 104 | L109: V | M109: C | N109: B | O109: B | P109: 71 | Q109: 230.5 | R109: 156.74
A110: 28513 | B110: 3286342851310 | C110: PN FIR 185/55R15 XL 86H WINTERHAWK 4 | D110: N1855515HWINTERHAW86 | E110: TOURISME HIVER | F110: FI WINTERHAWK 4 | G110: 185 | H110: 55 | I110: R | J110: 15 | K110: 86 | L110: H | M110: D | N110: B | O110: B | P110: 71 | Q110: 121 | R110: 82.28
A111: 28514 | B111: 3286342851419 | C111: PN FIR 235/60R18 XL 107V WINTERHAWK 4 | D111: N2356018VWINTERHA107 | E111: 4x4 HIVER | F111: FI WINTERHAWK 4 | G111: 235 | H111: 60 | I111: R | J111: 18 | K111: 107 | L111: V | M111: C | N111: B | O111: B | P111: 71 | Q111: 196 | R111: 133.28
A112: 28585 | B112: 3286342858517 | C112: PN FIR 225/40R19 XL 93W WINTERHAWK 4 | D112: N2254019WWINTERHAW93 | E112: TOURISME HIVER | F112: FI WINTERHAWK 4 | G112: 225 | H112: 40 | I112: R | J112: 19 | K112: 93 | L112: W | M112: D | N112: B | P112: 71 | Q112: 259.5 | R112: 176.46
A113: 28586 | B113: 3286342858616 | C113: PN FIR 245/50R18 XL 104V WINTERHAWK 4 | D113: N2455018VWINTERHA104 | E113: TOURISME HIVER | F113: FI WINTERHAWK 4 | G113: 245 | H113: 50 | I113: R | J113: 18 | K113: 104 | L113: V | M113: C | N113: B | P113: 71 | Q113: 254.5 | R113: 173.06
A114: 28587 | B114: 3286342858715 | C114: PN FIR 255/45R19 XL 104V WINTERHAWK 4 | D114: N2554519VWINTERHA104 | E114: TOURISME HIVER | F114: FI WINTERHAWK 4 | G114: 255 | H114: 45 | I114: R | J114: 19 | K114: 104 | L114: V | M114: C | N114: B | P114: 71 | Q114: 274.5 | R114: 186.66

Sheet GOO
D2: Remise
D3: =Remises!J10 -> 0.345
A5: Actualisation au 04/04/2024
A7: REFERENCES PNEUMATIQUES | Q7: TARIFS
A8: CAI | B8: EAN | C8: Désignation | D8: Appellation | E8: Catégorie | F8: Profil | G8: Largeur | H8: Hauteur | I8: Structure | J8: Diamètre | K8: IC | L8: IV | M8: Conso. | N8: Frein. | O8: Bruit. | P8: Décibels. | Q8: Prix BF | R8: Prix Remisé
A9: 516622 | B9: 5452000768322 | C9: PN G.Y 225/45R17 91 H GW3* ROF | D9: N2254517HGW3*R91 | E9: TOURISME HIVER | F9: GY GW3 | G9: 225 | H9: 45 | I9: R | J9: 17 | K9: 91 | L9: H | M9: D | N9: C | O9: B | P9: 70 | Q9: 231.5 | R9: =Q9*(1-$D$3) -> 151.6325
A10: 523229 | B10: 5452001087316 | C10: PN G.Y 245/55R17 102 H UG PERF2 | D10: N2455517HUGPER102 | E10: TOURISME HIVER | F10: GY UG8 MS | G10: 245 | H10: 55 | I10: R | J10: 17 | K10: 102 | L10: H | M10: D | N10: D | O10: B | P10: 72 | Q10: 383.5 | R10: =Q10*(1-$D$3) -> 251.1925
A11: 526043 | B11: 5452000380609 | C11: PN G.Y 245/60R18 105 H UG+SUV | D11: N2456018HUGSUV105 | E11: 4x4 HIVER | F11: GY UG SUV | G11: 245 | H11: 60 | I11: R | J11: 18 | K11: 105 | L11: H | M11: D | N11: D | O11: B | P11: 72 | Q11: 277 | R11: 181.435
A12: 526051 | B12: 5452000380685 | C12: PN G.Y 255/60R17 106 H UG+SUV | D12: N2556017HUGSUV106 | E12: 4x4 HIVER | F12: GY UG SUV | G12: 255 | H12: 60 | I12: R | J12: 17 | K12: 106 | L12: H | M12: D | N12: C | O12: B | P12: 72 | Q12: 298.5 | R12: 195.5175
A13: 526052 | B13: 5452000380692 | C13: PN G.Y 255/60R18 112 H UG+SUV | D13: N2556018HUGSUV112 | E13: 4x4 HIVER | F13: GY UG SUV | G13: 255 | H13: 60 | I13: R | J13: 18 | K13: 112 | L13: H | M13: C | N13: C | O13: B | P13: 71 | Q13: 286.5 | R13: 187.6575
A14: 526054 | B14: 5452000380715 | C14: PN G.Y 265/65R17 112 T UG+SUV | D14: N2656517TUGSUV112 | E14: 4x4 HIVER | F14: GY UG SUV | G14: 265 | H14: 65 | I14: R | J14: 17 | K14: 112 | L14: T | M14: D | N14: C | O14: B | P14: 71 | Q14: 289 | R14: 189.295
A15: 526864 | B15: 5452000392077 | C15: PN G.Y 205/50R17 89 H ROF UG PERF2 | D15: N2055017HUGPER89RU | E15: TOURISME HIVER | F15: GY UG8 MS | G15: 205 | H15: 50 | I15: R | J15: 17 | K15: 89 | L15: H | M15: E | N15: C | O15: A | P15: 69 | Q15: 268.5 | R15: 175.8675
A16: 529157 | B16: 5452000662262 | C16: PN G.Y 255/55R18 XL 109 H ROF ULT.GRIP | D16: N2555518HULTGR109XLR | E16: 4x4 HIVER | F16: GY UG SUV | G16: 255 | H16: 55 | I16: R | J16: 18 | K16: 109 | L16: H | M16: C | N16: C | O16: B | P16: 71 | Q16: 294.5 | R16: 192.8975
A17: 530818 | B17: 5452000448538 | C17: PN G.Y 245/65R17 107 H UG+SUV | D17: N2456517HUGSUV107GY | E17: 4x4 HIVER | F17: GY UG SUV | G17: 245 | H17: 65 | I17: R | J17: 17 | K17: 107 | L17: H | M17: D | N17: B | O17: B | P17: 72 | Q17: 290 | R17: 189.95
A18: 531844 | B18: 5452000468222 | C18: PN G.Y 245/40R18 XL 97V UG PERF G1 AOMFS | D18: N2454018VUGPERAO97FP | E18: TOURISME HIVER | F18: GY UGPERG1 | G18: 245 | H18: 40 | I18: R | J18: 18 | K18: 97 | L18: V | M18: C | N18: B | O18: B | P18: 72 | Q18: 262.5 | R18: 171.9375
A19: 532413 | B19: 5452000488022 | C19: PN G.Y 205/60R16 92 H UGPERFG1 | D19: N2056016HUGPERF92 | E19: TOURISME HIVER | F19: GY UGPERG1 | G19: 205 | H19: 60 | I19: R | J19: 16 | K19: 92 | L19: H | M19: D | N19: C | O19: B | P19: 70 | Q19: 165.5 | R19: 108.4025
A20: 540763 | B20: 5452000667595 | C20: PN G.Y 265/40R20 XL 104V UG PERF G1AO FP | D20: N2654020VUGPERAO104F | E20: TOURISME HIVER | F20: GY UGPERG1 | G20: 265 | H20: 40 | I20: R | J20: 20 | K20: 104 | L20: V | M20: D | N20: B | O20: B | P20: 73 | Q20: 448.5 | R20: 293.7675
A21: 543334 | B21: 5452000709257 | C21: PN G.Y 235/50R19 99V UG PERF SUV G1 AO | D21: N2355019VUGPSUG1AO99 | E21: 4x4 HIVER | F21: GY UGPSUG1 | G21: 235 | H21: 50 | I21: R | J21: 19 | K21: 99 | L21: V | M21: C | N21: C | O21: B | P21: 72 | Q21: 362.5 | R21: 237.4375
A22: 544265 | B22: 5452000718105 | C22: PN G.Y 245/35R20 XL 95V UG PERF G1 NA0 F | D22: N2453520VUGPG1NA95FP | E22: TOURISME HIVER | F22: GY UGPERG1 | G22: 245 | H22: 35 | I22: R | J22: 20 | K22: 95 | L22: V | M22: D | N22: B | O22: B | P22: 71 | Q22: 503 | R22: 329.465
A23: 544274 | B23: 5452000718266 | C23: PN G.Y 255/55R19 XL 111H UG PE SUV G1 AO | D23: N2555519HUGPERSAO111 | E23: 4x4 HIVER | F23: GY UGPSUG1 | G23: 255 | H23: 55 | I23: R | J23: 19 | K23: 111 | L23: H | M23: B | N23: B | O23: B | P23: 72 | Q23: 372.5 | R23: 243.9875
A24: 544758 | B24: 5452000724038 | C24: PN G.Y 205/60R16 XL 96H ROF UGPERF G1*FP | D24: N2056016HUGPER*96RUF | E24: TOURISME HIVER | F24: GY UGPERG1 | G24: 205 | H24: 60 | I24: R | J24: 16 | K24: 96 | L24: H | M24: C | N24: C | O24: B | P24: 71 | Q24: 192.5 | R24: 126.0875
A25: 544759 | B25: 5452000724045 | C25: PN G.Y 225/50R17 XL 98H ROF UGPERF G1*FP | D25: N2255017HUGPER*98RUF | E25: TOURISME HIVER | F25: GY UGPERG1 | G25: 225 | H25: 50 | I25: R | J25: 17 | K25: 98 | L25: H | M25: C | N25: B | O25: B | P25: 72 | Q25: 253 | R25: 165.715
A26: 545934 | B26: 5452000734785 | C26: PN G.Y 255/50R19 XL 107V UG PERF S G1 FP | D26: N2555019VUGPSUSC107F | E26: 4x4 HIVER | F26: GY UGPSUG1 | G26: 255 | H26: 50 | I26: R | J26: 19 | K26: 107 | L26: V | M26: B | N26: B | O26: B | P26: 72 | Q26: 318.5 | R26: 208.6175
A27: 545936 | B27: 5452000734808 | C27: PN G.Y 255/55R18 XL 109V UG PERF SUV G1 | D27: N2555518VUGPERFSUV10 | E27: 4x4 HIVER | F27: GY UGPSUG1 | G27: 255 | H27: 55 | I27: R | J27: 18 | K27: 109 | L27: V | M27: C | N27: B | O27: B | P27: 73 | Q27: 268 | R27: 175.54
A28: 545946 | B28: 5452000734884 | C28: PN G.Y 225/45R17 91V ROF UG PERF G1 FP | D28: N2254517VUGPG191RUFP | E28: TOURISME HIVER | F28: GY UGPERG1 | G28: 225 | H28: 45 | I28: R | J28: 17 | K28: 91 | L28: V | M28: D | N28: B | O28: B | P28: 71 | Q28: 231.5 | R28: 151.6325
A29: 545973 | B29: 5452000734563 | C29: PN G.Y 205/55R17 91H ROF UG PERF G1 | D29: N2055517HUGPERG191RU | E29: TOURISME HIVER | F29: GY UGPERG1 | G29: 205 | H29: 55 | I29: R | J29: 17 | K29: 91 | L29: H | M29: D | N29: C | O29: B | P29: 71 | Q29: 264 | R29: 172.92
A30: 546192 | B30: 5452000739360 | C30: PN G.Y 235/55R18 XL 104H UG PERF G1 AO | D30: N2355518HUGPERGAO104 | E30: TOURISME HIVER | F30: GY UGPERG1 | G30: 235 | H30: 55 | I30: R | J30: 18 | K30: 104 | L30: H | M30: C | N30: B | O30: B | P30: 72 | Q30: 301.5 | R30: 197.4825
A31: 546560 | B31: 5452000744258 | C31: PN G.Y 245/45R20 XL 103V UG PERF G1 NF0 | D31: N2454520VUGPG1NF103F | E31: TOURISME HIVER | F31: GY UGPERG1 | G31: 245 | H31: 45 | I31: R | J31: 20 | K31: 103 | L31: V | M31: C | N31: C | O31: B | P31: 71 | Q31: 443 | R31: 290.165
A32: 546561 | B32: 5452000744265 | C32: PN G.Y 285/40R20 XL 108V UG PERF G1 NF0 | D32: N2854020VUGPG1NF108F | E32: TOURISME HIVER | F32: GY UGPERG1 | G32: 285 | H32: 40 | I32: R | J32: 20 | K32: 108 | L32: V | M32: C | N32: C | O32: B | P32: 73 | Q32: 544.5 | R32: 356.6475
A33: 547485 | B33: 5452000803801 | C33: PN GY 205/55R16 91H UG 7+MS*FP | D33: N2055516HUG7+M*91FP | E33: TOURISME HIVER | F33: GY ULTRA GRIP 7 | G33: 205 | H33: 55 | I33: R | J33: 16 | K33: 91 | L33: H | M33: D | N33: C | O33: 2 | P33: 72 | Q33: 158 | R33: 103.49
A34: 547497 | B34: 5452000806215 | C34: PN G.Y 205/55R16 91H UG PERF G1 AO | D34: N2055516HUGPG1AO91 | E34: TOURISME HIVER | F34: GY UGPERG1 | G34: 205 | H34: 55 | I34: R | J34: 16 | K34: 91 | L34: H | M34: C | N34: B | O34: B | P34: 72 | Q34: 158 | R34: 103.49
A35: 547508 | B35: 5452000804495 | C35: PN G.Y 205/45R18 XL 90H UG PERF * G1 | D35: N2054518HUGPERFG1*90 | E35: TOURISME HIVER | F35: GY UG PERF G1 | G35: 205 | H35: 45 | I35: R | J35: 18 | K35: 90 | L35: H | M35: C | N35: B | O35: B | P35: 70 | Q35: 231 | R35: 151.305
A36: 547515 | B36: 5452000804563 | C36: PN G.Y 305/30R21 XL 104V UG PERF G1 NA0 | D36: N3053021VUGPG1NA104F | E36: TOURISME HIVER | F36: GY UGPERG1 | G36: 305 | H36: 30 | I36: R | J36: 21 | K36: 104 | L36: V | M36: D | N36: D | O36: A | P36: 72 | Q36: 757.5 | R36: 496.1625
A37: 548173 | B37: 5452000809087 | C37: PN G.Y 215/55R18 95T UG PERF G1 ST | D37: N2155518TUGPG1ST95 | E37: TOURISME HIVER | F37: GY UGPERG1 | G37: 215 | H37: 55 | I37: R | J37: 18 | K37: 95 | L37: T | M37: C | N37: B | O37: A | P37: 69 | Q37: 315.5 | R37: 206.6525
A38: 548487 | B38: 5452000815187 | C38: PN G.Y 155/65R14 75T U.G.9+ | D38: N1556514TUG9+75 | E38: TOURISME HIVER | F38: GY UG9+ | G38: 155 | H38: 65 | I38: R | J38: 14 | K38: 75 | L38: T | M38: E | N38: C | O38: B | P38: 70 | Q38: 112 | R38: 73.36
A39: 548488 | B39: 5452000815194 | C39: PN G.Y 165/70R14 81T U.G.9+ | D39: N1657014TUG9+81 | E39: TOURISME HIVER | F39: GY UG9+ | G39: 165 | H39: 70 | I39: R | J39: 14 | K39: 81 | L39: T | M39: D | N39: B | O39: B | P39: 70 | Q39: 113.5 | R39: 74.3425
A40: 548489 | B40: 5452000815200 | C40: PN G.Y 175/60R15 81T U.G.9+ | D40: N1756015TUG9+81 | E40: TOURISME HIVER | F40: GY UG9+ | G40: 175 | H40: 60 | I40: R | J40: 15 | K40: 81 | L40: T | M40: D | N40: B | O40: B | P40: 70 | Q40: 136 | R40: 89.08
A41: 548566 | B41: 5452000815965 | C41: PN G.Y 175/70R14 84T U.G.9+ | D41: N1757014TUG9+84 | E41: TOURISME HIVER | F41: GY UG9+ | G41: 175 | H41: 70 | I41: R | J41: 14 | K41: 84 | L41: T | M41: D | N41: B | O41: B | P41: 71 | Q41: 132 | R41: 86.46
A42: 548567 | B42: 5452000815972 | C42: PN G.Y 175/70R14 XL 88T U.G.9+ | D42: N1757014TUG9+88 | E42: TOURISME HIVER | F42: GY UG9+ | G42: 175 | H42: 70 | I42: R | J42: 14 | K42: 88 | L42: T | M42: C | N42: B | O42: B | P42: 71 | Q42: 139.5 | R42: 91.3725
A43: 548568 | B43: 5452000815989 | C43: PN G.Y 185/55R15 82T U.G.9+ | D43: N1855515TUG9+82 | E43: TOURISME HIVER | F43: GY UG9+ | G43: 185 | H43: 55 | I43: R | J43: 15 | K43: 82 | L43: T | M43: D | N43: B | O43: B | P43: 71 | Q43: 161.5 | R43: 105.7825
A44: 548569 | B44: 5452000815996 | C44: PN G.Y 185/60R14 82T U.G.9+ | D44: N1856014TUG9+82 | E44: TOURISME HIVER | F44: GY UG9+ | G44: 185 | H44: 60 | I44: R | J44: 14 | K44: 82 | L44: T | M44: D | N44: B | O44: B | P44: 69 | Q44: 123 | R44: 80.565
A45: 548572 | B45: 5452000816221 | C45: PN G.Y 185/65R14 86T U.G.9+ | D45: N1856514TUG9+86 | E45: TOURISME HIVER | F45: GY UG9+ | G45: 185 | H45: 65 | I45: R | J45: 14 | K45: 86 | L45: T | M45: D | N45: B | O45: B | P45: 71 | Q45: 126.5 | R45: 82.8575
A46: 548600 | B46: 5452000816405 | C46: PN G.Y 205/65R15 94T U.G.9+ | D46: N2056515TUG9+94 | E46: TOURISME HIVER | F46: GY UG9+ | G46: 205 | H46: 65 | I46: R | J46: 15 | K46: 94 | L46: T | M46: C | N46: B | O46: B | P46: 71 | Q46: 180.5 | R46: 118.2275
A47: 549455 | B47: 5452000819277 | C47: PN G.Y 215/55R18 95T UG PERF G1 | D47: N2155518TUGPG195 | E47: TOURISME HIVER | F47: GY UGPERG1 | G47: 215 | H47: 55 | I47: R | J47: 18 | K47: 95 | L47: T | M47: C | N47: B | O47: A | P47: 69 | Q47: 285 | R47: 186.675
A48: 565870 | B48: 5452001090613 | C48: PN G.Y 255/50R19 XL 107 V ULT.GRIP*ROF | D48: N2555019VULTGR107XL | E48: 4x4 HIVER | F48: GY ULTRA GRIP 7 | G48: 255 | H48: 50 | I48: R | J48: 19 | K48: 107 | L48: V | M48: D | N48: C | O48: B | P48: 72 | Q48: 346.5 | R48: 226.9575
A49: 571074 | B49: 5452000597151 | C49: PN G.Y 205/65R16C 107/105T UG CARGO | D49: N2056516TUGCARG107 | E49: CAMIONNETTE HIVER | F49: GY UG CARGO | G49: 205 | H49: 65 | I49: R | J49: 16 | K49: 107/105 | L49: T | M49: D | N49: C | O49: B | P49: 73 | Q49: 218 | R49: 142.79
A50: 571118 | B50: 5452000598660 | C50: PN G.Y 205/75R16C 113/111R UG CARGO | D50: N2057516RUGCARG113 | E50: CAMIONNETTE HIVER | F50: GY ULTRAGRIP CARGO | G50: 205 | H50: 75 | I50: R | J50: 16 | K50: 113/111 | L50: R | M50: D | N50: B | O50: B | P50: 73 | Q50: 229.5 | R50: 150.3225
A51: 571119 | B51: 5452000598677 | C51: PN G.Y 215/75R16C 116/114R U.G CARGO | D51: N2157516RUGCARG116 | E51: CAMIONNETTE HIVER | F51: GY ULTRAGRIP CARGO | G51: 215 | H51: 75 | I51: R | J51: 16 | K51: 116/114 | L51: R | M51: D | N51: D | O51: B | P51: 73 | Q51: 281 | R51: 184.055
A52: 571121 | B52: 5452000598684 | C52: PN G.Y 225/75R16C 121/120R UG CARGO | D52: N2257516RUGCARG121 | E52: CAMIONNETTE HIVER | F52: GY UG CARGO | G52: 225 | H52: 75 | I52: R | J52: 16 | K52: 121/120 | L52: R | M52: D | N52: C | O52: B | P52: 73 | Q52: 304.5 | R52: 199.4475
A53: 571716 | B53: 5452000680488 | C53: PN G.Y 195/60R16C 99/97T U.G CARGO | D53: N1956016TUGCARGP99 | E53: CAMIONNETTE HIVER | F53: GY ULTRAGRIP CARGO | G53: 195 | H53: 60 | I53: R | J53: 16 | K53: 99/97 | L53: T | M53: D | N53: C | O53: B | P53: 72 | Q53: 207.5 | R53: 135.9125
A54: 571717 | B54: 5452000680495 | C54: PN G.Y 195/65R16C 104/102T UG CARGO | D54: N1956516TUGCARG104 | E54: CAMIONNETTE HIVER | F54: GY ULTRAGRIP CARGO | G54: 195 | H54: 65 | I54: R | J54: 16 | K54: 104/102 | L54: T | M54: D | N54: C | O54: B | P54: 73 | Q54: 206 | R54: 134.93
A55: 571718 | B55: 5452000680501 | C55: PN G.Y 195/70R15C 104/102S UG CARGO | D55: N1957015SUGCARG104 | E55: CAMIONNETTE HIVER | F55: GY UG CARGO | G55: 195 | H55: 70 | I55: R | J55: 15 | K55: 104/102 | L55: S | M55: E | N55: D | O55: B | P55: 72 | Q55: 174 | R55: 113.97
A56: 571752 | B56: 5452000680228 | C56: PN G.Y 215/75R16C 113/111R UG CARGO | D56: N2157516RUGCARG113 | E56: CAMIONNETTE HIVER | F56: GY ULTRAGRIP CARGO | G56: 215 | H56: 75 | I56: R | J56: 16 | K56: 113/111 | L56: R | M56: D | N56: C | O56: B | P56: 73 | Q56: 271.5 | R56: 177.8325
A57: 571753 | B57: 5452000680235 | C57: PN G.Y 225/65R16C 112/110T UG CARGO | D57: N2256516TUGCARG112 | E57: CAMIONNETTE HIVER | F57: GY ULTRAGRIP CARGO | G57: 225 | H57: 65 | I57: R | J57: 16 | K57: 112/110 | L57: T | M57: D | N57: D | O57: B | P57: 73 | Q57: 266.5 | R57: 174.5575
A58: 571754 | B58: 5452000680242 | C58: PN G.Y 225/70R15C 112/110R UG CARGO | D58: N2257015RUGCARG112 | E58: CAMIONNETTE HIVER | F58: GY ULTRAGRIP CARGO | G58: 225 | H58: 70 | I58: R | J58: 15 | K58: 112/110 | L58: R | M58: D | N58: C | O58: B | P58: 73 | Q58: 217.5 | R58: 142.4625
A59: 571755 | B59: 5452000680259 | C59: PN G.Y 235/65R16C 115/113S U.G CARGO | D59: N2356516SUGCARG115 | E59: CAMIONNETTE HIVER | F59: GY ULTRAGRIP CARGO | G59: 235 | H59: 65 | I59: R | J59: 16 | K59: 115/113 | L59: S | M59: D | N59: C | O59: B | P59: 72 | Q59: 286 | R59: 187.33
A60: 571822 | B60: 5452000680556 | C60: PN G.Y 205/75R16C 110/108R UG CARGO | D60: N2057516RUGCARG110 | E60: CAMIONNETTE HIVER | F60: GY ULTRAGRIP CARGO | G60: 205 | H60: 75 | I60: R | J60: 16 | K60: 110/108 | L60: R | M60: D | N60: C | O60: B | P60: 72 | Q60: 203 | R60: 132.965
A61: 571823 | B61: 5452000680563 | C61: PN G.Y 215/60R16C 103/101T UG CARGO | D61: N2156016TUGCARG103 | E61: CAMIONNETTE HIVER | F61: GY ULTRAGRIP CARGO | G61: 215 | H61: 60 | I61: R | J61: 16 | K61: 103/101 | L61: T | M61: E | N61: B | O61: B | P61: 72 | Q61: 249 | R61: 163.095
A62: 571824 | B62: 5452000680570 | C62: PN G.Y 215/60R17C 109/107T UG CARGO | D62: N2156017TUGCARG109 | E62: CAMIONNETTE HIVER | F62: GY ULTRAGRIP CARGO | G62: 215 | H62: 60 | I62: R | J62: 17 | K62: 109/107 | L62: T | M62: D | N62: B | O62: B | P62: 71 | Q62: 295.5 | R62: 193.5525
A63: 571825 | B63: 5452000680693 | C63: PN G.Y 215/65R16C 109/107T UG CARGO | D63: N2156516TUGCARG109 | E63: CAMIONNETTE HIVER | F63: GY ULTRAGRIP CARGO | G63: 215 | H63: 65 | I63: R | J63: 16 | K63: 109/107 | L63: T | M63: D | N63: C | O63: B | P63: 73 | Q63: 216 | R63: 141.48
A64: 573680 | B64: 5452000816412 | C64: PN G.Y 165/70R14C 89/87R U.G.9+ | D64: N1657014RUG9+89 | E64: CAMIONNETTE HIVER | F64: GY UG9+ | G64: 165 | H64: 70 | I64: R | J64: 14 | K64: 89/87 | L64: R | M64: D | N64: B | O64: B | P64: 72 | Q64: 206 | R64: 134.93
A65: 573681 | B65: 5452000816429 | C65: PN G.Y 175/65R14C 90/88T U.G.9+ | D65: N1756514TUG9+90 | E65: CAMIONNETTE HIVER | F65: GY UG9+ | G65: 175 | H65: 65 | I65: R | J65: 14 | K65: 90/88 | L65: T | M65: D | N65: B | O65: B | P65: 71 | Q65: 175.5 | R65: 114.9525
A66: 574151 | B66: 5452000828576 | C66: PN G.Y 195/50R15 82H UG PERF+ | D66: N1955015HUGP+82 | E66: TOURISME HIVER | F66: GY ULGRPERF+ | G66: 195 | H66: 50 | I66: R | J66: 15 | K66: 82 | L66: H | M66: D | N66: B | O66: B | P66: 71 | Q66: 146 | R66: 95.63
A67: 574156 | B67: 5452000828620 | C67: PN G.Y 245/45R18 XL 100V UG PERF+ FP | D67: N2454518VUGP+100FP | E67: TOURISME HIVER | F67: GY ULGRPERF+ | G67: 245 | H67: 45 | I67: R | J67: 18 | K67: 100 | L67: V | M67: C | N67: B | O67: B | P67: 72 | Q67: 275.5 | R67: 180.4525
A68: 574213 | B68: 5452000829696 | C68: PN G.Y 155/70R19 84T UG PERF+ | D68: N1557019TUGPERF+84 | E68: TOURISME HIVER | F68: GY ULGRPERF+ | G68: 155 | H68: 70 | I68: R | J68: 19 | K68: 84 | L68: T | M68: C | N68: B | O68: B | P68: 69 | Q68: 200.5 | R68: 131.3275
A69: 574215 | B69: 5452000829719 | C69: PN G.Y 195/55R15 85H UG PERF+ | D69: N1955515HUGP+85 | E69: TOURISME HIVER | F69: GY ULGRPERF+ | G69: 195 | H69: 55 | I69: R | J69: 15 | K69: 85 | L69: H | M69: D | N69: C | O69: B | P69: 70 | Q69: 170.5 | R69: 111.6775
A70: 574216 | B70: 5452000829726 | C70: PN G.Y 195/55R20 XL 95H UG PERF+ | D70: N1955520HUGPERF+95 | E70: TOURISME HIVER | F70: GY ULGRPERF+ | G70: 195 | H70: 55 | I70: R | J70: 20 | K70: 95 | L70: H | M70: C | N70: C | O70: B | P70: 70 | Q70: 227.5 | R70: 149.0125
